Workbook

Sheet Copyright
A2: Modelo de Viabilidade Financeira em Operações de Visitação
A4: PARQUE NACIONAL DE JERICOACOARA
A5: VERSÃO FINAL 29/11/2021
A6: Resultados base para o relatório de viabilidade financeira
A7: Liberada para novas simulações
A9: Revisão 2.0 - 01/04/2022 - CP

Sheet Painel de controle
A1: Premissas do projeto
A3: Premissa | B3: Valor | C3: Unidade
A4: Valor da outorga : | B4: 0.04 | C4: % sobre faturamento bruto
A5: Valor dos macrotemas : | B5: 0.05 | C5: % sobre faturamento bruto
A6: Modalidade de tributação : | B6: Lucro Real
A7: % de alavancagem do Capex inicial : | B7: 0.7 | C7: % sobre CAPEX ano 1
A8: WACC : | B8: 0.0938 | C8: % ao ano
A9: Cenário de demanda : | B9: PESSIMISTA
A10: Preço do ingresso inteira : | B10: 45 | C10: R$
A13: Resultados | B13: 30 anos
A14: VPL do Projeto (R$ 1000) | B14: =NPV(WACC,'F2 - DRE 30 anos'!C38:AF38) -> 1936.066176
A15: Payback simples (anos) | B15: ='F2 - DRE 30 anos'!B53 -> 16.27623209
A16: Payback descontado (anos) | B16: ='F2 - DRE 30 anos'!B54 -> 27.53413296
A17: B/C | B17: ='F2 - DRE 30 anos'!B55 -> 1.005727969
A18: Σ Valores Reais Macrotemas (R$ 1000) | B18: =-SUM('F2 - DRE 30 anos'!C9:AF9) -> 104111.7767 | C18: =B18/30 -> 3470.392557 | D18: Valor médio anual
A19: Σ Valores Reais Macrotemas Entorno (R$ 1000) | B19: =B18*C19 -> 26027.94418 | C19: 0.25
A20: Σ Valores Reais Macrotemas Transporte (R$ 1000) | B20: =C20*B18 -> 26027.94418 | C20: 0.25
A21: Σ Valores Reais Tributos Municipais (R$ 1000) | B21: =SUM('E2 - Tributos'!D273:AG273)/1000 -> 197315.544
A22: Σ Valores Reais Tributos Estaduais (R$ 1000) | B22: =SUM('E2 - Tributos'!D274:AG274)/1000 -> 175021.4703
A24: VP CAPEX (R$ 1000): | B24: =NPV(WACC,'D2 - Capex uso'!BS188:CV188)/1000 -> 75158.82024
A25: CAPEX não descontado - 5 anos iniciais (R$ 1000): | B25: =SUM('D2 - Capex uso'!BS188:BW188)/1000 -> 73039.8619
A26: CAPEX não descontado : | B26: =SUM('D2 - Capex uso'!BS188:CV188)/1000 -> 119584.4821
A27: OPEX não descontado - 30 anos (R$ 1000): | B27: =-SUM('F2 - DRE 30 anos'!C14:AF14) -> 1184592.872
A30: Parâmetros da análise de sensibilidade
A31: Demanda inicial : | B31: 1322883.2
A32: Variação percentual de demanda : | B32: 0.05
A33: Variação percentual de investimento : | B33: 0.1
A34: Investimento total : | B34: =B24 -> 75158.82024
A36: Ajuste Demanda | B36: -0.05
A37: Capex Overun | B37: 0.05

Sheet A1 - Serviços e demanda
A1: Conversão sobre demanda base
A3: Demanda | B3: Demanda base (ano 0)
A5: Demanda de visitação | B5: ='Painel de controle'!B31*(1+CorrDemanda) -> 1256739.04
A6: Cenário | B6: ='Painel de controle'!B9 -> PESSIMISTA
A8: Cenários de evolução da visitação regional
A9: Cenários de demanda | B9: Variação anual (%)
B10: 1 | C10: 2 | D10: 3 | E10: 4 | F10: 5 | G10: 6 | H10: 7 | I10: 8 | J10: 9 | K10: 10 | L10: 11 | M10: 12 | N10: 13 | O10: 14 | P10: 15 | Q10: 16 | R10: 17 | S10: 18 | T10: 19 | U10: 20 | V10: 21 | W10: 22 | X10: 23 | Y10: 24 | Z10: 25 | AA10: 26 | AB10: 27 | AC10: 28 | AD10: 29 | AE10: 30
A11: MODERADA | B11: -0.1137271675 | C11: 0.04357382297 | D11: 0.04366865721 | E11: 0.04138292274 | F11: 0.04093500422 | G11: 0.04044025833 | H11: 0.04038884066 | I11: 0.04028903063 | J11: 0.03992609689 | K11: 0.03953836613 | L11: 0.03958334651 | M11: 0.03955150674 | N11: 0.03960924617 | O11: 0.0395906846 | P11: 0.03958661525 | Q11: 0.03948946842 | R11: 0.03935022257 | S11: 0.03908203781 | T11: 0.0387461663 | U11: 0.038271991 | V11: 0 | W11: 0 | X11: 0 | Y11: 0 | Z11: 0 | AA11: 0 | AB11: 0 | AC11: 0 | AD11: 0 | AE11: 0
A12: PESSIMISTA | B12: -0.121556871 | C12: 0.0344990627 | D12: 0.03449281286 | E12: 0.03229574791 | F12: 0.03178154652 | G12: 0.03134280833 | H12: 0.03124671195 | I12: 0.03118360504 | J12: 0.03079205193 | K12: 0.03042946671 | L12: 0.03045450129 | M12: 0.03043892079 | N12: 0.0304832608 | O12: 0.03047556409 | P12: 0.03046268167 | Q12: 0.03037302827 | R12: 0.03022830716 | S12: 0.02996569381 | T12: 0.02962686809 | U12: 0.0291572351 | V12: 0 | W12: 0 | X12: 0 | Y12: 0 | Z12: 0 | AA12: 0 | AB12: 0 | AC12: 0 | AD12: 0 | AE12: 0
A13: OTIMISTA | B13: -0.1058690709 | C13: 0.05266715535 | D13: 0.05287436086 | E13: 0.05049194264 | F13: 0.05011627145 | G13: 0.04956138174 | H13: 0.04955758484 | I13: 0.04941913372 | J13: 0.04908608982 | K13: 0.04867246851 | L13: 0.0487377875 | M13: 0.04868956461 | N13: 0.04876065319 | O13: 0.04873139893 | P13: 0.0487358985 | Q13: 0.04863154453 | R13: 0.04849747022 | S13: 0.04822401886 | T13: 0.04789080583 | U13: 0.0474123662 | V13: 0 | W13: 0 | X13: 0 | Y13: 0 | Z13: 0 | AA13: 0 | AB13: 0 | AC13: 0 | AD13: 0 | AE13: 0
A15: Sazonalidade %
A17: Unidades Geradoras de Caixa (UGC) | B17: Mês (%) | N17: TOTAL | O17: Semana (%) | V17: TOTAL | W17: Capacidade diária | X17: Categoria de receita | Y17: Tipo de UGC | Z17: Ramp up (%) | AA17: Inclui UGC? (S/N)
B18: Jan | C18: Fev | D18: Mar | E18: Abr | F18: Mai | G18: Jun | H18: Jul | I18: Ago | J18: Set | K18: Out | L18: Nov | M18: Dez | O18: Seg | P18: Ter | Q18: Qua | R18: Qui | S18: Sex | T18: Sáb | U18: Dom
A19: Demanda de visitação REGIONAL/TOTAL | B19: 0.08333333333 | C19: 0.08333333333 | D19: 0.08333333333 | E19: 0.08333333333 | F19: 0.08333333333 | G19: 0.08333333333 | H19: 0.08333333333 | I19: 0.08333333333 | J19: 0.08333333333 | K19: 0.08333333333 | L19: 0.08333333333 | M19: 0.08333333333 | N19: =SUM(B19:M19) -> 1 | O19: 0.1428571429 | P19: 0.1428571429 | Q19: 0.1428571429 | R19: 0.1428571429 | S19: 0.1428571429 | T19: 0.1428571429 | U19: 0.1428571429 | V19: =SUM(O19:U19) -> 1
A20: Ingresso | B20: 0.08333333333 | C20: 0.08333333333 | D20: 0.08333333333 | E20: 0.08333333333 | F20: 0.08333333333 | G20: 0.08333333333 | H20: 0.08333333333 | I20: 0.08333333333 | J20: 0.08333333333 | K20: 0.08333333333 | L20: 0.08333333333 | M20: 0.08333333333 | N20: 1 | O20: 0.1428571429 | P20: 0.1428571429 | Q20: 0.1428571429 | R20: 0.1428571429 | S20: 0.1428571429 | T20: 0.1428571429 | U20: 0.1428571429 | V20: 1 | X20: Serviços | Y20: Hospitalidade | Z20: 0.5 | AA20: Sim | AB20: =IF(AA20="Sim",1,0) -> 1
A21: Preá - Alimentação | B21: 0.08333333333 | C21: 0.08333333333 | D21: 0.08333333333 | E21: 0.08333333333 | F21: 0.08333333333 | G21: 0.08333333333 | H21: 0.08333333333 | I21: 0.08333333333 | J21: 0.08333333333 | K21: 0.08333333333 | L21: 0.08333333333 | M21: 0.08333333333 | N21: 1 | O21: 0.1428571429 | P21: 0.1428571429 | Q21: 0.1428571429 | R21: 0.1428571429 | S21: 0.1428571429 | T21: 0.1428571429 | U21: 0.1428571429 | V21: 1 | X21: Alimentação | Y21: Alimentação | Z21: 0 | AA21: Sim | AB21: 1
A22: Preá - Comércio | B22: 0.08333333333 | C22: 0.08333333333 | D22: 0.08333333333 | E22: 0.08333333333 | F22: 0.08333333333 | G22: 0.08333333333 | H22: 0.08333333333 | I22: 0.08333333333 | J22: 0.08333333333 | K22: 0.08333333333 | L22: 0.08333333333 | M22: 0.08333333333 | N22: 1 | O22: 0.1428571429 | P22: 0.1428571429 | Q22: 0.1428571429 | R22: 0.1428571429 | S22: 0.1428571429 | T22: 0.1428571429 | U22: 0.1428571429 | V22: 1 | X22: Comércio | Y22: Comércio | Z22: 0 | AA22: Sim | AB22: 1
A23: Preá - Estacionamento | B23: 0.08333333333 | C23: 0.08333333333 | D23: 0.08333333333 | E23: 0.08333333333 | F23: 0.08333333333 | G23: 0.08333333333 | H23: 0.08333333333 | I23: 0.08333333333 | J23: 0.08333333333 | K23: 0.08333333333 | L23: 0.08333333333 | M23: 0.08333333333 | N23: 1 | O23: 0.1428571429 | P23: 0.1428571429 | Q23: 0.1428571429 | R23: 0.1428571429 | S23: 0.1428571429 | T23: 0.1428571429 | U23: 0.1428571429 | V23: 1 | X23: Serviços | Y23: Hospitalidade | Z23: 0 | AA23: Sim | AB23: 1
A24: Árvore da Preguiça - Alimentação | B24: 0.08333333333 | C24: 0.08333333333 | D24: 0.08333333333 | E24: 0.08333333333 | F24: 0.08333333333 | G24: 0.08333333333 | H24: 0.08333333333 | I24: 0.08333333333 | J24: 0.08333333333 | K24: 0.08333333333 | L24: 0.08333333333 | M24: 0.08333333333 | N24: 1 | O24: 0.1428571429 | P24: 0.1428571429 | Q24: 0.1428571429 | R24: 0.1428571429 | S24: 0.1428571429 | T24: 0.1428571429 | U24: 0.1428571429 | V24: 1 | X24: Alimentação | Y24: Alimentação | Z24: 0 | AA24: Sim | AB24: 1
A25: Árvore da Preguiça - Comércio | B25: 0.08333333333 | C25: 0.08333333333 | D25: 0.08333333333 | E25: 0.08333333333 | F25: 0.08333333333 | G25: 0.08333333333 | H25: 0.08333333333 | I25: 0.08333333333 | J25: 0.08333333333 | K25: 0.08333333333 | L25: 0.08333333333 | M25: 0.08333333333 | N25: 1 | O25: 0.1428571429 | P25: 0.1428571429 | Q25: 0.1428571429 | R25: 0.1428571429 | S25: 0.1428571429 | T25: 0.1428571429 | U25: 0.1428571429 | V25: 1 | X25: Comércio | Y25: Comércio | Z25: 0 | AA25: Sim | AB25: 1
A26: Silveira - Alimentação | B26: 0.08333333333 | C26: 0.08333333333 | D26: 0.08333333333 | E26: 0.08333333333 | F26: 0.08333333333 | G26: 0.08333333333 | H26: 0.08333333333 | I26: 0.08333333333 | J26: 0.08333333333 | K26: 0.08333333333 | L26: 0.08333333333 | M26: 0.08333333333 | N26: 1 | O26: 0.1428571429 | P26: 0.1428571429 | Q26: 0.1428571429 | R26: 0.1428571429 | S26: 0.1428571429 | T26: 0.1428571429 | U26: 0.1428571429 | V26: 1 | X26: Alimentação | Y26: Alimentação | Z26: 0 | AA26: Sim | AB26: 1
A27: Silveira - Comércio + Locação + Atividades | B27: 0.08333333333 | C27: 0.08333333333 | D27: 0.08333333333 | E27: 0.08333333333 | F27: 0.08333333333 | G27: 0.08333333333 | H27: 0.08333333333 | I27: 0.08333333333 | J27: 0.08333333333 | K27: 0.08333333333 | L27: 0.08333333333 | M27: 0.08333333333 | N27: 1 | O27: 0.1428571429 | P27: 0.1428571429 | Q27: 0.1428571429 | R27: 0.1428571429 | S27: 0.1428571429 | T27: 0.1428571429 | U27: 0.1428571429 | V27: 1 | X27: Comércio | Y27: Comércio | Z27: 0 | AA27: Sim | AB27: 1
A28: Silveira - Hospedagem | B28: 0.08333333333 | C28: 0.08333333333 | D28: 0.08333333333 | E28: 0.08333333333 | F28: 0.08333333333 | G28: 0.08333333333 | H28: 0.08333333333 | I28: 0.08333333333 | J28: 0.08333333333 | K28: 0.08333333333 | L28: 0.08333333333 | M28: 0.08333333333 | N28: 1 | O28: 0.1428571429 | P28: 0.1428571429 | Q28: 0.1428571429 | R28: 0.1428571429 | S28: 0.1428571429 | T28: 0.1428571429 | U28: 0.1428571429 | V28: 1 | X28: Serviços | Y28: Hospitalidade | Z28: 0 | AA28: Sim | AB28: 1
A29: Pedra Furada - Alimentação | B29: 0.08333333333 | C29: 0.08333333333 | D29: 0.08333333333 | E29: 0.08333333333 | F29: 0.08333333333 | G29: 0.08333333333 | H29: 0.08333333333 | I29: 0.08333333333 | J29: 0.08333333333 | K29: 0.08333333333 | L29: 0.08333333333 | M29: 0.08333333333 | N29: 1 | O29: 0.1428571429 | P29: 0.1428571429 | Q29: 0.1428571429 | R29: 0.1428571429 | S29: 0.1428571429 | T29: 0.1428571429 | U29: 0.1428571429 | V29: 1 | X29: Alimentação | Y29: Alimentação | Z29: 0 | AA29: Sim | AB29: 1
A30: Pedra Furada - Comércio | B30: 0.08333333333 | C30: 0.08333333333 | D30: 0.08333333333 | E30: 0.08333333333 | F30: 0.08333333333 | G30: 0.08333333333 | H30: 0.08333333333 | I30: 0.08333333333 | J30: 0.08333333333 | K30: 0.08333333333 | L30: 0.08333333333 | M30: 0.08333333333 | N30: 1 | O30: 0.1428571429 | P30: 0.1428571429 | Q30: 0.1428571429 | R30: 0.1428571429 | S30: 0.1428571429 | T30: 0.1428571429 | U30: 0.1428571429 | V30: 1 | X30: Comércio | Y30: Comércio | Z30: 0 | AA30: Sim | AB30: 1
A31: Serrote - Alimentação | B31: 0.08333333333 | C31: 0.08333333333 | D31: 0.08333333333 | E31: 0.08333333333 | F31: 0.08333333333 | G31: 0.08333333333 | H31: 0.08333333333 | I31: 0.08333333333 | J31: 0.08333333333 | K31: 0.08333333333 | L31: 0.08333333333 | M31: 0.08333333333 | N31: 1 | O31: 0.1428571429 | P31: 0.1428571429 | Q31: 0.1428571429 | R31: 0.1428571429 | S31: 0.1428571429 | T31: 0.1428571429 | U31: 0.1428571429 | V31: 1 | X31: Alimentação | Y31: Alimentação | Z31: 0 | AA31: Sim | AB31: 1
A32: Serrote - Comércio | B32: 0.08333333333 | C32: 0.08333333333 | D32: 0.08333333333 | E32: 0.08333333333 | F32: 0.08333333333 | G32: 0.08333333333 | H32: 0.08333333333 | I32: 0.08333333333 | J32: 0.08333333333 | K32: 0.08333333333 | L32: 0.08333333333 | M32: 0.08333333333 | N32: 1 | O32: 0.1428571429 | P32: 0.1428571429 | Q32: 0.1428571429 | R32: 0.1428571429 | S32: 0.1428571429 | T32: 0.1428571429 | U32: 0.1428571429 | V32: 1 | X32: Comércio | Y32: Comércio | Z32: 0 | AA32: Sim | AB32: 1
A33: Paraíso - Alimentação | B33: 0.08333333333 | C33: 0.08333333333 | D33: 0.08333333333 | E33: 0.08333333333 | F33: 0.08333333333 | G33: 0.08333333333 | H33: 0.08333333333 | I33: 0.08333333333 | J33: 0.08333333333 | K33: 0.08333333333 | L33: 0.08333333333 | M33: 0.08333333333 | N33: 1 | O33: 0.1428571429 | P33: 0.1428571429 | Q33: 0.1428571429 | R33: 0.1428571429 | S33: 0.1428571429 | T33: 0.1428571429 | U33: 0.1428571429 | V33: 1 | X33: Alimentação | Y33: Alimentação | Z33: 0 | AA33: Sim | AB33: 1
A34: Paraíso - Comércio + Locação + Atividades | B34: 0.08333333333 | C34: 0.08333333333 | D34: 0.08333333333 | E34: 0.08333333333 | F34: 0.08333333333 | G34: 0.08333333333 | H34: 0.08333333333 | I34: 0.08333333333 | J34: 0.08333333333 | K34: 0.08333333333 | L34: 0.08333333333 | M34: 0.08333333333 | N34: 1 | O34: 0.1428571429 | P34: 0.1428571429 | Q34: 0.1428571429 | R34: 0.1428571429 | S34: 0.1428571429 | T34: 0.1428571429 | U34: 0.1428571429 | V34: 1 | X34: Comércio | Y34: Comércio | Z34: 0 | AA34: Sim | AB34: 1
A35: Geral - Unidade móvel - Alimentação | B35: 0.08333333333 | C35: 0.08333333333 | D35: 0.08333333333 | E35: 0.08333333333 | F35: 0.08333333333 | G35: 0.08333333333 | H35: 0.08333333333 | I35: 0.08333333333 | J35: 0.08333333333 | K35: 0.08333333333 | L35: 0.08333333333 | M35: 0.08333333333 | N35: 1 | O35: 0.1428571429 | P35: 0.1428571429 | Q35: 0.1428571429 | R35: 0.1428571429 | S35: 0.1428571429 | T35: 0.1428571429 | U35: 0.1428571429 | V35: 1 | X35: Alimentação | Y35: Alimentação | Z35: 0 | AA35: Sim | AB35: 1
A36: Mangue Seco - Estacionamento | B36: 0.08333333333 | C36: 0.08333333333 | D36: 0.08333333333 | E36: 0.08333333333 | F36: 0.08333333333 | G36: 0.08333333333 | H36: 0.08333333333 | I36: 0.08333333333 | J36: 0.08333333333 | K36: 0.08333333333 | L36: 0.08333333333 | M36: 0.08333333333 | N36: 1 | O36: 0.1428571429 | P36: 0.1428571429 | Q36: 0.1428571429 | R36: 0.1428571429 | S36: 0.1428571429 | T36: 0.1428571429 | U36: 0.1428571429 | V36: 1 | X36: Serviços | Y36: Hospitalidade | Z36: 0 | AA36: Sim | AB36: 1
A37: Lagoa Grande - Estacionamento | B37: 0.08333333333 | C37: 0.08333333333 | D37: 0.08333333333 | E37: 0.08333333333 | F37: 0.08333333333 | G37: 0.08333333333 | H37: 0.08333333333 | I37: 0.08333333333 | J37: 0.08333333333 | K37: 0.08333333333 | L37: 0.08333333333 | M37: 0.08333333333 | N37: 1 | O37: 0.1428571429 | P37: 0.1428571429 | Q37: 0.1428571429 | R37: 0.1428571429 | S37: 0.1428571429 | T37: 0.1428571429 | U37: 0.1428571429 | V37: 1 | X37: Serviços | Y37: Hospitalidade | Z37: 0 | AA37: Sim | AB37: 1
B38: 0.08333333333 | C38: 0.08333333333 | D38: 0.08333333333 | E38: 0.08333333333 | F38: 0.08333333333 | G38: 0.08333333333 | H38: 0.08333333333 | I38: 0.08333333333 | J38: 0.08333333333 | K38: 0.08333333333 | L38: 0.08333333333 | M38: 0.08333333333 | N38: 1 | O38: 0.1428571429 | P38: 0.1428571429 | Q38: 0.1428571429 | R38: 0.1428571429 | S38: 0.1428571429 | T38: 0.1428571429 | U38: 0.1428571429 | V38: 1 | AB38: 0
B39: 0.08333333333 | C39: 0.08333333333 | D39: 0.08333333333 | E39: 0.08333333333 | F39: 0.08333333333 | G39: 0.08333333333 | H39: 0.08333333333 | I39: 0.08333333333 | J39: 0.08333333333 | K39: 0.08333333333 | L39: 0.08333333333 | M39: 0.08333333333 | N39: 1 | O39: 0.1428571429 | P39: 0.1428571429 | Q39: 0.1428571429 | R39: 0.1428571429 | S39: 0.1428571429 | T39: 0.1428571429 | U39: 0.1428571429 | V39: 1 | AB39: 0
A41: SELECIONADO
A42: =A3 -> Demanda | B42: Ano (%)
B43: 1 | C43: 2 | D43: 3 | E43: 4 | F43: 5 | G43: 6 | H43: 7 | I43: 8 | J43: 9 | K43: 10 | L43: 11 | M43: 12 | N43: 13 | O43: 14 | P43: 15 | Q43: 16 | R43: 17 | S43: 18 | T43: 19 | U43: 20 | V43: 21 | W43: 22 | X43: 23 | Y43: 24 | Z43: 25 | AA43: 26 | AB43: 27 | AC43: 28 | AD43: 29 | AE43: 30
A44: Demanda de visitação TOTAL | B44: =IF(CenarioSel="MODERADA",B97,IF(CenarioSel="PESSIMISTA",B122,B147)) -> 1 | C44: 1 | D44: 1 | E44: 1 | F44: 1 | G44: 1 | H44: 1 | I44: 1 | J44: 1 | K44: 1 | L44: 1 | M44: 1 | N44: 1 | O44: 1 | P44: 1 | Q44: 1 | R44: 1 | S44: 1 | T44: 1 | U44: 1 | V44: 1 | W44: 1 | X44: 1 | Y44: 1 | Z44: 1 | AA44: 1 | AB44: 1 | AC44: 1 | AD44: 1 | AE44: 1
A45: =A20 -> Ingresso | B45: =IF(CenarioSel="MODERADA",B98,IF(CenarioSel="PESSIMISTA",B123,B148)) -> 1 | C45: 1 | D45: 1 | E45: 1 | F45: 1 | G45: 1 | H45: 1 | I45: 1 | J45: 1 | K45: 1 | L45: 1 | M45: 1 | N45: 1 | O45: 1 | P45: 1 | Q45: 1 | R45: 1 | S45: 1 | T45: 1 | U45: 1 | V45: 1 | W45: 1 | X45: 1 | Y45: 1 | Z45: 1 | AA45: 1 | AB45: 1 | AC45: 1 | AD45: 1 | AE45: 1
A46: Preá - Alimentação | B46: =IF(CenarioSel="MODERADA",B99,IF(CenarioSel="PESSIMISTA",B124,B149)) -> 0.08 | C46: 0.08 | D46: 0.08 | E46: 0.08 | F46: 0.08 | G46: 0.08 | H46: 0.08 | I46: 0.08 | J46: 0.08 | K46: 0.08 | L46: 0.08 | M46: 0.08 | N46: 0.08 | O46: 0.08 | P46: 0.08 | Q46: 0.08 | R46: 0.08 | S46: 0.08 | T46: 0.08 | U46: 0.08 | V46: 0.08 | W46: 0.08 | X46: 0.08 | Y46: 0.08 | Z46: 0.08 | AA46: 0.08 | AB46: 0.08 | AC46: 0.08 | AD46: 0.08 | AE46: 0.08
A47: Preá - Comércio | B47: =IF(CenarioSel="MODERADA",B100,IF(CenarioSel="PESSIMISTA",B125,B150)) -> 0.01333333333 | C47: 0.01333333333 | D47: 0.01333333333 | E47: 0.01333333333 | F47: 0.01333333333 | G47: 0.01333333333 | H47: 0.01333333333 | I47: 0.01333333333 | J47: 0.01333333333 | K47: 0.01333333333 | L47: 0.01333333333 | M47: 0.01333333333 | N47: 0.01333333333 | O47: 0.01333333333 | P47: 0.01333333333 | Q47: 0.01333333333 | R47: 0.01333333333 | S47: 0.01333333333 | T47: 0.01333333333 | U47: 0.01333333333 | V47: 0.01333333333 | W47: 0.01333333333 | X47: 0.01333333333 | Y47: 0.01333333333 | Z47: 0.01333333333 | AA47: 0.01333333333 | AB47: 0.01333333333 | AC47: 0.01333333333 | AD47: 0.01333333333 | AE47: 0.01333333333
A48: Preá - Estacionamento | B48: =IF(CenarioSel="MODERADA",B101,IF(CenarioSel="PESSIMISTA",B126,B151)) -> 0.02 | C48: 0.02 | D48: 0.02 | E48: 0.02 | F48: 0.02 | G48: 0.02 | H48: 0.02 | I48: 0.02 | J48: 0.02 | K48: 0.02 | L48: 0.02 | M48: 0.02 | N48: 0.02 | O48: 0.02 | P48: 0.02 | Q48: 0.02 | R48: 0.02 | S48: 0.02 | T48: 0.02 | U48: 0.02 | V48: 0.02 | W48: 0.02 | X48: 0.02 | Y48: 0.02 | Z48: 0.02 | AA48: 0.02 | AB48: 0.02 | AC48: 0.02 | AD48: 0.02 | AE48: 0.02
A49: Árvore da Preguiça - Alimentação | B49: =IF(CenarioSel="MODERADA",B102,IF(CenarioSel="PESSIMISTA",B127,B152)) -> 0.08 | C49: 0.08 | D49: 0.08 | E49: 0.08 | F49: 0.08 | G49: 0.08 | H49: 0.08 | I49: 0.08 | J49: 0.08 | K49: 0.08 | L49: 0.08 | M49: 0.08 | N49: 0.08 | O49: 0.08 | P49: 0.08 | Q49: 0.08 | R49: 0.08 | S49: 0.08 | T49: 0.08 | U49: 0.08 | V49: 0.08 | W49: 0.08 | X49: 0.08 | Y49: 0.08 | Z49: 0.08 | AA49: 0.08 | AB49: 0.08 | AC49: 0.08 | AD49: 0.08 | AE49: 0.08
A50: Árvore da Preguiça - Comércio | B50: =IF(CenarioSel="MODERADA",B103,IF(CenarioSel="PESSIMISTA",B128,B153)) -> 0.01333333333 | C50: 0.01333333333 | D50: 0.01333333333 | E50: 0.01333333333 | F50: 0.01333333333 | G50: 0.01333333333 | H50: 0.01333333333 | I50: 0.01333333333 | J50: 0.01333333333 | K50: 0.01333333333 | L50: 0.01333333333 | M50: 0.01333333333 | N50: 0.01333333333 | O50: 0.01333333333 | P50: 0.01333333333 | Q50: 0.01333333333 | R50: 0.01333333333 | S50: 0.01333333333 | T50: 0.01333333333 | U50: 0.01333333333 | V50: 0.01333333333 | W50: 0.01333333333 | X50: 0.01333333333 | Y50: 0.01333333333 | Z50: 0.01333333333 | AA50: 0.01333333333 | AB50: 0.01333333333 | AC50: 0.01333333333 | AD50: 0.01333333333 | AE50: 0.01333333333
A51: Silveira - Alimentação | B51: =IF(CenarioSel="MODERADA",B104,IF(CenarioSel="PESSIMISTA",B129,B154)) -> 0.08 | C51: 0.08 | D51: 0.08 | E51: 0.08 | F51: 0.08 | G51: 0.08 | H51: 0.08 | I51: 0.08 | J51: 0.08 | K51: 0.08 | L51: 0.08 | M51: 0.08 | N51: 0.08 | O51: 0.08 | P51: 0.08 | Q51: 0.08 | R51: 0.08 | S51: 0.08 | T51: 0.08 | U51: 0.08 | V51: 0.08 | W51: 0.08 | X51: 0.08 | Y51: 0.08 | Z51: 0.08 | AA51: 0.08 | AB51: 0.08 | AC51: 0.08 | AD51: 0.08 | AE51: 0.08
A52: Silveira - Comércio + Locação + Atividades | B52: =IF(CenarioSel="MODERADA",B105,IF(CenarioSel="PESSIMISTA",B130,B155)) -> 0.01333333333 | C52: 0.01333333333 | D52: 0.01333333333 | E52: 0.01333333333 | F52: 0.01333333333 | G52: 0.01333333333 | H52: 0.01333333333 | I52: 0.01333333333 | J52: 0.01333333333 | K52: 0.01333333333 | L52: 0.01333333333 | M52: 0.01333333333 | N52: 0.01333333333 | O52: 0.01333333333 | P52: 0.01333333333 | Q52: 0.01333333333 | R52: 0.01333333333 | S52: 0.01333333333 | T52: 0.01333333333 | U52: 0.01333333333 | V52: 0.01333333333 | W52: 0.01333333333 | X52: 0.01333333333 | Y52: 0.01333333333 | Z52: 0.01333333333 | AA52: 0.01333333333 | AB52: 0.01333333333 | AC52: 0.01333333333 | AD52: 0.01333333333 | AE52: 0.01333333333
A53: Silveira - Hospedagem | B53: =IF(CenarioSel="MODERADA",B106,IF(CenarioSel="PESSIMISTA",B131,B156)) -> 0.01 | C53: 0.01 | D53: 0.01 | E53: 0.01 | F53: 0.01 | G53: 0.01 | H53: 0.01 | I53: 0.01 | J53: 0.01 | K53: 0.01 | L53: 0.01 | M53: 0.01 | N53: 0.01 | O53: 0.01 | P53: 0.01 | Q53: 0.01 | R53: 0.01 | S53: 0.01 | T53: 0.01 | U53: 0.01 | V53: 0.01 | W53: 0.01 | X53: 0.01 | Y53: 0.01 | Z53: 0.01 | AA53: 0.01 | AB53: 0.01 | AC53: 0.01 | AD53: 0.01 | AE53: 0.01
A54: Pedra Furada - Alimentação | B54: =IF(CenarioSel="MODERADA",B107,IF(CenarioSel="PESSIMISTA",B132,B157)) -> 0.08 | C54: 0.08 | D54: 0.08 | E54: 0.08 | F54: 0.08 | G54: 0.08 | H54: 0.08 | I54: 0.08 | J54: 0.08 | K54: 0.08 | L54: 0.08 | M54: 0.08 | N54: 0.08 | O54: 0.08 | P54: 0.08 | Q54: 0.08 | R54: 0.08 | S54: 0.08 | T54: 0.08 | U54: 0.08 | V54: 0.08 | W54: 0.08 | X54: 0.08 | Y54: 0.08 | Z54: 0.08 | AA54: 0.08 | AB54: 0.08 | AC54: 0.08 | AD54: 0.08 | AE54: 0.08
A55: Pedra Furada - Comércio | B55: =IF(CenarioSel="MODERADA",B108,IF(CenarioSel="PESSIMISTA",B133,B158)) -> 0.01333333333 | C55: 0.01333333333 | D55: 0.01333333333 | E55: 0.01333333333 | F55: 0.01333333333 | G55: 0.01333333333 | H55: 0.01333333333 | I55: 0.01333333333 | J55: 0.01333333333 | K55: 0.01333333333 | L55: 0.01333333333 | M55: 0.01333333333 | N55: 0.01333333333 | O55: 0.01333333333 | P55: 0.01333333333 | Q55: 0.01333333333 | R55: 0.01333333333 | S55: 0.01333333333 | T55: 0.01333333333 | U55: 0.01333333333 | V55: 0.01333333333 | W55: 0.01333333333 | X55: 0.01333333333 | Y55: 0.01333333333 | Z55: 0.01333333333 | AA55: 0.01333333333 | AB55: 0.01333333333 | AC55: 0.01333333333 | AD55: 0.01333333333 | AE55: 0.01333333333
A56: Serrote - Alimentação | B56: =IF(CenarioSel="MODERADA",B109,IF(CenarioSel="PESSIMISTA",B134,B159)) -> 0.08 | C56: 0.08 | D56: 0.08 | E56: 0.08 | F56: 0.08 | G56: 0.08 | H56: 0.08 | I56: 0.08 | J56: 0.08 | K56: 0.08 | L56: 0.08 | M56: 0.08 | N56: 0.08 | O56: 0.08 | P56: 0.08 | Q56: 0.08 | R56: 0.08 | S56: 0.08 | T56: 0.08 | U56: 0.08 | V56: 0.08 | W56: 0.08 | X56: 0.08 | Y56: 0.08 | Z56: 0.08 | AA56: 0.08 | AB56: 0.08 | AC56: 0.08 | AD56: 0.08 | AE56: 0.08
A57: Serrote - Comércio | B57: =IF(CenarioSel="MODERADA",B110,IF(CenarioSel="PESSIMISTA",B135,B160)) -> 0.01333333333 | C57: 0.01333333333 | D57: 0.01333333333 | E57: 0.01333333333 | F57: 0.01333333333 | G57: 0.01333333333 | H57: 0.01333333333 | I57: 0.01333333333 | J57: 0.01333333333 | K57: 0.01333333333 | L57: 0.01333333333 | M57: 0.01333333333 | N57: 0.01333333333 | O57: 0.01333333333 | P57: 0.01333333333 | Q57: 0.01333333333 | R57: 0.01333333333 | S57: 0.01333333333 | T57: 0.01333333333 | U57: 0.01333333333 | V57: 0.01333333333 | W57: 0.01333333333 | X57: 0.01333333333 | Y57: 0.01333333333 | Z57: 0.01333333333 | AA57: 0.01333333333 | AB57: 0.01333333333 | AC57: 0.01333333333 | AD57: 0.01333333333 | AE57: 0.01333333333
A58: Paraíso - Alimentação | B58: =IF(CenarioSel="MODERADA",B111,IF(CenarioSel="PESSIMISTA",B136,B161)) -> 0.08 | C58: 0.08 | D58: 0.08 | E58: 0.08 | F58: 0.08 | G58: 0.08 | H58: 0.08 | I58: 0.08 | J58: 0.08 | K58: 0.08 | L58: 0.08 | M58: 0.08 | N58: 0.08 | O58: 0.08 | P58: 0.08 | Q58: 0.08 | R58: 0.08 | S58: 0.08 | T58: 0.08 | U58: 0.08 | V58: 0.08 | W58: 0.08 | X58: 0.08 | Y58: 0.08 | Z58: 0.08 | AA58: 0.08 | AB58: 0.08 | AC58: 0.08 | AD58: 0.08 | AE58: 0.08
A59: Paraíso - Comércio + Locação + Atividades | B59: =IF(CenarioSel="MODERADA",B112,IF(CenarioSel="PESSIMISTA",B137,B162)) -> 0.01333333333 | C59: 0.01333333333 | D59: 0.01333333333 | E59: 0.01333333333 | F59: 0.01333333333 | G59: 0.01333333333 | H59: 0.01333333333 | I59: 0.01333333333 | J59: 0.01333333333 | K59: 0.01333333333 | L59: 0.01333333333 | M59: 0.01333333333 | N59: 0.01333333333 | O59: 0.01333333333 | P59: 0.01333333333 | Q59: 0.01333333333 | R59: 0.01333333333 | S59: 0.01333333333 | T59: 0.01333333333 | U59: 0.01333333333 | V59: 0.01333333333 | W59: 0.01333333333 | X59: 0.01333333333 | Y59: 0.01333333333 | Z59: 0.01333333333 | AA59: 0.01333333333 | AB59: 0.01333333333 | AC59: 0.01333333333 | AD59: 0.01333333333 | AE59: 0.01333333333
A60: Geral - Unidade móvel - Alimentação | B60: =IF(CenarioSel="MODERADA",B113,IF(CenarioSel="PESSIMISTA",B138,B163)) -> 0.02 | C60: 0.02 | D60: 0.02 | E60: 0.02 | F60: 0.02 | G60: 0.02 | H60: 0.02 | I60: 0.02 | J60: 0.02 | K60: 0.02 | L60: 0.02 | M60: 0.02 | N60: 0.02 | O60: 0.02 | P60: 0.02 | Q60: 0.02 | R60: 0.02 | S60: 0.02 | T60: 0.02 | U60: 0.02 | V60: 0.02 | W60: 0.02 | X60: 0.02 | Y60: 0.02 | Z60: 0.02 | AA60: 0.02 | AB60: 0.02 | AC60: 0.02 | AD60: 0.02 | AE60: 0.02
A61: Mangue Seco - Estacionamento | B61: =IF(CenarioSel="MODERADA",B114,IF(CenarioSel="PESSIMISTA",B139,B164)) -> 0.0025 | C61: 0.0025 | D61: 0.0025 | E61: 0.0025 | F61: 0.0025 | G61: 0.0025 | H61: 0.0025 | I61: 0.0025 | J61: 0.0025 | K61: 0.0025 | L61: 0.0025 | M61: 0.0025 | N61: 0.0025 | O61: 0.0025 | P61: 0.0025 | Q61: 0.0025 | R61: 0.0025 | S61: 0.0025 | T61: 0.0025 | U61: 0.0025 | V61: 0.0025 | W61: 0.0025 | X61: 0.0025 | Y61: 0.0025 | Z61: 0.0025 | AA61: 0.0025 | AB61: 0.0025 | AC61: 0.0025 | AD61: 0.0025 | AE61: 0.0025
A62: Lagoa Grande - Estacionamento | B62: =IF(CenarioSel="MODERADA",B115,IF(CenarioSel="PESSIMISTA",B140,B165)) -> 0.0025 | C62: 0.0025 | D62: 0.0025 | E62: 0.0025 | F62: 0.0025 | G62: 0.0025 | H62: 0.0025 | I62: 0.0025 | J62: 0.0025 | K62: 0.0025 | L62: 0.0025 | M62: 0.0025 | N62: 0.0025 | O62: 0.0025 | P62: 0.0025 | Q62: 0.0025 | R62: 0.0025 | S62: 0.0025 | T62: 0.0025 | U62: 0.0025 | V62: 0.0025 | W62: 0.0025 | X62: 0.0025 | Y62: 0.0025 | Z62: 0.0025 | AA62: 0.0025 | AB62: 0.0025 | AC62: 0.0025 | AD62: 0.0025 | AE62: 0.0025
A63: 0 | B63: =IF(CenarioSel="MODERADA",B116,IF(CenarioSel="PESSIMISTA",B141,B166)) -> 0 | C63: 0 | D63: 0 | E63: 0 | F63: 0 | G63: 0 | H63: 0 | I63: 0 | J63: 0 | K63: 0 | L63: 0 | M63: 0 | N63: 0 | O63: 0 | P63: 0 | Q63: 0 | R63: 0 | S63: 0 | T63: 0 | U63: 0 | V63: 0 | W63: 0 | X63: 0 | Y63: 0 | Z63: 0 | AA63: 0 | AB63: 0 | AC63: 0 | AD63: 0 | AE63: 0
A64: 0 | B64: =IF(CenarioSel="MODERADA",B117,IF(CenarioSel="PESSIMISTA",B142,B167)) -> 0 | C64: 0 | D64: 0 | E64: 0 | F64: 0 | G64: 0 | H64: 0 | I64: 0 | J64: 0 | K64: 0 | L64: 0 | M64: 0 | N64: 0 | O64: 0 | P64: 0 | Q64: 0 | R64: 0 | S64: 0 | T64: 0 | U64: 0 | V64: 0 | W64: 0 | X64: 0 | Y64: 0 | Z64: 0 | AA64: 0 | AB64: 0 | AC64: 0 | AD64: 0 | AE64: 0
A66: Demandas anuais projetadas (#)
C67: =C71-B71 -> 590073 | D67: 39393 | E67: 38156 | F67: 38761 | G67: 39440 | H67: 40553 | I67: 41735 | J67: 42496 | K67: 43289 | L67: 44642 | M67: 45979 | N67: 47447 | O67: 48882 | P67: 50349 | Q67: 51731 | R67: 53048 | S67: 54177 | T67: 55169 | U67: 55904 | AI67: =2.8/1.3 -> 2.153846154
A68: =A171 -> Unidades Geradoras de Caixa (UGC) | B68: Ano (#)
B69: 1 | C69: 2 | D69: 3 | E69: 4 | F69: 5 | G69: 6 | H69: 7 | I69: 8 | J69: 9 | K69: 10 | L69: 11 | M69: 12 | N69: 13 | O69: 14 | P69: 15 | Q69: 16 | R69: 17 | S69: 18 | T69: 19 | U69: 20 | V69: 21 | W69: 22 | X69: 23 | Y69: 24 | Z69: 25 | AA69: 26 | AB69: 27 | AC69: 28 | AD69: 29 | AE69: 30
A70: =A174 -> Demanda de visitação TOTAL | B70: =ROUND(B174-(B174*B200),0) -> 1103974 | C70: 1142060 | D70: 1181453 | E70: 1219609 | F70: 1258370 | G70: 1297810 | H70: 1338363 | I70: 1380098 | J70: 1422594 | K70: 1465883 | L70: 1510525 | M70: 1556504 | N70: 1603951 | O70: 1652833 | P70: 1703182 | Q70: 1754913 | R70: 1807961 | S70: 1862138 | T70: 1917307 | U70: 1973211 | V70: 1973211 | W70: 1973211 | X70: 1973211 | Y70: 1973211 | Z70: 1973211 | AA70: 1973211 | AB70: 1973211 | AC70: 1973211 | AD70: 1973211 | AE70: 1973211
A71: Ingresso | B71: =IFERROR(ROUND(B$70*B45-(B175*B201),0)*Z20,0) -> 551987 | C71: =IFERROR(ROUND(C$70*C45-(C175*C201),0),0) -> 1142060 | D71: 1181453 | E71: 1219609 | F71: 1258370 | G71: 1297810 | H71: 1338363 | I71: 1380098 | J71: 1422594 | K71: 1465883 | L71: 1510525 | M71: 1556504 | N71: 1603951 | O71: 1652833 | P71: 1703182 | Q71: 1754913 | R71: 1807961 | S71: 1862138 | T71: 1917307 | U71: 1973211 | V71: 1973211 | W71: 1973211 | X71: 1973211 | Y71: 1973211 | Z71: 1973211 | AA71: 1973211 | AB71: 1973211 | AC71: 1973211 | AD71: 1973211 | AE71: 1973211
A72: Preá - Alimentação | B72: 0 | C72: =IFERROR(ROUND(C$70*C46-(C176*C202),0),0) -> 91365 | D72: 94516 | E72: 97569 | F72: 100670 | G72: 103825 | H72: 107069 | I72: 110408 | J72: 113808 | K72: 117271 | L72: 120842 | M72: 124520 | N72: 128316 | O72: 132227 | P72: 136255 | Q72: 140393 | R72: 144637 | S72: 148971 | T72: 153385 | U72: 157857 | V72: 157857 | W72: 157857 | X72: 157857 | Y72: 157857 | Z72: 157857 | AA72: 157857 | AB72: 157857 | AC72: 157857 | AD72: 157857 | AE72: 157857
A73: Preá - Comércio | B73: 0 | C73: =IFERROR(ROUND(C$70*C47-(C177*C203),0),0) -> 15227 | D73: 15753 | E73: 16261 | F73: 16778 | G73: 17304 | H73: 17845 | I73: 18401 | J73: 18968 | K73: 19545 | L73: 20140 | M73: 20753 | N73: 21386 | O73: 22038 | P73: 22709 | Q73: 23399 | R73: 24106 | S73: 24829 | T73: 25564 | U73: 26309 | V73: 26309 | W73: 26309 | X73: 26309 | Y73: 26309 | Z73: 26309 | AA73: 26309 | AB73: 26309 | AC73: 26309 | AD73: 26309 | AE73: 26309
A74: Preá - Estacionamento | B74: 0 | C74: =IFERROR(ROUND(C$70*C48-(C178*C204),0),0) -> 22841 | D74: 23629 | E74: 24392 | F74: 25167 | G74: 25956 | H74: 26767 | I74: 27602 | J74: 28452 | K74: 29318 | L74: 30211 | M74: 31130 | N74: 32079 | O74: 33057 | P74: 34064 | Q74: 35098 | R74: 36159 | S74: 37243 | T74: 38346 | U74: 39464 | V74: 39464 | W74: 39464 | X74: 39464 | Y74: 39464 | Z74: 39464 | AA74: 39464 | AB74: 39464 | AC74: 39464 | AD74: 39464 | AE74: 39464
A75: Árvore da Preguiça - Alimentação | B75: 0 | C75: =IFERROR(ROUND(C$70*C49-(C179*C205),0),0) -> 91365 | D75: 94516 | E75: 97569 | F75: 100670 | G75: 103825 | H75: 107069 | I75: 110408 | J75: 113808 | K75: 117271 | L75: 120842 | M75: 124520 | N75: 128316 | O75: 132227 | P75: 136255 | Q75: 140393 | R75: 144637 | S75: 148971 | T75: 153385 | U75: 157857 | V75: 157857 | W75: 157857 | X75: 157857 | Y75: 157857 | Z75: 157857 | AA75: 157857 | AB75: 157857 | AC75: 157857 | AD75: 157857 | AE75: 157857
A76: Árvore da Preguiça - Comércio | B76: 0 | C76: =IFERROR(ROUND(C$70*C50-(C180*C206),0),0) -> 15227 | D76: 15753 | E76: 16261 | F76: 16778 | G76: 17304 | H76: 17845 | I76: 18401 | J76: 18968 | K76: 19545 | L76: 20140 | M76: 20753 | N76: 21386 | O76: 22038 | P76: 22709 | Q76: 23399 | R76: 24106 | S76: 24829 | T76: 25564 | U76: 26309 | V76: 26309 | W76: 26309 | X76: 26309 | Y76: 26309 | Z76: 26309 | AA76: 26309 | AB76: 26309 | AC76: 26309 | AD76: 26309 | AE76: 26309
A77: Silveira - Alimentação | B77: 0 | C77: =IFERROR(ROUND(C$70*C51-(C181*C207),0),0) -> 91365 | D77: 94516 | E77: 97569 | F77: 100670 | G77: 103825 | H77: 107069 | I77: 110408 | J77: 113808 | K77: 117271 | L77: 120842 | M77: 124520 | N77: 128316 | O77: 132227 | P77: 136255 | Q77: 140393 | R77: 144637 | S77: 148971 | T77: 153385 | U77: 157857 | V77: 157857 | W77: 157857 | X77: 157857 | Y77: 157857 | Z77: 157857 | AA77: 157857 | AB77: 157857 | AC77: 157857 | AD77: 157857 | AE77: 157857
A78: Silveira - Comércio + Locação + Atividades | B78: 0 | C78: =IFERROR(ROUND(C$70*C52-(C182*C208),0),0) -> 15227 | D78: 15753 | E78: 16261 | F78: 16778 | G78: 17304 | H78: 17845 | I78: 18401 | J78: 18968 | K78: 19545 | L78: 20140 | M78: 20753 | N78: 21386 | O78: 22038 | P78: 22709 | Q78: 23399 | R78: 24106 | S78: 24829 | T78: 25564 | U78: 26309 | V78: 26309 | W78: 26309 | X78: 26309 | Y78: 26309 | Z78: 26309 | AA78: 26309 | AB78: 26309 | AC78: 26309 | AD78: 26309 | AE78: 26309
A79: Silveira - Hospedagem | B79: 0 | C79: =IFERROR(ROUND(C$70*C53-(C183*C209),0),0) -> 11421 | D79: 11815 | E79: 12196 | F79: 12584 | G79: 12978 | H79: 13384 | I79: 13801 | J79: 14226 | K79: 14659 | L79: 15105 | M79: 15565 | N79: 16040 | O79: 16528 | P79: 17032 | Q79: 17549 | R79: 18080 | S79: 18621 | T79: 19173 | U79: 19732 | V79: 19732 | W79: 19732 | X79: 19732 | Y79: 19732 | Z79: 19732 | AA79: 19732 | AB79: 19732 | AC79: 19732 | AD79: 19732 | AE79: 19732
A80: Pedra Furada - Alimentação | B80: 0 | C80: =IFERROR(ROUND(C$70*C54-(C184*C210),0),0) -> 91365 | D80: 94516 | E80: 97569 | F80: 100670 | G80: 103825 | H80: 107069 | I80: 110408 | J80: 113808 | K80: 117271 | L80: 120842 | M80: 124520 | N80: 128316 | O80: 132227 | P80: 136255 | Q80: 140393 | R80: 144637 | S80: 148971 | T80: 153385 | U80: 157857 | V80: 157857 | W80: 157857 | X80: 157857 | Y80: 157857 | Z80: 157857 | AA80: 157857 | AB80: 157857 | AC80: 157857 | AD80: 157857 | AE80: 157857
A81: Pedra Furada - Comércio | B81: 0 | C81: =IFERROR(ROUND(C$70*C55-(C185*C211),0),0) -> 15227 | D81: 15753 | E81: 16261 | F81: 16778 | G81: 17304 | H81: 17845 | I81: 18401 | J81: 18968 | K81: 19545 | L81: 20140 | M81: 20753 | N81: 21386 | O81: 22038 | P81: 22709 | Q81: 23399 | R81: 24106 | S81: 24829 | T81: 25564 | U81: 26309 | V81: 26309 | W81: 26309 | X81: 26309 | Y81: 26309 | Z81: 26309 | AA81: 26309 | AB81: 26309 | AC81: 26309 | AD81: 26309 | AE81: 26309
A82: Serrote - Alimentação | B82: 0 | C82: =IFERROR(ROUND(C$70*C56-(C186*C212),0),0) -> 91365 | D82: 94516 | E82: 97569 | F82: 100670 | G82: 103825 | H82: 107069 | I82: 110408 | J82: 113808 | K82: 117271 | L82: 120842 | M82: 124520 | N82: 128316 | O82: 132227 | P82: 136255 | Q82: 140393 | R82: 144637 | S82: 148971 | T82: 153385 | U82: 157857 | V82: 157857 | W82: 157857 | X82: 157857 | Y82: 157857 | Z82: 157857 | AA82: 157857 | AB82: 157857 | AC82: 157857 | AD82: 157857 | AE82: 157857
A83: Serrote - Comércio | B83: 0 | C83: =IFERROR(ROUND(C$70*C57-(C187*C213),0),0) -> 15227 | D83: 15753 | E83: 16261 | F83: 16778 | G83: 17304 | H83: 17845 | I83: 18401 | J83: 18968 | K83: 19545 | L83: 20140 | M83: 20753 | N83: 21386 | O83: 22038 | P83: 22709 | Q83: 23399 | R83: 24106 | S83: 24829 | T83: 25564 | U83: 26309 | V83: 26309 | W83: 26309 | X83: 26309 | Y83: 26309 | Z83: 26309 | AA83: 26309 | AB83: 26309 | AC83: 26309 | AD83: 26309 | AE83: 26309
A84: Paraíso - Alimentação | B84: 0 | C84: =IFERROR(ROUND(C$70*C58-(C188*C214),0),0) -> 91365 | D84: 94516 | E84: 97569 | F84: 100670 | G84: 103825 | H84: 107069 | I84: 110408 | J84: 113808 | K84: 117271 | L84: 120842 | M84: 124520 | N84: 128316 | O84: 132227 | P84: 136255 | Q84: 140393 | R84: 144637 | S84: 148971 | T84: 153385 | U84: 157857 | V84: 157857 | W84: 157857 | X84: 157857 | Y84: 157857 | Z84: 157857 | AA84: 157857 | AB84: 157857 | AC84: 157857 | AD84: 157857 | AE84: 157857
A85: Paraíso - Comércio + Locação + Atividades | B85: 0 | C85: =IFERROR(ROUND(C$70*C59-(C189*C215),0),0) -> 15227 | D85: 15753 | E85: 16261 | F85: 16778 | G85: 17304 | H85: 17845 | I85: 18401 | J85: 18968 | K85: 19545 | L85: 20140 | M85: 20753 | N85: 21386 | O85: 22038 | P85: 22709 | Q85: 23399 | R85: 24106 | S85: 24829 | T85: 25564 | U85: 26309 | V85: 26309 | W85: 26309 | X85: 26309 | Y85: 26309 | Z85: 26309 | AA85: 26309 | AB85: 26309 | AC85: 26309 | AD85: 26309 | AE85: 26309
A86: Geral - Unidade móvel - Alimentação | B86: 0 | C86: =IFERROR(ROUND(C$70*C60-(C190*C216),0),0) -> 22841 | D86: 23629 | E86: 24392 | F86: 25167 | G86: 25956 | H86: 26767 | I86: 27602 | J86: 28452 | K86: 29318 | L86: 30211 | M86: 31130 | N86: 32079 | O86: 33057 | P86: 34064 | Q86: 35098 | R86: 36159 | S86: 37243 | T86: 38346 | U86: 39464 | V86: 39464 | W86: 39464 | X86: 39464 | Y86: 39464 | Z86: 39464 | AA86: 39464 | AB86: 39464 | AC86: 39464 | AD86: 39464 | AE86: 39464
A87: Mangue Seco - Estacionamento | B87: 0 | C87: =IFERROR(ROUND(C$70*C61-(C191*C217),0),0) -> 2855 | D87: 2954 | E87: 3049 | F87: 3146 | G87: 3245 | H87: 3346 | I87: 3450 | J87: 3556 | K87: 3665 | L87: 3776 | M87: 3891 | N87: 4010 | O87: 4132 | P87: 4258 | Q87: 4387 | R87: 4520 | S87: 4655 | T87: 4793 | U87: 4933 | V87: 4933 | W87: 4933 | X87: 4933 | Y87: 4933 | Z87: 4933 | AA87: 4933 | AB87: 4933 | AC87: 4933 | AD87: 4933 | AE87: 4933
A88: Lagoa Grande - Estacionamento | B88: 0 | C88: =IFERROR(ROUND(C$70*C62-(C192*C218),0),0) -> 2855 | D88: 2954 | E88: 3049 | F88: 3146 | G88: 3245 | H88: 3346 | I88: 3450 | J88: 3556 | K88: 3665 | L88: 3776 | M88: 3891 | N88: 4010 | O88: 4132 | P88: 4258 | Q88: 4387 | R88: 4520 | S88: 4655 | T88: 4793 | U88: 4933 | V88: 4933 | W88: 4933 | X88: 4933 | Y88: 4933 | Z88: 4933 | AA88: 4933 | AB88: 4933 | AC88: 4933 | AD88: 4933 | AE88: 4933
A89: 0 | B89: 0 | C89: =IFERROR(ROUND(C$70*C63-(C193*C219),0),0) -> 0 | D89: 0 | E89: 0 | F89: 0 | G89: 0 | H89: 0 | I89: 0 | J89: 0 | K89: 0 | L89: 0 | M89: 0 | N89: 0 | O89: 0 | P89: 0 | Q89: 0 | R89: 0 | S89: 0 | T89: 0 | U89: 0 | V89: 0 | W89: 0 | X89: 0 | Y89: 0 | Z89: 0 | AA89: 0 | AB89: 0 | AC89: 0 | AD89: 0 | AE89: 0
A90: 0 | B90: 0 | C90: =IFERROR(ROUND(C$70*C64-(C194*C220),0),0) -> 0 | D90: 0 | E90: 0 | F90: 0 | G90: 0 | H90: 0 | I90: 0 | J90: 0 | K90: 0 | L90: 0 | M90: 0 | N90: 0 | O90: 0 | P90: 0 | Q90: 0 | R90: 0 | S90: 0 | T90: 0 | U90: 0 | V90: 0 | W90: 0 | X90: 0 | Y90: 0 | Z90: 0 | AA90: 0 | AB90: 0 | AC90: 0 | AD90: 0 | AE90: 0
A92: Cenários de projeção de conversão da visitação
A94: MODERADA
A95: =A17 -> Unidades Geradoras de Caixa (UGC) | B95: Ano (%) | AF95: Fontes
B96: 1 | C96: 2 | D96: 3 | E96: 4 | F96: 5 | G96: 6 | H96: 7 | I96: 8 | J96: 9 | K96: 10 | L96: 11 | M96: 12 | N96: 13 | O96: 14 | P96: 15 | Q96: 16 | R96: 17 | S96: 18 | T96: 19 | U96: 20 | V96: 21 | W96: 22 | X96: 23 | Y96: 24 | Z96: 25 | AA96: 26 | AB96: 27 | AC96: 28 | AD96: 29 | AE96: 30
A97: Demanda de visitação TOTAL | B97: 1 | C97: 1 | D97: 1 | E97: 1 | F97: 1 | G97: 1 | H97: 1 | I97: 1 | J97: 1 | K97: 1 | L97: 1 | M97: 1 | N97: 1 | O97: 1 | P97: 1 | Q97: 1 | R97: 1 | S97: 1 | T97: 1 | U97: 1 | V97: 1 | W97: 1 | X97: 1 | Y97: 1 | Z97: 1 | AA97: 1 | AB97: 1 | AC97: 1 | AD97: 1 | AE97: 1
A98: =A20 -> Ingresso | B98: 1 | C98: =B98 -> 1 | D98: 1 | E98: 1 | F98: 1 | G98: 1 | H98: 1 | I98: 1 | J98: 1 | K98: 1 | L98: 1 | M98: 1 | N98: 1 | O98: 1 | P98: 1 | Q98: 1 | R98: 1 | S98: 1 | T98: 1 | U98: 1 | V98: 1 | W98: 1 | X98: 1 | Y98: 1 | Z98: 1 | AA98: 1 | AB98: 1 | AC98: 1 | AD98: 1 | AE98: 1 | AF98: Taxas de captação obtidas em consultas com concessionários - parquetur e soul parques
A99: Preá - Alimentação | B99: 0.08 | C99: =B99 -> 0.08 | D99: 0.08 | E99: 0.08 | F99: 0.08 | G99: 0.08 | H99: 0.08 | I99: 0.08 | J99: 0.08 | K99: 0.08 | L99: 0.08 | M99: 0.08 | N99: 0.08 | O99: 0.08 | P99: 0.08 | Q99: 0.08 | R99: 0.08 | S99: 0.08 | T99: 0.08 | U99: 0.08 | V99: 0.08 | W99: 0.08 | X99: 0.08 | Y99: 0.08 | Z99: 0.08 | AA99: 0.08 | AB99: 0.08 | AC99: 0.08 | AD99: 0.08 | AE99: 0.08 | AF99: Taxas de captação obtidas em consultas com concessionários - parquetur e soul parques
A100: Preá - Comércio | B100: 0.01333333333 | C100: =B100 -> 0.01333333333 | D100: 0.01333333333 | E100: 0.01333333333 | F100: 0.01333333333 | G100: 0.01333333333 | H100: 0.01333333333 | I100: 0.01333333333 | J100: 0.01333333333 | K100: 0.01333333333 | L100: 0.01333333333 | M100: 0.01333333333 | N100: 0.01333333333 | O100: 0.01333333333 | P100: 0.01333333333 | Q100: 0.01333333333 | R100: 0.01333333333 | S100: 0.01333333333 | T100: 0.01333333333 | U100: 0.01333333333 | V100: 0.01333333333 | W100: 0.01333333333 | X100: 0.01333333333 | Y100: 0.01333333333 | Z100: 0.01333333333 | AA100: 0.01333333333 | AB100: 0.01333333333 | AC100: 0.01333333333 | AD100: 0.01333333333 | AE100: 0.01333333333 | AF100: Taxas de captação obtidas em consultas com concessionários - parquetur e soul parques
A101: Preá - Estacionamento | B101: =60%*10%/3 -> 0.02 | C101: =B101 -> 0.02 | D101: 0.02 | E101: 0.02 | F101: 0.02 | G101: 0.02 | H101: 0.02 | I101: 0.02 | J101: 0.02 | K101: 0.02 | L101: 0.02 | M101: 0.02 | N101: 0.02 | O101: 0.02 | P101: 0.02 | Q101: 0.02 | R101: 0.02 | S101: 0.02 | T101: 0.02 | U101: 0.02 | V101: 0.02 | W101: 0.02 | X101: 0.02 | Y101: 0.02 | Z101: 0.02 | AA101: 0.02 | AB101: 0.02 | AC101: 0.02 | AD101: 0.02 | AE101: 0.02 | AF101: 70% das entradas x 10% com carro próprio / 3 pax por carro
A102: Árvore da Preguiça - Alimentação | B102: 0.08 | C102: =B102 -> 0.08 | D102: 0.08 | E102: 0.08 | F102: 0.08 | G102: 0.08 | H102: 0.08 | I102: 0.08 | J102: 0.08 | K102: 0.08 | L102: 0.08 | M102: 0.08 | N102: 0.08 | O102: 0.08 | P102: 0.08 | Q102: 0.08 | R102: 0.08 | S102: 0.08 | T102: 0.08 | U102: 0.08 | V102: 0.08 | W102: 0.08 | X102: 0.08 | Y102: 0.08 | Z102: 0.08 | AA102: 0.08 | AB102: 0.08 | AC102: 0.08 | AD102: 0.08 | AE102: 0.08 | AF102: Taxas de captação obtidas em consultas com concessionários - parquetur e soul parques
A103: Árvore da Preguiça - Comércio | B103: 0.01333333333 | C103: =B103 -> 0.01333333333 | D103: 0.01333333333 | E103: 0.01333333333 | F103: 0.01333333333 | G103: 0.01333333333 | H103: 0.01333333333 | I103: 0.01333333333 | J103: 0.01333333333 | K103: 0.01333333333 | L103: 0.01333333333 | M103: 0.01333333333 | N103: 0.01333333333 | O103: 0.01333333333 | P103: 0.01333333333 | Q103: 0.01333333333 | R103: 0.01333333333 | S103: 0.01333333333 | T103: 0.01333333333 | U103: 0.01333333333 | V103: 0.01333333333 | W103: 0.01333333333 | X103: 0.01333333333 | Y103: 0.01333333333 | Z103: 0.01333333333 | AA103: 0.01333333333 | AB103: 0.01333333333 | AC103: 0.01333333333 | AD103: 0.01333333333 | AE103: 0.01333333333 | AF103: Taxas de captação obtidas em consultas com concessionários - parquetur e soul parques
A104: Silveira - Alimentação | B104: 0.08 | C104: =B104 -> 0.08 | D104: 0.08 | E104: 0.08 | F104: 0.08 | G104: 0.08 | H104: 0.08 | I104: 0.08 | J104: 0.08 | K104: 0.08 | L104: 0.08 | M104: 0.08 | N104: 0.08 | O104: 0.08 | P104: 0.08 | Q104: 0.08 | R104: 0.08 | S104: 0.08 | T104: 0.08 | U104: 0.08 | V104: 0.08 | W104: 0.08 | X104: 0.08 | Y104: 0.08 | Z104: 0.08 | AA104: 0.08 | AB104: 0.08 | AC104: 0.08 | AD104: 0.08 | AE104: 0.08 | AF104: Taxas de captação obtidas em consultas com concessionários - parquetur e soul parques
A105: Silveira - Comércio + Locação + Atividades | B105: 0.01333333333 | C105: =B105 -> 0.01333333333 | D105: 0.01333333333 | E105: 0.01333333333 | F105: 0.01333333333 | G105: 0.01333333333 | H105: 0.01333333333 | I105: 0.01333333333 | J105: 0.01333333333 | K105: 0.01333333333 | L105: 0.01333333333 | M105: 0.01333333333 | N105: 0.01333333333 | O105: 0.01333333333 | P105: 0.01333333333 | Q105: 0.01333333333 | R105: 0.01333333333 | S105: 0.01333333333 | T105: 0.01333333333 | U105: 0.01333333333 | V105: 0.01333333333 | W105: 0.01333333333 | X105: 0.01333333333 | Y105: 0.01333333333 | Z105: 0.01333333333 | AA105: 0.01333333333 | AB105: 0.01333333333 | AC105: 0.01333333333 | AD105: 0.01333333333 | AE105: 0.01333333333 | AF105: Taxas de captação obtidas em consultas com concessionários - parquetur e soul parques
A106: Silveira - Hospedagem | B106: 0.01 | C106: =B106 -> 0.01 | D106: 0.01 | E106: 0.01 | F106: 0.01 | G106: 0.01 | H106: 0.01 | I106: 0.01 | J106: 0.01 | K106: 0.01 | L106: 0.01 | M106: 0.01 | N106: 0.01 | O106: 0.01 | P106: 0.01 | Q106: 0.01 | R106: 0.01 | S106: 0.01 | T106: 0.01 | U106: 0.01 | V106: 0.01 | W106: 0.01 | X106: 0.01 | Y106: 0.01 | Z106: 0.01 | AA106: 0.01 | AB106: 0.01 | AC106: 0.01 | AD106: 0.01 | AE106: 0.01 | AF106: Taxas de captação obtidas em consultas com concessionários - parquetur e soul parques
A107: Pedra Furada - Alimentação | B107: 0.08 | C107: =B107 -> 0.08 | D107: 0.08 | E107: 0.08 | F107: 0.08 | G107: 0.08 | H107: 0.08 | I107: 0.08 | J107: 0.08 | K107: 0.08 | L107: 0.08 | M107: 0.08 | N107: 0.08 | O107: 0.08 | P107: 0.08 | Q107: 0.08 | R107: 0.08 | S107: 0.08 | T107: 0.08 | U107: 0.08 | V107: 0.08 | W107: 0.08 | X107: 0.08 | Y107: 0.08 | Z107: 0.08 | AA107: 0.08 | AB107: 0.08 | AC107: 0.08 | AD107: 0.08 | AE107: 0.08 | AF107: Taxas de captação obtidas em consultas com concessionários - parquetur e soul parques
A108: Pedra Furada - Comércio | B108: 0.01333333333 | C108: =B108 -> 0.01333333333 | D108: 0.01333333333 | E108: 0.01333333333 | F108: 0.01333333333 | G108: 0.01333333333 | H108: 0.01333333333 | I108: 0.01333333333 | J108: 0.01333333333 | K108: 0.01333333333 | L108: 0.01333333333 | M108: 0.01333333333 | N108: 0.01333333333 | O108: 0.01333333333 | P108: 0.01333333333 | Q108: 0.01333333333 | R108: 0.01333333333 | S108: 0.01333333333 | T108: 0.01333333333 | U108: 0.01333333333 | V108: 0.01333333333 | W108: 0.01333333333 | X108: 0.01333333333 | Y108: 0.01333333333 | Z108: 0.01333333333 | AA108: 0.01333333333 | AB108: 0.01333333333 | AC108: 0.01333333333 | AD108: 0.01333333333 | AE108: 0.01333333333 | AF108: Taxas de captação obtidas em consultas com concessionários - parquetur e soul parques
A109: Serrote - Alimentação | B109: 0.08 | C109: =B109 -> 0.08 | D109: 0.08 | E109: 0.08 | F109: 0.08 | G109: 0.08 | H109: 0.08 | I109: 0.08 | J109: 0.08 | K109: 0.08 | L109: 0.08 | M109: 0.08 | N109: 0.08 | O109: 0.08 | P109: 0.08 | Q109: 0.08 | R109: 0.08 | S109: 0.08 | T109: 0.08 | U109: 0.08 | V109: 0.08 | W109: 0.08 | X109: 0.08 | Y109: 0.08 | Z109: 0.08 | AA109: 0.08 | AB109: 0.08 | AC109: 0.08 | AD109: 0.08 | AE109: 0.08 | AF109: Taxas de captação obtidas em consultas com concessionários - parquetur e soul parques
A110: Serrote - Comércio | B110: 0.01333333333 | C110: =B110 -> 0.01333333333 | D110: 0.01333333333 | E110: 0.01333333333 | F110: 0.01333333333 | G110: 0.01333333333 | H110: 0.01333333333 | I110: 0.01333333333 | J110: 0.01333333333 | K110: 0.01333333333 | L110: 0.01333333333 | M110: 0.01333333333 | N110: 0.01333333333 | O110: 0.01333333333 | P110: 0.01333333333 | Q110: 0.01333333333 | R110: 0.01333333333 | S110: 0.01333333333 | T110: 0.01333333333 | U110: 0.01333333333 | V110: 0.01333333333 | W110: 0.01333333333 | X110: 0.01333333333 | Y110: 0.01333333333 | Z110: 0.01333333333 | AA110: 0.01333333333 | AB110: 0.01333333333 | AC110: 0.01333333333 | AD110: 0.01333333333 | AE110: 0.01333333333 | AF110: Taxas de captação obtidas em consultas com concessionários - parquetur e soul parques
A111: Paraíso - Alimentação | B111: 0.08 | C111: =B111 -> 0.08 | D111: 0.08 | E111: 0.08 | F111: 0.08 | G111: 0.08 | H111: 0.08 | I111: 0.08 | J111: 0.08 | K111: 0.08 | L111: 0.08 | M111: 0.08 | N111: 0.08 | O111: 0.08 | P111: 0.08 | Q111: 0.08 | R111: 0.08 | S111: 0.08 | T111: 0.08 | U111: 0.08 | V111: 0.08 | W111: 0.08 | X111: 0.08 | Y111: 0.08 | Z111: 0.08 | AA111: 0.08 | AB111: 0.08 | AC111: 0.08 | AD111: 0.08 | AE111: 0.08 | AF111: Taxas de captação obtidas em consultas com concessionários - parquetur e soul parques
A112: Paraíso - Comércio + Locação + Atividades | B112: 0.01333333333 | C112: =B112 -> 0.01333333333 | D112: 0.01333333333 | E112: 0.01333333333 | F112: 0.01333333333 | G112: 0.01333333333 | H112: 0.01333333333 | I112: 0.01333333333 | J112: 0.01333333333 | K112: 0.01333333333 | L112: 0.01333333333 | M112: 0.01333333333 | N112: 0.01333333333 | O112: 0.01333333333 | P112: 0.01333333333 | Q112: 0.01333333333 | R112: 0.01333333333 | S112: 0.01333333333 | T112: 0.01333333333 | U112: 0.01333333333 | V112: 0.01333333333 | W112: 0.01333333333 | X112: 0.01333333333 | Y112: 0.01333333333 | Z112: 0.01333333333 | AA112: 0.01333333333 | AB112: 0.01333333333 | AC112: 0.01333333333 | AD112: 0.01333333333 | AE112: 0.01333333333 | AF112: Taxas de captação obtidas em consultas com concessionários - parquetur e soul parques
A113: Geral - Unidade móvel - Alimentação | B113: 0.02 | C113: =B113 -> 0.02 | D113: 0.02 | E113: 0.02 | F113: 0.02 | G113: 0.02 | H113: 0.02 | I113: 0.02 | J113: 0.02 | K113: 0.02 | L113: 0.02 | M113: 0.02 | N113: 0.02 | O113: 0.02 | P113: 0.02 | Q113: 0.02 | R113: 0.02 | S113: 0.02 | T113: 0.02 | U113: 0.02 | V113: 0.02 | W113: 0.02 | X113: 0.02 | Y113: 0.02 | Z113: 0.02 | AA113: 0.02 | AB113: 0.02 | AC113: 0.02 | AD113: 0.02 | AE113: 0.02 | AF113: Taxas de captação obtidas em consultas com concessionários - parquetur e soul parques
A114: Mangue Seco - Estacionamento | B114: =7.5%*10%/3 -> 0.0025 | C114: =B114 -> 0.0025 | D114: 0.0025 | E114: 0.0025 | F114: 0.0025 | G114: 0.0025 | H114: 0.0025 | I114: 0.0025 | J114: 0.0025 | K114: 0.0025 | L114: 0.0025 | M114: 0.0025 | N114: 0.0025 | O114: 0.0025 | P114: 0.0025 | Q114: 0.0025 | R114: 0.0025 | S114: 0.0025 | T114: 0.0025 | U114: 0.0025 | V114: 0.0025 | W114: 0.0025 | X114: 0.0025 | Y114: 0.0025 | Z114: 0.0025 | AA114: 0.0025 | AB114: 0.0025 | AC114: 0.0025 | AD114: 0.0025 | AE114: 0.0025 | AF114: 15% das entradas x 10% com carro próprio / 3 pax por carro
A115: Lagoa Grande - Estacionamento | B115: 0.0025 | C115: =B115 -> 0.0025 | D115: 0.0025 | E115: 0.0025 | F115: 0.0025 | G115: 0.0025 | H115: 0.0025 | I115: 0.0025 | J115: 0.0025 | K115: 0.0025 | L115: 0.0025 | M115: 0.0025 | N115: 0.0025 | O115: 0.0025 | P115: 0.0025 | Q115: 0.0025 | R115: 0.0025 | S115: 0.0025 | T115: 0.0025 | U115: 0.0025 | V115: 0.0025 | W115: 0.0025 | X115: 0.0025 | Y115: 0.0025 | Z115: 0.0025 | AA115: 0.0025 | AB115: 0.0025 | AC115: 0.0025 | AD115: 0.0025 | AE115: 0.0025 | AF115: 15% das entradas x 10% com carro próprio / 3 pax por carro
A116: 0 | B116: 0 | C116: =B116 -> 0 | D116: 0 | E116: 0 | F116: 0 | G116: 0 | H116: 0 | I116: 0 | J116: 0 | K116: 0 | L116: 0 | M116: 0 | N116: 0 | O116: 0 | P116: 0 | Q116: 0 | R116: 0 | S116: 0 | T116: 0 | U116: 0 | V116: 0 | W116: 0 | X116: 0 | Y116: 0 | Z116: 0 | AA116: 0 | AB116: 0 | AC116: 0 | AD116: 0 | AE116: 0
A117: 0 | B117: 0 | C117: =B117 -> 0 | D117: 0 | E117: 0 | F117: 0 | G117: 0 | H117: 0 | I117: 0 | J117: 0 | K117: 0 | L117: 0 | M117: 0 | N117: 0 | O117: 0 | P117: 0 | Q117: 0 | R117: 0 | S117: 0 | T117: 0 | U117: 0 | V117: 0 | W117: 0 | X117: 0 | Y117: 0 | Z117: 0 | AA117: 0 | AB117: 0 | AC117: 0 | AD117: 0 | AE117: 0
A119: PESSIMISTA
A120: =A17 -> Unidades Geradoras de Caixa (UGC) | B120: Ano (%) | AF120: Fontes
B121: 1 | C121: 2 | D121: 3 | E121: 4 | F121: 5 | G121: 6 | H121: 7 | I121: 8 | J121: 9 | K121: 10 | L121: 11 | M121: 12 | N121: 13 | O121: 14 | P121: 15 | Q121: 16 | R121: 17 | S121: 18 | T121: 19 | U121: 20 | V121: 21 | W121: 22 | X121: 23 | Y121: 24 | Z121: 25 | AA121: 26 | AB121: 27 | AC121: 28 | AD121: 29 | AE121: 30
A122: =A97 -> Demanda de visitação TOTAL | B122: 1 | C122: 1 | D122: 1 | E122: 1 | F122: 1 | G122: 1 | H122: 1 | I122: 1 | J122: 1 | K122: 1 | L122: 1 | M122: 1 | N122: 1 | O122: 1 | P122: 1 | Q122: 1 | R122: 1 | S122: 1 | T122: 1 | U122: 1 | V122: 1 | W122: 1 | X122: 1 | Y122: 1 | Z122: 1 | AA122: 1 | AB122: 1 | AC122: 1 | AD122: 1 | AE122: 1
A123: Ingresso | B123: 1 | C123: =B123 -> 1 | D123: 1 | E123: 1 | F123: 1 | G123: 1 | H123: 1 | I123: 1 | J123: 1 | K123: 1 | L123: 1 | M123: 1 | N123: 1 | O123: 1 | P123: 1 | Q123: 1 | R123: 1 | S123: 1 | T123: 1 | U123: 1 | V123: 1 | W123: 1 | X123: 1 | Y123: 1 | Z123: 1 | AA123: 1 | AB123: 1 | AC123: 1 | AD123: 1 | AE123: 1 | AF123: Taxas de captação obtidas em consultas com concessionários - parquetur e soul parques
A124: Preá - Alimentação | B124: =B99 -> 0.08 | C124: =B124 -> 0.08 | D124: 0.08 | E124: 0.08 | F124: 0.08 | G124: 0.08 | H124: 0.08 | I124: 0.08 | J124: 0.08 | K124: 0.08 | L124: 0.08 | M124: 0.08 | N124: 0.08 | O124: 0.08 | P124: 0.08 | Q124: 0.08 | R124: 0.08 | S124: 0.08 | T124: 0.08 | U124: 0.08 | V124: 0.08 | W124: 0.08 | X124: 0.08 | Y124: 0.08 | Z124: 0.08 | AA124: 0.08 | AB124: 0.08 | AC124: 0.08 | AD124: 0.08 | AE124: 0.08 | AF124: Taxas de captação obtidas em consultas com concessionários - parquetur e soul parques
A125: Preá - Comércio | B125: 0.01333333333 | C125: =B125 -> 0.01333333333 | D125: 0.01333333333 | E125: 0.01333333333 | F125: 0.01333333333 | G125: 0.01333333333 | H125: 0.01333333333 | I125: 0.01333333333 | J125: 0.01333333333 | K125: 0.01333333333 | L125: 0.01333333333 | M125: 0.01333333333 | N125: 0.01333333333 | O125: 0.01333333333 | P125: 0.01333333333 | Q125: 0.01333333333 | R125: 0.01333333333 | S125: 0.01333333333 | T125: 0.01333333333 | U125: 0.01333333333 | V125: 0.01333333333 | W125: 0.01333333333 | X125: 0.01333333333 | Y125: 0.01333333333 | Z125: 0.01333333333 | AA125: 0.01333333333 | AB125: 0.01333333333 | AC125: 0.01333333333 | AD125: 0.01333333333 | AE125: 0.01333333333 | AF125: Taxas de captação obtidas em consultas com concessionários - parquetur e soul parques
A126: Preá - Estacionamento | B126: 0.02 | C126: =C101 -> 0.02 | D126: 0.02 | E126: 0.02 | F126: 0.02 | G126: 0.02 | H126: 0.02 | I126: 0.02 | J126: 0.02 | K126: 0.02 | L126: 0.02 | M126: 0.02 | N126: 0.02 | O126: 0.02 | P126: 0.02 | Q126: 0.02 | R126: 0.02 | S126: 0.02 | T126: 0.02 | U126: 0.02 | V126: 0.02 | W126: 0.02 | X126: 0.02 | Y126: 0.02 | Z126: 0.02 | AA126: 0.02 | AB126: 0.02 | AC126: 0.02 | AD126: 0.02 | AE126: 0.02 | AF126: Taxas de captação obtidas em consultas com concessionários - parquetur e soul parques
A127: Árvore da Preguiça - Alimentação | B127: 0.08 | C127: =C102 -> 0.08 | D127: 0.08 | E127: 0.08 | F127: 0.08 | G127: 0.08 | H127: 0.08 | I127: 0.08 | J127: 0.08 | K127: 0.08 | L127: 0.08 | M127: 0.08 | N127: 0.08 | O127: 0.08 | P127: 0.08 | Q127: 0.08 | R127: 0.08 | S127: 0.08 | T127: 0.08 | U127: 0.08 | V127: 0.08 | W127: 0.08 | X127: 0.08 | Y127: 0.08 | Z127: 0.08 | AA127: 0.08 | AB127: 0.08 | AC127: 0.08 | AD127: 0.08 | AE127: 0.08 | AF127: Taxas de captação obtidas em consultas com concessionários - parquetur e soul parques
A128: Árvore da Preguiça - Comércio | B128: 0.01333333333 | C128: =C103 -> 0.01333333333 | D128: 0.01333333333 | E128: 0.01333333333 | F128: 0.01333333333 | G128: 0.01333333333 | H128: 0.01333333333 | I128: 0.01333333333 | J128: 0.01333333333 | K128: 0.01333333333 | L128: 0.01333333333 | M128: 0.01333333333 | N128: 0.01333333333 | O128: 0.01333333333 | P128: 0.01333333333 | Q128: 0.01333333333 | R128: 0.01333333333 | S128: 0.01333333333 | T128: 0.01333333333 | U128: 0.01333333333 | V128: 0.01333333333 | W128: 0.01333333333 | X128: 0.01333333333 | Y128: 0.01333333333 | Z128: 0.01333333333 | AA128: 0.01333333333 | AB128: 0.01333333333 | AC128: 0.01333333333 | AD128: 0.01333333333 | AE128: 0.01333333333 | AF128: Taxas de captação obtidas em consultas com concessionários - parquetur e soul parques
A129: Silveira - Alimentação | B129: 0.08 | C129: =C104 -> 0.08 | D129: 0.08 | E129: 0.08 | F129: 0.08 | G129: 0.08 | H129: 0.08 | I129: 0.08 | J129: 0.08 | K129: 0.08 | L129: 0.08 | M129: 0.08 | N129: 0.08 | O129: 0.08 | P129: 0.08 | Q129: 0.08 | R129: 0.08 | S129: 0.08 | T129: 0.08 | U129: 0.08 | V129: 0.08 | W129: 0.08 | X129: 0.08 | Y129: 0.08 | Z129: 0.08 | AA129: 0.08 | AB129: 0.08 | AC129: 0.08 | AD129: 0.08 | AE129: 0.08 | AF129: Taxas de captação obtidas em consultas com concessionários - parquetur e soul parques
A130: Silveira - Comércio + Locação + Atividades | B130: 0.01333333333 | C130: =C105 -> 0.01333333333 | D130: 0.01333333333 | E130: 0.01333333333 | F130: 0.01333333333 | G130: 0.01333333333 | H130: 0.01333333333 | I130: 0.01333333333 | J130: 0.01333333333 | K130: 0.01333333333 | L130: 0.01333333333 | M130: 0.01333333333 | N130: 0.01333333333 | O130: 0.01333333333 | P130: 0.01333333333 | Q130: 0.01333333333 | R130: 0.01333333333 | S130: 0.01333333333 | T130: 0.01333333333 | U130: 0.01333333333 | V130: 0.01333333333 | W130: 0.01333333333 | X130: 0.01333333333 | Y130: 0.01333333333 | Z130: 0.01333333333 | AA130: 0.01333333333 | AB130: 0.01333333333 | AC130: 0.01333333333 | AD130: 0.01333333333 | AE130: 0.01333333333 | AF130: Taxas de captação obtidas em consultas com concessionários - parquetur e soul parques
A131: Silveira - Hospedagem | B131: 0.01 | C131: =C106 -> 0.01 | D131: 0.01 | E131: 0.01 | F131: 0.01 | G131: 0.01 | H131: 0.01 | I131: 0.01 | J131: 0.01 | K131: 0.01 | L131: 0.01 | M131: 0.01 | N131: 0.01 | O131: 0.01 | P131: 0.01 | Q131: 0.01 | R131: 0.01 | S131: 0.01 | T131: 0.01 | U131: 0.01 | V131: 0.01 | W131: 0.01 | X131: 0.01 | Y131: 0.01 | Z131: 0.01 | AA131: 0.01 | AB131: 0.01 | AC131: 0.01 | AD131: 0.01 | AE131: 0.01 | AF131: Taxas de captação obtidas em consultas com concessionários - parquetur e soul parques
A132: Pedra Furada - Alimentação | B132: 0.08 | C132: =C107 -> 0.08 | D132: 0.08 | E132: 0.08 | F132: 0.08 | G132: 0.08 | H132: 0.08 | I132: 0.08 | J132: 0.08 | K132: 0.08 | L132: 0.08 | M132: 0.08 | N132: 0.08 | O132: 0.08 | P132: 0.08 | Q132: 0.08 | R132: 0.08 | S132: 0.08 | T132: 0.08 | U132: 0.08 | V132: 0.08 | W132: 0.08 | X132: 0.08 | Y132: 0.08 | Z132: 0.08 | AA132: 0.08 | AB132: 0.08 | AC132: 0.08 | AD132: 0.08 | AE132: 0.08 | AF132: Taxas de captação obtidas em consultas com concessionários - parquetur e soul parques
A133: Pedra Furada - Comércio | B133: 0.01333333333 | C133: =C108 -> 0.01333333333 | D133: 0.01333333333 | E133: 0.01333333333 | F133: 0.01333333333 | G133: 0.01333333333 | H133: 0.01333333333 | I133: 0.01333333333 | J133: 0.01333333333 | K133: 0.01333333333 | L133: 0.01333333333 | M133: 0.01333333333 | N133: 0.01333333333 | O133: 0.01333333333 | P133: 0.01333333333 | Q133: 0.01333333333 | R133: 0.01333333333 | S133: 0.01333333333 | T133: 0.01333333333 | U133: 0.01333333333 | V133: 0.01333333333 | W133: 0.01333333333 | X133: 0.01333333333 | Y133: 0.01333333333 | Z133: 0.01333333333 | AA133: 0.01333333333 | AB133: 0.01333333333 | AC133: 0.01333333333 | AD133: 0.01333333333 | AE133: 0.01333333333 | AF133: Taxas de captação obtidas em consultas com concessionários - parquetur e soul parques
A134: Serrote - Alimentação | B134: 0.08 | C134: =C109 -> 0.08 | D134: 0.08 | E134: 0.08 | F134: 0.08 | G134: 0.08 | H134: 0.08 | I134: 0.08 | J134: 0.08 | K134: 0.08 | L134: 0.08 | M134: 0.08 | N134: 0.08 | O134: 0.08 | P134: 0.08 | Q134: 0.08 | R134: 0.08 | S134: 0.08 | T134: 0.08 | U134: 0.08 | V134: 0.08 | W134: 0.08 | X134: 0.08 | Y134: 0.08 | Z134: 0.08 | AA134: 0.08 | AB134: 0.08 | AC134: 0.08 | AD134: 0.08 | AE134: 0.08 | AF134: Taxas de captação obtidas em consultas com concessionários - parquetur e soul parques
A135: Serrote - Comércio | B135: 0.01333333333 | C135: =C110 -> 0.01333333333 | D135: 0.01333333333 | E135: 0.01333333333 | F135: 0.01333333333 | G135: 0.01333333333 | H135: 0.01333333333 | I135: 0.01333333333 | J135: 0.01333333333 | K135: 0.01333333333 | L135: 0.01333333333 | M135: 0.01333333333 | N135: 0.01333333333 | O135: 0.01333333333 | P135: 0.01333333333 | Q135: 0.01333333333 | R135: 0.01333333333 | S135: 0.01333333333 | T135: 0.01333333333 | U135: 0.01333333333 | V135: 0.01333333333 | W135: 0.01333333333 | X135: 0.01333333333 | Y135: 0.01333333333 | Z135: 0.01333333333 | AA135: 0.01333333333 | AB135: 0.01333333333 | AC135: 0.01333333333 | AD135: 0.01333333333 | AE135: 0.01333333333
A136: Paraíso - Alimentação | B136: 0.08 | C136: =C111 -> 0.08 | D136: 0.08 | E136: 0.08 | F136: 0.08 | G136: 0.08 | H136: 0.08 | I136: 0.08 | J136: 0.08 | K136: 0.08 | L136: 0.08 | M136: 0.08 | N136: 0.08 | O136: 0.08 | P136: 0.08 | Q136: 0.08 | R136: 0.08 | S136: 0.08 | T136: 0.08 | U136: 0.08 | V136: 0.08 | W136: 0.08 | X136: 0.08 | Y136: 0.08 | Z136: 0.08 | AA136: 0.08 | AB136: 0.08 | AC136: 0.08 | AD136: 0.08 | AE136: 0.08
A137: Paraíso - Comércio + Locação + Atividades | B137: 0.01333333333 | C137: =C112 -> 0.01333333333 | D137: 0.01333333333 | E137: 0.01333333333 | F137: 0.01333333333 | G137: 0.01333333333 | H137: 0.01333333333 | I137: 0.01333333333 | J137: 0.01333333333 | K137: 0.01333333333 | L137: 0.01333333333 | M137: 0.01333333333 | N137: 0.01333333333 | O137: 0.01333333333 | P137: 0.01333333333 | Q137: 0.01333333333 | R137: 0.01333333333 | S137: 0.01333333333 | T137: 0.01333333333 | U137: 0.01333333333 | V137: 0.01333333333 | W137: 0.01333333333 | X137: 0.01333333333 | Y137: 0.01333333333 | Z137: 0.01333333333 | AA137: 0.01333333333 | AB137: 0.01333333333 | AC137: 0.01333333333 | AD137: 0.01333333333 | AE137: 0.01333333333
A138: Geral - Unidade móvel - Alimentação | B138: 0.02 | C138: =C113 -> 0.02 | D138: 0.02 | E138: 0.02 | F138: 0.02 | G138: 0.02 | H138: 0.02 | I138: 0.02 | J138: 0.02 | K138: 0.02 | L138: 0.02 | M138: 0.02 | N138: 0.02 | O138: 0.02 | P138: 0.02 | Q138: 0.02 | R138: 0.02 | S138: 0.02 | T138: 0.02 | U138: 0.02 | V138: 0.02 | W138: 0.02 | X138: 0.02 | Y138: 0.02 | Z138: 0.02 | AA138: 0.02 | AB138: 0.02 | AC138: 0.02 | AD138: 0.02 | AE138: 0.02
A139: Mangue Seco - Estacionamento | B139: 0.0025 | C139: =C114 -> 0.0025 | D139: 0.0025 | E139: 0.0025 | F139: 0.0025 | G139: 0.0025 | H139: 0.0025 | I139: 0.0025 | J139: 0.0025 | K139: 0.0025 | L139: 0.0025 | M139: 0.0025 | N139: 0.0025 | O139: 0.0025 | P139: 0.0025 | Q139: 0.0025 | R139: 0.0025 | S139: 0.0025 | T139: 0.0025 | U139: 0.0025 | V139: 0.0025 | W139: 0.0025 | X139: 0.0025 | Y139: 0.0025 | Z139: 0.0025 | AA139: 0.0025 | AB139: 0.0025 | AC139: 0.0025 | AD139: 0.0025 | AE139: 0.0025
A140: Lagoa Grande - Estacionamento | B140: 0.0025 | C140: =C115 -> 0.0025 | D140: 0.0025 | E140: 0.0025 | F140: 0.0025 | G140: 0.0025 | H140: 0.0025 | I140: 0.0025 | J140: 0.0025 | K140: 0.0025 | L140: 0.0025 | M140: 0.0025 | N140: 0.0025 | O140: 0.0025 | P140: 0.0025 | Q140: 0.0025 | R140: 0.0025 | S140: 0.0025 | T140: 0.0025 | U140: 0.0025 | V140: 0.0025 | W140: 0.0025 | X140: 0.0025 | Y140: 0.0025 | Z140: 0.0025 | AA140: 0.0025 | AB140: 0.0025 | AC140: 0.0025 | AD140: 0.0025 | AE140: 0.0025
A141: 0 | B141: 0 | C141: =C116 -> 0 | D141: 0 | E141: 0 | F141: 0 | G141: 0 | H141: 0 | I141: 0 | J141: 0 | K141: 0 | L141: 0 | M141: 0 | N141: 0 | O141: 0 | P141: 0 | Q141: 0 | R141: 0 | S141: 0 | T141: 0 | U141: 0 | V141: 0 | W141: 0 | X141: 0 | Y141: 0 | Z141: 0 | AA141: 0 | AB141: 0 | AC141: 0 | AD141: 0 | AE141: 0
A142: 0 | B142: 0 | C142: =C117 -> 0 | D142: 0 | E142: 0 | F142: 0 | G142: 0 | H142: 0 | I142: 0 | J142: 0 | K142: 0 | L142: 0 | M142: 0 | N142: 0 | O142: 0 | P142: 0 | Q142: 0 | R142: 0 | S142: 0 | T142: 0 | U142: 0 | V142: 0 | W142: 0 | X142: 0 | Y142: 0 | Z142: 0 | AA142: 0 | AB142: 0 | AC142: 0 | AD142: 0 | AE142: 0
A144: OTIMISTA
A145: =A17 -> Unidades Geradoras de Caixa (UGC) | B145: Ano (%) | AF145: Fontes
B146: 1 | C146: 2 | D146: 3 | E146: 4 | F146: 5 | G146: 6 | H146: 7 | I146: 8 | J146: 9 | K146: 10 | L146: 11 | M146: 12 | N146: 13 | O146: 14 | P146: 15 | Q146: 16 | R146: 17 | S146: 18 | T146: 19 | U146: 20 | V146: 21 | W146: 22 | X146: 23 | Y146: 24 | Z146: 25 | AA146: 26 | AB146: 27 | AC146: 28 | AD146: 29 | AE146: 30
A147: =A122 -> Demanda de visitação TOTAL | B147: 1 | C147: 1 | D147: 1 | E147: 1 | F147: 1 | G147: 1 | H147: 1 | I147: 1 | J147: 1 | K147: 1 | L147: 1 | M147: 1 | N147: 1 | O147: 1 | P147: 1 | Q147: 1 | R147: 1 | S147: 1 | T147: 1 | U147: 1 | V147: 1 | W147: 1 | X147: 1 | Y147: 1 | Z147: 1 | AA147: 1 | AB147: 1 | AC147: 1 | AD147: 1 | AE147: 1
A148: Ingresso | B148: 1 | C148: =B148 -> 1 | D148: 1 | E148: 1 | F148: 1 | G148: 1 | H148: 1 | I148: 1 | J148: 1 | K148: 1 | L148: 1 | M148: 1 | N148: 1 | O148: 1 | P148: 1 | Q148: 1 | R148: 1 | S148: 1 | T148: 1 | U148: 1 | V148: 1 | W148: 1 | X148: 1 | Y148: 1 | Z148: 1 | AA148: 1 | AB148: 1 | AC148: 1 | AD148: 1 | AE148: 1 | AF148: Taxas de captação obtidas em consultas com concessionários - parquetur e soul parques
A149: Preá - Alimentação | B149: =B99 -> 0.08 | C149: =B149 -> 0.08 | D149: 0.08 | E149: 0.08 | F149: 0.08 | G149: 0.08 | H149: 0.08 | I149: 0.08 | J149: 0.08 | K149: 0.08 | L149: 0.08 | M149: 0.08 | N149: 0.08 | O149: 0.08 | P149: 0.08 | Q149: 0.08 | R149: 0.08 | S149: 0.08 | T149: 0.08 | U149: 0.08 | V149: 0.08 | W149: 0.08 | X149: 0.08 | Y149: 0.08 | Z149: 0.08 | AA149: 0.08 | AB149: 0.08 | AC149: 0.08 | AD149: 0.08 | AE149: 0.08 | AF149: Taxas de captação obtidas em consultas com concessionários - parquetur e soul parques
A150: Preá - Comércio | B150: 0.01333333333 | C150: =B150 -> 0.01333333333 | D150: 0.01333333333 | E150: 0.01333333333 | F150: 0.01333333333 | G150: 0.01333333333 | H150: 0.01333333333 | I150: 0.01333333333 | J150: 0.01333333333 | K150: 0.01333333333 | L150: 0.01333333333 | M150: 0.01333333333 | N150: 0.01333333333 | O150: 0.01333333333 | P150: 0.01333333333 | Q150: 0.01333333333 | R150: 0.01333333333 | S150: 0.01333333333 | T150: 0.01333333333 | U150: 0.01333333333 | V150: 0.01333333333 | W150: 0.01333333333 | X150: 0.01333333333 | Y150: 0.01333333333 | Z150: 0.01333333333 | AA150: 0.01333333333 | AB150: 0.01333333333 | AC150: 0.01333333333 | AD150: 0.01333333333 | AE150: 0.01333333333 | AF150: Taxas de captação obtidas em consultas com concessionários - parquetur e soul parques
A151: Preá - Estacionamento | B151: 0.02 | C151: =C101 -> 0.02 | D151: 0.02 | E151: 0.02 | F151: 0.02 | G151: 0.02 | H151: 0.02 | I151: 0.02 | J151: 0.02 | K151: 0.02 | L151: 0.02 | M151: 0.02 | N151: 0.02 | O151: 0.02 | P151: 0.02 | Q151: 0.02 | R151: 0.02 | S151: 0.02 | T151: 0.02 | U151: 0.02 | V151: 0.02 | W151: 0.02 | X151: 0.02 | Y151: 0.02 | Z151: 0.02 | AA151: 0.02 | AB151: 0.02 | AC151: 0.02 | AD151: 0.02 | AE151: 0.02 | AF151: Taxas de captação obtidas em consultas com concessionários - parquetur e soul parques
A152: Árvore da Preguiça - Alimentação | B152: 0.08 | C152: =C102 -> 0.08 | D152: 0.08 | E152: 0.08 | F152: 0.08 | G152: 0.08 | H152: 0.08 | I152: 0.08 | J152: 0.08 | K152: 0.08 | L152: 0.08 | M152: 0.08 | N152: 0.08 | O152: 0.08 | P152: 0.08 | Q152: 0.08 | R152: 0.08 | S152: 0.08 | T152: 0.08 | U152: 0.08 | V152: 0.08 | W152: 0.08 | X152: 0.08 | Y152: 0.08 | Z152: 0.08 | AA152: 0.08 | AB152: 0.08 | AC152: 0.08 | AD152: 0.08 | AE152: 0.08 | AF152: Taxas de captação obtidas em consultas com concessionários - parquetur e soul parques
A153: Árvore da Preguiça - Comércio | B153: 0.01333333333 | C153: =C103 -> 0.01333333333 | D153: 0.01333333333 | E153: 0.01333333333 | F153: 0.01333333333 | G153: 0.01333333333 | H153: 0.01333333333 | I153: 0.01333333333 | J153: 0.01333333333 | K153: 0.01333333333 | L153: 0.01333333333 | M153: 0.01333333333 | N153: 0.01333333333 | O153: 0.01333333333 | P153: 0.01333333333 | Q153: 0.01333333333 | R153: 0.01333333333 | S153: 0.01333333333 | T153: 0.01333333333 | U153: 0.01333333333 | V153: 0.01333333333 | W153: 0.01333333333 | X153: 0.01333333333 | Y153: 0.01333333333 | Z153: 0.01333333333 | AA153: 0.01333333333 | AB153: 0.01333333333 | AC153: 0.01333333333 | AD153: 0.01333333333 | AE153: 0.01333333333 | AF153: Taxas de captação obtidas em consultas com concessionários - parquetur e soul parques
A154: Silveira - Alimentação | B154: 0.08 | C154: =C104 -> 0.08 | D154: 0.08 | E154: 0.08 | F154: 0.08 | G154: 0.08 | H154: 0.08 | I154: 0.08 | J154: 0.08 | K154: 0.08 | L154: 0.08 | M154: 0.08 | N154: 0.08 | O154: 0.08 | P154: 0.08 | Q154: 0.08 | R154: 0.08 | S154: 0.08 | T154: 0.08 | U154: 0.08 | V154: 0.08 | W154: 0.08 | X154: 0.08 | Y154: 0.08 | Z154: 0.08 | AA154: 0.08 | AB154: 0.08 | AC154: 0.08 | AD154: 0.08 | AE154: 0.08 | AF154: Taxas de captação obtidas em consultas com concessionários - parquetur e soul parques
A155: Silveira - Comércio + Locação + Atividades | B155: 0.01333333333 | C155: =C105 -> 0.01333333333 | D155: 0.01333333333 | E155: 0.01333333333 | F155: 0.01333333333 | G155: 0.01333333333 | H155: 0.01333333333 | I155: 0.01333333333 | J155: 0.01333333333 | K155: 0.01333333333 | L155: 0.01333333333 | M155: 0.01333333333 | N155: 0.01333333333 | O155: 0.01333333333 | P155: 0.01333333333 | Q155: 0.01333333333 | R155: 0.01333333333 | S155: 0.01333333333 | T155: 0.01333333333 | U155: 0.01333333333 | V155: 0.01333333333 | W155: 0.01333333333 | X155: 0.01333333333 | Y155: 0.01333333333 | Z155: 0.01333333333 | AA155: 0.01333333333 | AB155: 0.01333333333 | AC155: 0.01333333333 | AD155: 0.01333333333 | AE155: 0.01333333333 | AF155: Taxas de captação obtidas em consultas com concessionários - parquetur e soul parques
A156: Silveira - Hospedagem | B156: 0.01 | C156: =C106 -> 0.01 | D156: 0.01 | E156: 0.01 | F156: 0.01 | G156: 0.01 | H156: 0.01 | I156: 0.01 | J156: 0.01 | K156: 0.01 | L156: 0.01 | M156: 0.01 | N156: 0.01 | O156: 0.01 | P156: 0.01 | Q156: 0.01 | R156: 0.01 | S156: 0.01 | T156: 0.01 | U156: 0.01 | V156: 0.01 | W156: 0.01 | X156: 0.01 | Y156: 0.01 | Z156: 0.01 | AA156: 0.01 | AB156: 0.01 | AC156: 0.01 | AD156: 0.01 | AE156: 0.01 | AF156: Taxas de captação obtidas em consultas com concessionários - parquetur e soul parques
A157: Pedra Furada - Alimentação | B157: 0.08 | C157: =C107 -> 0.08 | D157: 0.08 | E157: 0.08 | F157: 0.08 | G157: 0.08 | H157: 0.08 | I157: 0.08 | J157: 0.08 | K157: 0.08 | L157: 0.08 | M157: 0.08 | N157: 0.08 | O157: 0.08 | P157: 0.08 | Q157: 0.08 | R157: 0.08 | S157: 0.08 | T157: 0.08 | U157: 0.08 | V157: 0.08 | W157: 0.08 | X157: 0.08 | Y157: 0.08 | Z157: 0.08 | AA157: 0.08 | AB157: 0.08 | AC157: 0.08 | AD157: 0.08 | AE157: 0.08 | AF157: Taxas de captação obtidas em consultas com concessionários - parquetur e soul parques
A158: Pedra Furada - Comércio | B158: 0.01333333333 | C158: =C108 -> 0.01333333333 | D158: 0.01333333333 | E158: 0.01333333333 | F158: 0.01333333333 | G158: 0.01333333333 | H158: 0.01333333333 | I158: 0.01333333333 | J158: 0.01333333333 | K158: 0.01333333333 | L158: 0.01333333333 | M158: 0.01333333333 | N158: 0.01333333333 | O158: 0.01333333333 | P158: 0.01333333333 | Q158: 0.01333333333 | R158: 0.01333333333 | S158: 0.01333333333 | T158: 0.01333333333 | U158: 0.01333333333 | V158: 0.01333333333 | W158: 0.01333333333 | X158: 0.01333333333 | Y158: 0.01333333333 | Z158: 0.01333333333 | AA158: 0.01333333333 | AB158: 0.01333333333 | AC158: 0.01333333333 | AD158: 0.01333333333 | AE158: 0.01333333333 | AF158: Taxas de captação obtidas em consultas com concessionários - parquetur e soul parques
A159: Serrote - Alimentação | B159: 0.08 | C159: =C109 -> 0.08 | D159: 0.08 | E159: 0.08 | F159: 0.08 | G159: 0.08 | H159: 0.08 | I159: 0.08 | J159: 0.08 | K159: 0.08 | L159: 0.08 | M159: 0.08 | N159: 0.08 | O159: 0.08 | P159: 0.08 | Q159: 0.08 | R159: 0.08 | S159: 0.08 | T159: 0.08 | U159: 0.08 | V159: 0.08 | W159: 0.08 | X159: 0.08 | Y159: 0.08 | Z159: 0.08 | AA159: 0.08 | AB159: 0.08 | AC159: 0.08 | AD159: 0.08 | AE159: 0.08 | AF159: Taxas de captação obtidas em consultas com concessionários - parquetur e soul parques
A160: Serrote - Comércio | B160: 0.01333333333 | C160: =C110 -> 0.01333333333 | D160: 0.01333333333 | E160: 0.01333333333 | F160: 0.01333333333 | G160: 0.01333333333 | H160: 0.01333333333 | I160: 0.01333333333 | J160: 0.01333333333 | K160: 0.01333333333 | L160: 0.01333333333 | M160: 0.01333333333 | N160: 0.01333333333 | O160: 0.01333333333 | P160: 0.01333333333 | Q160: 0.01333333333 | R160: 0.01333333333 | S160: 0.01333333333 | T160: 0.01333333333 | U160: 0.01333333333 | V160: 0.01333333333 | W160: 0.01333333333 | X160: 0.01333333333 | Y160: 0.01333333333 | Z160: 0.01333333333 | AA160: 0.01333333333 | AB160: 0.01333333333 | AC160: 0.01333333333 | AD160: 0.01333333333 | AE160: 0.01333333333
A161: Paraíso - Alimentação | B161: 0.08 | C161: =C111 -> 0.08 | D161: 0.08 | E161: 0.08 | F161: 0.08 | G161: 0.08 | H161: 0.08 | I161: 0.08 | J161: 0.08 | K161: 0.08 | L161: 0.08 | M161: 0.08 | N161: 0.08 | O161: 0.08 | P161: 0.08 | Q161: 0.08 | R161: 0.08 | S161: 0.08 | T161: 0.08 | U161: 0.08 | V161: 0.08 | W161: 0.08 | X161: 0.08 | Y161: 0.08 | Z161: 0.08 | AA161: 0.08 | AB161: 0.08 | AC161: 0.08 | AD161: 0.08 | AE161: 0.08
A162: Paraíso - Comércio + Locação + Atividades | B162: 0.01333333333 | C162: =C112 -> 0.01333333333 | D162: 0.01333333333 | E162: 0.01333333333 | F162: 0.01333333333 | G162: 0.01333333333 | H162: 0.01333333333 | I162: 0.01333333333 | J162: 0.01333333333 | K162: 0.01333333333 | L162: 0.01333333333 | M162: 0.01333333333 | N162: 0.01333333333 | O162: 0.01333333333 | P162: 0.01333333333 | Q162: 0.01333333333 | R162: 0.01333333333 | S162: 0.01333333333 | T162: 0.01333333333 | U162: 0.01333333333 | V162: 0.01333333333 | W162: 0.01333333333 | X162: 0.01333333333 | Y162: 0.01333333333 | Z162: 0.01333333333 | AA162: 0.01333333333 | AB162: 0.01333333333 | AC162: 0.01333333333 | AD162: 0.01333333333 | AE162: 0.01333333333
A163: Geral - Unidade móvel - Alimentação | B163: 0.02 | C163: =C113 -> 0.02 | D163: 0.02 | E163: 0.02 | F163: 0.02 | G163: 0.02 | H163: 0.02 | I163: 0.02 | J163: 0.02 | K163: 0.02 | L163: 0.02 | M163: 0.02 | N163: 0.02 | O163: 0.02 | P163: 0.02 | Q163: 0.02 | R163: 0.02 | S163: 0.02 | T163: 0.02 | U163: 0.02 | V163: 0.02 | W163: 0.02 | X163: 0.02 | Y163: 0.02 | Z163: 0.02 | AA163: 0.02 | AB163: 0.02 | AC163: 0.02 | AD163: 0.02 | AE163: 0.02
A164: Mangue Seco - Estacionamento | B164: 0.0025 | C164: =C114 -> 0.0025 | D164: 0.0025 | E164: 0.0025 | F164: 0.0025 | G164: 0.0025 | H164: 0.0025 | I164: 0.0025 | J164: 0.0025 | K164: 0.0025 | L164: 0.0025 | M164: 0.0025 | N164: 0.0025 | O164: 0.0025 | P164: 0.0025 | Q164: 0.0025 | R164: 0.0025 | S164: 0.0025 | T164: 0.0025 | U164: 0.0025 | V164: 0.0025 | W164: 0.0025 | X164: 0.0025 | Y164: 0.0025 | Z164: 0.0025 | AA164: 0.0025 | AB164: 0.0025 | AC164: 0.0025 | AD164: 0.0025 | AE164: 0.0025
A165: Lagoa Grande - Estacionamento | B165: 0.0025 | C165: =C115 -> 0.0025 | D165: 0.0025 | E165: 0.0025 | F165: 0.0025 | G165: 0.0025 | H165: 0.0025 | I165: 0.0025 | J165: 0.0025 | K165: 0.0025 | L165: 0.0025 | M165: 0.0025 | N165: 0.0025 | O165: 0.0025 | P165: 0.0025 | Q165: 0.0025 | R165: 0.0025 | S165: 0.0025 | T165: 0.0025 | U165: 0.0025 | V165: 0.0025 | W165: 0.0025 | X165: 0.0025 | Y165: 0.0025 | Z165: 0.0025 | AA165: 0.0025 | AB165: 0.0025 | AC165: 0.0025 | AD165: 0.0025 | AE165: 0.0025
A166: 0 | B166: 0 | C166: =C116 -> 0 | D166: 0 | E166: 0 | F166: 0 | G166: 0 | H166: 0 | I166: 0 | J166: 0 | K166: 0 | L166: 0 | M166: 0 | N166: 0 | O166: 0 | P166: 0 | Q166: 0 | R166: 0 | S166: 0 | T166: 0 | U166: 0 | V166: 0 | W166: 0 | X166: 0 | Y166: 0 | Z166: 0 | AA166: 0 | AB166: 0 | AC166: 0 | AD166: 0 | AE166: 0
A167: 0 | B167: 0 | C167: =C117 -> 0 | D167: 0 | E167: 0 | F167: 0 | G167: 0 | H167: 0 | I167: 0 | J167: 0 | K167: 0 | L167: 0 | M167: 0 | N167: 0 | O167: 0 | P167: 0 | Q167: 0 | R167: 0 | S167: 0 | T167: 0 | U167: 0 | V167: 0 | W167: 0 | X167: 0 | Y167: 0 | Z167: 0 | AA167: 0 | AB167: 0 | AC167: 0 | AD167: 0 | AE167: 0
A169: Demanda anual POTENCIAL
A171: =A17 -> Unidades Geradoras de Caixa (UGC) | B171: Ano (#)
B172: 1 | C172: 2 | D172: 3 | E172: 4 | F172: 5 | G172: 6 | H172: 7 | I172: 8 | J172: 9 | K172: 10 | L172: 11 | M172: 12 | N172: 13 | O172: 14 | P172: 15 | Q172: 16 | R172: 17 | S172: 18 | T172: 19 | U172: 20 | V172: 21 | W172: 22 | X172: 23 | Y172: 24 | Z172: 25 | AA172: 26 | AB172: 27 | AC172: 28 | AD172: 29 | AE172: 30
A173: =A19 -> Demanda de visitação REGIONAL/TOTAL | B173: =DemandaBase*(1+VLOOKUP(CenarioSel,Cenarios,B$10+1,0)) -> 1103973.775 | C173: =B173*(1+VLOOKUP(CenarioSel,Cenarios,C$10+1,0)) -> 1142059.835 | D173: 1181452.691 | E173: 1219608.59 | F173: 1258369.637 | G173: 1297810.475 | H173: 1338362.785 | I173: 1380097.762 | J173: 1422593.804 | K173: 1465882.574 | L173: 1510525.297 | M173: 1556504.057 | N173: 1603951.376 | O173: 1652832.699 | P173: 1703182.415 | Q173: 1754913.223 | R173: 1807961.279 | S173: 1862138.093 | T173: 1917307.413 | U173: 1973210.796 | V173: 1973210.796 | W173: 1973210.796 | X173: 1973210.796 | Y173: 1973210.796 | Z173: 1973210.796 | AA173: 1973210.796 | AB173: 1973210.796 | AC173: 1973210.796 | AD173: 1973210.796 | AE173: 1973210.796
A174: =A97 -> Demanda de visitação TOTAL | B174: =B173*B44 -> 1103973.775 | C174: 1142059.835 | D174: 1181452.691 | E174: 1219608.59 | F174: 1258369.637 | G174: 1297810.475 | H174: 1338362.785 | I174: 1380097.762 | J174: 1422593.804 | K174: 1465882.574 | L174: 1510525.297 | M174: 1556504.057 | N174: 1603951.376 | O174: 1652832.699 | P174: 1703182.415 | Q174: 1754913.223 | R174: 1807961.279 | S174: 1862138.093 | T174: 1917307.413 | U174: 1973210.796 | V174: 1973210.796 | W174: 1973210.796 | X174: 1973210.796 | Y174: 1973210.796 | Z174: 1973210.796 | AA174: 1973210.796 | AB174: 1973210.796 | AC174: 1973210.796 | AD174: 1973210.796 | AE174: 1973210.796
A175: =A20 -> Ingresso | B175: =B$174*B45 -> 1103973.775 | C175: 1142059.835 | D175: 1181452.691 | E175: 1219608.59 | F175: 1258369.637 | G175: 1297810.475 | H175: 1338362.785 | I175: 1380097.762 | J175: 1422593.804 | K175: 1465882.574 | L175: 1510525.297 | M175: 1556504.057 | N175: 1603951.376 | O175: 1652832.699 | P175: 1703182.415 | Q175: 1754913.223 | R175: 1807961.279 | S175: 1862138.093 | T175: 1917307.413 | U175: 1973210.796 | V175: 1973210.796 | W175: 1973210.796 | X175: 1973210.796 | Y175: 1973210.796 | Z175: 1973210.796 | AA175: 1973210.796 | AB175: 1973210.796 | AC175: 1973210.796 | AD175: 1973210.796 | AE175: 1973210.796
A176: Preá - Alimentação | B176: =B$174*B46 -> 88317.90197 | C176: 91364.78681 | D176: 94516.2153 | E176: 97568.68716 | F176: 100669.5709 | G176: 103824.838 | H176: 107069.0228 | I176: 110407.8209 | J176: 113807.5043 | K176: 117270.6059 | L176: 120842.0238 | M176: 124520.3246 | N176: 128316.1101 | O176: 132226.6159 | P176: 136254.5932 | Q176: 140393.0578 | R176: 144636.9023 | S176: 148971.0474 | T176: 153384.593 | U176: 157856.8637 | V176: 157856.8637 | W176: 157856.8637 | X176: 157856.8637 | Y176: 157856.8637 | Z176: 157856.8637 | AA176: 157856.8637 | AB176: 157856.8637 | AC176: 157856.8637 | AD176: 157856.8637 | AE176: 157856.8637
A177: Preá - Comércio | B177: =B$174*B47 -> 14719.65033 | C177: 15227.46447 | D177: 15752.70255 | E177: 16261.44786 | F177: 16778.26182 | G177: 17304.13967 | H177: 17844.83713 | I177: 18401.30349 | J177: 18967.91738 | K177: 19545.10099 | L177: 20140.33729 | M177: 20753.38743 | N177: 21386.01835 | O177: 22037.76932 | P177: 22709.09887 | Q177: 23398.84297 | R177: 24106.15039 | S177: 24828.50791 | T177: 25564.09884 | U177: 26309.47728 | V177: 26309.47728 | W177: 26309.47728 | X177: 26309.47728 | Y177: 26309.47728 | Z177: 26309.47728 | AA177: 26309.47728 | AB177: 26309.47728 | AC177: 26309.47728 | AD177: 26309.47728 | AE177: 26309.47728
A178: Preá - Estacionamento | B178: =B$174*B48 -> 22079.47549 | C178: 22841.1967 | D178: 23629.05383 | E178: 24392.17179 | F178: 25167.39273 | G178: 25956.2095 | H178: 26767.2557 | I178: 27601.95523 | J178: 28451.87607 | K178: 29317.65149 | L178: 30210.50594 | M178: 31130.08114 | N178: 32079.02752 | O178: 33056.65398 | P178: 34063.64831 | Q178: 35098.26446 | R178: 36159.22558 | S178: 37242.76186 | T178: 38346.14825 | U178: 39464.21591 | V178: 39464.21591 | W178: 39464.21591 | X178: 39464.21591 | Y178: 39464.21591 | Z178: 39464.21591 | AA178: 39464.21591 | AB178: 39464.21591 | AC178: 39464.21591 | AD178: 39464.21591 | AE178: 39464.21591
A179: Árvore da Preguiça - Alimentação | B179: =B$174*B49 -> 88317.90197 | C179: 91364.78681 | D179: 94516.2153 | E179: 97568.68716 | F179: 100669.5709 | G179: 103824.838 | H179: 107069.0228 | I179: 110407.8209 | J179: 113807.5043 | K179: 117270.6059 | L179: 120842.0238 | M179: 124520.3246 | N179: 128316.1101 | O179: 132226.6159 | P179: 136254.5932 | Q179: 140393.0578 | R179: 144636.9023 | S179: 148971.0474 | T179: 153384.593 | U179: 157856.8637 | V179: 157856.8637 | W179: 157856.8637 | X179: 157856.8637 | Y179: 157856.8637 | Z179: 157856.8637 | AA179: 157856.8637 | AB179: 157856.8637 | AC179: 157856.8637 | AD179: 157856.8637 | AE179: 157856.8637
A180: Árvore da Preguiça - Comércio | B180: =B$174*B50 -> 14719.65033 | C180: 15227.46447 | D180: 15752.70255 | E180: 16261.44786 | F180: 16778.26182 | G180: 17304.13967 | H180: 17844.83713 | I180: 18401.30349 | J180: 18967.91738 | K180: 19545.10099 | L180: 20140.33729 | M180: 20753.38743 | N180: 21386.01835 | O180: 22037.76932 | P180: 22709.09887 | Q180: 23398.84297 | R180: 24106.15039 | S180: 24828.50791 | T180: 25564.09884 | U180: 26309.47728 | V180: 26309.47728 | W180: 26309.47728 | X180: 26309.47728 | Y180: 26309.47728 | Z180: 26309.47728 | AA180: 26309.47728 | AB180: 26309.47728 | AC180: 26309.47728 | AD180: 26309.47728 | AE180: 26309.47728
A181: Silveira - Alimentação | B181: =B$174*B51 -> 88317.90197 | C181: 91364.78681 | D181: 94516.2153 | E181: 97568.68716 | F181: 100669.5709 | G181: 103824.838 | H181: 107069.0228 | I181: 110407.8209 | J181: 113807.5043 | K181: 117270.6059 | L181: 120842.0238 | M181: 124520.3246 | N181: 128316.1101 | O181: 132226.6159 | P181: 136254.5932 | Q181: 140393.0578 | R181: 144636.9023 | S181: 148971.0474 | T181: 153384.593 | U181: 157856.8637 | V181: 157856.8637 | W181: 157856.8637 | X181: 157856.8637 | Y181: 157856.8637 | Z181: 157856.8637 | AA181: 157856.8637 | AB181: 157856.8637 | AC181: 157856.8637 | AD181: 157856.8637 | AE181: 157856.8637
A182: Silveira - Comércio + Locação + Atividades | B182: =B$174*B52 -> 14719.65033 | C182: 15227.46447 | D182: 15752.70255 | E182: 16261.44786 | F182: 16778.26182 | G182: 17304.13967 | H182: 17844.83713 | I182: 18401.30349 | J182: 18967.91738 | K182: 19545.10099 | L182: 20140.33729 | M182: 20753.38743 | N182: 21386.01835 | O182: 22037.76932 | P182: 22709.09887 | Q182: 23398.84297 | R182: 24106.15039 | S182: 24828.50791 | T182: 25564.09884 | U182: 26309.47728 | V182: 26309.47728 | W182: 26309.47728 | X182: 26309.47728 | Y182: 26309.47728 | Z182: 26309.47728 | AA182: 26309.47728 | AB182: 26309.47728 | AC182: 26309.47728 | AD182: 26309.47728 | AE182: 26309.47728
A183: Silveira - Hospedagem | B183: =B$174*B53 -> 11039.73775 | C183: 11420.59835 | D183: 11814.52691 | E183: 12196.0859 | F183: 12583.69637 | G183: 12978.10475 | H183: 13383.62785 | I183: 13800.97762 | J183: 14225.93804 | K183: 14658.82574 | L183: 15105.25297 | M183: 15565.04057 | N183: 16039.51376 | O183: 16528.32699 | P183: 17031.82415 | Q183: 17549.13223 | R183: 18079.61279 | S183: 18621.38093 | T183: 19173.07413 | U183: 19732.10796 | V183: 19732.10796 | W183: 19732.10796 | X183: 19732.10796 | Y183: 19732.10796 | Z183: 19732.10796 | AA183: 19732.10796 | AB183: 19732.10796 | AC183: 19732.10796 | AD183: 19732.10796 | AE183: 19732.10796
A184: Pedra Furada - Alimentação | B184: =B$174*B54 -> 88317.90197 | C184: 91364.78681 | D184: 94516.2153 | E184: 97568.68716 | F184: 100669.5709 | G184: 103824.838 | H184: 107069.0228 | I184: 110407.8209 | J184: 113807.5043 | K184: 117270.6059 | L184: 120842.0238 | M184: 124520.3246 | N184: 128316.1101 | O184: 132226.6159 | P184: 136254.5932 | Q184: 140393.0578 | R184: 144636.9023 | S184: 148971.0474 | T184: 153384.593 | U184: 157856.8637 | V184: 157856.8637 | W184: 157856.8637 | X184: 157856.8637 | Y184: 157856.8637 | Z184: 157856.8637 | AA184: 157856.8637 | AB184: 157856.8637 | AC184: 157856.8637 | AD184: 157856.8637 | AE184: 157856.8637
A185: Pedra Furada - Comércio | B185: =B$174*B55 -> 14719.65033 | C185: 15227.46447 | D185: 15752.70255 | E185: 16261.44786 | F185: 16778.26182 | G185: 17304.13967 | H185: 17844.83713 | I185: 18401.30349 | J185: 18967.91738 | K185: 19545.10099 | L185: 20140.33729 | M185: 20753.38743 | N185: 21386.01835 | O185: 22037.76932 | P185: 22709.09887 | Q185: 23398.84297 | R185: 24106.15039 | S185: 24828.50791 | T185: 25564.09884 | U185: 26309.47728 | V185: 26309.47728 | W185: 26309.47728 | X185: 26309.47728 | Y185: 26309.47728 | Z185: 26309.47728 | AA185: 26309.47728 | AB185: 26309.47728 | AC185: 26309.47728 | AD185: 26309.47728 | AE185: 26309.47728
A186: Serrote - Alimentação | B186: =B$174*B56 -> 88317.90197 | C186: 91364.78681 | D186: 94516.2153 | E186: 97568.68716 | F186: 100669.5709 | G186: 103824.838 | H186: 107069.0228 | I186: 110407.8209 | J186: 113807.5043 | K186: 117270.6059 | L186: 120842.0238 | M186: 124520.3246 | N186: 128316.1101 | O186: 132226.6159 | P186: 136254.5932 | Q186: 140393.0578 | R186: 144636.9023 | S186: 148971.0474 | T186: 153384.593 | U186: 157856.8637 | V186: 157856.8637 | W186: 157856.8637 | X186: 157856.8637 | Y186: 157856.8637 | Z186: 157856.8637 | AA186: 157856.8637 | AB186: 157856.8637 | AC186: 157856.8637 | AD186: 157856.8637 | AE186: 157856.8637
A187: Serrote - Comércio | B187: =B$174*B57 -> 14719.65033 | C187: 15227.46447 | D187: 15752.70255 | E187: 16261.44786 | F187: 16778.26182 | G187: 17304.13967 | H187: 17844.83713 | I187: 18401.30349 | J187: 18967.91738 | K187: 19545.10099 | L187: 20140.33729 | M187: 20753.38743 | N187: 21386.01835 | O187: 22037.76932 | P187: 22709.09887 | Q187: 23398.84297 | R187: 24106.15039 | S187: 24828.50791 | T187: 25564.09884 | U187: 26309.47728 | V187: 26309.47728 | W187: 26309.47728 | X187: 26309.47728 | Y187: 26309.47728 | Z187: 26309.47728 | AA187: 26309.47728 | AB187: 26309.47728 | AC187: 26309.47728 | AD187: 26309.47728 | AE187: 26309.47728
A188: Paraíso - Alimentação | B188: =B$174*B58 -> 88317.90197 | C188: 91364.78681 | D188: 94516.2153 | E188: 97568.68716 | F188: 100669.5709 | G188: 103824.838 | H188: 107069.0228 | I188: 110407.8209 | J188: 113807.5043 | K188: 117270.6059 | L188: 120842.0238 | M188: 124520.3246 | N188: 128316.1101 | O188: 132226.6159 | P188: 136254.5932 | Q188: 140393.0578 | R188: 144636.9023 | S188: 148971.0474 | T188: 153384.593 | U188: 157856.8637 | V188: 157856.8637 | W188: 157856.8637 | X188: 157856.8637 | Y188: 157856.8637 | Z188: 157856.8637 | AA188: 157856.8637 | AB188: 157856.8637 | AC188: 157856.8637 | AD188: 157856.8637 | AE188: 157856.8637
A189: Paraíso - Comércio + Locação + Atividades | B189: =B$174*B59 -> 14719.65033 | C189: 15227.46447 | D189: 15752.70255 | E189: 16261.44786 | F189: 16778.26182 | G189: 17304.13967 | H189: 17844.83713 | I189: 18401.30349 | J189: 18967.91738 | K189: 19545.10099 | L189: 20140.33729 | M189: 20753.38743 | N189: 21386.01835 | O189: 22037.76932 | P189: 22709.09887 | Q189: 23398.84297 | R189: 24106.15039 | S189: 24828.50791 | T189: 25564.09884 | U189: 26309.47728 | V189: 26309.47728 | W189: 26309.47728 | X189: 26309.47728 | Y189: 26309.47728 | Z189: 26309.47728 | AA189: 26309.47728 | AB189: 26309.47728 | AC189: 26309.47728 | AD189: 26309.47728 | AE189: 26309.47728
A190: Geral - Unidade móvel - Alimentação | B190: =B$174*B60 -> 22079.47549 | C190: 22841.1967 | D190: 23629.05383 | E190: 24392.17179 | F190: 25167.39273 | G190: 25956.2095 | H190: 26767.2557 | I190: 27601.95523 | J190: 28451.87607 | K190: 29317.65149 | L190: 30210.50594 | M190: 31130.08114 | N190: 32079.02752 | O190: 33056.65398 | P190: 34063.64831 | Q190: 35098.26446 | R190: 36159.22558 | S190: 37242.76186 | T190: 38346.14825 | U190: 39464.21591 | V190: 39464.21591 | W190: 39464.21591 | X190: 39464.21591 | Y190: 39464.21591 | Z190: 39464.21591 | AA190: 39464.21591 | AB190: 39464.21591 | AC190: 39464.21591 | AD190: 39464.21591 | AE190: 39464.21591
A191: Mangue Seco - Estacionamento | B191: =B$174*B61 -> 2759.934437 | C191: 2855.149588 | D191: 2953.631728 | E191: 3049.021474 | F191: 3145.924092 | G191: 3244.526188 | H191: 3345.906963 | I191: 3450.244404 | J191: 3556.484509 | K191: 3664.706436 | L191: 3776.313243 | M191: 3891.260142 | N191: 4009.87844 | O191: 4132.081747 | P191: 4257.956038 | Q191: 4387.283057 | R191: 4519.903197 | S191: 4655.345233 | T191: 4793.268532 | U191: 4933.026989 | V191: 4933.026989 | W191: 4933.026989 | X191: 4933.026989 | Y191: 4933.026989 | Z191: 4933.026989 | AA191: 4933.026989 | AB191: 4933.026989 | AC191: 4933.026989 | AD191: 4933.026989 | AE191: 4933.026989
A192: Lagoa Grande - Estacionamento | B192: =B$174*B62 -> 2759.934437 | C192: 2855.149588 | D192: 2953.631728 | E192: 3049.021474 | F192: 3145.924092 | G192: 3244.526188 | H192: 3345.906963 | I192: 3450.244404 | J192: 3556.484509 | K192: 3664.706436 | L192: 3776.313243 | M192: 3891.260142 | N192: 4009.87844 | O192: 4132.081747 | P192: 4257.956038 | Q192: 4387.283057 | R192: 4519.903197 | S192: 4655.345233 | T192: 4793.268532 | U192: 4933.026989 | V192: 4933.026989 | W192: 4933.026989 | X192: 4933.026989 | Y192: 4933.026989 | Z192: 4933.026989 | AA192: 4933.026989 | AB192: 4933.026989 | AC192: 4933.026989 | AD192: 4933.026989 | AE192: 4933.026989
A193: 0 | B193: =B$174*B63 -> 0 | C193: 0 | D193: 0 | E193: 0 | F193: 0 | G193: 0 | H193: 0 | I193: 0 | J193: 0 | K193: 0 | L193: 0 | M193: 0 | N193: 0 | O193: 0 | P193: 0 | Q193: 0 | R193: 0 | S193: 0 | T193: 0 | U193: 0 | V193: 0 | W193: 0 | X193: 0 | Y193: 0 | Z193: 0 | AA193: 0 | AB193: 0 | AC193: 0 | AD193: 0 | AE193: 0
A194: 0 | B194: =B$174*B64 -> 0 | C194: 0 | D194: 0 | E194: 0 | F194: 0 | G194: 0 | H194: 0 | I194: 0 | J194: 0 | K194: 0 | L194: 0 | M194: 0 | N194: 0 | O194: 0 | P194: 0 | Q194: 0 | R194: 0 | S194: 0 | T194: 0 | U194: 0 | V194: 0 | W194: 0 | X194: 0 | Y194: 0 | Z194: 0 | AA194: 0 | AB194: 0 | AC194: 0 | AD194: 0 | AE194: 0
A196: Demanda anual não atendida
A198: =A68 -> Unidades Geradoras de Caixa (UGC) | B198: Ano (%)
B199: 1 | C199: 2 | D199: 3 | E199: 4 | F199: 5 | G199: 6 | H199: 7 | I199: 8 | J199: 9 | K199: 10 | L199: 11 | M199: 12 | N199: 13 | O199: 14 | P199: 15 | Q199: 16 | R199: 17 | S199: 18 | T199: 19 | U199: 20 | V199: 21 | W199: 22 | X199: 23 | Y199: 24 | Z199: 25 | AA199: 26 | AB199: 27 | AC199: 28 | AD199: 29 | AE199: 30
A200: =A174 -> Demanda de visitação TOTAL | B200: =IF(ISBLANK(CAP_00),0,(SUMIF($B252:$M258,">"&B225)*(365/12/7))-(COUNTIF($B252:$M258,">"&B225)*(365/12/7))*B225) -> 0 | C200: 0 | D200: 0 | E200: 0 | F200: 0 | G200: 0 | H200: 0 | I200: 0 | J200: 0 | K200: 0 | L200: 0 | M200: 0 | N200: 0 | O200: 0 | P200: 0 | Q200: 0 | R200: 0 | S200: 0 | T200: 0 | U200: 0 | V200: 0 | W200: 0 | X200: 0 | Y200: 0 | Z200: 0 | AA200: 0 | AB200: 0 | AC200: 0 | AD200: 0 | AE200: 0
A201: Ingresso | B201: =IF(ISBLANK(CAP_01),0,(SUMIF($B260:$M266,">"&B226)*(365/12/7))-(COUNTIF($B260:$M266,">"&B226)*(365/12/7))*B226) -> 0 | C201: 0 | D201: 0 | E201: 0 | F201: 0 | G201: 0 | H201: 0 | I201: 0 | J201: 0 | K201: 0 | L201: 0 | M201: 0 | N201: 0 | O201: 0 | P201: 0 | Q201: 0 | R201: 0 | S201: 0 | T201: 0 | U201: 0 | V201: 0 | W201: 0 | X201: 0 | Y201: 0 | Z201: 0 | AA201: 0 | AB201: 0 | AC201: 0 | AD201: 0 | AE201: 0
A202: Preá - Alimentação | B202: =IF(ISBLANK(CAP_02),0,(SUMIF($B268:$M274,">"&B227)*(365/12/7))-(COUNTIF($B268:$M274,">"&B227)*(365/12/7))*B227) -> 0 | C202: 0 | D202: 0 | E202: 0 | F202: 0 | G202: 0 | H202: 0 | I202: 0 | J202: 0 | K202: 0 | L202: 0 | M202: 0 | N202: 0 | O202: 0 | P202: 0 | Q202: 0 | R202: 0 | S202: 0 | T202: 0 | U202: 0 | V202: 0 | W202: 0 | X202: 0 | Y202: 0 | Z202: 0 | AA202: 0 | AB202: 0 | AC202: 0 | AD202: 0 | AE202: 0
A203: Preá - Comércio | B203: =IF(ISBLANK(CAP_03),0,(SUMIF($B276:$M282,">"&B$228)*(365/12/7))-(COUNTIF($B276:$M282,">"&B$228)*(365/12/7))*B228) -> 0 | C203: 0 | D203: 0 | E203: 0 | F203: 0 | G203: 0 | H203: 0 | I203: 0 | J203: 0 | K203: 0 | L203: 0 | M203: 0 | N203: 0 | O203: 0 | P203: 0 | Q203: 0 | R203: 0 | S203: 0 | T203: 0 | U203: 0 | V203: 0 | W203: 0 | X203: 0 | Y203: 0 | Z203: 0 | AA203: 0 | AB203: 0 | AC203: 0 | AD203: 0 | AE203: 0
A204: Preá - Estacionamento | B204: =IF(ISBLANK(CAP_04),0,(SUMIF($B284:$M290,">"&B229)*(365/12/7))-(COUNTIF($B284:$M290,">"&B229)*(365/12/7))*B229) -> 0 | C204: 0 | D204: 0 | E204: 0 | F204: 0 | G204: 0 | H204: 0 | I204: 0 | J204: 0 | K204: 0 | L204: 0 | M204: 0 | N204: 0 | O204: 0 | P204: 0 | Q204: 0 | R204: 0 | S204: 0 | T204: 0 | U204: 0 | V204: 0 | W204: 0 | X204: 0 | Y204: 0 | Z204: 0 | AA204: 0 | AB204: 0 | AC204: 0 | AD204: 0 | AE204: 0
A205: Árvore da Preguiça - Alimentação | B205: =IF(ISBLANK(CAP_05),0,(SUMIF($B292:$M298,">"&B230)*(365/12/7))-(COUNTIF($B292:$M298,">"&B230)*(365/12/7))*B230) -> 0 | C205: 0 | D205: 0 | E205: 0 | F205: 0 | G205: 0 | H205: 0 | I205: 0 | J205: 0 | K205: 0 | L205: 0 | M205: 0 | N205: 0 | O205: 0 | P205: 0 | Q205: 0 | R205: 0 | S205: 0 | T205: 0 | U205: 0 | V205: 0 | W205: 0 | X205: 0 | Y205: 0 | Z205: 0 | AA205: 0 | AB205: 0 | AC205: 0 | AD205: 0 | AE205: 0
A206: Árvore da Preguiça - Comércio | B206: =IF(ISBLANK(CAP_06),0,(SUMIF($B300:$M306,">"&B231)*(365/12/7))-(COUNTIF($B300:$M306,">"&B231)*(365/12/7))*B231) -> 0 | C206: 0 | D206: 0 | E206: 0 | F206: 0 | G206: 0 | H206: 0 | I206: 0 | J206: 0 | K206: 0 | L206: 0 | M206: 0 | N206: 0 | O206: 0 | P206: 0 | Q206: 0 | R206: 0 | S206: 0 | T206: 0 | U206: 0 | V206: 0 | W206: 0 | X206: 0 | Y206: 0 | Z206: 0 | AA206: 0 | AB206: 0 | AC206: 0 | AD206: 0 | AE206: 0
A207: Silveira - Alimentação | B207: =IF(ISBLANK(CAP_07),0,(SUMIF($B308:$M314,">"&B232)*(365/12/7))-(COUNTIF($B308:$M314,">"&B232)*(365/12/7))*B232) -> 0 | C207: 0 | D207: 0 | E207: 0 | F207: 0 | G207: 0 | H207: 0 | I207: 0 | J207: 0 | K207: 0 | L207: 0 | M207: 0 | N207: 0 | O207: 0 | P207: 0 | Q207: 0 | R207: 0 | S207: 0 | T207: 0 | U207: 0 | V207: 0 | W207: 0 | X207: 0 | Y207: 0 | Z207: 0 | AA207: 0 | AB207: 0 | AC207: 0 | AD207: 0 | AE207: 0
A208: Silveira - Comércio + Locação + Atividades | B208: =IF(ISBLANK(CAP_08),0,(SUMIF($B316:$M322,">"&B233)*(365/12/7))-(COUNTIF($B316:$M322,">"&B233)*(365/12/7))*B233) -> 0 | C208: 0 | D208: 0 | E208: 0 | F208: 0 | G208: 0 | H208: 0 | I208: 0 | J208: 0 | K208: 0 | L208: 0 | M208: 0 | N208: 0 | O208: 0 | P208: 0 | Q208: 0 | R208: 0 | S208: 0 | T208: 0 | U208: 0 | V208: 0 | W208: 0 | X208: 0 | Y208: 0 | Z208: 0 | AA208: 0 | AB208: 0 | AC208: 0 | AD208: 0 | AE208: 0
A209: Silveira - Hospedagem | B209: =IF(ISBLANK(CAP_09),0,(SUMIF($B324:$M330,">"&B234)*(365/12/7))-(COUNTIF($B324:$M330,">"&B234)*(365/12/7))*B234) -> 0 | C209: 0 | D209: 0 | E209: 0 | F209: 0 | G209: 0 | H209: 0 | I209: 0 | J209: 0 | K209: 0 | L209: 0 | M209: 0 | N209: 0 | O209: 0 | P209: 0 | Q209: 0 | R209: 0 | S209: 0 | T209: 0 | U209: 0 | V209: 0 | W209: 0 | X209: 0 | Y209: 0 | Z209: 0 | AA209: 0 | AB209: 0 | AC209: 0 | AD209: 0 | AE209: 0
A210: Pedra Furada - Alimentação | B210: =IF(ISBLANK(CAP_10),0,(SUMIF($B325:$M331,">"&B235)*(365/12/7))-(COUNTIF($B325:$M331,">"&B235)*(365/12/7))*B235) -> 0 | C210: 0 | D210: 0 | E210: 0 | F210: 0 | G210: 0 | H210: 0 | I210: 0 | J210: 0 | K210: 0 | L210: 0 | M210: 0 | N210: 0 | O210: 0 | P210: 0 | Q210: 0 | R210: 0 | S210: 0 | T210: 0 | U210: 0 | V210: 0 | W210: 0 | X210: 0 | Y210: 0 | Z210: 0 | AA210: 0 | AB210: 0 | AC210: 0 | AD210: 0 | AE210: 0
A211: Pedra Furada - Comércio | B211: =IF(ISBLANK(CAP_11),0,(SUMIF($B413:$M419,">"&B236)*(365/12/7))-(COUNTIF($B413:$M419,">"&B236)*(365/12/7))*B236) -> 0 | C211: 0 | D211: 0 | E211: 0 | F211: 0 | G211: 0 | H211: 0 | I211: 0 | J211: 0 | K211: 0 | L211: 0 | M211: 0 | N211: 0 | O211: 0 | P211: 0 | Q211: 0 | R211: 0 | S211: 0 | T211: 0 | U211: 0 | V211: 0 | W211: 0 | X211: 0 | Y211: 0 | Z211: 0 | AA211: 0 | AB211: 0 | AC211: 0 | AD211: 0 | AE211: 0
A212: Serrote - Alimentação | B212: =IF(ISBLANK(CAP_12),0,(SUMIF($B348:$M354,">"&B237)*(365/12/7))-(COUNTIF($B348:$M354,">"&B237)*(365/12/7))*B237) -> 0 | C212: 0 | D212: 0 | E212: 0 | F212: 0 | G212: 0 | H212: 0 | I212: 0 | J212: 0 | K212: 0 | L212: 0 | M212: 0 | N212: 0 | O212: 0 | P212: 0 | Q212: 0 | R212: 0 | S212: 0 | T212: 0 | U212: 0 | V212: 0 | W212: 0 | X212: 0 | Y212: 0 | Z212: 0 | AA212: 0 | AB212: 0 | AC212: 0 | AD212: 0 | AE212: 0
A213: Serrote - Comércio | B213: =IF(ISBLANK(CAP_13),0,(SUMIF($B356:$M362,">"&B238)*(365/12/7))-(COUNTIF($B356:$M362,">"&B238)*(365/12/7))*B238) -> 0 | C213: 0 | D213: 0 | E213: 0 | F213: 0 | G213: 0 | H213: 0 | I213: 0 | J213: 0 | K213: 0 | L213: 0 | M213: 0 | N213: 0 | O213: 0 | P213: 0 | Q213: 0 | R213: 0 | S213: 0 | T213: 0 | U213: 0 | V213: 0 | W213: 0 | X213: 0 | Y213: 0 | Z213: 0 | AA213: 0 | AB213: 0 | AC213: 0 | AD213: 0 | AE213: 0
A214: Paraíso - Alimentação | B214: =IF(ISBLANK(CAP_14),0,(SUMIF($B364:$M370,">"&B239)*(365/12/7))-(COUNTIF($B364:$M370,">"&B239)*(365/12/7))*B239) -> 0 | C214: 0 | D214: 0 | E214: 0 | F214: 0 | G214: 0 | H214: 0 | I214: 0 | J214: 0 | K214: 0 | L214: 0 | M214: 0 | N214: 0 | O214: 0 | P214: 0 | Q214: 0 | R214: 0 | S214: 0 | T214: 0 | U214: 0 | V214: 0 | W214: 0 | X214: 0 | Y214: 0 | Z214: 0 | AA214: 0 | AB214: 0 | AC214: 0 | AD214: 0 | AE214: 0
A215: Paraíso - Comércio + Locação + Atividades | B215: =IF(ISBLANK(CAP_15),0,(SUMIF($B372:$M378,">"&B240)*(365/12/7))-(COUNTIF($B372:$M378,">"&B240)*(365/12/7))*B240) -> 0 | C215: 0 | D215: 0 | E215: 0 | F215: 0 | G215: 0 | H215: 0 | I215: 0 | J215: 0 | K215: 0 | L215: 0 | M215: 0 | N215: 0 | O215: 0 | P215: 0 | Q215: 0 | R215: 0 | S215: 0 | T215: 0 | U215: 0 | V215: 0 | W215: 0 | X215: 0 | Y215: 0 | Z215: 0 | AA215: 0 | AB215: 0 | AC215: 0 | AD215: 0 | AE215: 0
... 200 more rows

Sheet A2 - Preços
B1: Critérios de formação de preços
B3: Itens | C3: Preço médio de Venda (R$) | D3: Categorias de receitas | H3: Preços | L3: Proporções de captação | P3: Variação anual do preço | AT3: Preços anuais | BX3: Fontes
D4: 1 | E4: 2 | F4: 3 | G4: 4 | H4: 1 | I4: 2 | J4: 3 | K4: 4 | L4: 1 | M4: 2 | N4: 3 | O4: 4 | P4: 1 | Q4: 2 | R4: 3 | S4: 4 | T4: 5 | U4: 6 | V4: 7 | W4: 8 | X4: 9 | Y4: 10 | Z4: 11 | AA4: 12 | AB4: 13 | AC4: 14 | AD4: 15 | AE4: 16 | AF4: 17 | AG4: 18 | AH4: 19 | AI4: 20 | AJ4: 21 | AK4: 22 | AL4: 23 | AM4: 24 | AN4: 25 | AO4: 26 | AP4: 27 | AQ4: 28 | AR4: 29 | AS4: 30 | AT4: 1 | AU4: 2 | AV4: 3 | AW4: 4 | AX4: 5 | AY4: 6 | AZ4: 7 | BA4: 8 | BB4: 9 | BC4: 10 | BD4: 11 | BE4: 12 | BF4: 13 | BG4: 14 | BH4: 15 | BI4: 16 | BJ4: 17 | BK4: 18 | BL4: 19 | BM4: 20 | BN4: 21 | BO4: 22 | BP4: 23 | BQ4: 24 | BR4: 25 | BS4: 26 | BT4: 27 | BU4: 28 | BV4: 29 | BW4: 30
B5: =IF(ISBLANK('A1 - Serviços e demanda'!A20),"",'A1 - Serviços e demanda'!A20) -> Ingresso | C5: =SUMPRODUCT(H5:K5,L5:O5) -> 27 | D5: Inteira | E5: Meia | F5: Isento | H5: =Ingresso -> 45 | I5: =H5/2 -> 22.5 | J5: 0 | L5: 0.5 | M5: 0.2 | N5: 0.3 | P5: 0 | Q5: 0 | R5: 0 | S5: 0 | T5: 0 | U5: 0 | V5: 0 | W5: 0 | X5: 0 | Y5: 0 | Z5: 0 | AA5: 0 | AB5: 0 | AC5: 0 | AD5: 0 | AE5: 0 | AF5: 0 | AG5: 0 | AH5: 0 | AI5: 0 | AJ5: 0 | AK5: 0 | AL5: 0 | AM5: 0 | AN5: 0 | AO5: 0 | AP5: 0 | AQ5: 0 | AR5: 0 | AS5: 0 | AT5: =C5*(1+P5) -> 27 | AU5: =AT5*(1+Q5) -> 27 | AV5: 27 | AW5: 27 | AX5: 27 | AY5: 27 | AZ5: 27 | BA5: 27 | BB5: 27 | BC5: 27 | BD5: 27 | BE5: 27 | BF5: 27 | BG5: 27 | BH5: 27 | BI5: 27 | BJ5: 27 | BK5: 27 | BL5: 27 | BM5: 27 | BN5: 27 | BO5: 27 | BP5: 27 | BQ5: 27 | BR5: 27 | BS5: 27 | BT5: 27 | BU5: 27 | BV5: 27 | BW5: 27 | BX5: Proposto pela equipe
B6: =IF(ISBLANK('A1 - Serviços e demanda'!A21),"",'A1 - Serviços e demanda'!A21) -> Preá - Alimentação | C6: 25 | D6: Alimentação | H6: 25 | L6: 1 | P6: 0 | Q6: 0 | R6: 0 | S6: 0 | T6: 0 | U6: 0 | V6: 0 | W6: 0 | X6: 0 | Y6: 0 | Z6: 0 | AA6: 0 | AB6: 0 | AC6: 0 | AD6: 0 | AE6: 0 | AF6: 0 | AG6: 0 | AH6: 0 | AI6: 0 | AJ6: 0 | AK6: 0 | AL6: 0 | AM6: 0 | AN6: 0 | AO6: 0 | AP6: 0 | AQ6: 0 | AR6: 0 | AS6: 0 | AT6: 25 | AU6: =AT6*(1+Q6) -> 25 | AV6: 25 | AW6: 25 | AX6: 25 | AY6: 25 | AZ6: 25 | BA6: 25 | BB6: 25 | BC6: 25 | BD6: 25 | BE6: 25 | BF6: 25 | BG6: 25 | BH6: 25 | BI6: 25 | BJ6: 25 | BK6: 25 | BL6: 25 | BM6: 25 | BN6: 25 | BO6: 25 | BP6: 25 | BQ6: 25 | BR6: 25 | BS6: 25 | BT6: 25 | BU6: 25 | BV6: 25 | BW6: 25 | BX6: Valores de ticket médio obtidos em consultas com concessionários - parquetur e soul parques
B7: =IF(ISBLANK('A1 - Serviços e demanda'!A22),"",'A1 - Serviços e demanda'!A22) -> Preá - Comércio | C7: 50 | D7: Comércio | H7: 50 | L7: 1 | P7: 0 | Q7: 0 | R7: 0 | S7: 0 | T7: 0 | U7: 0 | V7: 0 | W7: 0 | X7: 0 | Y7: 0 | Z7: 0 | AA7: 0 | AB7: 0 | AC7: 0 | AD7: 0 | AE7: 0 | AF7: 0 | AG7: 0 | AH7: 0 | AI7: 0 | AJ7: 0 | AK7: 0 | AL7: 0 | AM7: 0 | AN7: 0 | AO7: 0 | AP7: 0 | AQ7: 0 | AR7: 0 | AS7: 0 | AT7: 50 | AU7: =AT7*(1+Q7) -> 50 | AV7: 50 | AW7: 50 | AX7: 50 | AY7: 50 | AZ7: 50 | BA7: 50 | BB7: 50 | BC7: 50 | BD7: 50 | BE7: 50 | BF7: 50 | BG7: 50 | BH7: 50 | BI7: 50 | BJ7: 50 | BK7: 50 | BL7: 50 | BM7: 50 | BN7: 50 | BO7: 50 | BP7: 50 | BQ7: 50 | BR7: 50 | BS7: 50 | BT7: 50 | BU7: 50 | BV7: 50 | BW7: 50 | BX7: Valores de ticket médio obtidos em consultas com concessionários - parquetur e soul parques
B8: =IF(ISBLANK('A1 - Serviços e demanda'!A23),"",'A1 - Serviços e demanda'!A23) -> Preá - Estacionamento | C8: 54 | D8: 2,7 dias | H8: 54 | L8: 1 | P8: 0 | Q8: 0 | R8: 0 | S8: 0 | T8: 0 | U8: 0 | V8: 0 | W8: 0 | X8: 0 | Y8: 0 | Z8: 0 | AA8: 0 | AB8: 0 | AC8: 0 | AD8: 0 | AE8: 0 | AF8: 0 | AG8: 0 | AH8: 0 | AI8: 0 | AJ8: 0 | AK8: 0 | AL8: 0 | AM8: 0 | AN8: 0 | AO8: 0 | AP8: 0 | AQ8: 0 | AR8: 0 | AS8: 0 | AT8: 54 | AU8: =AT8*(1+Q8) -> 54 | AV8: 54 | AW8: 54 | AX8: 54 | AY8: 54 | AZ8: 54 | BA8: 54 | BB8: 54 | BC8: 54 | BD8: 54 | BE8: 54 | BF8: 54 | BG8: 54 | BH8: 54 | BI8: 54 | BJ8: 54 | BK8: 54 | BL8: 54 | BM8: 54 | BN8: 54 | BO8: 54 | BP8: 54 | BQ8: 54 | BR8: 54 | BS8: 54 | BT8: 54 | BU8: 54 | BV8: 54 | BW8: 54 | BX8: Valores de ticket médio obtidos em consultas com concessionários - parquetur e soul parques
B9: =IF(ISBLANK('A1 - Serviços e demanda'!A24),"",'A1 - Serviços e demanda'!A24) -> Árvore da Preguiça - Alimentação | C9: 25 | D9: Alimentação | H9: 25 | L9: 1 | P9: 0 | Q9: 0 | R9: 0 | S9: 0 | T9: 0 | U9: 0 | V9: 0 | W9: 0 | X9: 0 | Y9: 0 | Z9: 0 | AA9: 0 | AB9: 0 | AC9: 0 | AD9: 0 | AE9: 0 | AF9: 0 | AG9: 0 | AH9: 0 | AI9: 0 | AJ9: 0 | AK9: 0 | AL9: 0 | AM9: 0 | AN9: 0 | AO9: 0 | AP9: 0 | AQ9: 0 | AR9: 0 | AS9: 0 | AT9: 25 | AU9: =AT9*(1+Q9) -> 25 | AV9: 25 | AW9: 25 | AX9: 25 | AY9: 25 | AZ9: 25 | BA9: 25 | BB9: 25 | BC9: 25 | BD9: 25 | BE9: 25 | BF9: 25 | BG9: 25 | BH9: 25 | BI9: 25 | BJ9: 25 | BK9: 25 | BL9: 25 | BM9: 25 | BN9: 25 | BO9: 25 | BP9: 25 | BQ9: 25 | BR9: 25 | BS9: 25 | BT9: 25 | BU9: 25 | BV9: 25 | BW9: 25 | BX9: Valores de ticket médio obtidos em consultas com concessionários - parquetur e soul parques
B10: =IF(ISBLANK('A1 - Serviços e demanda'!A25),"",'A1 - Serviços e demanda'!A25) -> Árvore da Preguiça - Comércio | C10: 50 | D10: Comércio | H10: 50 | L10: 1 | P10: 0 | Q10: 0 | R10: 0 | S10: 0 | T10: 0 | U10: 0 | V10: 0 | W10: 0 | X10: 0 | Y10: 0 | Z10: 0 | AA10: 0 | AB10: 0 | AC10: 0 | AD10: 0 | AE10: 0 | AF10: 0 | AG10: 0 | AH10: 0 | AI10: 0 | AJ10: 0 | AK10: 0 | AL10: 0 | AM10: 0 | AN10: 0 | AO10: 0 | AP10: 0 | AQ10: 0 | AR10: 0 | AS10: 0 | AT10: 50 | AU10: =AT10*(1+Q10) -> 50 | AV10: 50 | AW10: 50 | AX10: 50 | AY10: 50 | AZ10: 50 | BA10: 50 | BB10: 50 | BC10: 50 | BD10: 50 | BE10: 50 | BF10: 50 | BG10: 50 | BH10: 50 | BI10: 50 | BJ10: 50 | BK10: 50 | BL10: 50 | BM10: 50 | BN10: 50 | BO10: 50 | BP10: 50 | BQ10: 50 | BR10: 50 | BS10: 50 | BT10: 50 | BU10: 50 | BV10: 50 | BW10: 50 | BX10: Valores de ticket médio obtidos em consultas com concessionários - parquetur e soul parques
B11: =IF(ISBLANK('A1 - Serviços e demanda'!A26),"",'A1 - Serviços e demanda'!A26) -> Silveira - Alimentação | C11: 0 | D11: Alimentação | L11: 1 | P11: 0 | Q11: 0 | R11: 0 | S11: 0 | T11: 0 | U11: 0 | V11: 0 | W11: 0 | X11: 0 | Y11: 0 | Z11: 0 | AA11: 0 | AB11: 0 | AC11: 0 | AD11: 0 | AE11: 0 | AF11: 0 | AG11: 0 | AH11: 0 | AI11: 0 | AJ11: 0 | AK11: 0 | AL11: 0 | AM11: 0 | AN11: 0 | AO11: 0 | AP11: 0 | AQ11: 0 | AR11: 0 | AS11: 0 | AT11: 0 | AU11: =AT11*(1+Q11) -> 0 | AV11: 0 | AW11: 0 | AX11: 0 | AY11: 0 | AZ11: 0 | BA11: 0 | BB11: 0 | BC11: 0 | BD11: 0 | BE11: 0 | BF11: 0 | BG11: 0 | BH11: 0 | BI11: 0 | BJ11: 0 | BK11: 0 | BL11: 0 | BM11: 0 | BN11: 0 | BO11: 0 | BP11: 0 | BQ11: 0 | BR11: 0 | BS11: 0 | BT11: 0 | BU11: 0 | BV11: 0 | BW11: 0 | BX11: Valores de ticket médio obtidos em consultas com concessionários - parquetur e soul parques
B12: =IF(ISBLANK('A1 - Serviços e demanda'!A27),"",'A1 - Serviços e demanda'!A27) -> Silveira - Comércio + Locação + Atividades | C12: 0 | D12: Comércio | E12: Locação | F12: Atividades | L12: 1 | M12: 0.25 | N12: 0.15 | P12: 0 | Q12: 0 | R12: 0 | S12: 0 | T12: 0 | U12: 0 | V12: 0 | W12: 0 | X12: 0 | Y12: 0 | Z12: 0 | AA12: 0 | AB12: 0 | AC12: 0 | AD12: 0 | AE12: 0 | AF12: 0 | AG12: 0 | AH12: 0 | AI12: 0 | AJ12: 0 | AK12: 0 | AL12: 0 | AM12: 0 | AN12: 0 | AO12: 0 | AP12: 0 | AQ12: 0 | AR12: 0 | AS12: 0 | AT12: 0 | AU12: =AT12*(1+Q12) -> 0 | AV12: 0 | AW12: 0 | AX12: 0 | AY12: 0 | AZ12: 0 | BA12: 0 | BB12: 0 | BC12: 0 | BD12: 0 | BE12: 0 | BF12: 0 | BG12: 0 | BH12: 0 | BI12: 0 | BJ12: 0 | BK12: 0 | BL12: 0 | BM12: 0 | BN12: 0 | BO12: 0 | BP12: 0 | BQ12: 0 | BR12: 0 | BS12: 0 | BT12: 0 | BU12: 0 | BV12: 0 | BW12: 0 | BX12: Valores de ticket médio obtidos em consultas com concessionários - parquetur e soul parques
B13: =IF(ISBLANK('A1 - Serviços e demanda'!A28),"",'A1 - Serviços e demanda'!A28) -> Silveira - Hospedagem | C13: 0 | D13: Pousada | E13: Glamping | L13: 0.3 | M13: 0.7 | P13: 0 | Q13: 0 | R13: 0 | S13: 0 | T13: 0 | U13: 0 | V13: 0 | W13: 0 | X13: 0 | Y13: 0 | Z13: 0 | AA13: 0 | AB13: 0 | AC13: 0 | AD13: 0 | AE13: 0 | AF13: 0 | AG13: 0 | AH13: 0 | AI13: 0 | AJ13: 0 | AK13: 0 | AL13: 0 | AM13: 0 | AN13: 0 | AO13: 0 | AP13: 0 | AQ13: 0 | AR13: 0 | AS13: 0 | AT13: 0 | AU13: =AT13*(1+Q13) -> 0 | AV13: 0 | AW13: 0 | AX13: 0 | AY13: 0 | AZ13: 0 | BA13: 0 | BB13: 0 | BC13: 0 | BD13: 0 | BE13: 0 | BF13: 0 | BG13: 0 | BH13: 0 | BI13: 0 | BJ13: 0 | BK13: 0 | BL13: 0 | BM13: 0 | BN13: 0 | BO13: 0 | BP13: 0 | BQ13: 0 | BR13: 0 | BS13: 0 | BT13: 0 | BU13: 0 | BV13: 0 | BW13: 0 | BX13: Valores de ticket médio obtidos em consultas com concessionários - parquetur e soul parques
B14: =IF(ISBLANK('A1 - Serviços e demanda'!A29),"",'A1 - Serviços e demanda'!A29) -> Pedra Furada - Alimentação | C14: 25 | D14: Alimentação | H14: 25 | L14: 1 | P14: 0 | Q14: 0 | R14: 0 | S14: 0 | T14: 0 | U14: 0 | V14: 0 | W14: 0 | X14: 0 | Y14: 0 | Z14: 0 | AA14: 0 | AB14: 0 | AC14: 0 | AD14: 0 | AE14: 0 | AF14: 0 | AG14: 0 | AH14: 0 | AI14: 0 | AJ14: 0 | AK14: 0 | AL14: 0 | AM14: 0 | AN14: 0 | AO14: 0 | AP14: 0 | AQ14: 0 | AR14: 0 | AS14: 0 | AT14: 25 | AU14: =AT14*(1+Q14) -> 25 | AV14: 25 | AW14: 25 | AX14: 25 | AY14: 25 | AZ14: 25 | BA14: 25 | BB14: 25 | BC14: 25 | BD14: 25 | BE14: 25 | BF14: 25 | BG14: 25 | BH14: 25 | BI14: 25 | BJ14: 25 | BK14: 25 | BL14: 25 | BM14: 25 | BN14: 25 | BO14: 25 | BP14: 25 | BQ14: 25 | BR14: 25 | BS14: 25 | BT14: 25 | BU14: 25 | BV14: 25 | BW14: 25 | BX14: Valores de ticket médio obtidos em consultas com concessionários - parquetur e soul parques
B15: =IF(ISBLANK('A1 - Serviços e demanda'!A30),"",'A1 - Serviços e demanda'!A30) -> Pedra Furada - Comércio | C15: 50 | D15: Comércio | H15: 50 | L15: 1 | P15: 0 | Q15: 0 | R15: 0 | S15: 0 | T15: 0 | U15: 0 | V15: 0 | W15: 0 | X15: 0 | Y15: 0 | Z15: 0 | AA15: 0 | AB15: 0 | AC15: 0 | AD15: 0 | AE15: 0 | AF15: 0 | AG15: 0 | AH15: 0 | AI15: 0 | AJ15: 0 | AK15: 0 | AL15: 0 | AM15: 0 | AN15: 0 | AO15: 0 | AP15: 0 | AQ15: 0 | AR15: 0 | AS15: 0 | AT15: 50 | AU15: =AT15*(1+Q15) -> 50 | AV15: 50 | AW15: 50 | AX15: 50 | AY15: 50 | AZ15: 50 | BA15: 50 | BB15: 50 | BC15: 50 | BD15: 50 | BE15: 50 | BF15: 50 | BG15: 50 | BH15: 50 | BI15: 50 | BJ15: 50 | BK15: 50 | BL15: 50 | BM15: 50 | BN15: 50 | BO15: 50 | BP15: 50 | BQ15: 50 | BR15: 50 | BS15: 50 | BT15: 50 | BU15: 50 | BV15: 50 | BW15: 50 | BX15: Valores de ticket médio obtidos em consultas com concessionários - parquetur e soul parques
B16: =IF(ISBLANK('A1 - Serviços e demanda'!A31),"",'A1 - Serviços e demanda'!A31) -> Serrote - Alimentação | C16: 25 | D16: Alimentação | H16: 25 | L16: 1 | P16: 0 | Q16: 0 | R16: 0 | S16: 0 | T16: 0 | U16: 0 | V16: 0 | W16: 0 | X16: 0 | Y16: 0 | Z16: 0 | AA16: 0 | AB16: 0 | AC16: 0 | AD16: 0 | AE16: 0 | AF16: 0 | AG16: 0 | AH16: 0 | AI16: 0 | AJ16: 0 | AK16: 0 | AL16: 0 | AM16: 0 | AN16: 0 | AO16: 0 | AP16: 0 | AQ16: 0 | AR16: 0 | AS16: 0 | AT16: 25 | AU16: =AT16*(1+Q16) -> 25 | AV16: 25 | AW16: 25 | AX16: 25 | AY16: 25 | AZ16: 25 | BA16: 25 | BB16: 25 | BC16: 25 | BD16: 25 | BE16: 25 | BF16: 25 | BG16: 25 | BH16: 25 | BI16: 25 | BJ16: 25 | BK16: 25 | BL16: 25 | BM16: 25 | BN16: 25 | BO16: 25 | BP16: 25 | BQ16: 25 | BR16: 25 | BS16: 25 | BT16: 25 | BU16: 25 | BV16: 25 | BW16: 25 | BX16: Valores de ticket médio obtidos em consultas com concessionários - parquetur e soul parques
B17: =IF(ISBLANK('A1 - Serviços e demanda'!A32),"",'A1 - Serviços e demanda'!A32) -> Serrote - Comércio | C17: 50 | D17: Comércio | H17: 50 | L17: 1 | P17: 0 | Q17: 0 | R17: 0 | S17: 0 | T17: 0 | U17: 0 | V17: 0 | W17: 0 | X17: 0 | Y17: 0 | Z17: 0 | AA17: 0 | AB17: 0 | AC17: 0 | AD17: 0 | AE17: 0 | AF17: 0 | AG17: 0 | AH17: 0 | AI17: 0 | AJ17: 0 | AK17: 0 | AL17: 0 | AM17: 0 | AN17: 0 | AO17: 0 | AP17: 0 | AQ17: 0 | AR17: 0 | AS17: 0 | AT17: 50 | AU17: =AT17*(1+Q17) -> 50 | AV17: 50 | AW17: 50 | AX17: 50 | AY17: 50 | AZ17: 50 | BA17: 50 | BB17: 50 | BC17: 50 | BD17: 50 | BE17: 50 | BF17: 50 | BG17: 50 | BH17: 50 | BI17: 50 | BJ17: 50 | BK17: 50 | BL17: 50 | BM17: 50 | BN17: 50 | BO17: 50 | BP17: 50 | BQ17: 50 | BR17: 50 | BS17: 50 | BT17: 50 | BU17: 50 | BV17: 50 | BW17: 50 | BX17: Valores de ticket médio obtidos em consultas com concessionários - parquetur e soul parques
B18: =IF(ISBLANK('A1 - Serviços e demanda'!A33),"",'A1 - Serviços e demanda'!A33) -> Paraíso - Alimentação | C18: 25 | D18: Alimentação | H18: 25 | L18: 1 | P18: 0 | Q18: 0 | R18: 0 | S18: 0 | T18: 0 | U18: 0 | V18: 0 | W18: 0 | X18: 0 | Y18: 0 | Z18: 0 | AA18: 0 | AB18: 0 | AC18: 0 | AD18: 0 | AE18: 0 | AF18: 0 | AG18: 0 | AH18: 0 | AI18: 0 | AJ18: 0 | AK18: 0 | AL18: 0 | AM18: 0 | AN18: 0 | AO18: 0 | AP18: 0 | AQ18: 0 | AR18: 0 | AS18: 0 | AT18: 25 | AU18: =AT18*(1+Q18) -> 25 | AV18: 25 | AW18: 25 | AX18: 25 | AY18: 25 | AZ18: 25 | BA18: 25 | BB18: 25 | BC18: 25 | BD18: 25 | BE18: 25 | BF18: 25 | BG18: 25 | BH18: 25 | BI18: 25 | BJ18: 25 | BK18: 25 | BL18: 25 | BM18: 25 | BN18: 25 | BO18: 25 | BP18: 25 | BQ18: 25 | BR18: 25 | BS18: 25 | BT18: 25 | BU18: 25 | BV18: 25 | BW18: 25 | BX18: Valores de ticket médio obtidos em consultas com concessionários - parquetur e soul parques
B19: =IF(ISBLANK('A1 - Serviços e demanda'!A34),"",'A1 - Serviços e demanda'!A34) -> Paraíso - Comércio + Locação + Atividades | C19: 85 | D19: Comércio | E19: Locação | F19: Atividades | H19: 50 | I19: 20 | J19: 200 | L19: 1 | M19: 0.25 | N19: 0.15 | P19: 0 | Q19: 0 | R19: 0 | S19: 0 | T19: 0 | U19: 0 | V19: 0 | W19: 0 | X19: 0 | Y19: 0 | Z19: 0 | AA19: 0 | AB19: 0 | AC19: 0 | AD19: 0 | AE19: 0 | AF19: 0 | AG19: 0 | AH19: 0 | AI19: 0 | AJ19: 0 | AK19: 0 | AL19: 0 | AM19: 0 | AN19: 0 | AO19: 0 | AP19: 0 | AQ19: 0 | AR19: 0 | AS19: 0 | AT19: 85 | AU19: =AT19*(1+Q19) -> 85 | AV19: 85 | AW19: 85 | AX19: 85 | AY19: 85 | AZ19: 85 | BA19: 85 | BB19: 85 | BC19: 85 | BD19: 85 | BE19: 85 | BF19: 85 | BG19: 85 | BH19: 85 | BI19: 85 | BJ19: 85 | BK19: 85 | BL19: 85 | BM19: 85 | BN19: 85 | BO19: 85 | BP19: 85 | BQ19: 85 | BR19: 85 | BS19: 85 | BT19: 85 | BU19: 85 | BV19: 85 | BW19: 85 | BX19: Valores de ticket médio obtidos em consultas com concessionários - parquetur e soul parques
B20: =IF(ISBLANK('A1 - Serviços e demanda'!A35),"",'A1 - Serviços e demanda'!A35) -> Geral - Unidade móvel - Alimentação | C20: 25 | D20: Alimentação | H20: 25 | L20: 1 | P20: 0 | Q20: 0 | R20: 0 | S20: 0 | T20: 0 | U20: 0 | V20: 0 | W20: 0 | X20: 0 | Y20: 0 | Z20: 0 | AA20: 0 | AB20: 0 | AC20: 0 | AD20: 0 | AE20: 0 | AF20: 0 | AG20: 0 | AH20: 0 | AI20: 0 | AJ20: 0 | AK20: 0 | AL20: 0 | AM20: 0 | AN20: 0 | AO20: 0 | AP20: 0 | AQ20: 0 | AR20: 0 | AS20: 0 | AT20: 25 | AU20: =AT20*(1+Q20) -> 25 | AV20: 25 | AW20: 25 | AX20: 25 | AY20: 25 | AZ20: 25 | BA20: 25 | BB20: 25 | BC20: 25 | BD20: 25 | BE20: 25 | BF20: 25 | BG20: 25 | BH20: 25 | BI20: 25 | BJ20: 25 | BK20: 25 | BL20: 25 | BM20: 25 | BN20: 25 | BO20: 25 | BP20: 25 | BQ20: 25 | BR20: 25 | BS20: 25 | BT20: 25 | BU20: 25 | BV20: 25 | BW20: 25 | BX20: Valores de ticket médio obtidos em consultas com concessionários - parquetur e soul parques
B21: =IF(ISBLANK('A1 - Serviços e demanda'!A36),"",'A1 - Serviços e demanda'!A36) -> Mangue Seco - Estacionamento | C21: 0 | D21: 2,7 dias | L21: 1 | P21: 0 | Q21: 0 | R21: 0 | S21: 0 | T21: 0 | U21: 0 | V21: 0 | W21: 0 | X21: 0 | Y21: 0 | Z21: 0 | AA21: 0 | AB21: 0 | AC21: 0 | AD21: 0 | AE21: 0 | AF21: 0 | AG21: 0 | AH21: 0 | AI21: 0 | AJ21: 0 | AK21: 0 | AL21: 0 | AM21: 0 | AN21: 0 | AO21: 0 | AP21: 0 | AQ21: 0 | AR21: 0 | AS21: 0 | AT21: 0 | AU21: =AT21*(1+Q21) -> 0 | AV21: 0 | AW21: 0 | AX21: 0 | AY21: 0 | AZ21: 0 | BA21: 0 | BB21: 0 | BC21: 0 | BD21: 0 | BE21: 0 | BF21: 0 | BG21: 0 | BH21: 0 | BI21: 0 | BJ21: 0 | BK21: 0 | BL21: 0 | BM21: 0 | BN21: 0 | BO21: 0 | BP21: 0 | BQ21: 0 | BR21: 0 | BS21: 0 | BT21: 0 | BU21: 0 | BV21: 0 | BW21: 0
B22: =IF(ISBLANK('A1 - Serviços e demanda'!A37),"",'A1 - Serviços e demanda'!A37) -> Lagoa Grande - Estacionamento | C22: 0 | D22: 2,7 dias | L22: 1 | P22: 0 | Q22: 0 | R22: 0 | S22: 0 | T22: 0 | U22: 0 | V22: 0 | W22: 0 | X22: 0 | Y22: 0 | Z22: 0 | AA22: 0 | AB22: 0 | AC22: 0 | AD22: 0 | AE22: 0 | AF22: 0 | AG22: 0 | AH22: 0 | AI22: 0 | AJ22: 0 | AK22: 0 | AL22: 0 | AM22: 0 | AN22: 0 | AO22: 0 | AP22: 0 | AQ22: 0 | AR22: 0 | AS22: 0 | AT22: 0 | AU22: =AT22*(1+Q22) -> 0 | AV22: 0 | AW22: 0 | AX22: 0 | AY22: 0 | AZ22: 0 | BA22: 0 | BB22: 0 | BC22: 0 | BD22: 0 | BE22: 0 | BF22: 0 | BG22: 0 | BH22: 0 | BI22: 0 | BJ22: 0 | BK22: 0 | BL22: 0 | BM22: 0 | BN22: 0 | BO22: 0 | BP22: 0 | BQ22: 0 | BR22: 0 | BS22: 0 | BT22: 0 | BU22: 0 | BV22: 0 | BW22: 0
B23: =IF(ISBLANK('A1 - Serviços e demanda'!A38),"",'A1 - Serviços e demanda'!A38) ->  | C23: 0 | P23: 0 | Q23: 0 | R23: 0 | S23: 0 | T23: 0 | U23: 0 | V23: 0 | W23: 0 | X23: 0 | Y23: 0 | Z23: 0 | AA23: 0 | AB23: 0 | AC23: 0 | AD23: 0 | AE23: 0 | AF23: 0 | AG23: 0 | AH23: 0 | AI23: 0 | AJ23: 0 | AK23: 0 | AL23: 0 | AM23: 0 | AN23: 0 | AO23: 0 | AP23: 0 | AQ23: 0 | AR23: 0 | AS23: 0 | AT23: 0 | AU23: =AT23*(1+Q23) -> 0 | AV23: 0 | AW23: 0 | AX23: 0 | AY23: 0 | AZ23: 0 | BA23: 0 | BB23: 0 | BC23: 0 | BD23: 0 | BE23: 0 | BF23: 0 | BG23: 0 | BH23: 0 | BI23: 0 | BJ23: 0 | BK23: 0 | BL23: 0 | BM23: 0 | BN23: 0 | BO23: 0 | BP23: 0 | BQ23: 0 | BR23: 0 | BS23: 0 | BT23: 0 | BU23: 0 | BV23: 0 | BW23: 0
B24: =IF(ISBLANK('A1 - Serviços e demanda'!A39),"",'A1 - Serviços e demanda'!A39) ->  | C24: 0 | P24: 0 | Q24: 0 | R24: 0 | S24: 0 | T24: 0 | U24: 0 | V24: 0 | W24: 0 | X24: 0 | Y24: 0 | Z24: 0 | AA24: 0 | AB24: 0 | AC24: 0 | AD24: 0 | AE24: 0 | AF24: 0 | AG24: 0 | AH24: 0 | AI24: 0 | AJ24: 0 | AK24: 0 | AL24: 0 | AM24: 0 | AN24: 0 | AO24: 0 | AP24: 0 | AQ24: 0 | AR24: 0 | AS24: 0 | AT24: 0 | AU24: =AT24*(1+Q24) -> 0 | AV24: 0 | AW24: 0 | AX24: 0 | AY24: 0 | AZ24: 0 | BA24: 0 | BB24: 0 | BC24: 0 | BD24: 0 | BE24: 0 | BF24: 0 | BG24: 0 | BH24: 0 | BI24: 0 | BJ24: 0 | BK24: 0 | BL24: 0 | BM24: 0 | BN24: 0 | BO24: 0 | BP24: 0 | BQ24: 0 | BR24: 0 | BS24: 0 | BT24: 0 | BU24: 0 | BV24: 0 | BW24: 0

Sheet A3 - Demanda Anual Agregada
B2: Demanda Anual e Diária Agregada
B3: Demanda anual | I3: =1200000/365 -> 3287.671233
B4: UGC | C4: Ano
C5: 1 | D5: 2 | E5: 3 | F5: 4 | G5: 5 | H5: 6 | I5: 7 | J5: 8 | K5: 9 | L5: 10 | M5: 11 | N5: 12 | O5: 13 | P5: 14 | Q5: 15 | R5: 16 | S5: 17 | T5: 18 | U5: 19 | V5: 20 | W5: 21 | X5: 22 | Y5: 23 | Z5: 24 | AA5: 25 | AB5: 26 | AC5: 27 | AD5: 28 | AE5: 29 | AF5: 30
B6: ='A2 - Preços'!B5 -> Ingresso | C6: ='A1 - Serviços e demanda'!B71 -> 551987 | D6: ='A1 - Serviços e demanda'!C71 -> 1142060 | E6: ='A1 - Serviços e demanda'!D71 -> 1181453 | F6: ='A1 - Serviços e demanda'!E71 -> 1219609 | G6: ='A1 - Serviços e demanda'!F71 -> 1258370 | H6: ='A1 - Serviços e demanda'!G71 -> 1297810 | I6: ='A1 - Serviços e demanda'!H71 -> 1338363 | J6: ='A1 - Serviços e demanda'!I71 -> 1380098 | K6: ='A1 - Serviços e demanda'!J71 -> 1422594 | L6: ='A1 - Serviços e demanda'!K71 -> 1465883 | M6: ='A1 - Serviços e demanda'!L71 -> 1510525 | N6: ='A1 - Serviços e demanda'!M71 -> 1556504 | O6: ='A1 - Serviços e demanda'!N71 -> 1603951 | P6: ='A1 - Serviços e demanda'!O71 -> 1652833 | Q6: ='A1 - Serviços e demanda'!P71 -> 1703182 | R6: ='A1 - Serviços e demanda'!Q71 -> 1754913 | S6: ='A1 - Serviços e demanda'!R71 -> 1807961 | T6: ='A1 - Serviços e demanda'!S71 -> 1862138 | U6: ='A1 - Serviços e demanda'!T71 -> 1917307 | V6: ='A1 - Serviços e demanda'!U71 -> 1973211 | W6: ='A1 - Serviços e demanda'!V71 -> 1973211 | X6: ='A1 - Serviços e demanda'!W71 -> 1973211 | Y6: ='A1 - Serviços e demanda'!X71 -> 1973211 | Z6: ='A1 - Serviços e demanda'!Y71 -> 1973211 | AA6: ='A1 - Serviços e demanda'!Z71 -> 1973211 | AB6: ='A1 - Serviços e demanda'!AA71 -> 1973211 | AC6: ='A1 - Serviços e demanda'!AB71 -> 1973211 | AD6: ='A1 - Serviços e demanda'!AC71 -> 1973211 | AE6: ='A1 - Serviços e demanda'!AD71 -> 1973211 | AF6: ='A1 - Serviços e demanda'!AE71 -> 1973211
B7: ='A2 - Preços'!B6 -> Preá - Alimentação | C7: ='A1 - Serviços e demanda'!B72 -> 0 | D7: ='A1 - Serviços e demanda'!C72 -> 91365 | E7: ='A1 - Serviços e demanda'!D72 -> 94516 | F7: ='A1 - Serviços e demanda'!E72 -> 97569 | G7: ='A1 - Serviços e demanda'!F72 -> 100670 | H7: ='A1 - Serviços e demanda'!G72 -> 103825 | I7: ='A1 - Serviços e demanda'!H72 -> 107069 | J7: ='A1 - Serviços e demanda'!I72 -> 110408 | K7: ='A1 - Serviços e demanda'!J72 -> 113808 | L7: ='A1 - Serviços e demanda'!K72 -> 117271 | M7: ='A1 - Serviços e demanda'!L72 -> 120842 | N7: ='A1 - Serviços e demanda'!M72 -> 124520 | O7: ='A1 - Serviços e demanda'!N72 -> 128316 | P7: ='A1 - Serviços e demanda'!O72 -> 132227 | Q7: ='A1 - Serviços e demanda'!P72 -> 136255 | R7: ='A1 - Serviços e demanda'!Q72 -> 140393 | S7: ='A1 - Serviços e demanda'!R72 -> 144637 | T7: ='A1 - Serviços e demanda'!S72 -> 148971 | U7: ='A1 - Serviços e demanda'!T72 -> 153385 | V7: ='A1 - Serviços e demanda'!U72 -> 157857 | W7: ='A1 - Serviços e demanda'!V72 -> 157857 | X7: ='A1 - Serviços e demanda'!W72 -> 157857 | Y7: ='A1 - Serviços e demanda'!X72 -> 157857 | Z7: ='A1 - Serviços e demanda'!Y72 -> 157857 | AA7: ='A1 - Serviços e demanda'!Z72 -> 157857 | AB7: ='A1 - Serviços e demanda'!AA72 -> 157857 | AC7: ='A1 - Serviços e demanda'!AB72 -> 157857 | AD7: ='A1 - Serviços e demanda'!AC72 -> 157857 | AE7: ='A1 - Serviços e demanda'!AD72 -> 157857 | AF7: ='A1 - Serviços e demanda'!AE72 -> 157857
B8: ='A2 - Preços'!B7 -> Preá - Comércio | C8: ='A1 - Serviços e demanda'!B73 -> 0 | D8: ='A1 - Serviços e demanda'!C73 -> 15227 | E8: ='A1 - Serviços e demanda'!D73 -> 15753 | F8: ='A1 - Serviços e demanda'!E73 -> 16261 | G8: ='A1 - Serviços e demanda'!F73 -> 16778 | H8: ='A1 - Serviços e demanda'!G73 -> 17304 | I8: ='A1 - Serviços e demanda'!H73 -> 17845 | J8: ='A1 - Serviços e demanda'!I73 -> 18401 | K8: ='A1 - Serviços e demanda'!J73 -> 18968 | L8: ='A1 - Serviços e demanda'!K73 -> 19545 | M8: ='A1 - Serviços e demanda'!L73 -> 20140 | N8: ='A1 - Serviços e demanda'!M73 -> 20753 | O8: ='A1 - Serviços e demanda'!N73 -> 21386 | P8: ='A1 - Serviços e demanda'!O73 -> 22038 | Q8: ='A1 - Serviços e demanda'!P73 -> 22709 | R8: ='A1 - Serviços e demanda'!Q73 -> 23399 | S8: ='A1 - Serviços e demanda'!R73 -> 24106 | T8: ='A1 - Serviços e demanda'!S73 -> 24829 | U8: ='A1 - Serviços e demanda'!T73 -> 25564 | V8: ='A1 - Serviços e demanda'!U73 -> 26309 | W8: ='A1 - Serviços e demanda'!V73 -> 26309 | X8: ='A1 - Serviços e demanda'!W73 -> 26309 | Y8: ='A1 - Serviços e demanda'!X73 -> 26309 | Z8: ='A1 - Serviços e demanda'!Y73 -> 26309 | AA8: ='A1 - Serviços e demanda'!Z73 -> 26309 | AB8: ='A1 - Serviços e demanda'!AA73 -> 26309 | AC8: ='A1 - Serviços e demanda'!AB73 -> 26309 | AD8: ='A1 - Serviços e demanda'!AC73 -> 26309 | AE8: ='A1 - Serviços e demanda'!AD73 -> 26309 | AF8: ='A1 - Serviços e demanda'!AE73 -> 26309
B9: ='A2 - Preços'!B8 -> Preá - Estacionamento | C9: ='A1 - Serviços e demanda'!B74 -> 0 | D9: ='A1 - Serviços e demanda'!C74 -> 22841 | E9: ='A1 - Serviços e demanda'!D74 -> 23629 | F9: ='A1 - Serviços e demanda'!E74 -> 24392 | G9: ='A1 - Serviços e demanda'!F74 -> 25167 | H9: ='A1 - Serviços e demanda'!G74 -> 25956 | I9: ='A1 - Serviços e demanda'!H74 -> 26767 | J9: ='A1 - Serviços e demanda'!I74 -> 27602 | K9: ='A1 - Serviços e demanda'!J74 -> 28452 | L9: ='A1 - Serviços e demanda'!K74 -> 29318 | M9: ='A1 - Serviços e demanda'!L74 -> 30211 | N9: ='A1 - Serviços e demanda'!M74 -> 31130 | O9: ='A1 - Serviços e demanda'!N74 -> 32079 | P9: ='A1 - Serviços e demanda'!O74 -> 33057 | Q9: ='A1 - Serviços e demanda'!P74 -> 34064 | R9: ='A1 - Serviços e demanda'!Q74 -> 35098 | S9: ='A1 - Serviços e demanda'!R74 -> 36159 | T9: ='A1 - Serviços e demanda'!S74 -> 37243 | U9: ='A1 - Serviços e demanda'!T74 -> 38346 | V9: ='A1 - Serviços e demanda'!U74 -> 39464 | W9: ='A1 - Serviços e demanda'!V74 -> 39464 | X9: ='A1 - Serviços e demanda'!W74 -> 39464 | Y9: ='A1 - Serviços e demanda'!X74 -> 39464 | Z9: ='A1 - Serviços e demanda'!Y74 -> 39464 | AA9: ='A1 - Serviços e demanda'!Z74 -> 39464 | AB9: ='A1 - Serviços e demanda'!AA74 -> 39464 | AC9: ='A1 - Serviços e demanda'!AB74 -> 39464 | AD9: ='A1 - Serviços e demanda'!AC74 -> 39464 | AE9: ='A1 - Serviços e demanda'!AD74 -> 39464 | AF9: ='A1 - Serviços e demanda'!AE74 -> 39464
B10: ='A2 - Preços'!B9 -> Árvore da Preguiça - Alimentação | C10: ='A1 - Serviços e demanda'!B75 -> 0 | D10: ='A1 - Serviços e demanda'!C75 -> 91365 | E10: ='A1 - Serviços e demanda'!D75 -> 94516 | F10: ='A1 - Serviços e demanda'!E75 -> 97569 | G10: ='A1 - Serviços e demanda'!F75 -> 100670 | H10: ='A1 - Serviços e demanda'!G75 -> 103825 | I10: ='A1 - Serviços e demanda'!H75 -> 107069 | J10: ='A1 - Serviços e demanda'!I75 -> 110408 | K10: ='A1 - Serviços e demanda'!J75 -> 113808 | L10: ='A1 - Serviços e demanda'!K75 -> 117271 | M10: ='A1 - Serviços e demanda'!L75 -> 120842 | N10: ='A1 - Serviços e demanda'!M75 -> 124520 | O10: ='A1 - Serviços e demanda'!N75 -> 128316 | P10: ='A1 - Serviços e demanda'!O75 -> 132227 | Q10: ='A1 - Serviços e demanda'!P75 -> 136255 | R10: ='A1 - Serviços e demanda'!Q75 -> 140393 | S10: ='A1 - Serviços e demanda'!R75 -> 144637 | T10: ='A1 - Serviços e demanda'!S75 -> 148971 | U10: ='A1 - Serviços e demanda'!T75 -> 153385 | V10: ='A1 - Serviços e demanda'!U75 -> 157857 | W10: ='A1 - Serviços e demanda'!V75 -> 157857 | X10: ='A1 - Serviços e demanda'!W75 -> 157857 | Y10: ='A1 - Serviços e demanda'!X75 -> 157857 | Z10: ='A1 - Serviços e demanda'!Y75 -> 157857 | AA10: ='A1 - Serviços e demanda'!Z75 -> 157857 | AB10: ='A1 - Serviços e demanda'!AA75 -> 157857 | AC10: ='A1 - Serviços e demanda'!AB75 -> 157857 | AD10: ='A1 - Serviços e demanda'!AC75 -> 157857 | AE10: ='A1 - Serviços e demanda'!AD75 -> 157857 | AF10: ='A1 - Serviços e demanda'!AE75 -> 157857
B11: ='A2 - Preços'!B10 -> Árvore da Preguiça - Comércio | C11: ='A1 - Serviços e demanda'!B76 -> 0 | D11: ='A1 - Serviços e demanda'!C76 -> 15227 | E11: ='A1 - Serviços e demanda'!D76 -> 15753 | F11: ='A1 - Serviços e demanda'!E76 -> 16261 | G11: ='A1 - Serviços e demanda'!F76 -> 16778 | H11: ='A1 - Serviços e demanda'!G76 -> 17304 | I11: ='A1 - Serviços e demanda'!H76 -> 17845 | J11: ='A1 - Serviços e demanda'!I76 -> 18401 | K11: ='A1 - Serviços e demanda'!J76 -> 18968 | L11: ='A1 - Serviços e demanda'!K76 -> 19545 | M11: ='A1 - Serviços e demanda'!L76 -> 20140 | N11: ='A1 - Serviços e demanda'!M76 -> 20753 | O11: ='A1 - Serviços e demanda'!N76 -> 21386 | P11: ='A1 - Serviços e demanda'!O76 -> 22038 | Q11: ='A1 - Serviços e demanda'!P76 -> 22709 | R11: ='A1 - Serviços e demanda'!Q76 -> 23399 | S11: ='A1 - Serviços e demanda'!R76 -> 24106 | T11: ='A1 - Serviços e demanda'!S76 -> 24829 | U11: ='A1 - Serviços e demanda'!T76 -> 25564 | V11: ='A1 - Serviços e demanda'!U76 -> 26309 | W11: ='A1 - Serviços e demanda'!V76 -> 26309 | X11: ='A1 - Serviços e demanda'!W76 -> 26309 | Y11: ='A1 - Serviços e demanda'!X76 -> 26309 | Z11: ='A1 - Serviços e demanda'!Y76 -> 26309 | AA11: ='A1 - Serviços e demanda'!Z76 -> 26309 | AB11: ='A1 - Serviços e demanda'!AA76 -> 26309 | AC11: ='A1 - Serviços e demanda'!AB76 -> 26309 | AD11: ='A1 - Serviços e demanda'!AC76 -> 26309 | AE11: ='A1 - Serviços e demanda'!AD76 -> 26309 | AF11: ='A1 - Serviços e demanda'!AE76 -> 26309
B12: ='A2 - Preços'!B11 -> Silveira - Alimentação | C12: ='A1 - Serviços e demanda'!B77 -> 0 | D12: ='A1 - Serviços e demanda'!C77 -> 91365 | E12: ='A1 - Serviços e demanda'!D77 -> 94516 | F12: ='A1 - Serviços e demanda'!E77 -> 97569 | G12: ='A1 - Serviços e demanda'!F77 -> 100670 | H12: ='A1 - Serviços e demanda'!G77 -> 103825 | I12: ='A1 - Serviços e demanda'!H77 -> 107069 | J12: ='A1 - Serviços e demanda'!I77 -> 110408 | K12: ='A1 - Serviços e demanda'!J77 -> 113808 | L12: ='A1 - Serviços e demanda'!K77 -> 117271 | M12: ='A1 - Serviços e demanda'!L77 -> 120842 | N12: ='A1 - Serviços e demanda'!M77 -> 124520 | O12: ='A1 - Serviços e demanda'!N77 -> 128316 | P12: ='A1 - Serviços e demanda'!O77 -> 132227 | Q12: ='A1 - Serviços e demanda'!P77 -> 136255 | R12: ='A1 - Serviços e demanda'!Q77 -> 140393 | S12: ='A1 - Serviços e demanda'!R77 -> 144637 | T12: ='A1 - Serviços e demanda'!S77 -> 148971 | U12: ='A1 - Serviços e demanda'!T77 -> 153385 | V12: ='A1 - Serviços e demanda'!U77 -> 157857 | W12: ='A1 - Serviços e demanda'!V77 -> 157857 | X12: ='A1 - Serviços e demanda'!W77 -> 157857 | Y12: ='A1 - Serviços e demanda'!X77 -> 157857 | Z12: ='A1 - Serviços e demanda'!Y77 -> 157857 | AA12: ='A1 - Serviços e demanda'!Z77 -> 157857 | AB12: ='A1 - Serviços e demanda'!AA77 -> 157857 | AC12: ='A1 - Serviços e demanda'!AB77 -> 157857 | AD12: ='A1 - Serviços e demanda'!AC77 -> 157857 | AE12: ='A1 - Serviços e demanda'!AD77 -> 157857 | AF12: ='A1 - Serviços e demanda'!AE77 -> 157857
B13: ='A2 - Preços'!B12 -> Silveira - Comércio + Locação + Atividades | C13: ='A1 - Serviços e demanda'!B78 -> 0 | D13: ='A1 - Serviços e demanda'!C78 -> 15227 | E13: ='A1 - Serviços e demanda'!D78 -> 15753 | F13: ='A1 - Serviços e demanda'!E78 -> 16261 | G13: ='A1 - Serviços e demanda'!F78 -> 16778 | H13: ='A1 - Serviços e demanda'!G78 -> 17304 | I13: ='A1 - Serviços e demanda'!H78 -> 17845 | J13: ='A1 - Serviços e demanda'!I78 -> 18401 | K13: ='A1 - Serviços e demanda'!J78 -> 18968 | L13: ='A1 - Serviços e demanda'!K78 -> 19545 | M13: ='A1 - Serviços e demanda'!L78 -> 20140 | N13: ='A1 - Serviços e demanda'!M78 -> 20753 | O13: ='A1 - Serviços e demanda'!N78 -> 21386 | P13: ='A1 - Serviços e demanda'!O78 -> 22038 | Q13: ='A1 - Serviços e demanda'!P78 -> 22709 | R13: ='A1 - Serviços e demanda'!Q78 -> 23399 | S13: ='A1 - Serviços e demanda'!R78 -> 24106 | T13: ='A1 - Serviços e demanda'!S78 -> 24829 | U13: ='A1 - Serviços e demanda'!T78 -> 25564 | V13: ='A1 - Serviços e demanda'!U78 -> 26309 | W13: ='A1 - Serviços e demanda'!V78 -> 26309 | X13: ='A1 - Serviços e demanda'!W78 -> 26309 | Y13: ='A1 - Serviços e demanda'!X78 -> 26309 | Z13: ='A1 - Serviços e demanda'!Y78 -> 26309 | AA13: ='A1 - Serviços e demanda'!Z78 -> 26309 | AB13: ='A1 - Serviços e demanda'!AA78 -> 26309 | AC13: ='A1 - Serviços e demanda'!AB78 -> 26309 | AD13: ='A1 - Serviços e demanda'!AC78 -> 26309 | AE13: ='A1 - Serviços e demanda'!AD78 -> 26309 | AF13: ='A1 - Serviços e demanda'!AE78 -> 26309
B14: ='A2 - Preços'!B13 -> Silveira - Hospedagem | C14: ='A1 - Serviços e demanda'!B79 -> 0 | D14: ='A1 - Serviços e demanda'!C79 -> 11421 | E14: ='A1 - Serviços e demanda'!D79 -> 11815 | F14: ='A1 - Serviços e demanda'!E79 -> 12196 | G14: ='A1 - Serviços e demanda'!F79 -> 12584 | H14: ='A1 - Serviços e demanda'!G79 -> 12978 | I14: ='A1 - Serviços e demanda'!H79 -> 13384 | J14: ='A1 - Serviços e demanda'!I79 -> 13801 | K14: ='A1 - Serviços e demanda'!J79 -> 14226 | L14: ='A1 - Serviços e demanda'!K79 -> 14659 | M14: ='A1 - Serviços e demanda'!L79 -> 15105 | N14: ='A1 - Serviços e demanda'!M79 -> 15565 | O14: ='A1 - Serviços e demanda'!N79 -> 16040 | P14: ='A1 - Serviços e demanda'!O79 -> 16528 | Q14: ='A1 - Serviços e demanda'!P79 -> 17032 | R14: ='A1 - Serviços e demanda'!Q79 -> 17549 | S14: ='A1 - Serviços e demanda'!R79 -> 18080 | T14: ='A1 - Serviços e demanda'!S79 -> 18621 | U14: ='A1 - Serviços e demanda'!T79 -> 19173 | V14: ='A1 - Serviços e demanda'!U79 -> 19732 | W14: ='A1 - Serviços e demanda'!V79 -> 19732 | X14: ='A1 - Serviços e demanda'!W79 -> 19732 | Y14: ='A1 - Serviços e demanda'!X79 -> 19732 | Z14: ='A1 - Serviços e demanda'!Y79 -> 19732 | AA14: ='A1 - Serviços e demanda'!Z79 -> 19732 | AB14: ='A1 - Serviços e demanda'!AA79 -> 19732 | AC14: ='A1 - Serviços e demanda'!AB79 -> 19732 | AD14: ='A1 - Serviços e demanda'!AC79 -> 19732 | AE14: ='A1 - Serviços e demanda'!AD79 -> 19732 | AF14: ='A1 - Serviços e demanda'!AE79 -> 19732
B15: ='A2 - Preços'!B14 -> Pedra Furada - Alimentação | C15: ='A1 - Serviços e demanda'!B80 -> 0 | D15: ='A1 - Serviços e demanda'!C80 -> 91365 | E15: ='A1 - Serviços e demanda'!D80 -> 94516 | F15: ='A1 - Serviços e demanda'!E80 -> 97569 | G15: ='A1 - Serviços e demanda'!F80 -> 100670 | H15: ='A1 - Serviços e demanda'!G80 -> 103825 | I15: ='A1 - Serviços e demanda'!H80 -> 107069 | J15: ='A1 - Serviços e demanda'!I80 -> 110408 | K15: ='A1 - Serviços e demanda'!J80 -> 113808 | L15: ='A1 - Serviços e demanda'!K80 -> 117271 | M15: ='A1 - Serviços e demanda'!L80 -> 120842 | N15: ='A1 - Serviços e demanda'!M80 -> 124520 | O15: ='A1 - Serviços e demanda'!N80 -> 128316 | P15: ='A1 - Serviços e demanda'!O80 -> 132227 | Q15: ='A1 - Serviços e demanda'!P80 -> 136255 | R15: ='A1 - Serviços e demanda'!Q80 -> 140393 | S15: ='A1 - Serviços e demanda'!R80 -> 144637 | T15: ='A1 - Serviços e demanda'!S80 -> 148971 | U15: ='A1 - Serviços e demanda'!T80 -> 153385 | V15: ='A1 - Serviços e demanda'!U80 -> 157857 | W15: ='A1 - Serviços e demanda'!V80 -> 157857 | X15: ='A1 - Serviços e demanda'!W80 -> 157857 | Y15: ='A1 - Serviços e demanda'!X80 -> 157857 | Z15: ='A1 - Serviços e demanda'!Y80 -> 157857 | AA15: ='A1 - Serviços e demanda'!Z80 -> 157857 | AB15: ='A1 - Serviços e demanda'!AA80 -> 157857 | AC15: ='A1 - Serviços e demanda'!AB80 -> 157857 | AD15: ='A1 - Serviços e demanda'!AC80 -> 157857 | AE15: ='A1 - Serviços e demanda'!AD80 -> 157857 | AF15: ='A1 - Serviços e demanda'!AE80 -> 157857
B16: ='A2 - Preços'!B15 -> Pedra Furada - Comércio | C16: ='A1 - Serviços e demanda'!B81 -> 0 | D16: ='A1 - Serviços e demanda'!C81 -> 15227 | E16: ='A1 - Serviços e demanda'!D81 -> 15753 | F16: ='A1 - Serviços e demanda'!E81 -> 16261 | G16: ='A1 - Serviços e demanda'!F81 -> 16778 | H16: ='A1 - Serviços e demanda'!G81 -> 17304 | I16: ='A1 - Serviços e demanda'!H81 -> 17845 | J16: ='A1 - Serviços e demanda'!I81 -> 18401 | K16: ='A1 - Serviços e demanda'!J81 -> 18968 | L16: ='A1 - Serviços e demanda'!K81 -> 19545 | M16: ='A1 - Serviços e demanda'!L81 -> 20140 | N16: ='A1 - Serviços e demanda'!M81 -> 20753 | O16: ='A1 - Serviços e demanda'!N81 -> 21386 | P16: ='A1 - Serviços e demanda'!O81 -> 22038 | Q16: ='A1 - Serviços e demanda'!P81 -> 22709 | R16: ='A1 - Serviços e demanda'!Q81 -> 23399 | S16: ='A1 - Serviços e demanda'!R81 -> 24106 | T16: ='A1 - Serviços e demanda'!S81 -> 24829 | U16: ='A1 - Serviços e demanda'!T81 -> 25564 | V16: ='A1 - Serviços e demanda'!U81 -> 26309 | W16: ='A1 - Serviços e demanda'!V81 -> 26309 | X16: ='A1 - Serviços e demanda'!W81 -> 26309 | Y16: ='A1 - Serviços e demanda'!X81 -> 26309 | Z16: ='A1 - Serviços e demanda'!Y81 -> 26309 | AA16: ='A1 - Serviços e demanda'!Z81 -> 26309 | AB16: ='A1 - Serviços e demanda'!AA81 -> 26309 | AC16: ='A1 - Serviços e demanda'!AB81 -> 26309 | AD16: ='A1 - Serviços e demanda'!AC81 -> 26309 | AE16: ='A1 - Serviços e demanda'!AD81 -> 26309 | AF16: ='A1 - Serviços e demanda'!AE81 -> 26309
B17: ='A2 - Preços'!B16 -> Serrote - Alimentação | C17: ='A1 - Serviços e demanda'!B82 -> 0 | D17: ='A1 - Serviços e demanda'!C82 -> 91365 | E17: ='A1 - Serviços e demanda'!D82 -> 94516 | F17: ='A1 - Serviços e demanda'!E82 -> 97569 | G17: ='A1 - Serviços e demanda'!F82 -> 100670 | H17: ='A1 - Serviços e demanda'!G82 -> 103825 | I17: ='A1 - Serviços e demanda'!H82 -> 107069 | J17: ='A1 - Serviços e demanda'!I82 -> 110408 | K17: ='A1 - Serviços e demanda'!J82 -> 113808 | L17: ='A1 - Serviços e demanda'!K82 -> 117271 | M17: ='A1 - Serviços e demanda'!L82 -> 120842 | N17: ='A1 - Serviços e demanda'!M82 -> 124520 | O17: ='A1 - Serviços e demanda'!N82 -> 128316 | P17: ='A1 - Serviços e demanda'!O82 -> 132227 | Q17: ='A1 - Serviços e demanda'!P82 -> 136255 | R17: ='A1 - Serviços e demanda'!Q82 -> 140393 | S17: ='A1 - Serviços e demanda'!R82 -> 144637 | T17: ='A1 - Serviços e demanda'!S82 -> 148971 | U17: ='A1 - Serviços e demanda'!T82 -> 153385 | V17: ='A1 - Serviços e demanda'!U82 -> 157857 | W17: ='A1 - Serviços e demanda'!V82 -> 157857 | X17: ='A1 - Serviços e demanda'!W82 -> 157857 | Y17: ='A1 - Serviços e demanda'!X82 -> 157857 | Z17: ='A1 - Serviços e demanda'!Y82 -> 157857 | AA17: ='A1 - Serviços e demanda'!Z82 -> 157857 | AB17: ='A1 - Serviços e demanda'!AA82 -> 157857 | AC17: ='A1 - Serviços e demanda'!AB82 -> 157857 | AD17: ='A1 - Serviços e demanda'!AC82 -> 157857 | AE17: ='A1 - Serviços e demanda'!AD82 -> 157857 | AF17: ='A1 - Serviços e demanda'!AE82 -> 157857
B18: ='A2 - Preços'!B17 -> Serrote - Comércio | C18: ='A1 - Serviços e demanda'!B83 -> 0 | D18: ='A1 - Serviços e demanda'!C83 -> 15227 | E18: ='A1 - Serviços e demanda'!D83 -> 15753 | F18: ='A1 - Serviços e demanda'!E83 -> 16261 | G18: ='A1 - Serviços e demanda'!F83 -> 16778 | H18: ='A1 - Serviços e demanda'!G83 -> 17304 | I18: ='A1 - Serviços e demanda'!H83 -> 17845 | J18: ='A1 - Serviços e demanda'!I83 -> 18401 | K18: ='A1 - Serviços e demanda'!J83 -> 18968 | L18: ='A1 - Serviços e demanda'!K83 -> 19545 | M18: ='A1 - Serviços e demanda'!L83 -> 20140 | N18: ='A1 - Serviços e demanda'!M83 -> 20753 | O18: ='A1 - Serviços e demanda'!N83 -> 21386 | P18: ='A1 - Serviços e demanda'!O83 -> 22038 | Q18: ='A1 - Serviços e demanda'!P83 -> 22709 | R18: ='A1 - Serviços e demanda'!Q83 -> 23399 | S18: ='A1 - Serviços e demanda'!R83 -> 24106 | T18: ='A1 - Serviços e demanda'!S83 -> 24829 | U18: ='A1 - Serviços e demanda'!T83 -> 25564 | V18: ='A1 - Serviços e demanda'!U83 -> 26309 | W18: ='A1 - Serviços e demanda'!V83 -> 26309 | X18: ='A1 - Serviços e demanda'!W83 -> 26309 | Y18: ='A1 - Serviços e demanda'!X83 -> 26309 | Z18: ='A1 - Serviços e demanda'!Y83 -> 26309 | AA18: ='A1 - Serviços e demanda'!Z83 -> 26309 | AB18: ='A1 - Serviços e demanda'!AA83 -> 26309 | AC18: ='A1 - Serviços e demanda'!AB83 -> 26309 | AD18: ='A1 - Serviços e demanda'!AC83 -> 26309 | AE18: ='A1 - Serviços e demanda'!AD83 -> 26309 | AF18: ='A1 - Serviços e demanda'!AE83 -> 26309
B19: ='A2 - Preços'!B18 -> Paraíso - Alimentação | C19: ='A1 - Serviços e demanda'!B84 -> 0 | D19: ='A1 - Serviços e demanda'!C84 -> 91365 | E19: ='A1 - Serviços e demanda'!D84 -> 94516 | F19: ='A1 - Serviços e demanda'!E84 -> 97569 | G19: ='A1 - Serviços e demanda'!F84 -> 100670 | H19: ='A1 - Serviços e demanda'!G84 -> 103825 | I19: ='A1 - Serviços e demanda'!H84 -> 107069 | J19: ='A1 - Serviços e demanda'!I84 -> 110408 | K19: ='A1 - Serviços e demanda'!J84 -> 113808 | L19: ='A1 - Serviços e demanda'!K84 -> 117271 | M19: ='A1 - Serviços e demanda'!L84 -> 120842 | N19: ='A1 - Serviços e demanda'!M84 -> 124520 | O19: ='A1 - Serviços e demanda'!N84 -> 128316 | P19: ='A1 - Serviços e demanda'!O84 -> 132227 | Q19: ='A1 - Serviços e demanda'!P84 -> 136255 | R19: ='A1 - Serviços e demanda'!Q84 -> 140393 | S19: ='A1 - Serviços e demanda'!R84 -> 144637 | T19: ='A1 - Serviços e demanda'!S84 -> 148971 | U19: ='A1 - Serviços e demanda'!T84 -> 153385 | V19: ='A1 - Serviços e demanda'!U84 -> 157857 | W19: ='A1 - Serviços e demanda'!V84 -> 157857 | X19: ='A1 - Serviços e demanda'!W84 -> 157857 | Y19: ='A1 - Serviços e demanda'!X84 -> 157857 | Z19: ='A1 - Serviços e demanda'!Y84 -> 157857 | AA19: ='A1 - Serviços e demanda'!Z84 -> 157857 | AB19: ='A1 - Serviços e demanda'!AA84 -> 157857 | AC19: ='A1 - Serviços e demanda'!AB84 -> 157857 | AD19: ='A1 - Serviços e demanda'!AC84 -> 157857 | AE19: ='A1 - Serviços e demanda'!AD84 -> 157857 | AF19: ='A1 - Serviços e demanda'!AE84 -> 157857
B20: ='A2 - Preços'!B19 -> Paraíso - Comércio + Locação + Atividades | C20: ='A1 - Serviços e demanda'!B85 -> 0 | D20: ='A1 - Serviços e demanda'!C85 -> 15227 | E20: ='A1 - Serviços e demanda'!D85 -> 15753 | F20: ='A1 - Serviços e demanda'!E85 -> 16261 | G20: ='A1 - Serviços e demanda'!F85 -> 16778 | H20: ='A1 - Serviços e demanda'!G85 -> 17304 | I20: ='A1 - Serviços e demanda'!H85 -> 17845 | J20: ='A1 - Serviços e demanda'!I85 -> 18401 | K20: ='A1 - Serviços e demanda'!J85 -> 18968 | L20: ='A1 - Serviços e demanda'!K85 -> 19545 | M20: ='A1 - Serviços e demanda'!L85 -> 20140 | N20: ='A1 - Serviços e demanda'!M85 -> 20753 | O20: ='A1 - Serviços e demanda'!N85 -> 21386 | P20: ='A1 - Serviços e demanda'!O85 -> 22038 | Q20: ='A1 - Serviços e demanda'!P85 -> 22709 | R20: ='A1 - Serviços e demanda'!Q85 -> 23399 | S20: ='A1 - Serviços e demanda'!R85 -> 24106 | T20: ='A1 - Serviços e demanda'!S85 -> 24829 | U20: ='A1 - Serviços e demanda'!T85 -> 25564 | V20: ='A1 - Serviços e demanda'!U85 -> 26309 | W20: ='A1 - Serviços e demanda'!V85 -> 26309 | X20: ='A1 - Serviços e demanda'!W85 -> 26309 | Y20: ='A1 - Serviços e demanda'!X85 -> 26309 | Z20: ='A1 - Serviços e demanda'!Y85 -> 26309 | AA20: ='A1 - Serviços e demanda'!Z85 -> 26309 | AB20: ='A1 - Serviços e demanda'!AA85 -> 26309 | AC20: ='A1 - Serviços e demanda'!AB85 -> 26309 | AD20: ='A1 - Serviços e demanda'!AC85 -> 26309 | AE20: ='A1 - Serviços e demanda'!AD85 -> 26309 | AF20: ='A1 - Serviços e demanda'!AE85 -> 26309
B21: ='A2 - Preços'!B20 -> Geral - Unidade móvel - Alimentação | C21: ='A1 - Serviços e demanda'!B86 -> 0 | D21: ='A1 - Serviços e demanda'!C86 -> 22841 | E21: ='A1 - Serviços e demanda'!D86 -> 23629 | F21: ='A1 - Serviços e demanda'!E86 -> 24392 | G21: ='A1 - Serviços e demanda'!F86 -> 25167 | H21: ='A1 - Serviços e demanda'!G86 -> 25956 | I21: ='A1 - Serviços e demanda'!H86 -> 26767 | J21: ='A1 - Serviços e demanda'!I86 -> 27602 | K21: ='A1 - Serviços e demanda'!J86 -> 28452 | L21: ='A1 - Serviços e demanda'!K86 -> 29318 | M21: ='A1 - Serviços e demanda'!L86 -> 30211 | N21: ='A1 - Serviços e demanda'!M86 -> 31130 | O21: ='A1 - Serviços e demanda'!N86 -> 32079 | P21: ='A1 - Serviços e demanda'!O86 -> 33057 | Q21: ='A1 - Serviços e demanda'!P86 -> 34064 | R21: ='A1 - Serviços e demanda'!Q86 -> 35098 | S21: ='A1 - Serviços e demanda'!R86 -> 36159 | T21: ='A1 - Serviços e demanda'!S86 -> 37243 | U21: ='A1 - Serviços e demanda'!T86 -> 38346 | V21: ='A1 - Serviços e demanda'!U86 -> 39464 | W21: ='A1 - Serviços e demanda'!V86 -> 39464 | X21: ='A1 - Serviços e demanda'!W86 -> 39464 | Y21: ='A1 - Serviços e demanda'!X86 -> 39464 | Z21: ='A1 - Serviços e demanda'!Y86 -> 39464 | AA21: ='A1 - Serviços e demanda'!Z86 -> 39464 | AB21: ='A1 - Serviços e demanda'!AA86 -> 39464 | AC21: ='A1 - Serviços e demanda'!AB86 -> 39464 | AD21: ='A1 - Serviços e demanda'!AC86 -> 39464 | AE21: ='A1 - Serviços e demanda'!AD86 -> 39464 | AF21: ='A1 - Serviços e demanda'!AE86 -> 39464
B22: ='A2 - Preços'!B21 -> Mangue Seco - Estacionamento | C22: ='A1 - Serviços e demanda'!B87 -> 0 | D22: ='A1 - Serviços e demanda'!C87 -> 2855 | E22: ='A1 - Serviços e demanda'!D87 -> 2954 | F22: ='A1 - Serviços e demanda'!E87 -> 3049 | G22: ='A1 - Serviços e demanda'!F87 -> 3146 | H22: ='A1 - Serviços e demanda'!G87 -> 3245 | I22: ='A1 - Serviços e demanda'!H87 -> 3346 | J22: ='A1 - Serviços e demanda'!I87 -> 3450 | K22: ='A1 - Serviços e demanda'!J87 -> 3556 | L22: ='A1 - Serviços e demanda'!K87 -> 3665 | M22: ='A1 - Serviços e demanda'!L87 -> 3776 | N22: ='A1 - Serviços e demanda'!M87 -> 3891 | O22: ='A1 - Serviços e demanda'!N87 -> 4010 | P22: ='A1 - Serviços e demanda'!O87 -> 4132 | Q22: ='A1 - Serviços e demanda'!P87 -> 4258 | R22: ='A1 - Serviços e demanda'!Q87 -> 4387 | S22: ='A1 - Serviços e demanda'!R87 -> 4520 | T22: ='A1 - Serviços e demanda'!S87 -> 4655 | U22: ='A1 - Serviços e demanda'!T87 -> 4793 | V22: ='A1 - Serviços e demanda'!U87 -> 4933 | W22: ='A1 - Serviços e demanda'!V87 -> 4933 | X22: ='A1 - Serviços e demanda'!W87 -> 4933 | Y22: ='A1 - Serviços e demanda'!X87 -> 4933 | Z22: ='A1 - Serviços e demanda'!Y87 -> 4933 | AA22: ='A1 - Serviços e demanda'!Z87 -> 4933 | AB22: ='A1 - Serviços e demanda'!AA87 -> 4933 | AC22: ='A1 - Serviços e demanda'!AB87 -> 4933 | AD22: ='A1 - Serviços e demanda'!AC87 -> 4933 | AE22: ='A1 - Serviços e demanda'!AD87 -> 4933 | AF22: ='A1 - Serviços e demanda'!AE87 -> 4933
B23: ='A2 - Preços'!B22 -> Lagoa Grande - Estacionamento | C23: ='A1 - Serviços e demanda'!B88 -> 0 | D23: ='A1 - Serviços e demanda'!C88 -> 2855 | E23: ='A1 - Serviços e demanda'!D88 -> 2954 | F23: ='A1 - Serviços e demanda'!E88 -> 3049 | G23: ='A1 - Serviços e demanda'!F88 -> 3146 | H23: ='A1 - Serviços e demanda'!G88 -> 3245 | I23: ='A1 - Serviços e demanda'!H88 -> 3346 | J23: ='A1 - Serviços e demanda'!I88 -> 3450 | K23: ='A1 - Serviços e demanda'!J88 -> 3556 | L23: ='A1 - Serviços e demanda'!K88 -> 3665 | M23: ='A1 - Serviços e demanda'!L88 -> 3776 | N23: ='A1 - Serviços e demanda'!M88 -> 3891 | O23: ='A1 - Serviços e demanda'!N88 -> 4010 | P23: ='A1 - Serviços e demanda'!O88 -> 4132 | Q23: ='A1 - Serviços e demanda'!P88 -> 4258 | R23: ='A1 - Serviços e demanda'!Q88 -> 4387 | S23: ='A1 - Serviços e demanda'!R88 -> 4520 | T23: ='A1 - Serviços e demanda'!S88 -> 4655 | U23: ='A1 - Serviços e demanda'!T88 -> 4793 | V23: ='A1 - Serviços e demanda'!U88 -> 4933 | W23: ='A1 - Serviços e demanda'!V88 -> 4933 | X23: ='A1 - Serviços e demanda'!W88 -> 4933 | Y23: ='A1 - Serviços e demanda'!X88 -> 4933 | Z23: ='A1 - Serviços e demanda'!Y88 -> 4933 | AA23: ='A1 - Serviços e demanda'!Z88 -> 4933 | AB23: ='A1 - Serviços e demanda'!AA88 -> 4933 | AC23: ='A1 - Serviços e demanda'!AB88 -> 4933 | AD23: ='A1 - Serviços e demanda'!AC88 -> 4933 | AE23: ='A1 - Serviços e demanda'!AD88 -> 4933 | AF23: ='A1 - Serviços e demanda'!AE88 -> 4933
B24: ='A2 - Preços'!B23 ->  | C24: ='A1 - Serviços e demanda'!B89 -> 0 | D24: ='A1 - Serviços e demanda'!C89 -> 0 | E24: ='A1 - Serviços e demanda'!D89 -> 0 | F24: ='A1 - Serviços e demanda'!E89 -> 0 | G24: ='A1 - Serviços e demanda'!F89 -> 0 | H24: ='A1 - Serviços e demanda'!G89 -> 0 | I24: ='A1 - Serviços e demanda'!H89 -> 0 | J24: ='A1 - Serviços e demanda'!I89 -> 0 | K24: ='A1 - Serviços e demanda'!J89 -> 0 | L24: ='A1 - Serviços e demanda'!K89 -> 0 | M24: ='A1 - Serviços e demanda'!L89 -> 0 | N24: ='A1 - Serviços e demanda'!M89 -> 0 | O24: ='A1 - Serviços e demanda'!N89 -> 0 | P24: ='A1 - Serviços e demanda'!O89 -> 0 | Q24: ='A1 - Serviços e demanda'!P89 -> 0 | R24: ='A1 - Serviços e demanda'!Q89 -> 0 | S24: ='A1 - Serviços e demanda'!R89 -> 0 | T24: ='A1 - Serviços e demanda'!S89 -> 0 | U24: ='A1 - Serviços e demanda'!T89 -> 0 | V24: ='A1 - Serviços e demanda'!U89 -> 0 | W24: ='A1 - Serviços e demanda'!V89 -> 0 | X24: ='A1 - Serviços e demanda'!W89 -> 0 | Y24: ='A1 - Serviços e demanda'!X89 -> 0 | Z24: ='A1 - Serviços e demanda'!Y89 -> 0 | AA24: ='A1 - Serviços e demanda'!Z89 -> 0 | AB24: ='A1 - Serviços e demanda'!AA89 -> 0 | AC24: ='A1 - Serviços e demanda'!AB89 -> 0 | AD24: ='A1 - Serviços e demanda'!AC89 -> 0 | AE24: ='A1 - Serviços e demanda'!AD89 -> 0 | AF24: ='A1 - Serviços e demanda'!AE89 -> 0
B25: ='A2 - Preços'!B24 ->  | C25: ='A1 - Serviços e demanda'!B90 -> 0 | D25: ='A1 - Serviços e demanda'!C90 -> 0 | E25: ='A1 - Serviços e demanda'!D90 -> 0 | F25: ='A1 - Serviços e demanda'!E90 -> 0 | G25: ='A1 - Serviços e demanda'!F90 -> 0 | H25: ='A1 - Serviços e demanda'!G90 -> 0 | I25: ='A1 - Serviços e demanda'!H90 -> 0 | J25: ='A1 - Serviços e demanda'!I90 -> 0 | K25: ='A1 - Serviços e demanda'!J90 -> 0 | L25: ='A1 - Serviços e demanda'!K90 -> 0 | M25: ='A1 - Serviços e demanda'!L90 -> 0 | N25: ='A1 - Serviços e demanda'!M90 -> 0 | O25: ='A1 - Serviços e demanda'!N90 -> 0 | P25: ='A1 - Serviços e demanda'!O90 -> 0 | Q25: ='A1 - Serviços e demanda'!P90 -> 0 | R25: ='A1 - Serviços e demanda'!Q90 -> 0 | S25: ='A1 - Serviços e demanda'!R90 -> 0 | T25: ='A1 - Serviços e demanda'!S90 -> 0 | U25: ='A1 - Serviços e demanda'!T90 -> 0 | V25: ='A1 - Serviços e demanda'!U90 -> 0 | W25: ='A1 - Serviços e demanda'!V90 -> 0 | X25: ='A1 - Serviços e demanda'!W90 -> 0 | Y25: ='A1 - Serviços e demanda'!X90 -> 0 | Z25: ='A1 - Serviços e demanda'!Y90 -> 0 | AA25: ='A1 - Serviços e demanda'!Z90 -> 0 | AB25: ='A1 - Serviços e demanda'!AA90 -> 0 | AC25: ='A1 - Serviços e demanda'!AB90 -> 0 | AD25: ='A1 - Serviços e demanda'!AC90 -> 0 | AE25: ='A1 - Serviços e demanda'!AD90 -> 0 | AF25: ='A1 - Serviços e demanda'!AE90 -> 0
B27: Demanda Média Diária Anual
B28: UGC | C28: Ano
C29: 1 | D29: 2 | E29: 3 | F29: 4 | G29: 5 | H29: 6 | I29: 7 | J29: 8 | K29: 9 | L29: 10 | M29: 11 | N29: 12 | O29: 13 | P29: 14 | Q29: 15 | R29: 16 | S29: 17 | T29: 18 | U29: 19 | V29: 20 | W29: 21 | X29: 22 | Y29: 23 | Z29: 24 | AA29: 25 | AB29: 26 | AC29: 27 | AD29: 28 | AE29: 29 | AF29: 30
B30: =""&B6 -> Ingresso | C30: =IF($B30="","",ROUNDUP(C6/365,0)) -> 1513 | D30: 3129 | E30: 3237 | F30: 3342 | G30: 3448 | H30: 3556 | I30: 3667 | J30: 3782 | K30: 3898 | L30: 4017 | M30: 4139 | N30: 4265 | O30: 4395 | P30: 4529 | Q30: 4667 | R30: 4808 | S30: 4954 | T30: 5102 | U30: 5253 | V30: 5407 | W30: 5407 | X30: 5407 | Y30: 5407 | Z30: 5407 | AA30: 5407 | AB30: 5407 | AC30: 5407 | AD30: 5407 | AE30: 5407 | AF30: 5407
B31: Preá - Alimentação | C31: =IF($B31="","",ROUNDUP(C7/365,0)) -> 0 | D31: 251 | E31: 259 | F31: 268 | G31: 276 | H31: 285 | I31: 294 | J31: 303 | K31: 312 | L31: 322 | M31: 332 | N31: 342 | O31: 352 | P31: 363 | Q31: 374 | R31: 385 | S31: 397 | T31: 409 | U31: 421 | V31: 433 | W31: 433 | X31: 433 | Y31: 433 | Z31: 433 | AA31: 433 | AB31: 433 | AC31: 433 | AD31: 433 | AE31: 433 | AF31: 433
B32: Preá - Comércio | C32: =IF($B32="","",ROUNDUP(C8/365,0)) -> 0 | D32: 42 | E32: 44 | F32: 45 | G32: 46 | H32: 48 | I32: 49 | J32: 51 | K32: 52 | L32: 54 | M32: 56 | N32: 57 | O32: 59 | P32: 61 | Q32: 63 | R32: 65 | S32: 67 | T32: 69 | U32: 71 | V32: 73 | W32: 73 | X32: 73 | Y32: 73 | Z32: 73 | AA32: 73 | AB32: 73 | AC32: 73 | AD32: 73 | AE32: 73 | AF32: 73
B33: Preá - Estacionamento | C33: =IF($B33="","",ROUNDUP(C9/365,0)) -> 0 | D33: 63 | E33: 65 | F33: 67 | G33: 69 | H33: 72 | I33: 74 | J33: 76 | K33: 78 | L33: 81 | M33: 83 | N33: 86 | O33: 88 | P33: 91 | Q33: 94 | R33: 97 | S33: 100 | T33: 103 | U33: 106 | V33: 109 | W33: 109 | X33: 109 | Y33: 109 | Z33: 109 | AA33: 109 | AB33: 109 | AC33: 109 | AD33: 109 | AE33: 109 | AF33: 109
B34: Árvore da Preguiça - Alimentação | C34: =IF($B34="","",ROUNDUP(C10/365,0)) -> 0 | D34: 251 | E34: 259 | F34: 268 | G34: 276 | H34: 285 | I34: 294 | J34: 303 | K34: 312 | L34: 322 | M34: 332 | N34: 342 | O34: 352 | P34: 363 | Q34: 374 | R34: 385 | S34: 397 | T34: 409 | U34: 421 | V34: 433 | W34: 433 | X34: 433 | Y34: 433 | Z34: 433 | AA34: 433 | AB34: 433 | AC34: 433 | AD34: 433 | AE34: 433 | AF34: 433
B35: Árvore da Preguiça - Comércio | C35: =IF($B35="","",ROUNDUP(C11/365,0)) -> 0 | D35: 42 | E35: 44 | F35: 45 | G35: 46 | H35: 48 | I35: 49 | J35: 51 | K35: 52 | L35: 54 | M35: 56 | N35: 57 | O35: 59 | P35: 61 | Q35: 63 | R35: 65 | S35: 67 | T35: 69 | U35: 71 | V35: 73 | W35: 73 | X35: 73 | Y35: 73 | Z35: 73 | AA35: 73 | AB35: 73 | AC35: 73 | AD35: 73 | AE35: 73 | AF35: 73
B36: Silveira - Alimentação | C36: =IF($B36="","",ROUNDUP(C12/365,0)) -> 0 | D36: 251 | E36: 259 | F36: 268 | G36: 276 | H36: 285 | I36: 294 | J36: 303 | K36: 312 | L36: 322 | M36: 332 | N36: 342 | O36: 352 | P36: 363 | Q36: 374 | R36: 385 | S36: 397 | T36: 409 | U36: 421 | V36: 433 | W36: 433 | X36: 433 | Y36: 433 | Z36: 433 | AA36: 433 | AB36: 433 | AC36: 433 | AD36: 433 | AE36: 433 | AF36: 433
B37: Silveira - Comércio + Locação + Atividades | C37: =IF($B37="","",ROUNDUP(C13/365,0)) -> 0 | D37: 42 | E37: 44 | F37: 45 | G37: 46 | H37: 48 | I37: 49 | J37: 51 | K37: 52 | L37: 54 | M37: 56 | N37: 57 | O37: 59 | P37: 61 | Q37: 63 | R37: 65 | S37: 67 | T37: 69 | U37: 71 | V37: 73 | W37: 73 | X37: 73 | Y37: 73 | Z37: 73 | AA37: 73 | AB37: 73 | AC37: 73 | AD37: 73 | AE37: 73 | AF37: 73
B38: Silveira - Hospedagem | C38: =IF($B38="","",ROUNDUP(C14/365,0)) -> 0 | D38: 32 | E38: 33 | F38: 34 | G38: 35 | H38: 36 | I38: 37 | J38: 38 | K38: 39 | L38: 41 | M38: 42 | N38: 43 | O38: 44 | P38: 46 | Q38: 47 | R38: 49 | S38: 50 | T38: 52 | U38: 53 | V38: 55 | W38: 55 | X38: 55 | Y38: 55 | Z38: 55 | AA38: 55 | AB38: 55 | AC38: 55 | AD38: 55 | AE38: 55 | AF38: 55
B39: Pedra Furada - Alimentação | C39: =IF($B39="","",ROUNDUP(C15/365,0)) -> 0 | D39: 251 | E39: 259 | F39: 268 | G39: 276 | H39: 285 | I39: 294 | J39: 303 | K39: 312 | L39: 322 | M39: 332 | N39: 342 | O39: 352 | P39: 363 | Q39: 374 | R39: 385 | S39: 397 | T39: 409 | U39: 421 | V39: 433 | W39: 433 | X39: 433 | Y39: 433 | Z39: 433 | AA39: 433 | AB39: 433 | AC39: 433 | AD39: 433 | AE39: 433 | AF39: 433
B40: Pedra Furada - Comércio | C40: =IF($B40="","",ROUNDUP(C16/365,0)) -> 0 | D40: 42 | E40: 44 | F40: 45 | G40: 46 | H40: 48 | I40: 49 | J40: 51 | K40: 52 | L40: 54 | M40: 56 | N40: 57 | O40: 59 | P40: 61 | Q40: 63 | R40: 65 | S40: 67 | T40: 69 | U40: 71 | V40: 73 | W40: 73 | X40: 73 | Y40: 73 | Z40: 73 | AA40: 73 | AB40: 73 | AC40: 73 | AD40: 73 | AE40: 73 | AF40: 73
B41: Serrote - Alimentação | C41: =IF($B41="","",ROUNDUP(C17/365,0)) -> 0 | D41: 251 | E41: 259 | F41: 268 | G41: 276 | H41: 285 | I41: 294 | J41: 303 | K41: 312 | L41: 322 | M41: 332 | N41: 342 | O41: 352 | P41: 363 | Q41: 374 | R41: 385 | S41: 397 | T41: 409 | U41: 421 | V41: 433 | W41: 433 | X41: 433 | Y41: 433 | Z41: 433 | AA41: 433 | AB41: 433 | AC41: 433 | AD41: 433 | AE41: 433 | AF41: 433
B42: Serrote - Comércio | C42: =IF($B42="","",ROUNDUP(C18/365,0)) -> 0 | D42: 42 | E42: 44 | F42: 45 | G42: 46 | H42: 48 | I42: 49 | J42: 51 | K42: 52 | L42: 54 | M42: 56 | N42: 57 | O42: 59 | P42: 61 | Q42: 63 | R42: 65 | S42: 67 | T42: 69 | U42: 71 | V42: 73 | W42: 73 | X42: 73 | Y42: 73 | Z42: 73 | AA42: 73 | AB42: 73 | AC42: 73 | AD42: 73 | AE42: 73 | AF42: 73
B43: Paraíso - Alimentação | C43: =IF($B43="","",ROUNDUP(C19/365,0)) -> 0 | D43: 251 | E43: 259 | F43: 268 | G43: 276 | H43: 285 | I43: 294 | J43: 303 | K43: 312 | L43: 322 | M43: 332 | N43: 342 | O43: 352 | P43: 363 | Q43: 374 | R43: 385 | S43: 397 | T43: 409 | U43: 421 | V43: 433 | W43: 433 | X43: 433 | Y43: 433 | Z43: 433 | AA43: 433 | AB43: 433 | AC43: 433 | AD43: 433 | AE43: 433 | AF43: 433
B44: Paraíso - Comércio + Locação + Atividades | C44: =IF($B44="","",ROUNDUP(C20/365,0)) -> 0 | D44: 42 | E44: 44 | F44: 45 | G44: 46 | H44: 48 | I44: 49 | J44: 51 | K44: 52 | L44: 54 | M44: 56 | N44: 57 | O44: 59 | P44: 61 | Q44: 63 | R44: 65 | S44: 67 | T44: 69 | U44: 71 | V44: 73 | W44: 73 | X44: 73 | Y44: 73 | Z44: 73 | AA44: 73 | AB44: 73 | AC44: 73 | AD44: 73 | AE44: 73 | AF44: 73
B45: Geral - Unidade móvel - Alimentação | C45: =IF($B45="","",ROUNDUP(C21/365,0)) -> 0 | D45: 63 | E45: 65 | F45: 67 | G45: 69 | H45: 72 | I45: 74 | J45: 76 | K45: 78 | L45: 81 | M45: 83 | N45: 86 | O45: 88 | P45: 91 | Q45: 94 | R45: 97 | S45: 100 | T45: 103 | U45: 106 | V45: 109 | W45: 109 | X45: 109 | Y45: 109 | Z45: 109 | AA45: 109 | AB45: 109 | AC45: 109 | AD45: 109 | AE45: 109 | AF45: 109
B46: Mangue Seco - Estacionamento | C46: =IF($B46="","",ROUNDUP(C22/365,0)) -> 0 | D46: 8 | E46: 9 | F46: 9 | G46: 9 | H46: 9 | I46: 10 | J46: 10 | K46: 10 | L46: 11 | M46: 11 | N46: 11 | O46: 11 | P46: 12 | Q46: 12 | R46: 13 | S46: 13 | T46: 13 | U46: 14 | V46: 14 | W46: 14 | X46: 14 | Y46: 14 | Z46: 14 | AA46: 14 | AB46: 14 | AC46: 14 | AD46: 14 | AE46: 14 | AF46: 14
B47: Lagoa Grande - Estacionamento | C47: =IF($B47="","",ROUNDUP(C23/365,0)) -> 0 | D47: 8 | E47: 9 | F47: 9 | G47: 9 | H47: 9 | I47: 10 | J47: 10 | K47: 10 | L47: 11 | M47: 11 | N47: 11 | O47: 11 | P47: 12 | Q47: 12 | R47: 13 | S47: 13 | T47: 13 | U47: 14 | V47: 14 | W47: 14 | X47: 14 | Y47: 14 | Z47: 14 | AA47: 14 | AB47: 14 | AC47: 14 | AD47: 14 | AE47: 14 | AF47: 14
C48: =IF($B48="","",ROUNDUP(C24/365,0)) -> 
C49: =IF($B49="","",ROUNDUP(C25/365,0)) -> 

Sheet A4 - Previsão de Receita Bruta
B2: Previsão de Receita Bruta - Concessionário e Gestor
B4: Arrecadação Anual | AF4: (R$)
B5: UGC | C5: Ano
B6: Ano | C6: 1 | D6: 2 | E6: 3 | F6: 4 | G6: 5 | H6: 6 | I6: 7 | J6: 8 | K6: 9 | L6: 10 | M6: 11 | N6: 12 | O6: 13 | P6: 14 | Q6: 15 | R6: 16 | S6: 17 | T6: 18 | U6: 19 | V6: 20 | W6: 21 | X6: 22 | Y6: 23 | Z6: 24 | AA6: 25 | AB6: 26 | AC6: 27 | AD6: 28 | AE6: 29 | AF6: 30
B7: ='A1 - Serviços e demanda'!A20 -> Ingresso | C7: =IFERROR('A3 - Demanda Anual Agregada '!C6*'A2 - Preços'!AT5*VLOOKUP($B7,SN_UGC,28,0),0) -> 14903649 | D7: =IFERROR('A3 - Demanda Anual Agregada '!D6*'A2 - Preços'!AU5*VLOOKUP($B7,SN_UGC,28,0),0) -> 30835620 | E7: =IFERROR('A3 - Demanda Anual Agregada '!E6*'A2 - Preços'!AV5*VLOOKUP($B7,SN_UGC,28,0),0) -> 31899231 | F7: =IFERROR('A3 - Demanda Anual Agregada '!F6*'A2 - Preços'!AW5*VLOOKUP($B7,SN_UGC,28,0),0) -> 32929443 | G7: =IFERROR('A3 - Demanda Anual Agregada '!G6*'A2 - Preços'!AX5*VLOOKUP($B7,SN_UGC,28,0),0) -> 33975990 | H7: =IFERROR('A3 - Demanda Anual Agregada '!H6*'A2 - Preços'!AY5*VLOOKUP($B7,SN_UGC,28,0),0) -> 35040870 | I7: =IFERROR('A3 - Demanda Anual Agregada '!I6*'A2 - Preços'!AZ5*VLOOKUP($B7,SN_UGC,28,0),0) -> 36135801 | J7: =IFERROR('A3 - Demanda Anual Agregada '!J6*'A2 - Preços'!BA5*VLOOKUP($B7,SN_UGC,28,0),0) -> 37262646 | K7: =IFERROR('A3 - Demanda Anual Agregada '!K6*'A2 - Preços'!BB5*VLOOKUP($B7,SN_UGC,28,0),0) -> 38410038 | L7: =IFERROR('A3 - Demanda Anual Agregada '!L6*'A2 - Preços'!BC5*VLOOKUP($B7,SN_UGC,28,0),0) -> 39578841 | M7: =IFERROR('A3 - Demanda Anual Agregada '!M6*'A2 - Preços'!BD5*VLOOKUP($B7,SN_UGC,28,0),0) -> 40784175 | N7: =IFERROR('A3 - Demanda Anual Agregada '!N6*'A2 - Preços'!BE5*VLOOKUP($B7,SN_UGC,28,0),0) -> 42025608 | O7: =IFERROR('A3 - Demanda Anual Agregada '!O6*'A2 - Preços'!BF5*VLOOKUP($B7,SN_UGC,28,0),0) -> 43306677 | P7: =IFERROR('A3 - Demanda Anual Agregada '!P6*'A2 - Preços'!BG5*VLOOKUP($B7,SN_UGC,28,0),0) -> 44626491 | Q7: =IFERROR('A3 - Demanda Anual Agregada '!Q6*'A2 - Preços'!BH5*VLOOKUP($B7,SN_UGC,28,0),0) -> 45985914 | R7: =IFERROR('A3 - Demanda Anual Agregada '!R6*'A2 - Preços'!BI5*VLOOKUP($B7,SN_UGC,28,0),0) -> 47382651 | S7: =IFERROR('A3 - Demanda Anual Agregada '!S6*'A2 - Preços'!BJ5*VLOOKUP($B7,SN_UGC,28,0),0) -> 48814947 | T7: =IFERROR('A3 - Demanda Anual Agregada '!T6*'A2 - Preços'!BK5*VLOOKUP($B7,SN_UGC,28,0),0) -> 50277726 | U7: =IFERROR('A3 - Demanda Anual Agregada '!U6*'A2 - Preços'!BL5*VLOOKUP($B7,SN_UGC,28,0),0) -> 51767289 | V7: =IFERROR('A3 - Demanda Anual Agregada '!V6*'A2 - Preços'!BM5*VLOOKUP($B7,SN_UGC,28,0),0) -> 53276697 | W7: =IFERROR('A3 - Demanda Anual Agregada '!W6*'A2 - Preços'!BN5*VLOOKUP($B7,SN_UGC,28,0),0) -> 53276697 | X7: =IFERROR('A3 - Demanda Anual Agregada '!X6*'A2 - Preços'!BO5*VLOOKUP($B7,SN_UGC,28,0),0) -> 53276697 | Y7: =IFERROR('A3 - Demanda Anual Agregada '!Y6*'A2 - Preços'!BP5*VLOOKUP($B7,SN_UGC,28,0),0) -> 53276697 | Z7: =IFERROR('A3 - Demanda Anual Agregada '!Z6*'A2 - Preços'!BQ5*VLOOKUP($B7,SN_UGC,28,0),0) -> 53276697 | AA7: =IFERROR('A3 - Demanda Anual Agregada '!AA6*'A2 - Preços'!BR5*VLOOKUP($B7,SN_UGC,28,0),0) -> 53276697 | AB7: =IFERROR('A3 - Demanda Anual Agregada '!AB6*'A2 - Preços'!BS5*VLOOKUP($B7,SN_UGC,28,0),0) -> 53276697 | AC7: =IFERROR('A3 - Demanda Anual Agregada '!AC6*'A2 - Preços'!BT5*VLOOKUP($B7,SN_UGC,28,0),0) -> 53276697 | AD7: =IFERROR('A3 - Demanda Anual Agregada '!AD6*'A2 - Preços'!BU5*VLOOKUP($B7,SN_UGC,28,0),0) -> 53276697 | AE7: =IFERROR('A3 - Demanda Anual Agregada '!AE6*'A2 - Preços'!BV5*VLOOKUP($B7,SN_UGC,28,0),0) -> 53276697 | AF7: =IFERROR('A3 - Demanda Anual Agregada '!AF6*'A2 - Preços'!BW5*VLOOKUP($B7,SN_UGC,28,0),0) -> 53276697 | AG7: =SUM(C7:AF7)/SUM(C$27:AF$27) -> 0.6396909726
B8: ='A1 - Serviços e demanda'!A21 -> Preá - Alimentação | C8: =IFERROR('A3 - Demanda Anual Agregada '!C7*'A2 - Preços'!AT6*VLOOKUP($B8,SN_UGC,28,0),0) -> 0 | D8: =IFERROR('A3 - Demanda Anual Agregada '!D7*'A2 - Preços'!AU6*VLOOKUP($B8,SN_UGC,28,0),0) -> 2284125 | E8: =IFERROR('A3 - Demanda Anual Agregada '!E7*'A2 - Preços'!AV6*VLOOKUP($B8,SN_UGC,28,0),0) -> 2362900 | F8: =IFERROR('A3 - Demanda Anual Agregada '!F7*'A2 - Preços'!AW6*VLOOKUP($B8,SN_UGC,28,0),0) -> 2439225 | G8: =IFERROR('A3 - Demanda Anual Agregada '!G7*'A2 - Preços'!AX6*VLOOKUP($B8,SN_UGC,28,0),0) -> 2516750 | H8: =IFERROR('A3 - Demanda Anual Agregada '!H7*'A2 - Preços'!AY6*VLOOKUP($B8,SN_UGC,28,0),0) -> 2595625 | I8: =IFERROR('A3 - Demanda Anual Agregada '!I7*'A2 - Preços'!AZ6*VLOOKUP($B8,SN_UGC,28,0),0) -> 2676725 | J8: =IFERROR('A3 - Demanda Anual Agregada '!J7*'A2 - Preços'!BA6*VLOOKUP($B8,SN_UGC,28,0),0) -> 2760200 | K8: =IFERROR('A3 - Demanda Anual Agregada '!K7*'A2 - Preços'!BB6*VLOOKUP($B8,SN_UGC,28,0),0) -> 2845200 | L8: =IFERROR('A3 - Demanda Anual Agregada '!L7*'A2 - Preços'!BC6*VLOOKUP($B8,SN_UGC,28,0),0) -> 2931775 | M8: =IFERROR('A3 - Demanda Anual Agregada '!M7*'A2 - Preços'!BD6*VLOOKUP($B8,SN_UGC,28,0),0) -> 3021050 | N8: =IFERROR('A3 - Demanda Anual Agregada '!N7*'A2 - Preços'!BE6*VLOOKUP($B8,SN_UGC,28,0),0) -> 3113000 | O8: =IFERROR('A3 - Demanda Anual Agregada '!O7*'A2 - Preços'!BF6*VLOOKUP($B8,SN_UGC,28,0),0) -> 3207900 | P8: =IFERROR('A3 - Demanda Anual Agregada '!P7*'A2 - Preços'!BG6*VLOOKUP($B8,SN_UGC,28,0),0) -> 3305675 | Q8: =IFERROR('A3 - Demanda Anual Agregada '!Q7*'A2 - Preços'!BH6*VLOOKUP($B8,SN_UGC,28,0),0) -> 3406375 | R8: =IFERROR('A3 - Demanda Anual Agregada '!R7*'A2 - Preços'!BI6*VLOOKUP($B8,SN_UGC,28,0),0) -> 3509825 | S8: =IFERROR('A3 - Demanda Anual Agregada '!S7*'A2 - Preços'!BJ6*VLOOKUP($B8,SN_UGC,28,0),0) -> 3615925 | T8: =IFERROR('A3 - Demanda Anual Agregada '!T7*'A2 - Preços'!BK6*VLOOKUP($B8,SN_UGC,28,0),0) -> 3724275 | U8: =IFERROR('A3 - Demanda Anual Agregada '!U7*'A2 - Preços'!BL6*VLOOKUP($B8,SN_UGC,28,0),0) -> 3834625 | V8: =IFERROR('A3 - Demanda Anual Agregada '!V7*'A2 - Preços'!BM6*VLOOKUP($B8,SN_UGC,28,0),0) -> 3946425 | W8: =IFERROR('A3 - Demanda Anual Agregada '!W7*'A2 - Preços'!BN6*VLOOKUP($B8,SN_UGC,28,0),0) -> 3946425 | X8: =IFERROR('A3 - Demanda Anual Agregada '!X7*'A2 - Preços'!BO6*VLOOKUP($B8,SN_UGC,28,0),0) -> 3946425 | Y8: =IFERROR('A3 - Demanda Anual Agregada '!Y7*'A2 - Preços'!BP6*VLOOKUP($B8,SN_UGC,28,0),0) -> 3946425 | Z8: =IFERROR('A3 - Demanda Anual Agregada '!Z7*'A2 - Preços'!BQ6*VLOOKUP($B8,SN_UGC,28,0),0) -> 3946425 | AA8: =IFERROR('A3 - Demanda Anual Agregada '!AA7*'A2 - Preços'!BR6*VLOOKUP($B8,SN_UGC,28,0),0) -> 3946425 | AB8: =IFERROR('A3 - Demanda Anual Agregada '!AB7*'A2 - Preços'!BS6*VLOOKUP($B8,SN_UGC,28,0),0) -> 3946425 | AC8: =IFERROR('A3 - Demanda Anual Agregada '!AC7*'A2 - Preços'!BT6*VLOOKUP($B8,SN_UGC,28,0),0) -> 3946425 | AD8: =IFERROR('A3 - Demanda Anual Agregada '!AD7*'A2 - Preços'!BU6*VLOOKUP($B8,SN_UGC,28,0),0) -> 3946425 | AE8: =IFERROR('A3 - Demanda Anual Agregada '!AE7*'A2 - Preços'!BV6*VLOOKUP($B8,SN_UGC,28,0),0) -> 3946425 | AF8: =IFERROR('A3 - Demanda Anual Agregada '!AF7*'A2 - Preços'!BW6*VLOOKUP($B8,SN_UGC,28,0),0) -> 3946425 | AG8: 0.04685437762
B9: ='A1 - Serviços e demanda'!A22 -> Preá - Comércio | C9: =IFERROR('A3 - Demanda Anual Agregada '!C8*'A2 - Preços'!AT7*VLOOKUP($B9,SN_UGC,28,0),0) -> 0 | D9: =IFERROR('A3 - Demanda Anual Agregada '!D8*'A2 - Preços'!AU7*VLOOKUP($B9,SN_UGC,28,0),0) -> 761350 | E9: =IFERROR('A3 - Demanda Anual Agregada '!E8*'A2 - Preços'!AV7*VLOOKUP($B9,SN_UGC,28,0),0) -> 787650 | F9: =IFERROR('A3 - Demanda Anual Agregada '!F8*'A2 - Preços'!AW7*VLOOKUP($B9,SN_UGC,28,0),0) -> 813050 | G9: =IFERROR('A3 - Demanda Anual Agregada '!G8*'A2 - Preços'!AX7*VLOOKUP($B9,SN_UGC,28,0),0) -> 838900 | H9: =IFERROR('A3 - Demanda Anual Agregada '!H8*'A2 - Preços'!AY7*VLOOKUP($B9,SN_UGC,28,0),0) -> 865200 | I9: =IFERROR('A3 - Demanda Anual Agregada '!I8*'A2 - Preços'!AZ7*VLOOKUP($B9,SN_UGC,28,0),0) -> 892250 | J9: =IFERROR('A3 - Demanda Anual Agregada '!J8*'A2 - Preços'!BA7*VLOOKUP($B9,SN_UGC,28,0),0) -> 920050 | K9: =IFERROR('A3 - Demanda Anual Agregada '!K8*'A2 - Preços'!BB7*VLOOKUP($B9,SN_UGC,28,0),0) -> 948400 | L9: =IFERROR('A3 - Demanda Anual Agregada '!L8*'A2 - Preços'!BC7*VLOOKUP($B9,SN_UGC,28,0),0) -> 977250 | M9: =IFERROR('A3 - Demanda Anual Agregada '!M8*'A2 - Preços'!BD7*VLOOKUP($B9,SN_UGC,28,0),0) -> 1007000 | N9: =IFERROR('A3 - Demanda Anual Agregada '!N8*'A2 - Preços'!BE7*VLOOKUP($B9,SN_UGC,28,0),0) -> 1037650 | O9: =IFERROR('A3 - Demanda Anual Agregada '!O8*'A2 - Preços'!BF7*VLOOKUP($B9,SN_UGC,28,0),0) -> 1069300 | P9: =IFERROR('A3 - Demanda Anual Agregada '!P8*'A2 - Preços'!BG7*VLOOKUP($B9,SN_UGC,28,0),0) -> 1101900 | Q9: =IFERROR('A3 - Demanda Anual Agregada '!Q8*'A2 - Preços'!BH7*VLOOKUP($B9,SN_UGC,28,0),0) -> 1135450 | R9: =IFERROR('A3 - Demanda Anual Agregada '!R8*'A2 - Preços'!BI7*VLOOKUP($B9,SN_UGC,28,0),0) -> 1169950 | S9: =IFERROR('A3 - Demanda Anual Agregada '!S8*'A2 - Preços'!BJ7*VLOOKUP($B9,SN_UGC,28,0),0) -> 1205300 | T9: =IFERROR('A3 - Demanda Anual Agregada '!T8*'A2 - Preços'!BK7*VLOOKUP($B9,SN_UGC,28,0),0) -> 1241450 | U9: =IFERROR('A3 - Demanda Anual Agregada '!U8*'A2 - Preços'!BL7*VLOOKUP($B9,SN_UGC,28,0),0) -> 1278200 | V9: =IFERROR('A3 - Demanda Anual Agregada '!V8*'A2 - Preços'!BM7*VLOOKUP($B9,SN_UGC,28,0),0) -> 1315450 | W9: =IFERROR('A3 - Demanda Anual Agregada '!W8*'A2 - Preços'!BN7*VLOOKUP($B9,SN_UGC,28,0),0) -> 1315450 | X9: =IFERROR('A3 - Demanda Anual Agregada '!X8*'A2 - Preços'!BO7*VLOOKUP($B9,SN_UGC,28,0),0) -> 1315450 | Y9: =IFERROR('A3 - Demanda Anual Agregada '!Y8*'A2 - Preços'!BP7*VLOOKUP($B9,SN_UGC,28,0),0) -> 1315450 | Z9: =IFERROR('A3 - Demanda Anual Agregada '!Z8*'A2 - Preços'!BQ7*VLOOKUP($B9,SN_UGC,28,0),0) -> 1315450 | AA9: =IFERROR('A3 - Demanda Anual Agregada '!AA8*'A2 - Preços'!BR7*VLOOKUP($B9,SN_UGC,28,0),0) -> 1315450 | AB9: =IFERROR('A3 - Demanda Anual Agregada '!AB8*'A2 - Preços'!BS7*VLOOKUP($B9,SN_UGC,28,0),0) -> 1315450 | AC9: =IFERROR('A3 - Demanda Anual Agregada '!AC8*'A2 - Preços'!BT7*VLOOKUP($B9,SN_UGC,28,0),0) -> 1315450 | AD9: =IFERROR('A3 - Demanda Anual Agregada '!AD8*'A2 - Preços'!BU7*VLOOKUP($B9,SN_UGC,28,0),0) -> 1315450 | AE9: =IFERROR('A3 - Demanda Anual Agregada '!AE8*'A2 - Preços'!BV7*VLOOKUP($B9,SN_UGC,28,0),0) -> 1315450 | AF9: =IFERROR('A3 - Demanda Anual Agregada '!AF8*'A2 - Preços'!BW7*VLOOKUP($B9,SN_UGC,28,0),0) -> 1315450 | AG9: 0.01561794978
B10: ='A1 - Serviços e demanda'!A23 -> Preá - Estacionamento | C10: =IFERROR('A3 - Demanda Anual Agregada '!C9*'A2 - Preços'!AT8*VLOOKUP($B10,SN_UGC,28,0),0) -> 0 | D10: =IFERROR('A3 - Demanda Anual Agregada '!D9*'A2 - Preços'!AU8*VLOOKUP($B10,SN_UGC,28,0),0) -> 1233414 | E10: =IFERROR('A3 - Demanda Anual Agregada '!E9*'A2 - Preços'!AV8*VLOOKUP($B10,SN_UGC,28,0),0) -> 1275966 | F10: =IFERROR('A3 - Demanda Anual Agregada '!F9*'A2 - Preços'!AW8*VLOOKUP($B10,SN_UGC,28,0),0) -> 1317168 | G10: =IFERROR('A3 - Demanda Anual Agregada '!G9*'A2 - Preços'!AX8*VLOOKUP($B10,SN_UGC,28,0),0) -> 1359018 | H10: =IFERROR('A3 - Demanda Anual Agregada '!H9*'A2 - Preços'!AY8*VLOOKUP($B10,SN_UGC,28,0),0) -> 1401624 | I10: =IFERROR('A3 - Demanda Anual Agregada '!I9*'A2 - Preços'!AZ8*VLOOKUP($B10,SN_UGC,28,0),0) -> 1445418 | J10: =IFERROR('A3 - Demanda Anual Agregada '!J9*'A2 - Preços'!BA8*VLOOKUP($B10,SN_UGC,28,0),0) -> 1490508 | K10: =IFERROR('A3 - Demanda Anual Agregada '!K9*'A2 - Preços'!BB8*VLOOKUP($B10,SN_UGC,28,0),0) -> 1536408 | L10: =IFERROR('A3 - Demanda Anual Agregada '!L9*'A2 - Preços'!BC8*VLOOKUP($B10,SN_UGC,28,0),0) -> 1583172 | M10: =IFERROR('A3 - Demanda Anual Agregada '!M9*'A2 - Preços'!BD8*VLOOKUP($B10,SN_UGC,28,0),0) -> 1631394 | N10: =IFERROR('A3 - Demanda Anual Agregada '!N9*'A2 - Preços'!BE8*VLOOKUP($B10,SN_UGC,28,0),0) -> 1681020 | O10: =IFERROR('A3 - Demanda Anual Agregada '!O9*'A2 - Preços'!BF8*VLOOKUP($B10,SN_UGC,28,0),0) -> 1732266 | P10: =IFERROR('A3 - Demanda Anual Agregada '!P9*'A2 - Preços'!BG8*VLOOKUP($B10,SN_UGC,28,0),0) -> 1785078 | Q10: =IFERROR('A3 - Demanda Anual Agregada '!Q9*'A2 - Preços'!BH8*VLOOKUP($B10,SN_UGC,28,0),0) -> 1839456 | R10: =IFERROR('A3 - Demanda Anual Agregada '!R9*'A2 - Preços'!BI8*VLOOKUP($B10,SN_UGC,28,0),0) -> 1895292 | S10: =IFERROR('A3 - Demanda Anual Agregada '!S9*'A2 - Preços'!BJ8*VLOOKUP($B10,SN_UGC,28,0),0) -> 1952586 | T10: =IFERROR('A3 - Demanda Anual Agregada '!T9*'A2 - Preços'!BK8*VLOOKUP($B10,SN_UGC,28,0),0) -> 2011122 | U10: =IFERROR('A3 - Demanda Anual Agregada '!U9*'A2 - Preços'!BL8*VLOOKUP($B10,SN_UGC,28,0),0) -> 2070684 | V10: =IFERROR('A3 - Demanda Anual Agregada '!V9*'A2 - Preços'!BM8*VLOOKUP($B10,SN_UGC,28,0),0) -> 2131056 | W10: =IFERROR('A3 - Demanda Anual Agregada '!W9*'A2 - Preços'!BN8*VLOOKUP($B10,SN_UGC,28,0),0) -> 2131056 | X10: =IFERROR('A3 - Demanda Anual Agregada '!X9*'A2 - Preços'!BO8*VLOOKUP($B10,SN_UGC,28,0),0) -> 2131056 | Y10: =IFERROR('A3 - Demanda Anual Agregada '!Y9*'A2 - Preços'!BP8*VLOOKUP($B10,SN_UGC,28,0),0) -> 2131056 | Z10: =IFERROR('A3 - Demanda Anual Agregada '!Z9*'A2 - Preços'!BQ8*VLOOKUP($B10,SN_UGC,28,0),0) -> 2131056 | AA10: =IFERROR('A3 - Demanda Anual Agregada '!AA9*'A2 - Preços'!BR8*VLOOKUP($B10,SN_UGC,28,0),0) -> 2131056 | AB10: =IFERROR('A3 - Demanda Anual Agregada '!AB9*'A2 - Preços'!BS8*VLOOKUP($B10,SN_UGC,28,0),0) -> 2131056 | AC10: =IFERROR('A3 - Demanda Anual Agregada '!AC9*'A2 - Preços'!BT8*VLOOKUP($B10,SN_UGC,28,0),0) -> 2131056 | AD10: =IFERROR('A3 - Demanda Anual Agregada '!AD9*'A2 - Preços'!BU8*VLOOKUP($B10,SN_UGC,28,0),0) -> 2131056 | AE10: =IFERROR('A3 - Demanda Anual Agregada '!AE9*'A2 - Preços'!BV8*VLOOKUP($B10,SN_UGC,28,0),0) -> 2131056 | AF10: =IFERROR('A3 - Demanda Anual Agregada '!AF9*'A2 - Preços'!BW8*VLOOKUP($B10,SN_UGC,28,0),0) -> 2131056 | AG10: 0.02530127315
B11: ='A1 - Serviços e demanda'!A24 -> Árvore da Preguiça - Alimentação | C11: =IFERROR('A3 - Demanda Anual Agregada '!C10*'A2 - Preços'!AT9*VLOOKUP($B11,SN_UGC,28,0),0) -> 0 | D11: =IFERROR('A3 - Demanda Anual Agregada '!D10*'A2 - Preços'!AU9*VLOOKUP($B11,SN_UGC,28,0),0) -> 2284125 | E11: =IFERROR('A3 - Demanda Anual Agregada '!E10*'A2 - Preços'!AV9*VLOOKUP($B11,SN_UGC,28,0),0) -> 2362900 | F11: =IFERROR('A3 - Demanda Anual Agregada '!F10*'A2 - Preços'!AW9*VLOOKUP($B11,SN_UGC,28,0),0) -> 2439225 | G11: =IFERROR('A3 - Demanda Anual Agregada '!G10*'A2 - Preços'!AX9*VLOOKUP($B11,SN_UGC,28,0),0) -> 2516750 | H11: =IFERROR('A3 - Demanda Anual Agregada '!H10*'A2 - Preços'!AY9*VLOOKUP($B11,SN_UGC,28,0),0) -> 2595625 | I11: =IFERROR('A3 - Demanda Anual Agregada '!I10*'A2 - Preços'!AZ9*VLOOKUP($B11,SN_UGC,28,0),0) -> 2676725 | J11: =IFERROR('A3 - Demanda Anual Agregada '!J10*'A2 - Preços'!BA9*VLOOKUP($B11,SN_UGC,28,0),0) -> 2760200 | K11: =IFERROR('A3 - Demanda Anual Agregada '!K10*'A2 - Preços'!BB9*VLOOKUP($B11,SN_UGC,28,0),0) -> 2845200 | L11: =IFERROR('A3 - Demanda Anual Agregada '!L10*'A2 - Preços'!BC9*VLOOKUP($B11,SN_UGC,28,0),0) -> 2931775 | M11: =IFERROR('A3 - Demanda Anual Agregada '!M10*'A2 - Preços'!BD9*VLOOKUP($B11,SN_UGC,28,0),0) -> 3021050 | N11: =IFERROR('A3 - Demanda Anual Agregada '!N10*'A2 - Preços'!BE9*VLOOKUP($B11,SN_UGC,28,0),0) -> 3113000 | O11: =IFERROR('A3 - Demanda Anual Agregada '!O10*'A2 - Preços'!BF9*VLOOKUP($B11,SN_UGC,28,0),0) -> 3207900 | P11: =IFERROR('A3 - Demanda Anual Agregada '!P10*'A2 - Preços'!BG9*VLOOKUP($B11,SN_UGC,28,0),0) -> 3305675 | Q11: =IFERROR('A3 - Demanda Anual Agregada '!Q10*'A2 - Preços'!BH9*VLOOKUP($B11,SN_UGC,28,0),0) -> 3406375 | R11: =IFERROR('A3 - Demanda Anual Agregada '!R10*'A2 - Preços'!BI9*VLOOKUP($B11,SN_UGC,28,0),0) -> 3509825 | S11: =IFERROR('A3 - Demanda Anual Agregada '!S10*'A2 - Preços'!BJ9*VLOOKUP($B11,SN_UGC,28,0),0) -> 3615925 | T11: =IFERROR('A3 - Demanda Anual Agregada '!T10*'A2 - Preços'!BK9*VLOOKUP($B11,SN_UGC,28,0),0) -> 3724275 | U11: =IFERROR('A3 - Demanda Anual Agregada '!U10*'A2 - Preços'!BL9*VLOOKUP($B11,SN_UGC,28,0),0) -> 3834625 | V11: =IFERROR('A3 - Demanda Anual Agregada '!V10*'A2 - Preços'!BM9*VLOOKUP($B11,SN_UGC,28,0),0) -> 3946425 | W11: =IFERROR('A3 - Demanda Anual Agregada '!W10*'A2 - Preços'!BN9*VLOOKUP($B11,SN_UGC,28,0),0) -> 3946425 | X11: =IFERROR('A3 - Demanda Anual Agregada '!X10*'A2 - Preços'!BO9*VLOOKUP($B11,SN_UGC,28,0),0) -> 3946425 | Y11: =IFERROR('A3 - Demanda Anual Agregada '!Y10*'A2 - Preços'!BP9*VLOOKUP($B11,SN_UGC,28,0),0) -> 3946425 | Z11: =IFERROR('A3 - Demanda Anual Agregada '!Z10*'A2 - Preços'!BQ9*VLOOKUP($B11,SN_UGC,28,0),0) -> 3946425 | AA11: =IFERROR('A3 - Demanda Anual Agregada '!AA10*'A2 - Preços'!BR9*VLOOKUP($B11,SN_UGC,28,0),0) -> 3946425 | AB11: =IFERROR('A3 - Demanda Anual Agregada '!AB10*'A2 - Preços'!BS9*VLOOKUP($B11,SN_UGC,28,0),0) -> 3946425 | AC11: =IFERROR('A3 - Demanda Anual Agregada '!AC10*'A2 - Preços'!BT9*VLOOKUP($B11,SN_UGC,28,0),0) -> 3946425 | AD11: =IFERROR('A3 - Demanda Anual Agregada '!AD10*'A2 - Preços'!BU9*VLOOKUP($B11,SN_UGC,28,0),0) -> 3946425 | AE11: =IFERROR('A3 - Demanda Anual Agregada '!AE10*'A2 - Preços'!BV9*VLOOKUP($B11,SN_UGC,28,0),0) -> 3946425 | AF11: =IFERROR('A3 - Demanda Anual Agregada '!AF10*'A2 - Preços'!BW9*VLOOKUP($B11,SN_UGC,28,0),0) -> 3946425 | AG11: 0.04685437762
B12: ='A1 - Serviços e demanda'!A25 -> Árvore da Preguiça - Comércio | C12: =IFERROR('A3 - Demanda Anual Agregada '!C11*'A2 - Preços'!AT10*VLOOKUP($B12,SN_UGC,28,0),0) -> 0 | D12: =IFERROR('A3 - Demanda Anual Agregada '!D11*'A2 - Preços'!AU10*VLOOKUP($B12,SN_UGC,28,0),0) -> 761350 | E12: =IFERROR('A3 - Demanda Anual Agregada '!E11*'A2 - Preços'!AV10*VLOOKUP($B12,SN_UGC,28,0),0) -> 787650 | F12: =IFERROR('A3 - Demanda Anual Agregada '!F11*'A2 - Preços'!AW10*VLOOKUP($B12,SN_UGC,28,0),0) -> 813050 | G12: =IFERROR('A3 - Demanda Anual Agregada '!G11*'A2 - Preços'!AX10*VLOOKUP($B12,SN_UGC,28,0),0) -> 838900 | H12: =IFERROR('A3 - Demanda Anual Agregada '!H11*'A2 - Preços'!AY10*VLOOKUP($B12,SN_UGC,28,0),0) -> 865200 | I12: =IFERROR('A3 - Demanda Anual Agregada '!I11*'A2 - Preços'!AZ10*VLOOKUP($B12,SN_UGC,28,0),0) -> 892250 | J12: =IFERROR('A3 - Demanda Anual Agregada '!J11*'A2 - Preços'!BA10*VLOOKUP($B12,SN_UGC,28,0),0) -> 920050 | K12: =IFERROR('A3 - Demanda Anual Agregada '!K11*'A2 - Preços'!BB10*VLOOKUP($B12,SN_UGC,28,0),0) -> 948400 | L12: =IFERROR('A3 - Demanda Anual Agregada '!L11*'A2 - Preços'!BC10*VLOOKUP($B12,SN_UGC,28,0),0) -> 977250 | M12: =IFERROR('A3 - Demanda Anual Agregada '!M11*'A2 - Preços'!BD10*VLOOKUP($B12,SN_UGC,28,0),0) -> 1007000 | N12: =IFERROR('A3 - Demanda Anual Agregada '!N11*'A2 - Preços'!BE10*VLOOKUP($B12,SN_UGC,28,0),0) -> 1037650 | O12: =IFERROR('A3 - Demanda Anual Agregada '!O11*'A2 - Preços'!BF10*VLOOKUP($B12,SN_UGC,28,0),0) -> 1069300 | P12: =IFERROR('A3 - Demanda Anual Agregada '!P11*'A2 - Preços'!BG10*VLOOKUP($B12,SN_UGC,28,0),0) -> 1101900 | Q12: =IFERROR('A3 - Demanda Anual Agregada '!Q11*'A2 - Preços'!BH10*VLOOKUP($B12,SN_UGC,28,0),0) -> 1135450 | R12: =IFERROR('A3 - Demanda Anual Agregada '!R11*'A2 - Preços'!BI10*VLOOKUP($B12,SN_UGC,28,0),0) -> 1169950 | S12: =IFERROR('A3 - Demanda Anual Agregada '!S11*'A2 - Preços'!BJ10*VLOOKUP($B12,SN_UGC,28,0),0) -> 1205300 | T12: =IFERROR('A3 - Demanda Anual Agregada '!T11*'A2 - Preços'!BK10*VLOOKUP($B12,SN_UGC,28,0),0) -> 1241450 | U12: =IFERROR('A3 - Demanda Anual Agregada '!U11*'A2 - Preços'!BL10*VLOOKUP($B12,SN_UGC,28,0),0) -> 1278200 | V12: =IFERROR('A3 - Demanda Anual Agregada '!V11*'A2 - Preços'!BM10*VLOOKUP($B12,SN_UGC,28,0),0) -> 1315450 | W12: =IFERROR('A3 - Demanda Anual Agregada '!W11*'A2 - Preços'!BN10*VLOOKUP($B12,SN_UGC,28,0),0) -> 1315450 | X12: =IFERROR('A3 - Demanda Anual Agregada '!X11*'A2 - Preços'!BO10*VLOOKUP($B12,SN_UGC,28,0),0) -> 1315450 | Y12: =IFERROR('A3 - Demanda Anual Agregada '!Y11*'A2 - Preços'!BP10*VLOOKUP($B12,SN_UGC,28,0),0) -> 1315450 | Z12: =IFERROR('A3 - Demanda Anual Agregada '!Z11*'A2 - Preços'!BQ10*VLOOKUP($B12,SN_UGC,28,0),0) -> 1315450 | AA12: =IFERROR('A3 - Demanda Anual Agregada '!AA11*'A2 - Preços'!BR10*VLOOKUP($B12,SN_UGC,28,0),0) -> 1315450 | AB12: =IFERROR('A3 - Demanda Anual Agregada '!AB11*'A2 - Preços'!BS10*VLOOKUP($B12,SN_UGC,28,0),0) -> 1315450 | AC12: =IFERROR('A3 - Demanda Anual Agregada '!AC11*'A2 - Preços'!BT10*VLOOKUP($B12,SN_UGC,28,0),0) -> 1315450 | AD12: =IFERROR('A3 - Demanda Anual Agregada '!AD11*'A2 - Preços'!BU10*VLOOKUP($B12,SN_UGC,28,0),0) -> 1315450 | AE12: =IFERROR('A3 - Demanda Anual Agregada '!AE11*'A2 - Preços'!BV10*VLOOKUP($B12,SN_UGC,28,0),0) -> 1315450 | AF12: =IFERROR('A3 - Demanda Anual Agregada '!AF11*'A2 - Preços'!BW10*VLOOKUP($B12,SN_UGC,28,0),0) -> 1315450 | AG12: 0.01561794978
B13: ='A1 - Serviços e demanda'!A26 -> Silveira - Alimentação | C13: =IFERROR('A3 - Demanda Anual Agregada '!C12*'A2 - Preços'!AT11*VLOOKUP($B13,SN_UGC,28,0),0) -> 0 | D13: =IFERROR('A3 - Demanda Anual Agregada '!D12*'A2 - Preços'!AU11*VLOOKUP($B13,SN_UGC,28,0),0) -> 0 | E13: =IFERROR('A3 - Demanda Anual Agregada '!E12*'A2 - Preços'!AV11*VLOOKUP($B13,SN_UGC,28,0),0) -> 0 | F13: =IFERROR('A3 - Demanda Anual Agregada '!F12*'A2 - Preços'!AW11*VLOOKUP($B13,SN_UGC,28,0),0) -> 0 | G13: =IFERROR('A3 - Demanda Anual Agregada '!G12*'A2 - Preços'!AX11*VLOOKUP($B13,SN_UGC,28,0),0) -> 0 | H13: =IFERROR('A3 - Demanda Anual Agregada '!H12*'A2 - Preços'!AY11*VLOOKUP($B13,SN_UGC,28,0),0) -> 0 | I13: =IFERROR('A3 - Demanda Anual Agregada '!I12*'A2 - Preços'!AZ11*VLOOKUP($B13,SN_UGC,28,0),0) -> 0 | J13: =IFERROR('A3 - Demanda Anual Agregada '!J12*'A2 - Preços'!BA11*VLOOKUP($B13,SN_UGC,28,0),0) -> 0 | K13: =IFERROR('A3 - Demanda Anual Agregada '!K12*'A2 - Preços'!BB11*VLOOKUP($B13,SN_UGC,28,0),0) -> 0 | L13: =IFERROR('A3 - Demanda Anual Agregada '!L12*'A2 - Preços'!BC11*VLOOKUP($B13,SN_UGC,28,0),0) -> 0 | M13: =IFERROR('A3 - Demanda Anual Agregada '!M12*'A2 - Preços'!BD11*VLOOKUP($B13,SN_UGC,28,0),0) -> 0 | N13: =IFERROR('A3 - Demanda Anual Agregada '!N12*'A2 - Preços'!BE11*VLOOKUP($B13,SN_UGC,28,0),0) -> 0 | O13: =IFERROR('A3 - Demanda Anual Agregada '!O12*'A2 - Preços'!BF11*VLOOKUP($B13,SN_UGC,28,0),0) -> 0 | P13: =IFERROR('A3 - Demanda Anual Agregada '!P12*'A2 - Preços'!BG11*VLOOKUP($B13,SN_UGC,28,0),0) -> 0 | Q13: =IFERROR('A3 - Demanda Anual Agregada '!Q12*'A2 - Preços'!BH11*VLOOKUP($B13,SN_UGC,28,0),0) -> 0 | R13: =IFERROR('A3 - Demanda Anual Agregada '!R12*'A2 - Preços'!BI11*VLOOKUP($B13,SN_UGC,28,0),0) -> 0 | S13: =IFERROR('A3 - Demanda Anual Agregada '!S12*'A2 - Preços'!BJ11*VLOOKUP($B13,SN_UGC,28,0),0) -> 0 | T13: =IFERROR('A3 - Demanda Anual Agregada '!T12*'A2 - Preços'!BK11*VLOOKUP($B13,SN_UGC,28,0),0) -> 0 | U13: =IFERROR('A3 - Demanda Anual Agregada '!U12*'A2 - Preços'!BL11*VLOOKUP($B13,SN_UGC,28,0),0) -> 0 | V13: =IFERROR('A3 - Demanda Anual Agregada '!V12*'A2 - Preços'!BM11*VLOOKUP($B13,SN_UGC,28,0),0) -> 0 | W13: =IFERROR('A3 - Demanda Anual Agregada '!W12*'A2 - Preços'!BN11*VLOOKUP($B13,SN_UGC,28,0),0) -> 0 | X13: =IFERROR('A3 - Demanda Anual Agregada '!X12*'A2 - Preços'!BO11*VLOOKUP($B13,SN_UGC,28,0),0) -> 0 | Y13: =IFERROR('A3 - Demanda Anual Agregada '!Y12*'A2 - Preços'!BP11*VLOOKUP($B13,SN_UGC,28,0),0) -> 0 | Z13: =IFERROR('A3 - Demanda Anual Agregada '!Z12*'A2 - Preços'!BQ11*VLOOKUP($B13,SN_UGC,28,0),0) -> 0 | AA13: =IFERROR('A3 - Demanda Anual Agregada '!AA12*'A2 - Preços'!BR11*VLOOKUP($B13,SN_UGC,28,0),0) -> 0 | AB13: =IFERROR('A3 - Demanda Anual Agregada '!AB12*'A2 - Preços'!BS11*VLOOKUP($B13,SN_UGC,28,0),0) -> 0 | AC13: =IFERROR('A3 - Demanda Anual Agregada '!AC12*'A2 - Preços'!BT11*VLOOKUP($B13,SN_UGC,28,0),0) -> 0 | AD13: =IFERROR('A3 - Demanda Anual Agregada '!AD12*'A2 - Preços'!BU11*VLOOKUP($B13,SN_UGC,28,0),0) -> 0 | AE13: =IFERROR('A3 - Demanda Anual Agregada '!AE12*'A2 - Preços'!BV11*VLOOKUP($B13,SN_UGC,28,0),0) -> 0 | AF13: =IFERROR('A3 - Demanda Anual Agregada '!AF12*'A2 - Preços'!BW11*VLOOKUP($B13,SN_UGC,28,0),0) -> 0 | AG13: 0
B14: ='A1 - Serviços e demanda'!A27 -> Silveira - Comércio + Locação + Atividades | C14: =IFERROR('A3 - Demanda Anual Agregada '!C13*'A2 - Preços'!AT12*VLOOKUP($B14,SN_UGC,28,0),0) -> 0 | D14: =IFERROR('A3 - Demanda Anual Agregada '!D13*'A2 - Preços'!AU12*VLOOKUP($B14,SN_UGC,28,0),0) -> 0 | E14: =IFERROR('A3 - Demanda Anual Agregada '!E13*'A2 - Preços'!AV12*VLOOKUP($B14,SN_UGC,28,0),0) -> 0 | F14: =IFERROR('A3 - Demanda Anual Agregada '!F13*'A2 - Preços'!AW12*VLOOKUP($B14,SN_UGC,28,0),0) -> 0 | G14: =IFERROR('A3 - Demanda Anual Agregada '!G13*'A2 - Preços'!AX12*VLOOKUP($B14,SN_UGC,28,0),0) -> 0 | H14: =IFERROR('A3 - Demanda Anual Agregada '!H13*'A2 - Preços'!AY12*VLOOKUP($B14,SN_UGC,28,0),0) -> 0 | I14: =IFERROR('A3 - Demanda Anual Agregada '!I13*'A2 - Preços'!AZ12*VLOOKUP($B14,SN_UGC,28,0),0) -> 0 | J14: =IFERROR('A3 - Demanda Anual Agregada '!J13*'A2 - Preços'!BA12*VLOOKUP($B14,SN_UGC,28,0),0) -> 0 | K14: =IFERROR('A3 - Demanda Anual Agregada '!K13*'A2 - Preços'!BB12*VLOOKUP($B14,SN_UGC,28,0),0) -> 0 | L14: =IFERROR('A3 - Demanda Anual Agregada '!L13*'A2 - Preços'!BC12*VLOOKUP($B14,SN_UGC,28,0),0) -> 0 | M14: =IFERROR('A3 - Demanda Anual Agregada '!M13*'A2 - Preços'!BD12*VLOOKUP($B14,SN_UGC,28,0),0) -> 0 | N14: =IFERROR('A3 - Demanda Anual Agregada '!N13*'A2 - Preços'!BE12*VLOOKUP($B14,SN_UGC,28,0),0) -> 0 | O14: =IFERROR('A3 - Demanda Anual Agregada '!O13*'A2 - Preços'!BF12*VLOOKUP($B14,SN_UGC,28,0),0) -> 0 | P14: =IFERROR('A3 - Demanda Anual Agregada '!P13*'A2 - Preços'!BG12*VLOOKUP($B14,SN_UGC,28,0),0) -> 0 | Q14: =IFERROR('A3 - Demanda Anual Agregada '!Q13*'A2 - Preços'!BH12*VLOOKUP($B14,SN_UGC,28,0),0) -> 0 | R14: =IFERROR('A3 - Demanda Anual Agregada '!R13*'A2 - Preços'!BI12*VLOOKUP($B14,SN_UGC,28,0),0) -> 0 | S14: =IFERROR('A3 - Demanda Anual Agregada '!S13*'A2 - Preços'!BJ12*VLOOKUP($B14,SN_UGC,28,0),0) -> 0 | T14: =IFERROR('A3 - Demanda Anual Agregada '!T13*'A2 - Preços'!BK12*VLOOKUP($B14,SN_UGC,28,0),0) -> 0 | U14: =IFERROR('A3 - Demanda Anual Agregada '!U13*'A2 - Preços'!BL12*VLOOKUP($B14,SN_UGC,28,0),0) -> 0 | V14: =IFERROR('A3 - Demanda Anual Agregada '!V13*'A2 - Preços'!BM12*VLOOKUP($B14,SN_UGC,28,0),0) -> 0 | W14: =IFERROR('A3 - Demanda Anual Agregada '!W13*'A2 - Preços'!BN12*VLOOKUP($B14,SN_UGC,28,0),0) -> 0 | X14: =IFERROR('A3 - Demanda Anual Agregada '!X13*'A2 - Preços'!BO12*VLOOKUP($B14,SN_UGC,28,0),0) -> 0 | Y14: =IFERROR('A3 - Demanda Anual Agregada '!Y13*'A2 - Preços'!BP12*VLOOKUP($B14,SN_UGC,28,0),0) -> 0 | Z14: =IFERROR('A3 - Demanda Anual Agregada '!Z13*'A2 - Preços'!BQ12*VLOOKUP($B14,SN_UGC,28,0),0) -> 0 | AA14: =IFERROR('A3 - Demanda Anual Agregada '!AA13*'A2 - Preços'!BR12*VLOOKUP($B14,SN_UGC,28,0),0) -> 0 | AB14: =IFERROR('A3 - Demanda Anual Agregada '!AB13*'A2 - Preços'!BS12*VLOOKUP($B14,SN_UGC,28,0),0) -> 0 | AC14: =IFERROR('A3 - Demanda Anual Agregada '!AC13*'A2 - Preços'!BT12*VLOOKUP($B14,SN_UGC,28,0),0) -> 0 | AD14: =IFERROR('A3 - Demanda Anual Agregada '!AD13*'A2 - Preços'!BU12*VLOOKUP($B14,SN_UGC,28,0),0) -> 0 | AE14: =IFERROR('A3 - Demanda Anual Agregada '!AE13*'A2 - Preços'!BV12*VLOOKUP($B14,SN_UGC,28,0),0) -> 0 | AF14: =IFERROR('A3 - Demanda Anual Agregada '!AF13*'A2 - Preços'!BW12*VLOOKUP($B14,SN_UGC,28,0),0) -> 0 | AG14: 0
B15: ='A1 - Serviços e demanda'!A28 -> Silveira - Hospedagem | C15: =IFERROR('A3 - Demanda Anual Agregada '!C14*'A2 - Preços'!AT13*VLOOKUP($B15,SN_UGC,28,0),0) -> 0 | D15: =IFERROR('A3 - Demanda Anual Agregada '!D14*'A2 - Preços'!AU13*VLOOKUP($B15,SN_UGC,28,0),0) -> 0 | E15: =IFERROR('A3 - Demanda Anual Agregada '!E14*'A2 - Preços'!AV13*VLOOKUP($B15,SN_UGC,28,0),0) -> 0 | F15: =IFERROR('A3 - Demanda Anual Agregada '!F14*'A2 - Preços'!AW13*VLOOKUP($B15,SN_UGC,28,0),0) -> 0 | G15: =IFERROR('A3 - Demanda Anual Agregada '!G14*'A2 - Preços'!AX13*VLOOKUP($B15,SN_UGC,28,0),0) -> 0 | H15: =IFERROR('A3 - Demanda Anual Agregada '!H14*'A2 - Preços'!AY13*VLOOKUP($B15,SN_UGC,28,0),0) -> 0 | I15: =IFERROR('A3 - Demanda Anual Agregada '!I14*'A2 - Preços'!AZ13*VLOOKUP($B15,SN_UGC,28,0),0) -> 0 | J15: =IFERROR('A3 - Demanda Anual Agregada '!J14*'A2 - Preços'!BA13*VLOOKUP($B15,SN_UGC,28,0),0) -> 0 | K15: =IFERROR('A3 - Demanda Anual Agregada '!K14*'A2 - Preços'!BB13*VLOOKUP($B15,SN_UGC,28,0),0) -> 0 | L15: =IFERROR('A3 - Demanda Anual Agregada '!L14*'A2 - Preços'!BC13*VLOOKUP($B15,SN_UGC,28,0),0) -> 0 | M15: =IFERROR('A3 - Demanda Anual Agregada '!M14*'A2 - Preços'!BD13*VLOOKUP($B15,SN_UGC,28,0),0) -> 0 | N15: =IFERROR('A3 - Demanda Anual Agregada '!N14*'A2 - Preços'!BE13*VLOOKUP($B15,SN_UGC,28,0),0) -> 0 | O15: =IFERROR('A3 - Demanda Anual Agregada '!O14*'A2 - Preços'!BF13*VLOOKUP($B15,SN_UGC,28,0),0) -> 0 | P15: =IFERROR('A3 - Demanda Anual Agregada '!P14*'A2 - Preços'!BG13*VLOOKUP($B15,SN_UGC,28,0),0) -> 0 | Q15: =IFERROR('A3 - Demanda Anual Agregada '!Q14*'A2 - Preços'!BH13*VLOOKUP($B15,SN_UGC,28,0),0) -> 0 | R15: =IFERROR('A3 - Demanda Anual Agregada '!R14*'A2 - Preços'!BI13*VLOOKUP($B15,SN_UGC,28,0),0) -> 0 | S15: =IFERROR('A3 - Demanda Anual Agregada '!S14*'A2 - Preços'!BJ13*VLOOKUP($B15,SN_UGC,28,0),0) -> 0 | T15: =IFERROR('A3 - Demanda Anual Agregada '!T14*'A2 - Preços'!BK13*VLOOKUP($B15,SN_UGC,28,0),0) -> 0 | U15: =IFERROR('A3 - Demanda Anual Agregada '!U14*'A2 - Preços'!BL13*VLOOKUP($B15,SN_UGC,28,0),0) -> 0 | V15: =IFERROR('A3 - Demanda Anual Agregada '!V14*'A2 - Preços'!BM13*VLOOKUP($B15,SN_UGC,28,0),0) -> 0 | W15: =IFERROR('A3 - Demanda Anual Agregada '!W14*'A2 - Preços'!BN13*VLOOKUP($B15,SN_UGC,28,0),0) -> 0 | X15: =IFERROR('A3 - Demanda Anual Agregada '!X14*'A2 - Preços'!BO13*VLOOKUP($B15,SN_UGC,28,0),0) -> 0 | Y15: =IFERROR('A3 - Demanda Anual Agregada '!Y14*'A2 - Preços'!BP13*VLOOKUP($B15,SN_UGC,28,0),0) -> 0 | Z15: =IFERROR('A3 - Demanda Anual Agregada '!Z14*'A2 - Preços'!BQ13*VLOOKUP($B15,SN_UGC,28,0),0) -> 0 | AA15: =IFERROR('A3 - Demanda Anual Agregada '!AA14*'A2 - Preços'!BR13*VLOOKUP($B15,SN_UGC,28,0),0) -> 0 | AB15: =IFERROR('A3 - Demanda Anual Agregada '!AB14*'A2 - Preços'!BS13*VLOOKUP($B15,SN_UGC,28,0),0) -> 0 | AC15: =IFERROR('A3 - Demanda Anual Agregada '!AC14*'A2 - Preços'!BT13*VLOOKUP($B15,SN_UGC,28,0),0) -> 0 | AD15: =IFERROR('A3 - Demanda Anual Agregada '!AD14*'A2 - Preços'!BU13*VLOOKUP($B15,SN_UGC,28,0),0) -> 0 | AE15: =IFERROR('A3 - Demanda Anual Agregada '!AE14*'A2 - Preços'!BV13*VLOOKUP($B15,SN_UGC,28,0),0) -> 0 | AF15: =IFERROR('A3 - Demanda Anual Agregada '!AF14*'A2 - Preços'!BW13*VLOOKUP($B15,SN_UGC,28,0),0) -> 0 | AG15: 0
B16: ='A1 - Serviços e demanda'!A29 -> Pedra Furada - Alimentação | C16: =IFERROR('A3 - Demanda Anual Agregada '!C15*'A2 - Preços'!AT14*VLOOKUP($B16,SN_UGC,28,0),0) -> 0 | D16: =IFERROR('A3 - Demanda Anual Agregada '!D15*'A2 - Preços'!AU14*VLOOKUP($B16,SN_UGC,28,0),0) -> 2284125 | E16: =IFERROR('A3 - Demanda Anual Agregada '!E15*'A2 - Preços'!AV14*VLOOKUP($B16,SN_UGC,28,0),0) -> 2362900 | F16: =IFERROR('A3 - Demanda Anual Agregada '!F15*'A2 - Preços'!AW14*VLOOKUP($B16,SN_UGC,28,0),0) -> 2439225 | G16: =IFERROR('A3 - Demanda Anual Agregada '!G15*'A2 - Preços'!AX14*VLOOKUP($B16,SN_UGC,28,0),0) -> 2516750 | H16: =IFERROR('A3 - Demanda Anual Agregada '!H15*'A2 - Preços'!AY14*VLOOKUP($B16,SN_UGC,28,0),0) -> 2595625 | I16: =IFERROR('A3 - Demanda Anual Agregada '!I15*'A2 - Preços'!AZ14*VLOOKUP($B16,SN_UGC,28,0),0) -> 2676725 | J16: =IFERROR('A3 - Demanda Anual Agregada '!J15*'A2 - Preços'!BA14*VLOOKUP($B16,SN_UGC,28,0),0) -> 2760200 | K16: =IFERROR('A3 - Demanda Anual Agregada '!K15*'A2 - Preços'!BB14*VLOOKUP($B16,SN_UGC,28,0),0) -> 2845200 | L16: =IFERROR('A3 - Demanda Anual Agregada '!L15*'A2 - Preços'!BC14*VLOOKUP($B16,SN_UGC,28,0),0) -> 2931775 | M16: =IFERROR('A3 - Demanda Anual Agregada '!M15*'A2 - Preços'!BD14*VLOOKUP($B16,SN_UGC,28,0),0) -> 3021050 | N16: =IFERROR('A3 - Demanda Anual Agregada '!N15*'A2 - Preços'!BE14*VLOOKUP($B16,SN_UGC,28,0),0) -> 3113000 | O16: =IFERROR('A3 - Demanda Anual Agregada '!O15*'A2 - Preços'!BF14*VLOOKUP($B16,SN_UGC,28,0),0) -> 3207900 | P16: =IFERROR('A3 - Demanda Anual Agregada '!P15*'A2 - Preços'!BG14*VLOOKUP($B16,SN_UGC,28,0),0) -> 3305675 | Q16: =IFERROR('A3 - Demanda Anual Agregada '!Q15*'A2 - Preços'!BH14*VLOOKUP($B16,SN_UGC,28,0),0) -> 3406375 | R16: =IFERROR('A3 - Demanda Anual Agregada '!R15*'A2 - Preços'!BI14*VLOOKUP($B16,SN_UGC,28,0),0) -> 3509825 | S16: =IFERROR('A3 - Demanda Anual Agregada '!S15*'A2 - Preços'!BJ14*VLOOKUP($B16,SN_UGC,28,0),0) -> 3615925 | T16: =IFERROR('A3 - Demanda Anual Agregada '!T15*'A2 - Preços'!BK14*VLOOKUP($B16,SN_UGC,28,0),0) -> 3724275 | U16: =IFERROR('A3 - Demanda Anual Agregada '!U15*'A2 - Preços'!BL14*VLOOKUP($B16,SN_UGC,28,0),0) -> 3834625 | V16: =IFERROR('A3 - Demanda Anual Agregada '!V15*'A2 - Preços'!BM14*VLOOKUP($B16,SN_UGC,28,0),0) -> 3946425 | W16: =IFERROR('A3 - Demanda Anual Agregada '!W15*'A2 - Preços'!BN14*VLOOKUP($B16,SN_UGC,28,0),0) -> 3946425 | X16: =IFERROR('A3 - Demanda Anual Agregada '!X15*'A2 - Preços'!BO14*VLOOKUP($B16,SN_UGC,28,0),0) -> 3946425 | Y16: =IFERROR('A3 - Demanda Anual Agregada '!Y15*'A2 - Preços'!BP14*VLOOKUP($B16,SN_UGC,28,0),0) -> 3946425 | Z16: =IFERROR('A3 - Demanda Anual Agregada '!Z15*'A2 - Preços'!BQ14*VLOOKUP($B16,SN_UGC,28,0),0) -> 3946425 | AA16: =IFERROR('A3 - Demanda Anual Agregada '!AA15*'A2 - Preços'!BR14*VLOOKUP($B16,SN_UGC,28,0),0) -> 3946425 | AB16: =IFERROR('A3 - Demanda Anual Agregada '!AB15*'A2 - Preços'!BS14*VLOOKUP($B16,SN_UGC,28,0),0) -> 3946425 | AC16: =IFERROR('A3 - Demanda Anual Agregada '!AC15*'A2 - Preços'!BT14*VLOOKUP($B16,SN_UGC,28,0),0) -> 3946425 | AD16: =IFERROR('A3 - Demanda Anual Agregada '!AD15*'A2 - Preços'!BU14*VLOOKUP($B16,SN_UGC,28,0),0) -> 3946425 | AE16: =IFERROR('A3 - Demanda Anual Agregada '!AE15*'A2 - Preços'!BV14*VLOOKUP($B16,SN_UGC,28,0),0) -> 3946425 | AF16: =IFERROR('A3 - Demanda Anual Agregada '!AF15*'A2 - Preços'!BW14*VLOOKUP($B16,SN_UGC,28,0),0) -> 3946425 | AG16: 0.04685437762
B17: ='A1 - Serviços e demanda'!A30 -> Pedra Furada - Comércio | C17: =IFERROR('A3 - Demanda Anual Agregada '!C16*'A2 - Preços'!AT15*VLOOKUP($B17,SN_UGC,28,0),0) -> 0 | D17: =IFERROR('A3 - Demanda Anual Agregada '!D16*'A2 - Preços'!AU15*VLOOKUP($B17,SN_UGC,28,0),0) -> 761350 | E17: =IFERROR('A3 - Demanda Anual Agregada '!E16*'A2 - Preços'!AV15*VLOOKUP($B17,SN_UGC,28,0),0) -> 787650 | F17: =IFERROR('A3 - Demanda Anual Agregada '!F16*'A2 - Preços'!AW15*VLOOKUP($B17,SN_UGC,28,0),0) -> 813050 | G17: =IFERROR('A3 - Demanda Anual Agregada '!G16*'A2 - Preços'!AX15*VLOOKUP($B17,SN_UGC,28,0),0) -> 838900 | H17: =IFERROR('A3 - Demanda Anual Agregada '!H16*'A2 - Preços'!AY15*VLOOKUP($B17,SN_UGC,28,0),0) -> 865200 | I17: =IFERROR('A3 - Demanda Anual Agregada '!I16*'A2 - Preços'!AZ15*VLOOKUP($B17,SN_UGC,28,0),0) -> 892250 | J17: =IFERROR('A3 - Demanda Anual Agregada '!J16*'A2 - Preços'!BA15*VLOOKUP($B17,SN_UGC,28,0),0) -> 920050 | K17: =IFERROR('A3 - Demanda Anual Agregada '!K16*'A2 - Preços'!BB15*VLOOKUP($B17,SN_UGC,28,0),0) -> 948400 | L17: =IFERROR('A3 - Demanda Anual Agregada '!L16*'A2 - Preços'!BC15*VLOOKUP($B17,SN_UGC,28,0),0) -> 977250 | M17: =IFERROR('A3 - Demanda Anual Agregada '!M16*'A2 - Preços'!BD15*VLOOKUP($B17,SN_UGC,28,0),0) -> 1007000 | N17: =IFERROR('A3 - Demanda Anual Agregada '!N16*'A2 - Preços'!BE15*VLOOKUP($B17,SN_UGC,28,0),0) -> 1037650 | O17: =IFERROR('A3 - Demanda Anual Agregada '!O16*'A2 - Preços'!BF15*VLOOKUP($B17,SN_UGC,28,0),0) -> 1069300 | P17: =IFERROR('A3 - Demanda Anual Agregada '!P16*'A2 - Preços'!BG15*VLOOKUP($B17,SN_UGC,28,0),0) -> 1101900 | Q17: =IFERROR('A3 - Demanda Anual Agregada '!Q16*'A2 - Preços'!BH15*VLOOKUP($B17,SN_UGC,28,0),0) -> 1135450 | R17: =IFERROR('A3 - Demanda Anual Agregada '!R16*'A2 - Preços'!BI15*VLOOKUP($B17,SN_UGC,28,0),0) -> 1169950 | S17: =IFERROR('A3 - Demanda Anual Agregada '!S16*'A2 - Preços'!BJ15*VLOOKUP($B17,SN_UGC,28,0),0) -> 1205300 | T17: =IFERROR('A3 - Demanda Anual Agregada '!T16*'A2 - Preços'!BK15*VLOOKUP($B17,SN_UGC,28,0),0) -> 1241450 | U17: =IFERROR('A3 - Demanda Anual Agregada '!U16*'A2 - Preços'!BL15*VLOOKUP($B17,SN_UGC,28,0),0) -> 1278200 | V17: =IFERROR('A3 - Demanda Anual Agregada '!V16*'A2 - Preços'!BM15*VLOOKUP($B17,SN_UGC,28,0),0) -> 1315450 | W17: =IFERROR('A3 - Demanda Anual Agregada '!W16*'A2 - Preços'!BN15*VLOOKUP($B17,SN_UGC,28,0),0) -> 1315450 | X17: =IFERROR('A3 - Demanda Anual Agregada '!X16*'A2 - Preços'!BO15*VLOOKUP($B17,SN_UGC,28,0),0) -> 1315450 | Y17: =IFERROR('A3 - Demanda Anual Agregada '!Y16*'A2 - Preços'!BP15*VLOOKUP($B17,SN_UGC,28,0),0) -> 1315450 | Z17: =IFERROR('A3 - Demanda Anual Agregada '!Z16*'A2 - Preços'!BQ15*VLOOKUP($B17,SN_UGC,28,0),0) -> 1315450 | AA17: =IFERROR('A3 - Demanda Anual Agregada '!AA16*'A2 - Preços'!BR15*VLOOKUP($B17,SN_UGC,28,0),0) -> 1315450 | AB17: =IFERROR('A3 - Demanda Anual Agregada '!AB16*'A2 - Preços'!BS15*VLOOKUP($B17,SN_UGC,28,0),0) -> 1315450 | AC17: =IFERROR('A3 - Demanda Anual Agregada '!AC16*'A2 - Preços'!BT15*VLOOKUP($B17,SN_UGC,28,0),0) -> 1315450 | AD17: =IFERROR('A3 - Demanda Anual Agregada '!AD16*'A2 - Preços'!BU15*VLOOKUP($B17,SN_UGC,28,0),0) -> 1315450 | AE17: =IFERROR('A3 - Demanda Anual Agregada '!AE16*'A2 - Preços'!BV15*VLOOKUP($B17,SN_UGC,28,0),0) -> 1315450 | AF17: =IFERROR('A3 - Demanda Anual Agregada '!AF16*'A2 - Preços'!BW15*VLOOKUP($B17,SN_UGC,28,0),0) -> 1315450 | AG17: 0.01561794978
B18: ='A1 - Serviços e demanda'!A31 -> Serrote - Alimentação | C18: =IFERROR('A3 - Demanda Anual Agregada '!C17*'A2 - Preços'!AT16*VLOOKUP($B18,SN_UGC,28,0),0) -> 0 | D18: =IFERROR('A3 - Demanda Anual Agregada '!D17*'A2 - Preços'!AU16*VLOOKUP($B18,SN_UGC,28,0),0) -> 2284125 | E18: =IFERROR('A3 - Demanda Anual Agregada '!E17*'A2 - Preços'!AV16*VLOOKUP($B18,SN_UGC,28,0),0) -> 2362900 | F18: =IFERROR('A3 - Demanda Anual Agregada '!F17*'A2 - Preços'!AW16*VLOOKUP($B18,SN_UGC,28,0),0) -> 2439225 | G18: =IFERROR('A3 - Demanda Anual Agregada '!G17*'A2 - Preços'!AX16*VLOOKUP($B18,SN_UGC,28,0),0) -> 2516750 | H18: =IFERROR('A3 - Demanda Anual Agregada '!H17*'A2 - Preços'!AY16*VLOOKUP($B18,SN_UGC,28,0),0) -> 2595625 | I18: =IFERROR('A3 - Demanda Anual Agregada '!I17*'A2 - Preços'!AZ16*VLOOKUP($B18,SN_UGC,28,0),0) -> 2676725 | J18: =IFERROR('A3 - Demanda Anual Agregada '!J17*'A2 - Preços'!BA16*VLOOKUP($B18,SN_UGC,28,0),0) -> 2760200 | K18: =IFERROR('A3 - Demanda Anual Agregada '!K17*'A2 - Preços'!BB16*VLOOKUP($B18,SN_UGC,28,0),0) -> 2845200 | L18: =IFERROR('A3 - Demanda Anual Agregada '!L17*'A2 - Preços'!BC16*VLOOKUP($B18,SN_UGC,28,0),0) -> 2931775 | M18: =IFERROR('A3 - Demanda Anual Agregada '!M17*'A2 - Preços'!BD16*VLOOKUP($B18,SN_UGC,28,0),0) -> 3021050 | N18: =IFERROR('A3 - Demanda Anual Agregada '!N17*'A2 - Preços'!BE16*VLOOKUP($B18,SN_UGC,28,0),0) -> 3113000 | O18: =IFERROR('A3 - Demanda Anual Agregada '!O17*'A2 - Preços'!BF16*VLOOKUP($B18,SN_UGC,28,0),0) -> 3207900 | P18: =IFERROR('A3 - Demanda Anual Agregada '!P17*'A2 - Preços'!BG16*VLOOKUP($B18,SN_UGC,28,0),0) -> 3305675 | Q18: =IFERROR('A3 - Demanda Anual Agregada '!Q17*'A2 - Preços'!BH16*VLOOKUP($B18,SN_UGC,28,0),0) -> 3406375 | R18: =IFERROR('A3 - Demanda Anual Agregada '!R17*'A2 - Preços'!BI16*VLOOKUP($B18,SN_UGC,28,0),0) -> 3509825 | S18: =IFERROR('A3 - Demanda Anual Agregada '!S17*'A2 - Preços'!BJ16*VLOOKUP($B18,SN_UGC,28,0),0) -> 3615925 | T18: =IFERROR('A3 - Demanda Anual Agregada '!T17*'A2 - Preços'!BK16*VLOOKUP($B18,SN_UGC,28,0),0) -> 3724275 | U18: =IFERROR('A3 - Demanda Anual Agregada '!U17*'A2 - Preços'!BL16*VLOOKUP($B18,SN_UGC,28,0),0) -> 3834625 | V18: =IFERROR('A3 - Demanda Anual Agregada '!V17*'A2 - Preços'!BM16*VLOOKUP($B18,SN_UGC,28,0),0) -> 3946425 | W18: =IFERROR('A3 - Demanda Anual Agregada '!W17*'A2 - Preços'!BN16*VLOOKUP($B18,SN_UGC,28,0),0) -> 3946425 | X18: =IFERROR('A3 - Demanda Anual Agregada '!X17*'A2 - Preços'!BO16*VLOOKUP($B18,SN_UGC,28,0),0) -> 3946425 | Y18: =IFERROR('A3 - Demanda Anual Agregada '!Y17*'A2 - Preços'!BP16*VLOOKUP($B18,SN_UGC,28,0),0) -> 3946425 | Z18: =IFERROR('A3 - Demanda Anual Agregada '!Z17*'A2 - Preços'!BQ16*VLOOKUP($B18,SN_UGC,28,0),0) -> 3946425 | AA18: =IFERROR('A3 - Demanda Anual Agregada '!AA17*'A2 - Preços'!BR16*VLOOKUP($B18,SN_UGC,28,0),0) -> 3946425 | AB18: =IFERROR('A3 - Demanda Anual Agregada '!AB17*'A2 - Preços'!BS16*VLOOKUP($B18,SN_UGC,28,0),0) -> 3946425 | AC18: =IFERROR('A3 - Demanda Anual Agregada '!AC17*'A2 - Preços'!BT16*VLOOKUP($B18,SN_UGC,28,0),0) -> 3946425 | AD18: =IFERROR('A3 - Demanda Anual Agregada '!AD17*'A2 - Preços'!BU16*VLOOKUP($B18,SN_UGC,28,0),0) -> 3946425 | AE18: =IFERROR('A3 - Demanda Anual Agregada '!AE17*'A2 - Preços'!BV16*VLOOKUP($B18,SN_UGC,28,0),0) -> 3946425 | AF18: =IFERROR('A3 - Demanda Anual Agregada '!AF17*'A2 - Preços'!BW16*VLOOKUP($B18,SN_UGC,28,0),0) -> 3946425 | AG18: 0.04685437762
B19: ='A1 - Serviços e demanda'!A32 -> Serrote - Comércio | C19: =IFERROR('A3 - Demanda Anual Agregada '!C18*'A2 - Preços'!AT17*VLOOKUP($B19,SN_UGC,28,0),0) -> 0 | D19: =IFERROR('A3 - Demanda Anual Agregada '!D18*'A2 - Preços'!AU17*VLOOKUP($B19,SN_UGC,28,0),0) -> 761350 | E19: =IFERROR('A3 - Demanda Anual Agregada '!E18*'A2 - Preços'!AV17*VLOOKUP($B19,SN_UGC,28,0),0) -> 787650 | F19: =IFERROR('A3 - Demanda Anual Agregada '!F18*'A2 - Preços'!AW17*VLOOKUP($B19,SN_UGC,28,0),0) -> 813050 | G19: =IFERROR('A3 - Demanda Anual Agregada '!G18*'A2 - Preços'!AX17*VLOOKUP($B19,SN_UGC,28,0),0) -> 838900 | H19: =IFERROR('A3 - Demanda Anual Agregada '!H18*'A2 - Preços'!AY17*VLOOKUP($B19,SN_UGC,28,0),0) -> 865200 | I19: =IFERROR('A3 - Demanda Anual Agregada '!I18*'A2 - Preços'!AZ17*VLOOKUP($B19,SN_UGC,28,0),0) -> 892250 | J19: =IFERROR('A3 - Demanda Anual Agregada '!J18*'A2 - Preços'!BA17*VLOOKUP($B19,SN_UGC,28,0),0) -> 920050 | K19: =IFERROR('A3 - Demanda Anual Agregada '!K18*'A2 - Preços'!BB17*VLOOKUP($B19,SN_UGC,28,0),0) -> 948400 | L19: =IFERROR('A3 - Demanda Anual Agregada '!L18*'A2 - Preços'!BC17*VLOOKUP($B19,SN_UGC,28,0),0) -> 977250 | M19: =IFERROR('A3 - Demanda Anual Agregada '!M18*'A2 - Preços'!BD17*VLOOKUP($B19,SN_UGC,28,0),0) -> 1007000 | N19: =IFERROR('A3 - Demanda Anual Agregada '!N18*'A2 - Preços'!BE17*VLOOKUP($B19,SN_UGC,28,0),0) -> 1037650 | O19: =IFERROR('A3 - Demanda Anual Agregada '!O18*'A2 - Preços'!BF17*VLOOKUP($B19,SN_UGC,28,0),0) -> 1069300 | P19: =IFERROR('A3 - Demanda Anual Agregada '!P18*'A2 - Preços'!BG17*VLOOKUP($B19,SN_UGC,28,0),0) -> 1101900 | Q19: =IFERROR('A3 - Demanda Anual Agregada '!Q18*'A2 - Preços'!BH17*VLOOKUP($B19,SN_UGC,28,0),0) -> 1135450 | R19: =IFERROR('A3 - Demanda Anual Agregada '!R18*'A2 - Preços'!BI17*VLOOKUP($B19,SN_UGC,28,0),0) -> 1169950 | S19: =IFERROR('A3 - Demanda Anual Agregada '!S18*'A2 - Preços'!BJ17*VLOOKUP($B19,SN_UGC,28,0),0) -> 1205300 | T19: =IFERROR('A3 - Demanda Anual Agregada '!T18*'A2 - Preços'!BK17*VLOOKUP($B19,SN_UGC,28,0),0) -> 1241450 | U19: =IFERROR('A3 - Demanda Anual Agregada '!U18*'A2 - Preços'!BL17*VLOOKUP($B19,SN_UGC,28,0),0) -> 1278200 | V19: =IFERROR('A3 - Demanda Anual Agregada '!V18*'A2 - Preços'!BM17*VLOOKUP($B19,SN_UGC,28,0),0) -> 1315450 | W19: =IFERROR('A3 - Demanda Anual Agregada '!W18*'A2 - Preços'!BN17*VLOOKUP($B19,SN_UGC,28,0),0) -> 1315450 | X19: =IFERROR('A3 - Demanda Anual Agregada '!X18*'A2 - Preços'!BO17*VLOOKUP($B19,SN_UGC,28,0),0) -> 1315450 | Y19: =IFERROR('A3 - Demanda Anual Agregada '!Y18*'A2 - Preços'!BP17*VLOOKUP($B19,SN_UGC,28,0),0) -> 1315450 | Z19: =IFERROR('A3 - Demanda Anual Agregada '!Z18*'A2 - Preços'!BQ17*VLOOKUP($B19,SN_UGC,28,0),0) -> 1315450 | AA19: =IFERROR('A3 - Demanda Anual Agregada '!AA18*'A2 - Preços'!BR17*VLOOKUP($B19,SN_UGC,28,0),0) -> 1315450 | AB19: =IFERROR('A3 - Demanda Anual Agregada '!AB18*'A2 - Preços'!BS17*VLOOKUP($B19,SN_UGC,28,0),0) -> 1315450 | AC19: =IFERROR('A3 - Demanda Anual Agregada '!AC18*'A2 - Preços'!BT17*VLOOKUP($B19,SN_UGC,28,0),0) -> 1315450 | AD19: =IFERROR('A3 - Demanda Anual Agregada '!AD18*'A2 - Preços'!BU17*VLOOKUP($B19,SN_UGC,28,0),0) -> 1315450 | AE19: =IFERROR('A3 - Demanda Anual Agregada '!AE18*'A2 - Preços'!BV17*VLOOKUP($B19,SN_UGC,28,0),0) -> 1315450 | AF19: =IFERROR('A3 - Demanda Anual Agregada '!AF18*'A2 - Preços'!BW17*VLOOKUP($B19,SN_UGC,28,0),0) -> 1315450 | AG19: 0.01561794978
B20: ='A1 - Serviços e demanda'!A33 -> Paraíso - Alimentação | C20: =IFERROR('A3 - Demanda Anual Agregada '!C19*'A2 - Preços'!AT18*VLOOKUP($B20,SN_UGC,28,0),0) -> 0 | D20: =IFERROR('A3 - Demanda Anual Agregada '!D19*'A2 - Preços'!AU18*VLOOKUP($B20,SN_UGC,28,0),0) -> 2284125 | E20: =IFERROR('A3 - Demanda Anual Agregada '!E19*'A2 - Preços'!AV18*VLOOKUP($B20,SN_UGC,28,0),0) -> 2362900 | F20: =IFERROR('A3 - Demanda Anual Agregada '!F19*'A2 - Preços'!AW18*VLOOKUP($B20,SN_UGC,28,0),0) -> 2439225 | G20: =IFERROR('A3 - Demanda Anual Agregada '!G19*'A2 - Preços'!AX18*VLOOKUP($B20,SN_UGC,28,0),0) -> 2516750 | H20: =IFERROR('A3 - Demanda Anual Agregada '!H19*'A2 - Preços'!AY18*VLOOKUP($B20,SN_UGC,28,0),0) -> 2595625 | I20: =IFERROR('A3 - Demanda Anual Agregada '!I19*'A2 - Preços'!AZ18*VLOOKUP($B20,SN_UGC,28,0),0) -> 2676725 | J20: =IFERROR('A3 - Demanda Anual Agregada '!J19*'A2 - Preços'!BA18*VLOOKUP($B20,SN_UGC,28,0),0) -> 2760200 | K20: =IFERROR('A3 - Demanda Anual Agregada '!K19*'A2 - Preços'!BB18*VLOOKUP($B20,SN_UGC,28,0),0) -> 2845200 | L20: =IFERROR('A3 - Demanda Anual Agregada '!L19*'A2 - Preços'!BC18*VLOOKUP($B20,SN_UGC,28,0),0) -> 2931775 | M20: =IFERROR('A3 - Demanda Anual Agregada '!M19*'A2 - Preços'!BD18*VLOOKUP($B20,SN_UGC,28,0),0) -> 3021050 | N20: =IFERROR('A3 - Demanda Anual Agregada '!N19*'A2 - Preços'!BE18*VLOOKUP($B20,SN_UGC,28,0),0) -> 3113000 | O20: =IFERROR('A3 - Demanda Anual Agregada '!O19*'A2 - Preços'!BF18*VLOOKUP($B20,SN_UGC,28,0),0) -> 3207900 | P20: =IFERROR('A3 - Demanda Anual Agregada '!P19*'A2 - Preços'!BG18*VLOOKUP($B20,SN_UGC,28,0),0) -> 3305675 | Q20: =IFERROR('A3 - Demanda Anual Agregada '!Q19*'A2 - Preços'!BH18*VLOOKUP($B20,SN_UGC,28,0),0) -> 3406375 | R20: =IFERROR('A3 - Demanda Anual Agregada '!R19*'A2 - Preços'!BI18*VLOOKUP($B20,SN_UGC,28,0),0) -> 3509825 | S20: =IFERROR('A3 - Demanda Anual Agregada '!S19*'A2 - Preços'!BJ18*VLOOKUP($B20,SN_UGC,28,0),0) -> 3615925 | T20: =IFERROR('A3 - Demanda Anual Agregada '!T19*'A2 - Preços'!BK18*VLOOKUP($B20,SN_UGC,28,0),0) -> 3724275 | U20: =IFERROR('A3 - Demanda Anual Agregada '!U19*'A2 - Preços'!BL18*VLOOKUP($B20,SN_UGC,28,0),0) -> 3834625 | V20: =IFERROR('A3 - Demanda Anual Agregada '!V19*'A2 - Preços'!BM18*VLOOKUP($B20,SN_UGC,28,0),0) -> 3946425 | W20: =IFERROR('A3 - Demanda Anual Agregada '!W19*'A2 - Preços'!BN18*VLOOKUP($B20,SN_UGC,28,0),0) -> 3946425 | X20: =IFERROR('A3 - Demanda Anual Agregada '!X19*'A2 - Preços'!BO18*VLOOKUP($B20,SN_UGC,28,0),0) -> 3946425 | Y20: =IFERROR('A3 - Demanda Anual Agregada '!Y19*'A2 - Preços'!BP18*VLOOKUP($B20,SN_UGC,28,0),0) -> 3946425 | Z20: =IFERROR('A3 - Demanda Anual Agregada '!Z19*'A2 - Preços'!BQ18*VLOOKUP($B20,SN_UGC,28,0),0) -> 3946425 | AA20: =IFERROR('A3 - Demanda Anual Agregada '!AA19*'A2 - Preços'!BR18*VLOOKUP($B20,SN_UGC,28,0),0) -> 3946425 | AB20: =IFERROR('A3 - Demanda Anual Agregada '!AB19*'A2 - Preços'!BS18*VLOOKUP($B20,SN_UGC,28,0),0) -> 3946425 | AC20: =IFERROR('A3 - Demanda Anual Agregada '!AC19*'A2 - Preços'!BT18*VLOOKUP($B20,SN_UGC,28,0),0) -> 3946425 | AD20: =IFERROR('A3 - Demanda Anual Agregada '!AD19*'A2 - Preços'!BU18*VLOOKUP($B20,SN_UGC,28,0),0) -> 3946425 | AE20: =IFERROR('A3 - Demanda Anual Agregada '!AE19*'A2 - Preços'!BV18*VLOOKUP($B20,SN_UGC,28,0),0) -> 3946425 | AF20: =IFERROR('A3 - Demanda Anual Agregada '!AF19*'A2 - Preços'!BW18*VLOOKUP($B20,SN_UGC,28,0),0) -> 3946425 | AG20: 0.04685437762
B21: ='A1 - Serviços e demanda'!A34 -> Paraíso - Comércio + Locação + Atividades | C21: =IFERROR('A3 - Demanda Anual Agregada '!C20*'A2 - Preços'!AT19*VLOOKUP($B21,SN_UGC,28,0),0) -> 0 | D21: =IFERROR('A3 - Demanda Anual Agregada '!D20*'A2 - Preços'!AU19*VLOOKUP($B21,SN_UGC,28,0),0) -> 1294295 | E21: =IFERROR('A3 - Demanda Anual Agregada '!E20*'A2 - Preços'!AV19*VLOOKUP($B21,SN_UGC,28,0),0) -> 1339005 | F21: =IFERROR('A3 - Demanda Anual Agregada '!F20*'A2 - Preços'!AW19*VLOOKUP($B21,SN_UGC,28,0),0) -> 1382185 | G21: =IFERROR('A3 - Demanda Anual Agregada '!G20*'A2 - Preços'!AX19*VLOOKUP($B21,SN_UGC,28,0),0) -> 1426130 | H21: =IFERROR('A3 - Demanda Anual Agregada '!H20*'A2 - Preços'!AY19*VLOOKUP($B21,SN_UGC,28,0),0) -> 1470840 | I21: =IFERROR('A3 - Demanda Anual Agregada '!I20*'A2 - Preços'!AZ19*VLOOKUP($B21,SN_UGC,28,0),0) -> 1516825 | J21: =IFERROR('A3 - Demanda Anual Agregada '!J20*'A2 - Preços'!BA19*VLOOKUP($B21,SN_UGC,28,0),0) -> 1564085 | K21: =IFERROR('A3 - Demanda Anual Agregada '!K20*'A2 - Preços'!BB19*VLOOKUP($B21,SN_UGC,28,0),0) -> 1612280 | L21: =IFERROR('A3 - Demanda Anual Agregada '!L20*'A2 - Preços'!BC19*VLOOKUP($B21,SN_UGC,28,0),0) -> 1661325 | M21: =IFERROR('A3 - Demanda Anual Agregada '!M20*'A2 - Preços'!BD19*VLOOKUP($B21,SN_UGC,28,0),0) -> 1711900 | N21: =IFERROR('A3 - Demanda Anual Agregada '!N20*'A2 - Preços'!BE19*VLOOKUP($B21,SN_UGC,28,0),0) -> 1764005 | O21: =IFERROR('A3 - Demanda Anual Agregada '!O20*'A2 - Preços'!BF19*VLOOKUP($B21,SN_UGC,28,0),0) -> 1817810 | P21: =IFERROR('A3 - Demanda Anual Agregada '!P20*'A2 - Preços'!BG19*VLOOKUP($B21,SN_UGC,28,0),0) -> 1873230 | Q21: =IFERROR('A3 - Demanda Anual Agregada '!Q20*'A2 - Preços'!BH19*VLOOKUP($B21,SN_UGC,28,0),0) -> 1930265 | R21: =IFERROR('A3 - Demanda Anual Agregada '!R20*'A2 - Preços'!BI19*VLOOKUP($B21,SN_UGC,28,0),0) -> 1988915 | S21: =IFERROR('A3 - Demanda Anual Agregada '!S20*'A2 - Preços'!BJ19*VLOOKUP($B21,SN_UGC,28,0),0) -> 2049010 | T21: =IFERROR('A3 - Demanda Anual Agregada '!T20*'A2 - Preços'!BK19*VLOOKUP($B21,SN_UGC,28,0),0) -> 2110465 | U21: =IFERROR('A3 - Demanda Anual Agregada '!U20*'A2 - Preços'!BL19*VLOOKUP($B21,SN_UGC,28,0),0) -> 2172940 | V21: =IFERROR('A3 - Demanda Anual Agregada '!V20*'A2 - Preços'!BM19*VLOOKUP($B21,SN_UGC,28,0),0) -> 2236265 | W21: =IFERROR('A3 - Demanda Anual Agregada '!W20*'A2 - Preços'!BN19*VLOOKUP($B21,SN_UGC,28,0),0) -> 2236265 | X21: =IFERROR('A3 - Demanda Anual Agregada '!X20*'A2 - Preços'!BO19*VLOOKUP($B21,SN_UGC,28,0),0) -> 2236265 | Y21: =IFERROR('A3 - Demanda Anual Agregada '!Y20*'A2 - Preços'!BP19*VLOOKUP($B21,SN_UGC,28,0),0) -> 2236265 | Z21: =IFERROR('A3 - Demanda Anual Agregada '!Z20*'A2 - Preços'!BQ19*VLOOKUP($B21,SN_UGC,28,0),0) -> 2236265 | AA21: =IFERROR('A3 - Demanda Anual Agregada '!AA20*'A2 - Preços'!BR19*VLOOKUP($B21,SN_UGC,28,0),0) -> 2236265 | AB21: =IFERROR('A3 - Demanda Anual Agregada '!AB20*'A2 - Preços'!BS19*VLOOKUP($B21,SN_UGC,28,0),0) -> 2236265 | AC21: =IFERROR('A3 - Demanda Anual Agregada '!AC20*'A2 - Preços'!BT19*VLOOKUP($B21,SN_UGC,28,0),0) -> 2236265 | AD21: =IFERROR('A3 - Demanda Anual Agregada '!AD20*'A2 - Preços'!BU19*VLOOKUP($B21,SN_UGC,28,0),0) -> 2236265 | AE21: =IFERROR('A3 - Demanda Anual Agregada '!AE20*'A2 - Preços'!BV19*VLOOKUP($B21,SN_UGC,28,0),0) -> 2236265 | AF21: =IFERROR('A3 - Demanda Anual Agregada '!AF20*'A2 - Preços'!BW19*VLOOKUP($B21,SN_UGC,28,0),0) -> 2236265 | AG21: 0.02655051463
B22: ='A1 - Serviços e demanda'!A35 -> Geral - Unidade móvel - Alimentação | C22: =IFERROR('A3 - Demanda Anual Agregada '!C21*'A2 - Preços'!AT20*VLOOKUP($B22,SN_UGC,28,0),0) -> 0 | D22: =IFERROR('A3 - Demanda Anual Agregada '!D21*'A2 - Preços'!AU20*VLOOKUP($B22,SN_UGC,28,0),0) -> 571025 | E22: =IFERROR('A3 - Demanda Anual Agregada '!E21*'A2 - Preços'!AV20*VLOOKUP($B22,SN_UGC,28,0),0) -> 590725 | F22: =IFERROR('A3 - Demanda Anual Agregada '!F21*'A2 - Preços'!AW20*VLOOKUP($B22,SN_UGC,28,0),0) -> 609800 | G22: =IFERROR('A3 - Demanda Anual Agregada '!G21*'A2 - Preços'!AX20*VLOOKUP($B22,SN_UGC,28,0),0) -> 629175 | H22: =IFERROR('A3 - Demanda Anual Agregada '!H21*'A2 - Preços'!AY20*VLOOKUP($B22,SN_UGC,28,0),0) -> 648900 | I22: =IFERROR('A3 - Demanda Anual Agregada '!I21*'A2 - Preços'!AZ20*VLOOKUP($B22,SN_UGC,28,0),0) -> 669175 | J22: =IFERROR('A3 - Demanda Anual Agregada '!J21*'A2 - Preços'!BA20*VLOOKUP($B22,SN_UGC,28,0),0) -> 690050 | K22: =IFERROR('A3 - Demanda Anual Agregada '!K21*'A2 - Preços'!BB20*VLOOKUP($B22,SN_UGC,28,0),0) -> 711300 | L22: =IFERROR('A3 - Demanda Anual Agregada '!L21*'A2 - Preços'!BC20*VLOOKUP($B22,SN_UGC,28,0),0) -> 732950 | M22: =IFERROR('A3 - Demanda Anual Agregada '!M21*'A2 - Preços'!BD20*VLOOKUP($B22,SN_UGC,28,0),0) -> 755275 | N22: =IFERROR('A3 - Demanda Anual Agregada '!N21*'A2 - Preços'!BE20*VLOOKUP($B22,SN_UGC,28,0),0) -> 778250 | O22: =IFERROR('A3 - Demanda Anual Agregada '!O21*'A2 - Preços'!BF20*VLOOKUP($B22,SN_UGC,28,0),0) -> 801975 | P22: =IFERROR('A3 - Demanda Anual Agregada '!P21*'A2 - Preços'!BG20*VLOOKUP($B22,SN_UGC,28,0),0) -> 826425 | Q22: =IFERROR('A3 - Demanda Anual Agregada '!Q21*'A2 - Preços'!BH20*VLOOKUP($B22,SN_UGC,28,0),0) -> 851600 | R22: =IFERROR('A3 - Demanda Anual Agregada '!R21*'A2 - Preços'!BI20*VLOOKUP($B22,SN_UGC,28,0),0) -> 877450 | S22: =IFERROR('A3 - Demanda Anual Agregada '!S21*'A2 - Preços'!BJ20*VLOOKUP($B22,SN_UGC,28,0),0) -> 903975 | T22: =IFERROR('A3 - Demanda Anual Agregada '!T21*'A2 - Preços'!BK20*VLOOKUP($B22,SN_UGC,28,0),0) -> 931075 | U22: =IFERROR('A3 - Demanda Anual Agregada '!U21*'A2 - Preços'!BL20*VLOOKUP($B22,SN_UGC,28,0),0) -> 958650 | V22: =IFERROR('A3 - Demanda Anual Agregada '!V21*'A2 - Preços'!BM20*VLOOKUP($B22,SN_UGC,28,0),0) -> 986600 | W22: =IFERROR('A3 - Demanda Anual Agregada '!W21*'A2 - Preços'!BN20*VLOOKUP($B22,SN_UGC,28,0),0) -> 986600 | X22: =IFERROR('A3 - Demanda Anual Agregada '!X21*'A2 - Preços'!BO20*VLOOKUP($B22,SN_UGC,28,0),0) -> 986600 | Y22: =IFERROR('A3 - Demanda Anual Agregada '!Y21*'A2 - Preços'!BP20*VLOOKUP($B22,SN_UGC,28,0),0) -> 986600 | Z22: =IFERROR('A3 - Demanda Anual Agregada '!Z21*'A2 - Preços'!BQ20*VLOOKUP($B22,SN_UGC,28,0),0) -> 986600 | AA22: =IFERROR('A3 - Demanda Anual Agregada '!AA21*'A2 - Preços'!BR20*VLOOKUP($B22,SN_UGC,28,0),0) -> 986600 | AB22: =IFERROR('A3 - Demanda Anual Agregada '!AB21*'A2 - Preços'!BS20*VLOOKUP($B22,SN_UGC,28,0),0) -> 986600 | AC22: =IFERROR('A3 - Demanda Anual Agregada '!AC21*'A2 - Preços'!BT20*VLOOKUP($B22,SN_UGC,28,0),0) -> 986600 | AD22: =IFERROR('A3 - Demanda Anual Agregada '!AD21*'A2 - Preços'!BU20*VLOOKUP($B22,SN_UGC,28,0),0) -> 986600 | AE22: =IFERROR('A3 - Demanda Anual Agregada '!AE21*'A2 - Preços'!BV20*VLOOKUP($B22,SN_UGC,28,0),0) -> 986600 | AF22: =IFERROR('A3 - Demanda Anual Agregada '!AF21*'A2 - Preços'!BW20*VLOOKUP($B22,SN_UGC,28,0),0) -> 986600 | AG22: 0.01171355238
B23: ='A1 - Serviços e demanda'!A36 -> Mangue Seco - Estacionamento | C23: =IFERROR('A3 - Demanda Anual Agregada '!C22*'A2 - Preços'!AT21*VLOOKUP($B23,SN_UGC,28,0),0) -> 0 | D23: =IFERROR('A3 - Demanda Anual Agregada '!D22*'A2 - Preços'!AU21*VLOOKUP($B23,SN_UGC,28,0),0) -> 0 | E23: =IFERROR('A3 - Demanda Anual Agregada '!E22*'A2 - Preços'!AV21*VLOOKUP($B23,SN_UGC,28,0),0) -> 0 | F23: =IFERROR('A3 - Demanda Anual Agregada '!F22*'A2 - Preços'!AW21*VLOOKUP($B23,SN_UGC,28,0),0) -> 0 | G23: =IFERROR('A3 - Demanda Anual Agregada '!G22*'A2 - Preços'!AX21*VLOOKUP($B23,SN_UGC,28,0),0) -> 0 | H23: =IFERROR('A3 - Demanda Anual Agregada '!H22*'A2 - Preços'!AY21*VLOOKUP($B23,SN_UGC,28,0),0) -> 0 | I23: =IFERROR('A3 - Demanda Anual Agregada '!I22*'A2 - Preços'!AZ21*VLOOKUP($B23,SN_UGC,28,0),0) -> 0 | J23: =IFERROR('A3 - Demanda Anual Agregada '!J22*'A2 - Preços'!BA21*VLOOKUP($B23,SN_UGC,28,0),0) -> 0 | K23: =IFERROR('A3 - Demanda Anual Agregada '!K22*'A2 - Preços'!BB21*VLOOKUP($B23,SN_UGC,28,0),0) -> 0 | L23: =IFERROR('A3 - Demanda Anual Agregada '!L22*'A2 - Preços'!BC21*VLOOKUP($B23,SN_UGC,28,0),0) -> 0 | M23: =IFERROR('A3 - Demanda Anual Agregada '!M22*'A2 - Preços'!BD21*VLOOKUP($B23,SN_UGC,28,0),0) -> 0 | N23: =IFERROR('A3 - Demanda Anual Agregada '!N22*'A2 - Preços'!BE21*VLOOKUP($B23,SN_UGC,28,0),0) -> 0 | O23: =IFERROR('A3 - Demanda Anual Agregada '!O22*'A2 - Preços'!BF21*VLOOKUP($B23,SN_UGC,28,0),0) -> 0 | P23: =IFERROR('A3 - Demanda Anual Agregada '!P22*'A2 - Preços'!BG21*VLOOKUP($B23,SN_UGC,28,0),0) -> 0 | Q23: =IFERROR('A3 - Demanda Anual Agregada '!Q22*'A2 - Preços'!BH21*VLOOKUP($B23,SN_UGC,28,0),0) -> 0 | R23: =IFERROR('A3 - Demanda Anual Agregada '!R22*'A2 - Preços'!BI21*VLOOKUP($B23,SN_UGC,28,0),0) -> 0 | S23: =IFERROR('A3 - Demanda Anual Agregada '!S22*'A2 - Preços'!BJ21*VLOOKUP($B23,SN_UGC,28,0),0) -> 0 | T23: =IFERROR('A3 - Demanda Anual Agregada '!T22*'A2 - Preços'!BK21*VLOOKUP($B23,SN_UGC,28,0),0) -> 0 | U23: =IFERROR('A3 - Demanda Anual Agregada '!U22*'A2 - Preços'!BL21*VLOOKUP($B23,SN_UGC,28,0),0) -> 0 | V23: =IFERROR('A3 - Demanda Anual Agregada '!V22*'A2 - Preços'!BM21*VLOOKUP($B23,SN_UGC,28,0),0) -> 0 | W23: =IFERROR('A3 - Demanda Anual Agregada '!W22*'A2 - Preços'!BN21*VLOOKUP($B23,SN_UGC,28,0),0) -> 0 | X23: =IFERROR('A3 - Demanda Anual Agregada '!X22*'A2 - Preços'!BO21*VLOOKUP($B23,SN_UGC,28,0),0) -> 0 | Y23: =IFERROR('A3 - Demanda Anual Agregada '!Y22*'A2 - Preços'!BP21*VLOOKUP($B23,SN_UGC,28,0),0) -> 0 | Z23: =IFERROR('A3 - Demanda Anual Agregada '!Z22*'A2 - Preços'!BQ21*VLOOKUP($B23,SN_UGC,28,0),0) -> 0 | AA23: =IFERROR('A3 - Demanda Anual Agregada '!AA22*'A2 - Preços'!BR21*VLOOKUP($B23,SN_UGC,28,0),0) -> 0 | AB23: =IFERROR('A3 - Demanda Anual Agregada '!AB22*'A2 - Preços'!BS21*VLOOKUP($B23,SN_UGC,28,0),0) -> 0 | AC23: =IFERROR('A3 - Demanda Anual Agregada '!AC22*'A2 - Preços'!BT21*VLOOKUP($B23,SN_UGC,28,0),0) -> 0 | AD23: =IFERROR('A3 - Demanda Anual Agregada '!AD22*'A2 - Preços'!BU21*VLOOKUP($B23,SN_UGC,28,0),0) -> 0 | AE23: =IFERROR('A3 - Demanda Anual Agregada '!AE22*'A2 - Preços'!BV21*VLOOKUP($B23,SN_UGC,28,0),0) -> 0 | AF23: =IFERROR('A3 - Demanda Anual Agregada '!AF22*'A2 - Preços'!BW21*VLOOKUP($B23,SN_UGC,28,0),0) -> 0 | AG23: 0
B24: ='A1 - Serviços e demanda'!A37 -> Lagoa Grande - Estacionamento | C24: =IFERROR('A3 - Demanda Anual Agregada '!C23*'A2 - Preços'!AT22*VLOOKUP($B24,SN_UGC,28,0),0) -> 0 | D24: =IFERROR('A3 - Demanda Anual Agregada '!D23*'A2 - Preços'!AU22*VLOOKUP($B24,SN_UGC,28,0),0) -> 0 | E24: =IFERROR('A3 - Demanda Anual Agregada '!E23*'A2 - Preços'!AV22*VLOOKUP($B24,SN_UGC,28,0),0) -> 0 | F24: =IFERROR('A3 - Demanda Anual Agregada '!F23*'A2 - Preços'!AW22*VLOOKUP($B24,SN_UGC,28,0),0) -> 0 | G24: =IFERROR('A3 - Demanda Anual Agregada '!G23*'A2 - Preços'!AX22*VLOOKUP($B24,SN_UGC,28,0),0) -> 0 | H24: =IFERROR('A3 - Demanda Anual Agregada '!H23*'A2 - Preços'!AY22*VLOOKUP($B24,SN_UGC,28,0),0) -> 0 | I24: =IFERROR('A3 - Demanda Anual Agregada '!I23*'A2 - Preços'!AZ22*VLOOKUP($B24,SN_UGC,28,0),0) -> 0 | J24: =IFERROR('A3 - Demanda Anual Agregada '!J23*'A2 - Preços'!BA22*VLOOKUP($B24,SN_UGC,28,0),0) -> 0 | K24: =IFERROR('A3 - Demanda Anual Agregada '!K23*'A2 - Preços'!BB22*VLOOKUP($B24,SN_UGC,28,0),0) -> 0 | L24: =IFERROR('A3 - Demanda Anual Agregada '!L23*'A2 - Preços'!BC22*VLOOKUP($B24,SN_UGC,28,0),0) -> 0 | M24: =IFERROR('A3 - Demanda Anual Agregada '!M23*'A2 - Preços'!BD22*VLOOKUP($B24,SN_UGC,28,0),0) -> 0 | N24: =IFERROR('A3 - Demanda Anual Agregada '!N23*'A2 - Preços'!BE22*VLOOKUP($B24,SN_UGC,28,0),0) -> 0 | O24: =IFERROR('A3 - Demanda Anual Agregada '!O23*'A2 - Preços'!BF22*VLOOKUP($B24,SN_UGC,28,0),0) -> 0 | P24: =IFERROR('A3 - Demanda Anual Agregada '!P23*'A2 - Preços'!BG22*VLOOKUP($B24,SN_UGC,28,0),0) -> 0 | Q24: =IFERROR('A3 - Demanda Anual Agregada '!Q23*'A2 - Preços'!BH22*VLOOKUP($B24,SN_UGC,28,0),0) -> 0 | R24: =IFERROR('A3 - Demanda Anual Agregada '!R23*'A2 - Preços'!BI22*VLOOKUP($B24,SN_UGC,28,0),0) -> 0 | S24: =IFERROR('A3 - Demanda Anual Agregada '!S23*'A2 - Preços'!BJ22*VLOOKUP($B24,SN_UGC,28,0),0) -> 0 | T24: =IFERROR('A3 - Demanda Anual Agregada '!T23*'A2 - Preços'!BK22*VLOOKUP($B24,SN_UGC,28,0),0) -> 0 | U24: =IFERROR('A3 - Demanda Anual Agregada '!U23*'A2 - Preços'!BL22*VLOOKUP($B24,SN_UGC,28,0),0) -> 0 | V24: =IFERROR('A3 - Demanda Anual Agregada '!V23*'A2 - Preços'!BM22*VLOOKUP($B24,SN_UGC,28,0),0) -> 0 | W24: =IFERROR('A3 - Demanda Anual Agregada '!W23*'A2 - Preços'!BN22*VLOOKUP($B24,SN_UGC,28,0),0) -> 0 | X24: =IFERROR('A3 - Demanda Anual Agregada '!X23*'A2 - Preços'!BO22*VLOOKUP($B24,SN_UGC,28,0),0) -> 0 | Y24: =IFERROR('A3 - Demanda Anual Agregada '!Y23*'A2 - Preços'!BP22*VLOOKUP($B24,SN_UGC,28,0),0) -> 0 | Z24: =IFERROR('A3 - Demanda Anual Agregada '!Z23*'A2 - Preços'!BQ22*VLOOKUP($B24,SN_UGC,28,0),0) -> 0 | AA24: =IFERROR('A3 - Demanda Anual Agregada '!AA23*'A2 - Preços'!BR22*VLOOKUP($B24,SN_UGC,28,0),0) -> 0 | AB24: =IFERROR('A3 - Demanda Anual Agregada '!AB23*'A2 - Preços'!BS22*VLOOKUP($B24,SN_UGC,28,0),0) -> 0 | AC24: =IFERROR('A3 - Demanda Anual Agregada '!AC23*'A2 - Preços'!BT22*VLOOKUP($B24,SN_UGC,28,0),0) -> 0 | AD24: =IFERROR('A3 - Demanda Anual Agregada '!AD23*'A2 - Preços'!BU22*VLOOKUP($B24,SN_UGC,28,0),0) -> 0 | AE24: =IFERROR('A3 - Demanda Anual Agregada '!AE23*'A2 - Preços'!BV22*VLOOKUP($B24,SN_UGC,28,0),0) -> 0 | AF24: =IFERROR('A3 - Demanda Anual Agregada '!AF23*'A2 - Preços'!BW22*VLOOKUP($B24,SN_UGC,28,0),0) -> 0 | AG24: 0
B25: ='A1 - Serviços e demanda'!A38 -> 0 | C25: =IFERROR('A3 - Demanda Anual Agregada '!C24*'A2 - Preços'!AT23*VLOOKUP($B25,SN_UGC,28,0),0) -> 0 | D25: =IFERROR('A3 - Demanda Anual Agregada '!D24*'A2 - Preços'!AU23*VLOOKUP($B25,SN_UGC,28,0),0) -> 0 | E25: =IFERROR('A3 - Demanda Anual Agregada '!E24*'A2 - Preços'!AV23*VLOOKUP($B25,SN_UGC,28,0),0) -> 0 | F25: =IFERROR('A3 - Demanda Anual Agregada '!F24*'A2 - Preços'!AW23*VLOOKUP($B25,SN_UGC,28,0),0) -> 0 | G25: =IFERROR('A3 - Demanda Anual Agregada '!G24*'A2 - Preços'!AX23*VLOOKUP($B25,SN_UGC,28,0),0) -> 0 | H25: =IFERROR('A3 - Demanda Anual Agregada '!H24*'A2 - Preços'!AY23*VLOOKUP($B25,SN_UGC,28,0),0) -> 0 | I25: =IFERROR('A3 - Demanda Anual Agregada '!I24*'A2 - Preços'!AZ23*VLOOKUP($B25,SN_UGC,28,0),0) -> 0 | J25: =IFERROR('A3 - Demanda Anual Agregada '!J24*'A2 - Preços'!BA23*VLOOKUP($B25,SN_UGC,28,0),0) -> 0 | K25: =IFERROR('A3 - Demanda Anual Agregada '!K24*'A2 - Preços'!BB23*VLOOKUP($B25,SN_UGC,28,0),0) -> 0 | L25: =IFERROR('A3 - Demanda Anual Agregada '!L24*'A2 - Preços'!BC23*VLOOKUP($B25,SN_UGC,28,0),0) -> 0 | M25: =IFERROR('A3 - Demanda Anual Agregada '!M24*'A2 - Preços'!BD23*VLOOKUP($B25,SN_UGC,28,0),0) -> 0 | N25: =IFERROR('A3 - Demanda Anual Agregada '!N24*'A2 - Preços'!BE23*VLOOKUP($B25,SN_UGC,28,0),0) -> 0 | O25: =IFERROR('A3 - Demanda Anual Agregada '!O24*'A2 - Preços'!BF23*VLOOKUP($B25,SN_UGC,28,0),0) -> 0 | P25: =IFERROR('A3 - Demanda Anual Agregada '!P24*'A2 - Preços'!BG23*VLOOKUP($B25,SN_UGC,28,0),0) -> 0 | Q25: =IFERROR('A3 - Demanda Anual Agregada '!Q24*'A2 - Preços'!BH23*VLOOKUP($B25,SN_UGC,28,0),0) -> 0 | R25: =IFERROR('A3 - Demanda Anual Agregada '!R24*'A2 - Preços'!BI23*VLOOKUP($B25,SN_UGC,28,0),0) -> 0 | S25: =IFERROR('A3 - Demanda Anual Agregada '!S24*'A2 - Preços'!BJ23*VLOOKUP($B25,SN_UGC,28,0),0) -> 0 | T25: =IFERROR('A3 - Demanda Anual Agregada '!T24*'A2 - Preços'!BK23*VLOOKUP($B25,SN_UGC,28,0),0) -> 0 | U25: =IFERROR('A3 - Demanda Anual Agregada '!U24*'A2 - Preços'!BL23*VLOOKUP($B25,SN_UGC,28,0),0) -> 0 | V25: =IFERROR('A3 - Demanda Anual Agregada '!V24*'A2 - Preços'!BM23*VLOOKUP($B25,SN_UGC,28,0),0) -> 0 | W25: =IFERROR('A3 - Demanda Anual Agregada '!W24*'A2 - Preços'!BN23*VLOOKUP($B25,SN_UGC,28,0),0) -> 0 | X25: =IFERROR('A3 - Demanda Anual Agregada '!X24*'A2 - Preços'!BO23*VLOOKUP($B25,SN_UGC,28,0),0) -> 0 | Y25: =IFERROR('A3 - Demanda Anual Agregada '!Y24*'A2 - Preços'!BP23*VLOOKUP($B25,SN_UGC,28,0),0) -> 0 | Z25: =IFERROR('A3 - Demanda Anual Agregada '!Z24*'A2 - Preços'!BQ23*VLOOKUP($B25,SN_UGC,28,0),0) -> 0 | AA25: =IFERROR('A3 - Demanda Anual Agregada '!AA24*'A2 - Preços'!BR23*VLOOKUP($B25,SN_UGC,28,0),0) -> 0 | AB25: =IFERROR('A3 - Demanda Anual Agregada '!AB24*'A2 - Preços'!BS23*VLOOKUP($B25,SN_UGC,28,0),0) -> 0 | AC25: =IFERROR('A3 - Demanda Anual Agregada '!AC24*'A2 - Preços'!BT23*VLOOKUP($B25,SN_UGC,28,0),0) -> 0 | AD25: =IFERROR('A3 - Demanda Anual Agregada '!AD24*'A2 - Preços'!BU23*VLOOKUP($B25,SN_UGC,28,0),0) -> 0 | AE25: =IFERROR('A3 - Demanda Anual Agregada '!AE24*'A2 - Preços'!BV23*VLOOKUP($B25,SN_UGC,28,0),0) -> 0 | AF25: =IFERROR('A3 - Demanda Anual Agregada '!AF24*'A2 - Preços'!BW23*VLOOKUP($B25,SN_UGC,28,0),0) -> 0 | AG25: 0
B26: ='A1 - Serviços e demanda'!A39 -> 0 | C26: =IFERROR('A3 - Demanda Anual Agregada '!C25*'A2 - Preços'!AT24*VLOOKUP($B26,SN_UGC,28,0),0) -> 0 | D26: =IFERROR('A3 - Demanda Anual Agregada '!D25*'A2 - Preços'!AU24*VLOOKUP($B26,SN_UGC,28,0),0) -> 0 | E26: =IFERROR('A3 - Demanda Anual Agregada '!E25*'A2 - Preços'!AV24*VLOOKUP($B26,SN_UGC,28,0),0) -> 0 | F26: =IFERROR('A3 - Demanda Anual Agregada '!F25*'A2 - Preços'!AW24*VLOOKUP($B26,SN_UGC,28,0),0) -> 0 | G26: =IFERROR('A3 - Demanda Anual Agregada '!G25*'A2 - Preços'!AX24*VLOOKUP($B26,SN_UGC,28,0),0) -> 0 | H26: =IFERROR('A3 - Demanda Anual Agregada '!H25*'A2 - Preços'!AY24*VLOOKUP($B26,SN_UGC,28,0),0) -> 0 | I26: =IFERROR('A3 - Demanda Anual Agregada '!I25*'A2 - Preços'!AZ24*VLOOKUP($B26,SN_UGC,28,0),0) -> 0 | J26: =IFERROR('A3 - Demanda Anual Agregada '!J25*'A2 - Preços'!BA24*VLOOKUP($B26,SN_UGC,28,0),0) -> 0 | K26: =IFERROR('A3 - Demanda Anual Agregada '!K25*'A2 - Preços'!BB24*VLOOKUP($B26,SN_UGC,28,0),0) -> 0 | L26: =IFERROR('A3 - Demanda Anual Agregada '!L25*'A2 - Preços'!BC24*VLOOKUP($B26,SN_UGC,28,0),0) -> 0 | M26: =IFERROR('A3 - Demanda Anual Agregada '!M25*'A2 - Preços'!BD24*VLOOKUP($B26,SN_UGC,28,0),0) -> 0 | N26: =IFERROR('A3 - Demanda Anual Agregada '!N25*'A2 - Preços'!BE24*VLOOKUP($B26,SN_UGC,28,0),0) -> 0 | O26: =IFERROR('A3 - Demanda Anual Agregada '!O25*'A2 - Preços'!BF24*VLOOKUP($B26,SN_UGC,28,0),0) -> 0 | P26: =IFERROR('A3 - Demanda Anual Agregada '!P25*'A2 - Preços'!BG24*VLOOKUP($B26,SN_UGC,28,0),0) -> 0 | Q26: =IFERROR('A3 - Demanda Anual Agregada '!Q25*'A2 - Preços'!BH24*VLOOKUP($B26,SN_UGC,28,0),0) -> 0 | R26: =IFERROR('A3 - Demanda Anual Agregada '!R25*'A2 - Preços'!BI24*VLOOKUP($B26,SN_UGC,28,0),0) -> 0 | S26: =IFERROR('A3 - Demanda Anual Agregada '!S25*'A2 - Preços'!BJ24*VLOOKUP($B26,SN_UGC,28,0),0) -> 0 | T26: =IFERROR('A3 - Demanda Anual Agregada '!T25*'A2 - Preços'!BK24*VLOOKUP($B26,SN_UGC,28,0),0) -> 0 | U26: =IFERROR('A3 - Demanda Anual Agregada '!U25*'A2 - Preços'!BL24*VLOOKUP($B26,SN_UGC,28,0),0) -> 0 | V26: =IFERROR('A3 - Demanda Anual Agregada '!V25*'A2 - Preços'!BM24*VLOOKUP($B26,SN_UGC,28,0),0) -> 0 | W26: =IFERROR('A3 - Demanda Anual Agregada '!W25*'A2 - Preços'!BN24*VLOOKUP($B26,SN_UGC,28,0),0) -> 0 | X26: =IFERROR('A3 - Demanda Anual Agregada '!X25*'A2 - Preços'!BO24*VLOOKUP($B26,SN_UGC,28,0),0) -> 0 | Y26: =IFERROR('A3 - Demanda Anual Agregada '!Y25*'A2 - Preços'!BP24*VLOOKUP($B26,SN_UGC,28,0),0) -> 0 | Z26: =IFERROR('A3 - Demanda Anual Agregada '!Z25*'A2 - Preços'!BQ24*VLOOKUP($B26,SN_UGC,28,0),0) -> 0 | AA26: =IFERROR('A3 - Demanda Anual Agregada '!AA25*'A2 - Preços'!BR24*VLOOKUP($B26,SN_UGC,28,0),0) -> 0 | AB26: =IFERROR('A3 - Demanda Anual Agregada '!AB25*'A2 - Preços'!BS24*VLOOKUP($B26,SN_UGC,28,0),0) -> 0 | AC26: =IFERROR('A3 - Demanda Anual Agregada '!AC25*'A2 - Preços'!BT24*VLOOKUP($B26,SN_UGC,28,0),0) -> 0 | AD26: =IFERROR('A3 - Demanda Anual Agregada '!AD25*'A2 - Preços'!BU24*VLOOKUP($B26,SN_UGC,28,0),0) -> 0 | AE26: =IFERROR('A3 - Demanda Anual Agregada '!AE25*'A2 - Preços'!BV24*VLOOKUP($B26,SN_UGC,28,0),0) -> 0 | AF26: =IFERROR('A3 - Demanda Anual Agregada '!AF25*'A2 - Preços'!BW24*VLOOKUP($B26,SN_UGC,28,0),0) -> 0 | AG26: 0
B27: Receita Bruta Total | C27: =SUM(C7:C26) -> 14903649 | D27: 48400379 | E27: 50070027 | F27: 51686921 | G27: 53329663 | H27: 55001159 | I27: 56719844 | J27: 58488489 | K27: 60289626 | L27: 62124163 | M27: 64015994 | N27: 65964483 | O27: 67975428 | P27: 70047199 | Q27: 72180910 | R27: 74373233 | S27: 76621343 | T27: 78917563 | U27: 81255488 | V27: 83624543 | W27: 83624543 | X27: 83624543 | Y27: 83624543 | Z27: 83624543 | AA27: 83624543 | AB27: 83624543 | AC27: 83624543 | AD27: 83624543 | AE27: 83624543 | AF27: 83624543
B29: Gasto Médio por visitante : | C29: =C27/'A1 - Serviços e demanda'!B70 -> 13.5 | D29: =D27/'A1 - Serviços e demanda'!C70 -> 42.3798916 | E29: =E27/'A1 - Serviços e demanda'!D70 -> 42.38004136 | F29: =F27/'A1 - Serviços e demanda'!E70 -> 42.3799111 | G29: =G27/'A1 - Serviços e demanda'!F70 -> 42.37995423 | H29: =H27/'A1 - Serviços e demanda'!G70 -> 42.37997781 | I29: =I27/'A1 - Serviços e demanda'!H70 -> 42.38001499 | J29: =J27/'A1 - Serviços e demanda'!I70 -> 42.37995345 | K29: =K27/'A1 - Serviços e demanda'!J70 -> 42.38006487 | L29: =L27/'A1 - Serviços e demanda'!K70 -> 42.38002828 | M29: =M27/'A1 - Serviços e demanda'!L70 -> 42.37996326 | N29: =N27/'A1 - Serviços e demanda'!M70 -> 42.37989944 | O29: =O27/'A1 - Serviços e demanda'!N70 -> 42.37999041 | P29: =P27/'A1 - Serviços e demanda'!O70 -> 42.38008256 | Q29: =Q27/'A1 - Serviços e demanda'!P70 -> 42.38003337 | R29: =R27/'A1 - Serviços e demanda'!Q70 -> 42.38001143 | S29: =S27/'A1 - Serviços e demanda'!R70 -> 42.37997556 | T29: =T27/'A1 - Serviços e demanda'!S70 -> 42.380083 | U29: =U27/'A1 - Serviços e demanda'!T70 -> 42.38000904 | V29: =V27/'A1 - Serviços e demanda'!U70 -> 42.37992947 | W29: =W27/'A1 - Serviços e demanda'!V70 -> 42.37992947 | X29: =X27/'A1 - Serviços e demanda'!W70 -> 42.37992947 | Y29: =Y27/'A1 - Serviços e demanda'!X70 -> 42.37992947 | Z29: =Z27/'A1 - Serviços e demanda'!Y70 -> 42.37992947 | AA29: =AA27/'A1 - Serviços e demanda'!Z70 -> 42.37992947 | AB29: =AB27/'A1 - Serviços e demanda'!AA70 -> 42.37992947 | AC29: =AC27/'A1 - Serviços e demanda'!AB70 -> 42.37992947 | AD29: =AD27/'A1 - Serviços e demanda'!AC70 -> 42.37992947 | AE29: =AE27/'A1 - Serviços e demanda'!AD70 -> 42.37992947 | AF29: =AF27/'A1 - Serviços e demanda'!AE70 -> 42.37992947
C31: 1 | D31: 2 | E31: 3 | F31: 4 | G31: 5 | H31: 6 | I31: 7 | J31: 8 | K31: 9 | L31: 10 | M31: 11 | N31: 12 | O31: 13 | P31: 14 | Q31: 15 | R31: 16 | S31: 17 | T31: 18 | U31: 19 | V31: 20 | W31: 21 | X31: 22 | Y31: 23 | Z31: 24 | AA31: 25 | AB31: 26 | AC31: 27 | AD31: 28 | AE31: 29 | AF31: 30
B32: Geral | C32: =SUM(C7,C22)/'A1 - Serviços e demanda'!B70 -> 13.5 | D32: =SUM(D7,D22)/'A1 - Serviços e demanda'!C70 -> 27.49999562 | E32: =SUM(E7,E22)/'A1 - Serviços e demanda'!D70 -> 27.49999873 | F32: =SUM(F7,F22)/'A1 - Serviços e demanda'!E70 -> 27.49999631 | G32: =SUM(G7,G22)/'A1 - Serviços e demanda'!F70 -> 27.49999205 | H32: =SUM(H7,H22)/'A1 - Serviços e demanda'!G70 -> 27.49999615 | I32: =SUM(I7,I22)/'A1 - Serviços e demanda'!H70 -> 27.49999514 | J32: =SUM(J7,J22)/'A1 - Serviços e demanda'!I70 -> 27.50000072 | K32: =SUM(K7,K22)/'A1 - Serviços e demanda'!J70 -> 27.50000211 | L32: =SUM(L7,L22)/'A1 - Serviços e demanda'!K70 -> 27.5000058 | M32: =SUM(M7,M22)/'A1 - Serviços e demanda'!L70 -> 27.50000828 | N32: =SUM(N7,N22)/'A1 - Serviços e demanda'!M70 -> 27.49999872 | O32: =SUM(O7,O22)/'A1 - Serviços e demanda'!N70 -> 27.49999969 | P32: =SUM(P7,P22)/'A1 - Serviços e demanda'!O70 -> 27.50000514 | Q32: =SUM(Q7,Q22)/'A1 - Serviços e demanda'!P70 -> 27.50000528 | R32: =SUM(R7,R22)/'A1 - Serviços e demanda'!Q70 -> 27.4999963 | S32: =SUM(S7,S22)/'A1 - Serviços e demanda'!R70 -> 27.49999696 | T32: =SUM(T7,T22)/'A1 - Serviços e demanda'!S70 -> 27.50000322 | U32: =SUM(U7,U22)/'A1 - Serviços e demanda'!T70 -> 27.49999817 | V32: =SUM(V7,V22)/'A1 - Serviços e demanda'!U70 -> 27.49999721 | W32: =SUM(W7,W22)/'A1 - Serviços e demanda'!V70 -> 27.49999721 | X32: =SUM(X7,X22)/'A1 - Serviços e demanda'!W70 -> 27.49999721 | Y32: =SUM(Y7,Y22)/'A1 - Serviços e demanda'!X70 -> 27.49999721 | Z32: =SUM(Z7,Z22)/'A1 - Serviços e demanda'!Y70 -> 27.49999721 | AA32: =SUM(AA7,AA22)/'A1 - Serviços e demanda'!Z70 -> 27.49999721 | AB32: =SUM(AB7,AB22)/'A1 - Serviços e demanda'!AA70 -> 27.49999721 | AC32: =SUM(AC7,AC22)/'A1 - Serviços e demanda'!AB70 -> 27.49999721 | AD32: =SUM(AD7,AD22)/'A1 - Serviços e demanda'!AC70 -> 27.49999721 | AE32: =SUM(AE7,AE22)/'A1 - Serviços e demanda'!AD70 -> 27.49999721 | AF32: =SUM(AF7,AF22)/'A1 - Serviços e demanda'!AE70 -> 27.49999721
B33: Preá | C33: =SUM(C8:C10)/'A1 - Serviços e demanda'!B70 -> 0 | D33: =SUM(D8:D10)/'A1 - Serviços e demanda'!C70 -> 3.746641157 | E33: =SUM(E8:E10)/'A1 - Serviços e demanda'!D70 -> 3.74667126 | F33: =SUM(F8:F10)/'A1 - Serviços e demanda'!E70 -> 3.746645851 | G33: =SUM(G8:G10)/'A1 - Serviços e demanda'!F70 -> 3.746646853 | H33: =SUM(H8:H10)/'A1 - Serviços e demanda'!G70 -> 3.746657061 | I33: =SUM(I8:I10)/'A1 - Serviços e demanda'!H70 -> 3.746661407 | J33: =SUM(J8:J10)/'A1 - Serviços e demanda'!I70 -> 3.74666002 | K33: =SUM(K8:K10)/'A1 - Serviços e demanda'!J70 -> 3.746682469 | L33: =SUM(L8:L10)/'A1 - Serviços e demanda'!K70 -> 3.746681693 | M33: =SUM(M8:M10)/'A1 - Serviços e demanda'!L70 -> 3.746673508 | N33: =SUM(N8:N10)/'A1 - Serviços e demanda'!M70 -> 3.74664633 | O33: =SUM(O8:O10)/'A1 - Serviços e demanda'!N70 -> 3.746664331 | P33: =SUM(P8:P10)/'A1 - Serviços e demanda'!O70 -> 3.746690077 | Q33: =SUM(Q8:Q10)/'A1 - Serviços e demanda'!P70 -> 3.746681799 | R33: =SUM(R8:R10)/'A1 - Serviços e demanda'!Q70 -> 3.746662655 | S33: =SUM(S8:S10)/'A1 - Serviços e demanda'!R70 -> 3.746657699 | T33: =SUM(T8:T10)/'A1 - Serviços e demanda'!S70 -> 3.746686336 | U33: =SUM(U8:U10)/'A1 - Serviços e demanda'!T70 -> 3.746666027 | V33: =SUM(V8:V10)/'A1 - Serviços e demanda'!U70 -> 3.746650003 | W33: =SUM(W8:W10)/'A1 - Serviços e demanda'!V70 -> 3.746650003 | X33: =SUM(X8:X10)/'A1 - Serviços e demanda'!W70 -> 3.746650003 | Y33: =SUM(Y8:Y10)/'A1 - Serviços e demanda'!X70 -> 3.746650003 | Z33: =SUM(Z8:Z10)/'A1 - Serviços e demanda'!Y70 -> 3.746650003 | AA33: =SUM(AA8:AA10)/'A1 - Serviços e demanda'!Z70 -> 3.746650003 | AB33: =SUM(AB8:AB10)/'A1 - Serviços e demanda'!AA70 -> 3.746650003 | AC33: =SUM(AC8:AC10)/'A1 - Serviços e demanda'!AB70 -> 3.746650003 | AD33: =SUM(AD8:AD10)/'A1 - Serviços e demanda'!AC70 -> 3.746650003 | AE33: =SUM(AE8:AE10)/'A1 - Serviços e demanda'!AD70 -> 3.746650003 | AF33: =SUM(AF8:AF10)/'A1 - Serviços e demanda'!AE70 -> 3.746650003
B34: Árvore da Preguiça | C34: =SUM(C11:C12)/'A1 - Serviços e demanda'!B70 -> 0 | D34: =SUM(D11:D12)/'A1 - Serviços e demanda'!C70 -> 2.666650614 | E34: =SUM(E11:E12)/'A1 - Serviços e demanda'!D70 -> 2.666674002 | F34: =SUM(F11:F12)/'A1 - Serviços e demanda'!E70 -> 2.666653821 | G34: =SUM(G11:G12)/'A1 - Serviços e demanda'!F70 -> 2.666664018 | H34: =SUM(H11:H12)/'A1 - Serviços e demanda'!G70 -> 2.666665382 | I34: =SUM(I11:I12)/'A1 - Serviços e demanda'!H70 -> 2.666671897 | J34: =SUM(J11:J12)/'A1 - Serviços e demanda'!I70 -> 2.666658455 | K34: =SUM(K11:K12)/'A1 - Serviços e demanda'!J70 -> 2.666677914 | L34: =SUM(L11:L12)/'A1 - Serviços e demanda'!K70 -> 2.666669168 | M34: =SUM(M11:M12)/'A1 - Serviços e demanda'!L70 -> 2.666655633 | N34: =SUM(N11:N12)/'A1 - Serviços e demanda'!M70 -> 2.666649106 | O34: =SUM(O11:O12)/'A1 - Serviços e demanda'!N70 -> 2.666665004 | P34: =SUM(P11:P12)/'A1 - Serviços e demanda'!O70 -> 2.666678969 | Q34: =SUM(Q11:Q12)/'A1 - Serviços e demanda'!P70 -> 2.666670385 | R34: =SUM(R11:R12)/'A1 - Serviços e demanda'!Q70 -> 2.666670655 | S34: =SUM(S11:S12)/'A1 - Serviços e demanda'!R70 -> 2.66666427 | T34: =SUM(T11:T12)/'A1 - Serviços e demanda'!S70 -> 2.666679376 | U34: =SUM(U11:U12)/'A1 - Serviços e demanda'!T70 -> 2.66666997 | V34: =SUM(V11:V12)/'A1 - Serviços e demanda'!U70 -> 2.666656024 | W34: =SUM(W11:W12)/'A1 - Serviços e demanda'!V70 -> 2.666656024 | X34: =SUM(X11:X12)/'A1 - Serviços e demanda'!W70 -> 2.666656024 | Y34: =SUM(Y11:Y12)/'A1 - Serviços e demanda'!X70 -> 2.666656024 | Z34: =SUM(Z11:Z12)/'A1 - Serviços e demanda'!Y70 -> 2.666656024 | AA34: =SUM(AA11:AA12)/'A1 - Serviços e demanda'!Z70 -> 2.666656024 | AB34: =SUM(AB11:AB12)/'A1 - Serviços e demanda'!AA70 -> 2.666656024 | AC34: =SUM(AC11:AC12)/'A1 - Serviços e demanda'!AB70 -> 2.666656024 | AD34: =SUM(AD11:AD12)/'A1 - Serviços e demanda'!AC70 -> 2.666656024 | AE34: =SUM(AE11:AE12)/'A1 - Serviços e demanda'!AD70 -> 2.666656024 | AF34: =SUM(AF11:AF12)/'A1 - Serviços e demanda'!AE70 -> 2.666656024
B35: Silveira | C35: =SUM(C13:C15)/'A1 - Serviços e demanda'!B70 -> 0 | D35: =SUM(D13:D15)/'A1 - Serviços e demanda'!C70 -> 0 | E35: =SUM(E13:E15)/'A1 - Serviços e demanda'!D70 -> 0 | F35: =SUM(F13:F15)/'A1 - Serviços e demanda'!E70 -> 0 | G35: =SUM(G13:G15)/'A1 - Serviços e demanda'!F70 -> 0 | H35: =SUM(H13:H15)/'A1 - Serviços e demanda'!G70 -> 0 | I35: =SUM(I13:I15)/'A1 - Serviços e demanda'!H70 -> 0 | J35: =SUM(J13:J15)/'A1 - Serviços e demanda'!I70 -> 0 | K35: =SUM(K13:K15)/'A1 - Serviços e demanda'!J70 -> 0 | L35: =SUM(L13:L15)/'A1 - Serviços e demanda'!K70 -> 0 | M35: =SUM(M13:M15)/'A1 - Serviços e demanda'!L70 -> 0 | N35: =SUM(N13:N15)/'A1 - Serviços e demanda'!M70 -> 0 | O35: =SUM(O13:O15)/'A1 - Serviços e demanda'!N70 -> 0 | P35: =SUM(P13:P15)/'A1 - Serviços e demanda'!O70 -> 0 | Q35: =SUM(Q13:Q15)/'A1 - Serviços e demanda'!P70 -> 0 | R35: =SUM(R13:R15)/'A1 - Serviços e demanda'!Q70 -> 0 | S35: =SUM(S13:S15)/'A1 - Serviços e demanda'!R70 -> 0 | T35: =SUM(T13:T15)/'A1 - Serviços e demanda'!S70 -> 0 | U35: =SUM(U13:U15)/'A1 - Serviços e demanda'!T70 -> 0 | V35: =SUM(V13:V15)/'A1 - Serviços e demanda'!U70 -> 0 | W35: =SUM(W13:W15)/'A1 - Serviços e demanda'!V70 -> 0 | X35: =SUM(X13:X15)/'A1 - Serviços e demanda'!W70 -> 0 | Y35: =SUM(Y13:Y15)/'A1 - Serviços e demanda'!X70 -> 0 | Z35: =SUM(Z13:Z15)/'A1 - Serviços e demanda'!Y70 -> 0 | AA35: =SUM(AA13:AA15)/'A1 - Serviços e demanda'!Z70 -> 0 | AB35: =SUM(AB13:AB15)/'A1 - Serviços e demanda'!AA70 -> 0 | AC35: =SUM(AC13:AC15)/'A1 - Serviços e demanda'!AB70 -> 0 | AD35: =SUM(AD13:AD15)/'A1 - Serviços e demanda'!AC70 -> 0 | AE35: =SUM(AE13:AE15)/'A1 - Serviços e demanda'!AD70 -> 0 | AF35: =SUM(AF13:AF15)/'A1 - Serviços e demanda'!AE70 -> 0
B36: Pedra Furada | C36: =SUM(C16:C17)/'A1 - Serviços e demanda'!B70 -> 0 | D36: =SUM(D16:D17)/'A1 - Serviços e demanda'!C70 -> 2.666650614 | E36: =SUM(E16:E17)/'A1 - Serviços e demanda'!D70 -> 2.666674002 | F36: =SUM(F16:F17)/'A1 - Serviços e demanda'!E70 -> 2.666653821 | G36: =SUM(G16:G17)/'A1 - Serviços e demanda'!F70 -> 2.666664018 | H36: =SUM(H16:H17)/'A1 - Serviços e demanda'!G70 -> 2.666665382 | I36: =SUM(I16:I17)/'A1 - Serviços e demanda'!H70 -> 2.666671897 | J36: =SUM(J16:J17)/'A1 - Serviços e demanda'!I70 -> 2.666658455 | K36: =SUM(K16:K17)/'A1 - Serviços e demanda'!J70 -> 2.666677914 | L36: =SUM(L16:L17)/'A1 - Serviços e demanda'!K70 -> 2.666669168 | M36: =SUM(M16:M17)/'A1 - Serviços e demanda'!L70 -> 2.666655633 | N36: =SUM(N16:N17)/'A1 - Serviços e demanda'!M70 -> 2.666649106 | O36: =SUM(O16:O17)/'A1 - Serviços e demanda'!N70 -> 2.666665004 | P36: =SUM(P16:P17)/'A1 - Serviços e demanda'!O70 -> 2.666678969 | Q36: =SUM(Q16:Q17)/'A1 - Serviços e demanda'!P70 -> 2.666670385 | R36: =SUM(R16:R17)/'A1 - Serviços e demanda'!Q70 -> 2.666670655 | S36: =SUM(S16:S17)/'A1 - Serviços e demanda'!R70 -> 2.66666427 | T36: =SUM(T16:T17)/'A1 - Serviços e demanda'!S70 -> 2.666679376 | U36: =SUM(U16:U17)/'A1 - Serviços e demanda'!T70 -> 2.66666997 | V36: =SUM(V16:V17)/'A1 - Serviços e demanda'!U70 -> 2.666656024 | W36: =SUM(W16:W17)/'A1 - Serviços e demanda'!V70 -> 2.666656024 | X36: =SUM(X16:X17)/'A1 - Serviços e demanda'!W70 -> 2.666656024 | Y36: =SUM(Y16:Y17)/'A1 - Serviços e demanda'!X70 -> 2.666656024 | Z36: =SUM(Z16:Z17)/'A1 - Serviços e demanda'!Y70 -> 2.666656024 | AA36: =SUM(AA16:AA17)/'A1 - Serviços e demanda'!Z70 -> 2.666656024 | AB36: =SUM(AB16:AB17)/'A1 - Serviços e demanda'!AA70 -> 2.666656024 | AC36: =SUM(AC16:AC17)/'A1 - Serviços e demanda'!AB70 -> 2.666656024 | AD36: =SUM(AD16:AD17)/'A1 - Serviços e demanda'!AC70 -> 2.666656024 | AE36: =SUM(AE16:AE17)/'A1 - Serviços e demanda'!AD70 -> 2.666656024 | AF36: =SUM(AF16:AF17)/'A1 - Serviços e demanda'!AE70 -> 2.666656024
B37: Serrote | C37: =SUM(C18:C19)/'A1 - Serviços e demanda'!B70 -> 0 | D37: =SUM(D18:D19)/'A1 - Serviços e demanda'!C70 -> 2.666650614 | E37: =SUM(E18:E19)/'A1 - Serviços e demanda'!D70 -> 2.666674002 | F37: =SUM(F18:F19)/'A1 - Serviços e demanda'!E70 -> 2.666653821 | G37: =SUM(G18:G19)/'A1 - Serviços e demanda'!F70 -> 2.666664018 | H37: =SUM(H18:H19)/'A1 - Serviços e demanda'!G70 -> 2.666665382 | I37: =SUM(I18:I19)/'A1 - Serviços e demanda'!H70 -> 2.666671897 | J37: =SUM(J18:J19)/'A1 - Serviços e demanda'!I70 -> 2.666658455 | K37: =SUM(K18:K19)/'A1 - Serviços e demanda'!J70 -> 2.666677914 | L37: =SUM(L18:L19)/'A1 - Serviços e demanda'!K70 -> 2.666669168 | M37: =SUM(M18:M19)/'A1 - Serviços e demanda'!L70 -> 2.666655633 | N37: =SUM(N18:N19)/'A1 - Serviços e demanda'!M70 -> 2.666649106 | O37: =SUM(O18:O19)/'A1 - Serviços e demanda'!N70 -> 2.666665004 | P37: =SUM(P18:P19)/'A1 - Serviços e demanda'!O70 -> 2.666678969 | Q37: =SUM(Q18:Q19)/'A1 - Serviços e demanda'!P70 -> 2.666670385 | R37: =SUM(R18:R19)/'A1 - Serviços e demanda'!Q70 -> 2.666670655 | S37: =SUM(S18:S19)/'A1 - Serviços e demanda'!R70 -> 2.66666427 | T37: =SUM(T18:T19)/'A1 - Serviços e demanda'!S70 -> 2.666679376 | U37: =SUM(U18:U19)/'A1 - Serviços e demanda'!T70 -> 2.66666997 | V37: =SUM(V18:V19)/'A1 - Serviços e demanda'!U70 -> 2.666656024 | W37: =SUM(W18:W19)/'A1 - Serviços e demanda'!V70 -> 2.666656024 | X37: =SUM(X18:X19)/'A1 - Serviços e demanda'!W70 -> 2.666656024 | Y37: =SUM(Y18:Y19)/'A1 - Serviços e demanda'!X70 -> 2.666656024 | Z37: =SUM(Z18:Z19)/'A1 - Serviços e demanda'!Y70 -> 2.666656024 | AA37: =SUM(AA18:AA19)/'A1 - Serviços e demanda'!Z70 -> 2.666656024 | AB37: =SUM(AB18:AB19)/'A1 - Serviços e demanda'!AA70 -> 2.666656024 | AC37: =SUM(AC18:AC19)/'A1 - Serviços e demanda'!AB70 -> 2.666656024 | AD37: =SUM(AD18:AD19)/'A1 - Serviços e demanda'!AC70 -> 2.666656024 | AE37: =SUM(AE18:AE19)/'A1 - Serviços e demanda'!AD70 -> 2.666656024 | AF37: =SUM(AF18:AF19)/'A1 - Serviços e demanda'!AE70 -> 2.666656024
B38: Paraíso | C38: =SUM(C20:C21)/'A1 - Serviços e demanda'!B70 -> 0 | D38: =SUM(D20:D21)/'A1 - Serviços e demanda'!C70 -> 3.133302979 | E38: =SUM(E20:E21)/'A1 - Serviços e demanda'!D70 -> 3.133349359 | F38: =SUM(F20:F21)/'A1 - Serviços e demanda'!E70 -> 3.133307478 | G38: =SUM(G20:G21)/'A1 - Serviços e demanda'!F70 -> 3.133323267 | H38: =SUM(H20:H21)/'A1 - Serviços e demanda'!G70 -> 3.133328453 | I38: =SUM(I20:I21)/'A1 - Serviços e demanda'!H70 -> 3.133342748 | J38: =SUM(J20:J21)/'A1 - Serviços e demanda'!I70 -> 3.133317344 | K38: =SUM(K20:K21)/'A1 - Serviços e demanda'!J70 -> 3.133346549 | L38: =SUM(L20:L21)/'A1 - Serviços e demanda'!K70 -> 3.133333288 | M38: =SUM(M20:M21)/'A1 - Serviços e demanda'!L70 -> 3.133314576 | N38: =SUM(N20:N21)/'A1 - Serviços e demanda'!M70 -> 3.133307078 | O38: =SUM(O20:O21)/'A1 - Serviços e demanda'!N70 -> 3.13333138 | P38: =SUM(P20:P21)/'A1 - Serviços e demanda'!O70 -> 3.133350435 | Q38: =SUM(Q20:Q21)/'A1 - Serviços e demanda'!P70 -> 3.133335134 | R38: =SUM(R20:R21)/'A1 - Serviços e demanda'!Q70 -> 3.133340513 | S38: =SUM(S20:S21)/'A1 - Serviços e demanda'!R70 -> 3.133328097 | T38: =SUM(T20:T21)/'A1 - Serviços e demanda'!S70 -> 3.133355315 | U38: =SUM(U20:U21)/'A1 - Serviços e demanda'!T70 -> 3.133334933 | V38: =SUM(V20:V21)/'A1 - Serviços e demanda'!U70 -> 3.133314177 | W38: =SUM(W20:W21)/'A1 - Serviços e demanda'!V70 -> 3.133314177 | X38: =SUM(X20:X21)/'A1 - Serviços e demanda'!W70 -> 3.133314177 | Y38: =SUM(Y20:Y21)/'A1 - Serviços e demanda'!X70 -> 3.133314177 | Z38: =SUM(Z20:Z21)/'A1 - Serviços e demanda'!Y70 -> 3.133314177 | AA38: =SUM(AA20:AA21)/'A1 - Serviços e demanda'!Z70 -> 3.133314177 | AB38: =SUM(AB20:AB21)/'A1 - Serviços e demanda'!AA70 -> 3.133314177 | AC38: =SUM(AC20:AC21)/'A1 - Serviços e demanda'!AB70 -> 3.133314177 | AD38: =SUM(AD20:AD21)/'A1 - Serviços e demanda'!AC70 -> 3.133314177 | AE38: =SUM(AE20:AE21)/'A1 - Serviços e demanda'!AD70 -> 3.133314177 | AF38: =SUM(AF20:AF21)/'A1 - Serviços e demanda'!AE70 -> 3.133314177
B39: Mangue Seco | C39: =SUM(C23)/'A1 - Serviços e demanda'!B70 -> 0 | D39: =SUM(D23)/'A1 - Serviços e demanda'!C70 -> 0 | E39: =SUM(E23)/'A1 - Serviços e demanda'!D70 -> 0 | F39: =SUM(F23)/'A1 - Serviços e demanda'!E70 -> 0 | G39: =SUM(G23)/'A1 - Serviços e demanda'!F70 -> 0 | H39: =SUM(H23)/'A1 - Serviços e demanda'!G70 -> 0 | I39: =SUM(I23)/'A1 - Serviços e demanda'!H70 -> 0 | J39: =SUM(J23)/'A1 - Serviços e demanda'!I70 -> 0 | K39: =SUM(K23)/'A1 - Serviços e demanda'!J70 -> 0 | L39: =SUM(L23)/'A1 - Serviços e demanda'!K70 -> 0 | M39: =SUM(M23)/'A1 - Serviços e demanda'!L70 -> 0 | N39: =SUM(N23)/'A1 - Serviços e demanda'!M70 -> 0 | O39: =SUM(O23)/'A1 - Serviços e demanda'!N70 -> 0 | P39: =SUM(P23)/'A1 - Serviços e demanda'!O70 -> 0 | Q39: =SUM(Q23)/'A1 - Serviços e demanda'!P70 -> 0 | R39: =SUM(R23)/'A1 - Serviços e demanda'!Q70 -> 0 | S39: =SUM(S23)/'A1 - Serviços e demanda'!R70 -> 0 | T39: =SUM(T23)/'A1 - Serviços e demanda'!S70 -> 0 | U39: =SUM(U23)/'A1 - Serviços e demanda'!T70 -> 0 | V39: =SUM(V23)/'A1 - Serviços e demanda'!U70 -> 0 | W39: =SUM(W23)/'A1 - Serviços e demanda'!V70 -> 0 | X39: =SUM(X23)/'A1 - Serviços e demanda'!W70 -> 0 | Y39: =SUM(Y23)/'A1 - Serviços e demanda'!X70 -> 0 | Z39: =SUM(Z23)/'A1 - Serviços e demanda'!Y70 -> 0 | AA39: =SUM(AA23)/'A1 - Serviços e demanda'!Z70 -> 0 | AB39: =SUM(AB23)/'A1 - Serviços e demanda'!AA70 -> 0 | AC39: =SUM(AC23)/'A1 - Serviços e demanda'!AB70 -> 0 | AD39: =SUM(AD23)/'A1 - Serviços e demanda'!AC70 -> 0 | AE39: =SUM(AE23)/'A1 - Serviços e demanda'!AD70 -> 0 | AF39: =SUM(AF23)/'A1 - Serviços e demanda'!AE70 -> 0
B40: Lagoa Grande | C40: =SUM(C24)/'A1 - Serviços e demanda'!B70 -> 0 | D40: =SUM(D24)/'A1 - Serviços e demanda'!C70 -> 0 | E40: =SUM(E24)/'A1 - Serviços e demanda'!D70 -> 0 | F40: =SUM(F24)/'A1 - Serviços e demanda'!E70 -> 0 | G40: =SUM(G24)/'A1 - Serviços e demanda'!F70 -> 0 | H40: =SUM(H24)/'A1 - Serviços e demanda'!G70 -> 0 | I40: =SUM(I24)/'A1 - Serviços e demanda'!H70 -> 0 | J40: =SUM(J24)/'A1 - Serviços e demanda'!I70 -> 0 | K40: =SUM(K24)/'A1 - Serviços e demanda'!J70 -> 0 | L40: =SUM(L24)/'A1 - Serviços e demanda'!K70 -> 0 | M40: =SUM(M24)/'A1 - Serviços e demanda'!L70 -> 0 | N40: =SUM(N24)/'A1 - Serviços e demanda'!M70 -> 0 | O40: =SUM(O24)/'A1 - Serviços e demanda'!N70 -> 0 | P40: =SUM(P24)/'A1 - Serviços e demanda'!O70 -> 0 | Q40: =SUM(Q24)/'A1 - Serviços e demanda'!P70 -> 0 | R40: =SUM(R24)/'A1 - Serviços e demanda'!Q70 -> 0 | S40: =SUM(S24)/'A1 - Serviços e demanda'!R70 -> 0 | T40: =SUM(T24)/'A1 - Serviços e demanda'!S70 -> 0 | U40: =SUM(U24)/'A1 - Serviços e demanda'!T70 -> 0 | V40: =SUM(V24)/'A1 - Serviços e demanda'!U70 -> 0 | W40: =SUM(W24)/'A1 - Serviços e demanda'!V70 -> 0 | X40: =SUM(X24)/'A1 - Serviços e demanda'!W70 -> 0 | Y40: =SUM(Y24)/'A1 - Serviços e demanda'!X70 -> 0 | Z40: =SUM(Z24)/'A1 - Serviços e demanda'!Y70 -> 0 | AA40: =SUM(AA24)/'A1 - Serviços e demanda'!Z70 -> 0 | AB40: =SUM(AB24)/'A1 - Serviços e demanda'!AA70 -> 0 | AC40: =SUM(AC24)/'A1 - Serviços e demanda'!AB70 -> 0 | AD40: =SUM(AD24)/'A1 - Serviços e demanda'!AC70 -> 0 | AE40: =SUM(AE24)/'A1 - Serviços e demanda'!AD70 -> 0 | AF40: =SUM(AF24)/'A1 - Serviços e demanda'!AE70 -> 0
D43: =D7/D27 -> 0.637094598 | E43: =E7/E27 -> 0.6370923467 | F43: 0.6370943048 | G43: 0.6370936565 | H43: 0.637093302 | I43: 0.6370927431 | J43: 0.6370936681 | K43: 0.6370919932 | L43: 0.6370925432 | M43: 0.6370935207 | N43: 0.6370944801 | O43: 0.6370931125 | P43: 0.6370917273 | Q43: 0.6370924667 | R43: 0.6370927965 | S43: 0.6370933357 | T43: 0.6370917206 | U43: 0.6370928324 | V43: 0.6370940287 | W43: 0.6370940287 | X43: 0.6370940287 | Y43: 0.6370940287 | Z43: 0.6370940287 | AA43: 0.6370940287 | AB43: 0.6370940287 | AC43: 0.6370940287 | AD43: 0.6370940287 | AE43: 0.6370940287 | AF43: 0.6370940287
D44: =SUM(D8:D24)/D27 -> 0.362905402 | E44: =SUM(E8:E24)/E27 -> 0.3629076533 | F44: 0.3629056952 | G44: 0.3629063435 | H44: 0.362906698 | I44: 0.3629072569 | J44: 0.3629063319 | K44: 0.3629080068 | L44: 0.3629074568 | M44: 0.3629064793 | N44: 0.3629055199 | O44: 0.3629068875 | P44: 0.3629082727 | Q44: 0.3629075333 | R44: 0.3629072035 | S44: 0.3629066643 | T44: 0.3629082794 | U44: 0.3629071676 | V44: 0.3629059713 | W44: 0.3629059713 | X44: 0.3629059713 | Y44: 0.3629059713 | Z44: 0.3629059713 | AA44: 0.3629059713 | AB44: 0.3629059713 | AC44: 0.3629059713 | AD44: 0.3629059713 | AE44: 0.3629059713 | AF44: 0.3629059713
D46: =SUM(D8:D26) -> 17564759
D47: 25569684.5

Sheet B1 - Matriz de custos diretos
A1: Componentes de custos diretos
A2: Item | B2: UGC | C2: Tipo | D2: Unidade | E2: Custo Unitário - CIF (R$/Un) | F2: Qtde do Item por Unidade | G2: Custo Total (R$) | H2: Fonte
A3: Seguro de acidentes pessoais | B3: Ingresso | C3: Outros | D3: Visitante | E3: 1 | F3: 1 | G3: =E3*F3 -> 1 | H3: Recomendação de empresas concessionárias
A4: Materiais | B4: Ingresso | C4: Materiais | D4: Visitante | E4: 0.83 | F4: 1 | G4: 0.83 | H4: Materiais por visitante - referência PARNA Iguaçu - maio/2017 atualizado pelo IGP-M
A5: Custo de produtos de comércio | B5: Preá - Comércio | C5: Materiais | D5: Cliente | E5: =50*0.35 -> 17.5 | F5: 1 | G5: 17.5 | H5: 35% do preço de comércio - referência PARNA Iguaçu - maio/2017 atualizado pelo IGP-M
A6: Custo de produtos de comércio | B6: Árvore da Preguiça - Comércio | C6: Materiais | D6: Cliente | E6: 17.5 | F6: 1 | G6: 17.5 | H6: 35% do preço de comércio - referência PARNA Iguaçu - maio/2017 atualizado pelo IGP-M
A7: Custo de produtos de comércio | B7: Silveira - Comércio + Locação + Atividades | C7: Materiais | D7: Cliente | E7: 17.5 | F7: 1 | G7: 17.5 | H7: 35% do preço de comércio - referência PARNA Iguaçu - maio/2017 atualizado pelo IGP-M
A8: Custo de produtos de comércio | B8: Pedra Furada - Comércio | C8: Materiais | D8: Cliente | E8: 17.5 | F8: 1 | G8: 17.5 | H8: 35% do preço de comércio - referência PARNA Iguaçu - maio/2017 atualizado pelo IGP-M
A9: Custo de produtos de comércio | B9: Serrote - Comércio | C9: Materiais | D9: Cliente | E9: 17.5 | F9: 1 | G9: 17.5 | H9: 35% do preço de comércio - referência PARNA Iguaçu - maio/2017 atualizado pelo IGP-M
A10: Custo de produtos de comércio | B10: Paraíso - Comércio + Locação + Atividades | C10: Materiais | D10: Cliente | E10: 17.5 | F10: 1 | G10: 17.5 | H10: 35% do preço de comércio - referência PARNA Iguaçu - maio/2017 atualizado pelo IGP-M
A11: Kit sabonete + shampoo hospedagem | B11: Silveira - Hospedagem | C11: Materiais | D11: Cliente | E11: 2.89 | F11: 1 | G11: 2.89 | H11: Kit Mini Sabonetes + shampoos Para Pousadas, airbnb, hotéis - Lojas Americanas (100 de cada)
A12: Serviço de lavanderia | B12: Silveira - Hospedagem | C12: Outros | D12: Cliente | E12: 2.5 | F12: 1 | G12: 2.5 | H12: Lavanderia Storil - lavagem por kg (https://sites.google.com/site/lavanderiastoril/tabela-de)
A13: Custo de produtos de alimentação | B13: Preá - Alimentação | C13: Materiais | D13: Cliente | E13: =25*0.27 -> 6.75 | F13: 1 | G13: 6.75 | H13: 27% do preço alimentos - referência PARNA Iguaçu - maio/2017 atualizado pelo IGP-M
A14: Custo de produtos de alimentação | B14: Árvore da Preguiça - Alimentação | C14: Materiais | D14: Cliente | E14: 6.75 | F14: 1 | G14: 6.75 | H14: 27% do preço alimentos - referência PARNA Iguaçu - maio/2017 atualizado pelo IGP-M
A15: Custo de produtos de alimentação | B15: Silveira - Alimentação | C15: Materiais | D15: Cliente | E15: 6.75 | F15: 1 | G15: 6.75 | H15: 27% do preço alimentos - referência PARNA Iguaçu - maio/2017 atualizado pelo IGP-M
A16: Custo de produtos de alimentação | B16: Pedra Furada - Alimentação | C16: Materiais | D16: Cliente | E16: 6.75 | F16: 1 | G16: 6.75 | H16: 27% do preço alimentos - referência PARNA Iguaçu - maio/2017 atualizado pelo IGP-M
A17: Custo de produtos de alimentação | B17: Serrote - Alimentação | C17: Materiais | D17: Cliente | E17: 6.75 | F17: 1 | G17: 6.75 | H17: 27% do preço alimentos - referência PARNA Iguaçu - maio/2017 atualizado pelo IGP-M
A18: Custo de produtos de alimentação | B18: Paraíso - Alimentação | C18: Materiais | D18: Cliente | E18: 6.75 | F18: 1 | G18: 6.75 | H18: 27% do preço alimentos - referência PARNA Iguaçu - maio/2017 atualizado pelo IGP-M
G19: 0
G20: 0
G21: 0
G22: 0
G23: 0
G24: 0
G25: 0
G26: 0
G27: 0
G28: 0
G29: 0
G30: 0
G31: 0
G32: 0
G33: 0
G34: 0
G35: 0
G36: 0
G37: 0
G38: 0
G39: 0
G40: 0
G41: 0
G42: 0
G43: 0
G44: 0
G45: 0
G46: 0
G47: 0
G48: 0
G49: 0
G50: 0
G51: 0
G52: 0
G53: 0
G54: 0
G55: 0
G56: 0
G57: 0
G58: 0
G59: 0
G60: 0
G61: 0
G62: 0
G63: 0
G64: 0
G65: 0
G66: 0
G67: 0
G68: 0
G69: 0
G70: 0
G71: 0
G72: 0
G73: 0
G74: 0
G75: 0
G76: 0
G77: 0
G78: 0
G79: 0
G80: 0
G81: 0
G82: 0
G83: 0
G84: 0
G85: 0
G86: 0
G87: 0
G88: 0
G89: 0
G90: 0
G91: 0
G92: 0
G93: 0
G94: 0
G95: 0
G96: 0
G97: 0
G98: 0
G99: 0
G100: 0
G101: 0
G102: 0
G103: 0
G104: 0
G105: 0
G106: 0
G107: 0
G108: 0
G109: 0
G110: 0
G111: 0
G112: 0
G113: 0
G114: 0
G115: 0
G116: 0
G117: 0
G118: 0
G119: 0
G120: 0
G121: 0
G122: 0
G123: 0
G124: 0
G125: 0
G126: 0
G127: 0
G128: 0
G129: 0
G130: 0
G131: 0
G132: 0
G133: 0
G134: 0
G135: 0
G136: 0
G137: 0
G138: 0
G139: 0
G140: 0
G141: 0
G142: 0
G143: 0
G144: 0
G145: 0
G146: 0
G147: 0
G148: 0
G149: 0
G150: 0
G151: 0
G152: 0
G153: 0
G154: 0
G155: 0
G156: 0
G157: 0
G158: 0
G159: 0
G160: 0
G161: 0
G162: 0
G163: 0
G164: 0
G165: 0
G166: 0
G167: 0
G168: 0
G169: 0
G170: 0
G171: 0
G172: 0
G173: 0
G174: 0
G175: 0
G176: 0
G177: 0
G178: 0
G179: 0
G180: 0
G181: 0
G182: 0
G183: 0
G184: 0
G185: 0
G186: 0
G187: 0
G188: 0
G189: 0
G190: 0
G191: 0
G192: 0
G193: 0
G194: 0
G195: 0
G196: 0
G197: 0
G198: 0
G199: 0
G200: 0
... 302 more rows

Sheet B2 - Custos diretos totais
B1: Custos diretos TOTAIS
B2: UGC | C2: Ano
C3: 1 | D3: 2 | E3: 3 | F3: 4 | G3: 5 | H3: 6 | I3: 7 | J3: 8 | K3: 9 | L3: 10 | M3: 11 | N3: 12 | O3: 13 | P3: 14 | Q3: 15 | R3: 16 | S3: 17 | T3: 18 | U3: 19 | V3: 20 | W3: 21 | X3: 22 | Y3: 23 | Z3: 24 | AA3: 25 | AB3: 26 | AC3: 27 | AD3: 28 | AE3: 29 | AF3: 30
B4: ='A3 - Demanda Anual Agregada '!B6 -> Ingresso | C4: =SUMIF('B1 - Matriz de custos diretos'!$B$3:$B$502,$B4,'B1 - Matriz de custos diretos'!$G$3:$G$502)*'A3 - Demanda Anual Agregada '!C6*IFERROR(VLOOKUP($B4,SN_UGC,28,0),0) -> 1010136.21 | D4: =SUMIF('B1 - Matriz de custos diretos'!$B$3:$B$502,$B4,'B1 - Matriz de custos diretos'!$G$3:$G$502)*'A3 - Demanda Anual Agregada '!D6*IFERROR(VLOOKUP($B4,SN_UGC,28,0),0) -> 2089969.8 | E4: =SUMIF('B1 - Matriz de custos diretos'!$B$3:$B$502,$B4,'B1 - Matriz de custos diretos'!$G$3:$G$502)*'A3 - Demanda Anual Agregada '!E6*IFERROR(VLOOKUP($B4,SN_UGC,28,0),0) -> 2162058.99 | F4: =SUMIF('B1 - Matriz de custos diretos'!$B$3:$B$502,$B4,'B1 - Matriz de custos diretos'!$G$3:$G$502)*'A3 - Demanda Anual Agregada '!F6*IFERROR(VLOOKUP($B4,SN_UGC,28,0),0) -> 2231884.47 | G4: =SUMIF('B1 - Matriz de custos diretos'!$B$3:$B$502,$B4,'B1 - Matriz de custos diretos'!$G$3:$G$502)*'A3 - Demanda Anual Agregada '!G6*IFERROR(VLOOKUP($B4,SN_UGC,28,0),0) -> 2302817.1 | H4: =SUMIF('B1 - Matriz de custos diretos'!$B$3:$B$502,$B4,'B1 - Matriz de custos diretos'!$G$3:$G$502)*'A3 - Demanda Anual Agregada '!H6*IFERROR(VLOOKUP($B4,SN_UGC,28,0),0) -> 2374992.3 | I4: =SUMIF('B1 - Matriz de custos diretos'!$B$3:$B$502,$B4,'B1 - Matriz de custos diretos'!$G$3:$G$502)*'A3 - Demanda Anual Agregada '!I6*IFERROR(VLOOKUP($B4,SN_UGC,28,0),0) -> 2449204.29 | J4: =SUMIF('B1 - Matriz de custos diretos'!$B$3:$B$502,$B4,'B1 - Matriz de custos diretos'!$G$3:$G$502)*'A3 - Demanda Anual Agregada '!J6*IFERROR(VLOOKUP($B4,SN_UGC,28,0),0) -> 2525579.34 | K4: =SUMIF('B1 - Matriz de custos diretos'!$B$3:$B$502,$B4,'B1 - Matriz de custos diretos'!$G$3:$G$502)*'A3 - Demanda Anual Agregada '!K6*IFERROR(VLOOKUP($B4,SN_UGC,28,0),0) -> 2603347.02 | L4: =SUMIF('B1 - Matriz de custos diretos'!$B$3:$B$502,$B4,'B1 - Matriz de custos diretos'!$G$3:$G$502)*'A3 - Demanda Anual Agregada '!L6*IFERROR(VLOOKUP($B4,SN_UGC,28,0),0) -> 2682565.89 | M4: =SUMIF('B1 - Matriz de custos diretos'!$B$3:$B$502,$B4,'B1 - Matriz de custos diretos'!$G$3:$G$502)*'A3 - Demanda Anual Agregada '!M6*IFERROR(VLOOKUP($B4,SN_UGC,28,0),0) -> 2764260.75 | N4: =SUMIF('B1 - Matriz de custos diretos'!$B$3:$B$502,$B4,'B1 - Matriz de custos diretos'!$G$3:$G$502)*'A3 - Demanda Anual Agregada '!N6*IFERROR(VLOOKUP($B4,SN_UGC,28,0),0) -> 2848402.32 | O4: =SUMIF('B1 - Matriz de custos diretos'!$B$3:$B$502,$B4,'B1 - Matriz de custos diretos'!$G$3:$G$502)*'A3 - Demanda Anual Agregada '!O6*IFERROR(VLOOKUP($B4,SN_UGC,28,0),0) -> 2935230.33 | P4: =SUMIF('B1 - Matriz de custos diretos'!$B$3:$B$502,$B4,'B1 - Matriz de custos diretos'!$G$3:$G$502)*'A3 - Demanda Anual Agregada '!P6*IFERROR(VLOOKUP($B4,SN_UGC,28,0),0) -> 3024684.39 | Q4: =SUMIF('B1 - Matriz de custos diretos'!$B$3:$B$502,$B4,'B1 - Matriz de custos diretos'!$G$3:$G$502)*'A3 - Demanda Anual Agregada '!Q6*IFERROR(VLOOKUP($B4,SN_UGC,28,0),0) -> 3116823.06 | R4: =SUMIF('B1 - Matriz de custos diretos'!$B$3:$B$502,$B4,'B1 - Matriz de custos diretos'!$G$3:$G$502)*'A3 - Demanda Anual Agregada '!R6*IFERROR(VLOOKUP($B4,SN_UGC,28,0),0) -> 3211490.79 | S4: =SUMIF('B1 - Matriz de custos diretos'!$B$3:$B$502,$B4,'B1 - Matriz de custos diretos'!$G$3:$G$502)*'A3 - Demanda Anual Agregada '!S6*IFERROR(VLOOKUP($B4,SN_UGC,28,0),0) -> 3308568.63 | T4: =SUMIF('B1 - Matriz de custos diretos'!$B$3:$B$502,$B4,'B1 - Matriz de custos diretos'!$G$3:$G$502)*'A3 - Demanda Anual Agregada '!T6*IFERROR(VLOOKUP($B4,SN_UGC,28,0),0) -> 3407712.54 | U4: =SUMIF('B1 - Matriz de custos diretos'!$B$3:$B$502,$B4,'B1 - Matriz de custos diretos'!$G$3:$G$502)*'A3 - Demanda Anual Agregada '!U6*IFERROR(VLOOKUP($B4,SN_UGC,28,0),0) -> 3508671.81 | V4: =SUMIF('B1 - Matriz de custos diretos'!$B$3:$B$502,$B4,'B1 - Matriz de custos diretos'!$G$3:$G$502)*'A3 - Demanda Anual Agregada '!V6*IFERROR(VLOOKUP($B4,SN_UGC,28,0),0) -> 3610976.13 | W4: =SUMIF('B1 - Matriz de custos diretos'!$B$3:$B$502,$B4,'B1 - Matriz de custos diretos'!$G$3:$G$502)*'A3 - Demanda Anual Agregada '!W6*IFERROR(VLOOKUP($B4,SN_UGC,28,0),0) -> 3610976.13 | X4: =SUMIF('B1 - Matriz de custos diretos'!$B$3:$B$502,$B4,'B1 - Matriz de custos diretos'!$G$3:$G$502)*'A3 - Demanda Anual Agregada '!X6*IFERROR(VLOOKUP($B4,SN_UGC,28,0),0) -> 3610976.13 | Y4: =SUMIF('B1 - Matriz de custos diretos'!$B$3:$B$502,$B4,'B1 - Matriz de custos diretos'!$G$3:$G$502)*'A3 - Demanda Anual Agregada '!Y6*IFERROR(VLOOKUP($B4,SN_UGC,28,0),0) -> 3610976.13 | Z4: =SUMIF('B1 - Matriz de custos diretos'!$B$3:$B$502,$B4,'B1 - Matriz de custos diretos'!$G$3:$G$502)*'A3 - Demanda Anual Agregada '!Z6*IFERROR(VLOOKUP($B4,SN_UGC,28,0),0) -> 3610976.13 | AA4: =SUMIF('B1 - Matriz de custos diretos'!$B$3:$B$502,$B4,'B1 - Matriz de custos diretos'!$G$3:$G$502)*'A3 - Demanda Anual Agregada '!AA6*IFERROR(VLOOKUP($B4,SN_UGC,28,0),0) -> 3610976.13 | AB4: =SUMIF('B1 - Matriz de custos diretos'!$B$3:$B$502,$B4,'B1 - Matriz de custos diretos'!$G$3:$G$502)*'A3 - Demanda Anual Agregada '!AB6*IFERROR(VLOOKUP($B4,SN_UGC,28,0),0) -> 3610976.13 | AC4: =SUMIF('B1 - Matriz de custos diretos'!$B$3:$B$502,$B4,'B1 - Matriz de custos diretos'!$G$3:$G$502)*'A3 - Demanda Anual Agregada '!AC6*IFERROR(VLOOKUP($B4,SN_UGC,28,0),0) -> 3610976.13 | AD4: =SUMIF('B1 - Matriz de custos diretos'!$B$3:$B$502,$B4,'B1 - Matriz de custos diretos'!$G$3:$G$502)*'A3 - Demanda Anual Agregada '!AD6*IFERROR(VLOOKUP($B4,SN_UGC,28,0),0) -> 3610976.13 | AE4: =SUMIF('B1 - Matriz de custos diretos'!$B$3:$B$502,$B4,'B1 - Matriz de custos diretos'!$G$3:$G$502)*'A3 - Demanda Anual Agregada '!AE6*IFERROR(VLOOKUP($B4,SN_UGC,28,0),0) -> 3610976.13 | AF4: =SUMIF('B1 - Matriz de custos diretos'!$B$3:$B$502,$B4,'B1 - Matriz de custos diretos'!$G$3:$G$502)*'A3 - Demanda Anual Agregada '!AF6*IFERROR(VLOOKUP($B4,SN_UGC,28,0),0) -> 3610976.13
B5: ='A3 - Demanda Anual Agregada '!B7 -> Preá - Alimentação | C5: =SUMIF('B1 - Matriz de custos diretos'!$B$3:$B$502,$B5,'B1 - Matriz de custos diretos'!$G$3:$G$502)*'A3 - Demanda Anual Agregada '!C7*IFERROR(VLOOKUP($B5,SN_UGC,28,0),0) -> 0 | D5: =SUMIF('B1 - Matriz de custos diretos'!$B$3:$B$502,$B5,'B1 - Matriz de custos diretos'!$G$3:$G$502)*'A3 - Demanda Anual Agregada '!D7*IFERROR(VLOOKUP($B5,SN_UGC,28,0),0) -> 616713.75 | E5: =SUMIF('B1 - Matriz de custos diretos'!$B$3:$B$502,$B5,'B1 - Matriz de custos diretos'!$G$3:$G$502)*'A3 - Demanda Anual Agregada '!E7*IFERROR(VLOOKUP($B5,SN_UGC,28,0),0) -> 637983 | F5: =SUMIF('B1 - Matriz de custos diretos'!$B$3:$B$502,$B5,'B1 - Matriz de custos diretos'!$G$3:$G$502)*'A3 - Demanda Anual Agregada '!F7*IFERROR(VLOOKUP($B5,SN_UGC,28,0),0) -> 658590.75 | G5: =SUMIF('B1 - Matriz de custos diretos'!$B$3:$B$502,$B5,'B1 - Matriz de custos diretos'!$G$3:$G$502)*'A3 - Demanda Anual Agregada '!G7*IFERROR(VLOOKUP($B5,SN_UGC,28,0),0) -> 679522.5 | H5: =SUMIF('B1 - Matriz de custos diretos'!$B$3:$B$502,$B5,'B1 - Matriz de custos diretos'!$G$3:$G$502)*'A3 - Demanda Anual Agregada '!H7*IFERROR(VLOOKUP($B5,SN_UGC,28,0),0) -> 700818.75 | I5: =SUMIF('B1 - Matriz de custos diretos'!$B$3:$B$502,$B5,'B1 - Matriz de custos diretos'!$G$3:$G$502)*'A3 - Demanda Anual Agregada '!I7*IFERROR(VLOOKUP($B5,SN_UGC,28,0),0) -> 722715.75 | J5: =SUMIF('B1 - Matriz de custos diretos'!$B$3:$B$502,$B5,'B1 - Matriz de custos diretos'!$G$3:$G$502)*'A3 - Demanda Anual Agregada '!J7*IFERROR(VLOOKUP($B5,SN_UGC,28,0),0) -> 745254 | K5: =SUMIF('B1 - Matriz de custos diretos'!$B$3:$B$502,$B5,'B1 - Matriz de custos diretos'!$G$3:$G$502)*'A3 - Demanda Anual Agregada '!K7*IFERROR(VLOOKUP($B5,SN_UGC,28,0),0) -> 768204 | L5: =SUMIF('B1 - Matriz de custos diretos'!$B$3:$B$502,$B5,'B1 - Matriz de custos diretos'!$G$3:$G$502)*'A3 - Demanda Anual Agregada '!L7*IFERROR(VLOOKUP($B5,SN_UGC,28,0),0) -> 791579.25 | M5: =SUMIF('B1 - Matriz de custos diretos'!$B$3:$B$502,$B5,'B1 - Matriz de custos diretos'!$G$3:$G$502)*'A3 - Demanda Anual Agregada '!M7*IFERROR(VLOOKUP($B5,SN_UGC,28,0),0) -> 815683.5 | N5: =SUMIF('B1 - Matriz de custos diretos'!$B$3:$B$502,$B5,'B1 - Matriz de custos diretos'!$G$3:$G$502)*'A3 - Demanda Anual Agregada '!N7*IFERROR(VLOOKUP($B5,SN_UGC,28,0),0) -> 840510 | O5: =SUMIF('B1 - Matriz de custos diretos'!$B$3:$B$502,$B5,'B1 - Matriz de custos diretos'!$G$3:$G$502)*'A3 - Demanda Anual Agregada '!O7*IFERROR(VLOOKUP($B5,SN_UGC,28,0),0) -> 866133 | P5: =SUMIF('B1 - Matriz de custos diretos'!$B$3:$B$502,$B5,'B1 - Matriz de custos diretos'!$G$3:$G$502)*'A3 - Demanda Anual Agregada '!P7*IFERROR(VLOOKUP($B5,SN_UGC,28,0),0) -> 892532.25 | Q5: =SUMIF('B1 - Matriz de custos diretos'!$B$3:$B$502,$B5,'B1 - Matriz de custos diretos'!$G$3:$G$502)*'A3 - Demanda Anual Agregada '!Q7*IFERROR(VLOOKUP($B5,SN_UGC,28,0),0) -> 919721.25 | R5: =SUMIF('B1 - Matriz de custos diretos'!$B$3:$B$502,$B5,'B1 - Matriz de custos diretos'!$G$3:$G$502)*'A3 - Demanda Anual Agregada '!R7*IFERROR(VLOOKUP($B5,SN_UGC,28,0),0) -> 947652.75 | S5: =SUMIF('B1 - Matriz de custos diretos'!$B$3:$B$502,$B5,'B1 - Matriz de custos diretos'!$G$3:$G$502)*'A3 - Demanda Anual Agregada '!S7*IFERROR(VLOOKUP($B5,SN_UGC,28,0),0) -> 976299.75 | T5: =SUMIF('B1 - Matriz de custos diretos'!$B$3:$B$502,$B5,'B1 - Matriz de custos diretos'!$G$3:$G$502)*'A3 - Demanda Anual Agregada '!T7*IFERROR(VLOOKUP($B5,SN_UGC,28,0),0) -> 1005554.25 | U5: =SUMIF('B1 - Matriz de custos diretos'!$B$3:$B$502,$B5,'B1 - Matriz de custos diretos'!$G$3:$G$502)*'A3 - Demanda Anual Agregada '!U7*IFERROR(VLOOKUP($B5,SN_UGC,28,0),0) -> 1035348.75 | V5: =SUMIF('B1 - Matriz de custos diretos'!$B$3:$B$502,$B5,'B1 - Matriz de custos diretos'!$G$3:$G$502)*'A3 - Demanda Anual Agregada '!V7*IFERROR(VLOOKUP($B5,SN_UGC,28,0),0) -> 1065534.75 | W5: =SUMIF('B1 - Matriz de custos diretos'!$B$3:$B$502,$B5,'B1 - Matriz de custos diretos'!$G$3:$G$502)*'A3 - Demanda Anual Agregada '!W7*IFERROR(VLOOKUP($B5,SN_UGC,28,0),0) -> 1065534.75 | X5: =SUMIF('B1 - Matriz de custos diretos'!$B$3:$B$502,$B5,'B1 - Matriz de custos diretos'!$G$3:$G$502)*'A3 - Demanda Anual Agregada '!X7*IFERROR(VLOOKUP($B5,SN_UGC,28,0),0) -> 1065534.75 | Y5: =SUMIF('B1 - Matriz de custos diretos'!$B$3:$B$502,$B5,'B1 - Matriz de custos diretos'!$G$3:$G$502)*'A3 - Demanda Anual Agregada '!Y7*IFERROR(VLOOKUP($B5,SN_UGC,28,0),0) -> 1065534.75 | Z5: =SUMIF('B1 - Matriz de custos diretos'!$B$3:$B$502,$B5,'B1 - Matriz de custos diretos'!$G$3:$G$502)*'A3 - Demanda Anual Agregada '!Z7*IFERROR(VLOOKUP($B5,SN_UGC,28,0),0) -> 1065534.75 | AA5: =SUMIF('B1 - Matriz de custos diretos'!$B$3:$B$502,$B5,'B1 - Matriz de custos diretos'!$G$3:$G$502)*'A3 - Demanda Anual Agregada '!AA7*IFERROR(VLOOKUP($B5,SN_UGC,28,0),0) -> 1065534.75 | AB5: =SUMIF('B1 - Matriz de custos diretos'!$B$3:$B$502,$B5,'B1 - Matriz de custos diretos'!$G$3:$G$502)*'A3 - Demanda Anual Agregada '!AB7*IFERROR(VLOOKUP($B5,SN_UGC,28,0),0) -> 1065534.75 | AC5: =SUMIF('B1 - Matriz de custos diretos'!$B$3:$B$502,$B5,'B1 - Matriz de custos diretos'!$G$3:$G$502)*'A3 - Demanda Anual Agregada '!AC7*IFERROR(VLOOKUP($B5,SN_UGC,28,0),0) -> 1065534.75 | AD5: =SUMIF('B1 - Matriz de custos diretos'!$B$3:$B$502,$B5,'B1 - Matriz de custos diretos'!$G$3:$G$502)*'A3 - Demanda Anual Agregada '!AD7*IFERROR(VLOOKUP($B5,SN_UGC,28,0),0) -> 1065534.75 | AE5: =SUMIF('B1 - Matriz de custos diretos'!$B$3:$B$502,$B5,'B1 - Matriz de custos diretos'!$G$3:$G$502)*'A3 - Demanda Anual Agregada '!AE7*IFERROR(VLOOKUP($B5,SN_UGC,28,0),0) -> 1065534.75 | AF5: =SUMIF('B1 - Matriz de custos diretos'!$B$3:$B$502,$B5,'B1 - Matriz de custos diretos'!$G$3:$G$502)*'A3 - Demanda Anual Agregada '!AF7*IFERROR(VLOOKUP($B5,SN_UGC,28,0),0) -> 1065534.75
B6: ='A3 - Demanda Anual Agregada '!B8 -> Preá - Comércio | C6: =SUMIF('B1 - Matriz de custos diretos'!$B$3:$B$502,$B6,'B1 - Matriz de custos diretos'!$G$3:$G$502)*'A3 - Demanda Anual Agregada '!C8*IFERROR(VLOOKUP($B6,SN_UGC,28,0),0) -> 0 | D6: =SUMIF('B1 - Matriz de custos diretos'!$B$3:$B$502,$B6,'B1 - Matriz de custos diretos'!$G$3:$G$502)*'A3 - Demanda Anual Agregada '!D8*IFERROR(VLOOKUP($B6,SN_UGC,28,0),0) -> 266472.5 | E6: =SUMIF('B1 - Matriz de custos diretos'!$B$3:$B$502,$B6,'B1 - Matriz de custos diretos'!$G$3:$G$502)*'A3 - Demanda Anual Agregada '!E8*IFERROR(VLOOKUP($B6,SN_UGC,28,0),0) -> 275677.5 | F6: =SUMIF('B1 - Matriz de custos diretos'!$B$3:$B$502,$B6,'B1 - Matriz de custos diretos'!$G$3:$G$502)*'A3 - Demanda Anual Agregada '!F8*IFERROR(VLOOKUP($B6,SN_UGC,28,0),0) -> 284567.5 | G6: =SUMIF('B1 - Matriz de custos diretos'!$B$3:$B$502,$B6,'B1 - Matriz de custos diretos'!$G$3:$G$502)*'A3 - Demanda Anual Agregada '!G8*IFERROR(VLOOKUP($B6,SN_UGC,28,0),0) -> 293615 | H6: =SUMIF('B1 - Matriz de custos diretos'!$B$3:$B$502,$B6,'B1 - Matriz de custos diretos'!$G$3:$G$502)*'A3 - Demanda Anual Agregada '!H8*IFERROR(VLOOKUP($B6,SN_UGC,28,0),0) -> 302820 | I6: =SUMIF('B1 - Matriz de custos diretos'!$B$3:$B$502,$B6,'B1 - Matriz de custos diretos'!$G$3:$G$502)*'A3 - Demanda Anual Agregada '!I8*IFERROR(VLOOKUP($B6,SN_UGC,28,0),0) -> 312287.5 | J6: =SUMIF('B1 - Matriz de custos diretos'!$B$3:$B$502,$B6,'B1 - Matriz de custos diretos'!$G$3:$G$502)*'A3 - Demanda Anual Agregada '!J8*IFERROR(VLOOKUP($B6,SN_UGC,28,0),0) -> 322017.5 | K6: =SUMIF('B1 - Matriz de custos diretos'!$B$3:$B$502,$B6,'B1 - Matriz de custos diretos'!$G$3:$G$502)*'A3 - Demanda Anual Agregada '!K8*IFERROR(VLOOKUP($B6,SN_UGC,28,0),0) -> 331940 | L6: =SUMIF('B1 - Matriz de custos diretos'!$B$3:$B$502,$B6,'B1 - Matriz de custos diretos'!$G$3:$G$502)*'A3 - Demanda Anual Agregada '!L8*IFERROR(VLOOKUP($B6,SN_UGC,28,0),0) -> 342037.5 | M6: =SUMIF('B1 - Matriz de custos diretos'!$B$3:$B$502,$B6,'B1 - Matriz de custos diretos'!$G$3:$G$502)*'A3 - Demanda Anual Agregada '!M8*IFERROR(VLOOKUP($B6,SN_UGC,28,0),0) -> 352450 | N6: =SUMIF('B1 - Matriz de custos diretos'!$B$3:$B$502,$B6,'B1 - Matriz de custos diretos'!$G$3:$G$502)*'A3 - Demanda Anual Agregada '!N8*IFERROR(VLOOKUP($B6,SN_UGC,28,0),0) -> 363177.5 | O6: =SUMIF('B1 - Matriz de custos diretos'!$B$3:$B$502,$B6,'B1 - Matriz de custos diretos'!$G$3:$G$502)*'A3 - Demanda Anual Agregada '!O8*IFERROR(VLOOKUP($B6,SN_UGC,28,0),0) -> 374255 | P6: =SUMIF('B1 - Matriz de custos diretos'!$B$3:$B$502,$B6,'B1 - Matriz de custos diretos'!$G$3:$G$502)*'A3 - Demanda Anual Agregada '!P8*IFERROR(VLOOKUP($B6,SN_UGC,28,0),0) -> 385665 | Q6: =SUMIF('B1 - Matriz de custos diretos'!$B$3:$B$502,$B6,'B1 - Matriz de custos diretos'!$G$3:$G$502)*'A3 - Demanda Anual Agregada '!Q8*IFERROR(VLOOKUP($B6,SN_UGC,28,0),0) -> 397407.5 | R6: =SUMIF('B1 - Matriz de custos diretos'!$B$3:$B$502,$B6,'B1 - Matriz de custos diretos'!$G$3:$G$502)*'A3 - Demanda Anual Agregada '!R8*IFERROR(VLOOKUP($B6,SN_UGC,28,0),0) -> 409482.5 | S6: =SUMIF('B1 - Matriz de custos diretos'!$B$3:$B$502,$B6,'B1 - Matriz de custos diretos'!$G$3:$G$502)*'A3 - Demanda Anual Agregada '!S8*IFERROR(VLOOKUP($B6,SN_UGC,28,0),0) -> 421855 | T6: =SUMIF('B1 - Matriz de custos diretos'!$B$3:$B$502,$B6,'B1 - Matriz de custos diretos'!$G$3:$G$502)*'A3 - Demanda Anual Agregada '!T8*IFERROR(VLOOKUP($B6,SN_UGC,28,0),0) -> 434507.5 | U6: =SUMIF('B1 - Matriz de custos diretos'!$B$3:$B$502,$B6,'B1 - Matriz de custos diretos'!$G$3:$G$502)*'A3 - Demanda Anual Agregada '!U8*IFERROR(VLOOKUP($B6,SN_UGC,28,0),0) -> 447370 | V6: =SUMIF('B1 - Matriz de custos diretos'!$B$3:$B$502,$B6,'B1 - Matriz de custos diretos'!$G$3:$G$502)*'A3 - Demanda Anual Agregada '!V8*IFERROR(VLOOKUP($B6,SN_UGC,28,0),0) -> 460407.5 | W6: =SUMIF('B1 - Matriz de custos diretos'!$B$3:$B$502,$B6,'B1 - Matriz de custos diretos'!$G$3:$G$502)*'A3 - Demanda Anual Agregada '!W8*IFERROR(VLOOKUP($B6,SN_UGC,28,0),0) -> 460407.5 | X6: =SUMIF('B1 - Matriz de custos diretos'!$B$3:$B$502,$B6,'B1 - Matriz de custos diretos'!$G$3:$G$502)*'A3 - Demanda Anual Agregada '!X8*IFERROR(VLOOKUP($B6,SN_UGC,28,0),0) -> 460407.5 | Y6: =SUMIF('B1 - Matriz de custos diretos'!$B$3:$B$502,$B6,'B1 - Matriz de custos diretos'!$G$3:$G$502)*'A3 - Demanda Anual Agregada '!Y8*IFERROR(VLOOKUP($B6,SN_UGC,28,0),0) -> 460407.5 | Z6: =SUMIF('B1 - Matriz de custos diretos'!$B$3:$B$502,$B6,'B1 - Matriz de custos diretos'!$G$3:$G$502)*'A3 - Demanda Anual Agregada '!Z8*IFERROR(VLOOKUP($B6,SN_UGC,28,0),0) -> 460407.5 | AA6: =SUMIF('B1 - Matriz de custos diretos'!$B$3:$B$502,$B6,'B1 - Matriz de custos diretos'!$G$3:$G$502)*'A3 - Demanda Anual Agregada '!AA8*IFERROR(VLOOKUP($B6,SN_UGC,28,0),0) -> 460407.5 | AB6: =SUMIF('B1 - Matriz de custos diretos'!$B$3:$B$502,$B6,'B1 - Matriz de custos diretos'!$G$3:$G$502)*'A3 - Demanda Anual Agregada '!AB8*IFERROR(VLOOKUP($B6,SN_UGC,28,0),0) -> 460407.5 | AC6: =SUMIF('B1 - Matriz de custos diretos'!$B$3:$B$502,$B6,'B1 - Matriz de custos diretos'!$G$3:$G$502)*'A3 - Demanda Anual Agregada '!AC8*IFERROR(VLOOKUP($B6,SN_UGC,28,0),0) -> 460407.5 | AD6: =SUMIF('B1 - Matriz de custos diretos'!$B$3:$B$502,$B6,'B1 - Matriz de custos diretos'!$G$3:$G$502)*'A3 - Demanda Anual Agregada '!AD8*IFERROR(VLOOKUP($B6,SN_UGC,28,0),0) -> 460407.5 | AE6: =SUMIF('B1 - Matriz de custos diretos'!$B$3:$B$502,$B6,'B1 - Matriz de custos diretos'!$G$3:$G$502)*'A3 - Demanda Anual Agregada '!AE8*IFERROR(VLOOKUP($B6,SN_UGC,28,0),0) -> 460407.5 | AF6: =SUMIF('B1 - Matriz de custos diretos'!$B$3:$B$502,$B6,'B1 - Matriz de custos diretos'!$G$3:$G$502)*'A3 - Demanda Anual Agregada '!AF8*IFERROR(VLOOKUP($B6,SN_UGC,28,0),0) -> 460407.5
B7: ='A3 - Demanda Anual Agregada '!B9 -> Preá - Estacionamento | C7: =SUMIF('B1 - Matriz de custos diretos'!$B$3:$B$502,$B7,'B1 - Matriz de custos diretos'!$G$3:$G$502)*'A3 - Demanda Anual Agregada '!C9*IFERROR(VLOOKUP($B7,SN_UGC,28,0),0) -> 0 | D7: =SUMIF('B1 - Matriz de custos diretos'!$B$3:$B$502,$B7,'B1 - Matriz de custos diretos'!$G$3:$G$502)*'A3 - Demanda Anual Agregada '!D9*IFERROR(VLOOKUP($B7,SN_UGC,28,0),0) -> 0 | E7: =SUMIF('B1 - Matriz de custos diretos'!$B$3:$B$502,$B7,'B1 - Matriz de custos diretos'!$G$3:$G$502)*'A3 - Demanda Anual Agregada '!E9*IFERROR(VLOOKUP($B7,SN_UGC,28,0),0) -> 0 | F7: =SUMIF('B1 - Matriz de custos diretos'!$B$3:$B$502,$B7,'B1 - Matriz de custos diretos'!$G$3:$G$502)*'A3 - Demanda Anual Agregada '!F9*IFERROR(VLOOKUP($B7,SN_UGC,28,0),0) -> 0 | G7: =SUMIF('B1 - Matriz de custos diretos'!$B$3:$B$502,$B7,'B1 - Matriz de custos diretos'!$G$3:$G$502)*'A3 - Demanda Anual Agregada '!G9*IFERROR(VLOOKUP($B7,SN_UGC,28,0),0) -> 0 | H7: =SUMIF('B1 - Matriz de custos diretos'!$B$3:$B$502,$B7,'B1 - Matriz de custos diretos'!$G$3:$G$502)*'A3 - Demanda Anual Agregada '!H9*IFERROR(VLOOKUP($B7,SN_UGC,28,0),0) -> 0 | I7: =SUMIF('B1 - Matriz de custos diretos'!$B$3:$B$502,$B7,'B1 - Matriz de custos diretos'!$G$3:$G$502)*'A3 - Demanda Anual Agregada '!I9*IFERROR(VLOOKUP($B7,SN_UGC,28,0),0) -> 0 | J7: =SUMIF('B1 - Matriz de custos diretos'!$B$3:$B$502,$B7,'B1 - Matriz de custos diretos'!$G$3:$G$502)*'A3 - Demanda Anual Agregada '!J9*IFERROR(VLOOKUP($B7,SN_UGC,28,0),0) -> 0 | K7: =SUMIF('B1 - Matriz de custos diretos'!$B$3:$B$502,$B7,'B1 - Matriz de custos diretos'!$G$3:$G$502)*'A3 - Demanda Anual Agregada '!K9*IFERROR(VLOOKUP($B7,SN_UGC,28,0),0) -> 0 | L7: =SUMIF('B1 - Matriz de custos diretos'!$B$3:$B$502,$B7,'B1 - Matriz de custos diretos'!$G$3:$G$502)*'A3 - Demanda Anual Agregada '!L9*IFERROR(VLOOKUP($B7,SN_UGC,28,0),0) -> 0 | M7: =SUMIF('B1 - Matriz de custos diretos'!$B$3:$B$502,$B7,'B1 - Matriz de custos diretos'!$G$3:$G$502)*'A3 - Demanda Anual Agregada '!M9*IFERROR(VLOOKUP($B7,SN_UGC,28,0),0) -> 0 | N7: =SUMIF('B1 - Matriz de custos diretos'!$B$3:$B$502,$B7,'B1 - Matriz de custos diretos'!$G$3:$G$502)*'A3 - Demanda Anual Agregada '!N9*IFERROR(VLOOKUP($B7,SN_UGC,28,0),0) -> 0 | O7: =SUMIF('B1 - Matriz de custos diretos'!$B$3:$B$502,$B7,'B1 - Matriz de custos diretos'!$G$3:$G$502)*'A3 - Demanda Anual Agregada '!O9*IFERROR(VLOOKUP($B7,SN_UGC,28,0),0) -> 0 | P7: =SUMIF('B1 - Matriz de custos diretos'!$B$3:$B$502,$B7,'B1 - Matriz de custos diretos'!$G$3:$G$502)*'A3 - Demanda Anual Agregada '!P9*IFERROR(VLOOKUP($B7,SN_UGC,28,0),0) -> 0 | Q7: =SUMIF('B1 - Matriz de custos diretos'!$B$3:$B$502,$B7,'B1 - Matriz de custos diretos'!$G$3:$G$502)*'A3 - Demanda Anual Agregada '!Q9*IFERROR(VLOOKUP($B7,SN_UGC,28,0),0) -> 0 | R7: =SUMIF('B1 - Matriz de custos diretos'!$B$3:$B$502,$B7,'B1 - Matriz de custos diretos'!$G$3:$G$502)*'A3 - Demanda Anual Agregada '!R9*IFERROR(VLOOKUP($B7,SN_UGC,28,0),0) -> 0 | S7: =SUMIF('B1 - Matriz de custos diretos'!$B$3:$B$502,$B7,'B1 - Matriz de custos diretos'!$G$3:$G$502)*'A3 - Demanda Anual Agregada '!S9*IFERROR(VLOOKUP($B7,SN_UGC,28,0),0) -> 0 | T7: =SUMIF('B1 - Matriz de custos diretos'!$B$3:$B$502,$B7,'B1 - Matriz de custos diretos'!$G$3:$G$502)*'A3 - Demanda Anual Agregada '!T9*IFERROR(VLOOKUP($B7,SN_UGC,28,0),0) -> 0 | U7: =SUMIF('B1 - Matriz de custos diretos'!$B$3:$B$502,$B7,'B1 - Matriz de custos diretos'!$G$3:$G$502)*'A3 - Demanda Anual Agregada '!U9*IFERROR(VLOOKUP($B7,SN_UGC,28,0),0) -> 0 | V7: =SUMIF('B1 - Matriz de custos diretos'!$B$3:$B$502,$B7,'B1 - Matriz de custos diretos'!$G$3:$G$502)*'A3 - Demanda Anual Agregada '!V9*IFERROR(VLOOKUP($B7,SN_UGC,28,0),0) -> 0 | W7: =SUMIF('B1 - Matriz de custos diretos'!$B$3:$B$502,$B7,'B1 - Matriz de custos diretos'!$G$3:$G$502)*'A3 - Demanda Anual Agregada '!W9*IFERROR(VLOOKUP($B7,SN_UGC,28,0),0) -> 0 | X7: =SUMIF('B1 - Matriz de custos diretos'!$B$3:$B$502,$B7,'B1 - Matriz de custos diretos'!$G$3:$G$502)*'A3 - Demanda Anual Agregada '!X9*IFERROR(VLOOKUP($B7,SN_UGC,28,0),0) -> 0 | Y7: =SUMIF('B1 - Matriz de custos diretos'!$B$3:$B$502,$B7,'B1 - Matriz de custos diretos'!$G$3:$G$502)*'A3 - Demanda Anual Agregada '!Y9*IFERROR(VLOOKUP($B7,SN_UGC,28,0),0) -> 0 | Z7: =SUMIF('B1 - Matriz de custos diretos'!$B$3:$B$502,$B7,'B1 - Matriz de custos diretos'!$G$3:$G$502)*'A3 - Demanda Anual Agregada '!Z9*IFERROR(VLOOKUP($B7,SN_UGC,28,0),0) -> 0 | AA7: =SUMIF('B1 - Matriz de custos diretos'!$B$3:$B$502,$B7,'B1 - Matriz de custos diretos'!$G$3:$G$502)*'A3 - Demanda Anual Agregada '!AA9*IFERROR(VLOOKUP($B7,SN_UGC,28,0),0) -> 0 | AB7: =SUMIF('B1 - Matriz de custos diretos'!$B$3:$B$502,$B7,'B1 - Matriz de custos diretos'!$G$3:$G$502)*'A3 - Demanda Anual Agregada '!AB9*IFERROR(VLOOKUP($B7,SN_UGC,28,0),0) -> 0 | AC7: =SUMIF('B1 - Matriz de custos diretos'!$B$3:$B$502,$B7,'B1 - Matriz de custos diretos'!$G$3:$G$502)*'A3 - Demanda Anual Agregada '!AC9*IFERROR(VLOOKUP($B7,SN_UGC,28,0),0) -> 0 | AD7: =SUMIF('B1 - Matriz de custos diretos'!$B$3:$B$502,$B7,'B1 - Matriz de custos diretos'!$G$3:$G$502)*'A3 - Demanda Anual Agregada '!AD9*IFERROR(VLOOKUP($B7,SN_UGC,28,0),0) -> 0 | AE7: =SUMIF('B1 - Matriz de custos diretos'!$B$3:$B$502,$B7,'B1 - Matriz de custos diretos'!$G$3:$G$502)*'A3 - Demanda Anual Agregada '!AE9*IFERROR(VLOOKUP($B7,SN_UGC,28,0),0) -> 0 | AF7: =SUMIF('B1 - Matriz de custos diretos'!$B$3:$B$502,$B7,'B1 - Matriz de custos diretos'!$G$3:$G$502)*'A3 - Demanda Anual Agregada '!AF9*IFERROR(VLOOKUP($B7,SN_UGC,28,0),0) -> 0
B8: ='A3 - Demanda Anual Agregada '!B10 -> Árvore da Preguiça - Alimentação | C8: =SUMIF('B1 - Matriz de custos diretos'!$B$3:$B$502,$B8,'B1 - Matriz de custos diretos'!$G$3:$G$502)*'A3 - Demanda Anual Agregada '!C10*IFERROR(VLOOKUP($B8,SN_UGC,28,0),0) -> 0 | D8: =SUMIF('B1 - Matriz de custos diretos'!$B$3:$B$502,$B8,'B1 - Matriz de custos diretos'!$G$3:$G$502)*'A3 - Demanda Anual Agregada '!D10*IFERROR(VLOOKUP($B8,SN_UGC,28,0),0) -> 616713.75 | E8: =SUMIF('B1 - Matriz de custos diretos'!$B$3:$B$502,$B8,'B1 - Matriz de custos diretos'!$G$3:$G$502)*'A3 - Demanda Anual Agregada '!E10*IFERROR(VLOOKUP($B8,SN_UGC,28,0),0) -> 637983 | F8: =SUMIF('B1 - Matriz de custos diretos'!$B$3:$B$502,$B8,'B1 - Matriz de custos diretos'!$G$3:$G$502)*'A3 - Demanda Anual Agregada '!F10*IFERROR(VLOOKUP($B8,SN_UGC,28,0),0) -> 658590.75 | G8: =SUMIF('B1 - Matriz de custos diretos'!$B$3:$B$502,$B8,'B1 - Matriz de custos diretos'!$G$3:$G$502)*'A3 - Demanda Anual Agregada '!G10*IFERROR(VLOOKUP($B8,SN_UGC,28,0),0) -> 679522.5 | H8: =SUMIF('B1 - Matriz de custos diretos'!$B$3:$B$502,$B8,'B1 - Matriz de custos diretos'!$G$3:$G$502)*'A3 - Demanda Anual Agregada '!H10*IFERROR(VLOOKUP($B8,SN_UGC,28,0),0) -> 700818.75 | I8: =SUMIF('B1 - Matriz de custos diretos'!$B$3:$B$502,$B8,'B1 - Matriz de custos diretos'!$G$3:$G$502)*'A3 - Demanda Anual Agregada '!I10*IFERROR(VLOOKUP($B8,SN_UGC,28,0),0) -> 722715.75 | J8: =SUMIF('B1 - Matriz de custos diretos'!$B$3:$B$502,$B8,'B1 - Matriz de custos diretos'!$G$3:$G$502)*'A3 - Demanda Anual Agregada '!J10*IFERROR(VLOOKUP($B8,SN_UGC,28,0),0) -> 745254 | K8: =SUMIF('B1 - Matriz de custos diretos'!$B$3:$B$502,$B8,'B1 - Matriz de custos diretos'!$G$3:$G$502)*'A3 - Demanda Anual Agregada '!K10*IFERROR(VLOOKUP($B8,SN_UGC,28,0),0) -> 768204 | L8: =SUMIF('B1 - Matriz de custos diretos'!$B$3:$B$502,$B8,'B1 - Matriz de custos diretos'!$G$3:$G$502)*'A3 - Demanda Anual Agregada '!L10*IFERROR(VLOOKUP($B8,SN_UGC,28,0),0) -> 791579.25 | M8: =SUMIF('B1 - Matriz de custos diretos'!$B$3:$B$502,$B8,'B1 - Matriz de custos diretos'!$G$3:$G$502)*'A3 - Demanda Anual Agregada '!M10*IFERROR(VLOOKUP($B8,SN_UGC,28,0),0) -> 815683.5 | N8: =SUMIF('B1 - Matriz de custos diretos'!$B$3:$B$502,$B8,'B1 - Matriz de custos diretos'!$G$3:$G$502)*'A3 - Demanda Anual Agregada '!N10*IFERROR(VLOOKUP($B8,SN_UGC,28,0),0) -> 840510 | O8: =SUMIF('B1 - Matriz de custos diretos'!$B$3:$B$502,$B8,'B1 - Matriz de custos diretos'!$G$3:$G$502)*'A3 - Demanda Anual Agregada '!O10*IFERROR(VLOOKUP($B8,SN_UGC,28,0),0) -> 866133 | P8: =SUMIF('B1 - Matriz de custos diretos'!$B$3:$B$502,$B8,'B1 - Matriz de custos diretos'!$G$3:$G$502)*'A3 - Demanda Anual Agregada '!P10*IFERROR(VLOOKUP($B8,SN_UGC,28,0),0) -> 892532.25 | Q8: =SUMIF('B1 - Matriz de custos diretos'!$B$3:$B$502,$B8,'B1 - Matriz de custos diretos'!$G$3:$G$502)*'A3 - Demanda Anual Agregada '!Q10*IFERROR(VLOOKUP($B8,SN_UGC,28,0),0) -> 919721.25 | R8: =SUMIF('B1 - Matriz de custos diretos'!$B$3:$B$502,$B8,'B1 - Matriz de custos diretos'!$G$3:$G$502)*'A3 - Demanda Anual Agregada '!R10*IFERROR(VLOOKUP($B8,SN_UGC,28,0),0) -> 947652.75 | S8: =SUMIF('B1 - Matriz de custos diretos'!$B$3:$B$502,$B8,'B1 - Matriz de custos diretos'!$G$3:$G$502)*'A3 - Demanda Anual Agregada '!S10*IFERROR(VLOOKUP($B8,SN_UGC,28,0),0) -> 976299.75 | T8: =SUMIF('B1 - Matriz de custos diretos'!$B$3:$B$502,$B8,'B1 - Matriz de custos diretos'!$G$3:$G$502)*'A3 - Demanda Anual Agregada '!T10*IFERROR(VLOOKUP($B8,SN_UGC,28,0),0) -> 1005554.25 | U8: =SUMIF('B1 - Matriz de custos diretos'!$B$3:$B$502,$B8,'B1 - Matriz de custos diretos'!$G$3:$G$502)*'A3 - Demanda Anual Agregada '!U10*IFERROR(VLOOKUP($B8,SN_UGC,28,0),0) -> 1035348.75 | V8: =SUMIF('B1 - Matriz de custos diretos'!$B$3:$B$502,$B8,'B1 - Matriz de custos diretos'!$G$3:$G$502)*'A3 - Demanda Anual Agregada '!V10*IFERROR(VLOOKUP($B8,SN_UGC,28,0),0) -> 1065534.75 | W8: =SUMIF('B1 - Matriz de custos diretos'!$B$3:$B$502,$B8,'B1 - Matriz de custos diretos'!$G$3:$G$502)*'A3 - Demanda Anual Agregada '!W10*IFERROR(VLOOKUP($B8,SN_UGC,28,0),0) -> 1065534.75 | X8: =SUMIF('B1 - Matriz de custos diretos'!$B$3:$B$502,$B8,'B1 - Matriz de custos diretos'!$G$3:$G$502)*'A3 - Demanda Anual Agregada '!X10*IFERROR(VLOOKUP($B8,SN_UGC,28,0),0) -> 1065534.75 | Y8: =SUMIF('B1 - Matriz de custos diretos'!$B$3:$B$502,$B8,'B1 - Matriz de custos diretos'!$G$3:$G$502)*'A3 - Demanda Anual Agregada '!Y10*IFERROR(VLOOKUP($B8,SN_UGC,28,0),0) -> 1065534.75 | Z8: =SUMIF('B1 - Matriz de custos diretos'!$B$3:$B$502,$B8,'B1 - Matriz de custos diretos'!$G$3:$G$502)*'A3 - Demanda Anual Agregada '!Z10*IFERROR(VLOOKUP($B8,SN_UGC,28,0),0) -> 1065534.75 | AA8: =SUMIF('B1 - Matriz de custos diretos'!$B$3:$B$502,$B8,'B1 - Matriz de custos diretos'!$G$3:$G$502)*'A3 - Demanda Anual Agregada '!AA10*IFERROR(VLOOKUP($B8,SN_UGC,28,0),0) -> 1065534.75 | AB8: =SUMIF('B1 - Matriz de custos diretos'!$B$3:$B$502,$B8,'B1 - Matriz de custos diretos'!$G$3:$G$502)*'A3 - Demanda Anual Agregada '!AB10*IFERROR(VLOOKUP($B8,SN_UGC,28,0),0) -> 1065534.75 | AC8: =SUMIF('B1 - Matriz de custos diretos'!$B$3:$B$502,$B8,'B1 - Matriz de custos diretos'!$G$3:$G$502)*'A3 - Demanda Anual Agregada '!AC10*IFERROR(VLOOKUP($B8,SN_UGC,28,0),0) -> 1065534.75 | AD8: =SUMIF('B1 - Matriz de custos diretos'!$B$3:$B$502,$B8,'B1 - Matriz de custos diretos'!$G$3:$G$502)*'A3 - Demanda Anual Agregada '!AD10*IFERROR(VLOOKUP($B8,SN_UGC,28,0),0) -> 1065534.75 | AE8: =SUMIF('B1 - Matriz de custos diretos'!$B$3:$B$502,$B8,'B1 - Matriz de custos diretos'!$G$3:$G$502)*'A3 - Demanda Anual Agregada '!AE10*IFERROR(VLOOKUP($B8,SN_UGC,28,0),0) -> 1065534.75 | AF8: =SUMIF('B1 - Matriz de custos diretos'!$B$3:$B$502,$B8,'B1 - Matriz de custos diretos'!$G$3:$G$502)*'A3 - Demanda Anual Agregada '!AF10*IFERROR(VLOOKUP($B8,SN_UGC,28,0),0) -> 1065534.75
B9: ='A3 - Demanda Anual Agregada '!B11 -> Árvore da Preguiça - Comércio | C9: =SUMIF('B1 - Matriz de custos diretos'!$B$3:$B$502,$B9,'B1 - Matriz de custos diretos'!$G$3:$G$502)*'A3 - Demanda Anual Agregada '!C11*IFERROR(VLOOKUP($B9,SN_UGC,28,0),0) -> 0 | D9: =SUMIF('B1 - Matriz de custos diretos'!$B$3:$B$502,$B9,'B1 - Matriz de custos diretos'!$G$3:$G$502)*'A3 - Demanda Anual Agregada '!D11*IFERROR(VLOOKUP($B9,SN_UGC,28,0),0) -> 266472.5 | E9: =SUMIF('B1 - Matriz de custos diretos'!$B$3:$B$502,$B9,'B1 - Matriz de custos diretos'!$G$3:$G$502)*'A3 - Demanda Anual Agregada '!E11*IFERROR(VLOOKUP($B9,SN_UGC,28,0),0) -> 275677.5 | F9: =SUMIF('B1 - Matriz de custos diretos'!$B$3:$B$502,$B9,'B1 - Matriz de custos diretos'!$G$3:$G$502)*'A3 - Demanda Anual Agregada '!F11*IFERROR(VLOOKUP($B9,SN_UGC,28,0),0) -> 284567.5 | G9: =SUMIF('B1 - Matriz de custos diretos'!$B$3:$B$502,$B9,'B1 - Matriz de custos diretos'!$G$3:$G$502)*'A3 - Demanda Anual Agregada '!G11*IFERROR(VLOOKUP($B9,SN_UGC,28,0),0) -> 293615 | H9: =SUMIF('B1 - Matriz de custos diretos'!$B$3:$B$502,$B9,'B1 - Matriz de custos diretos'!$G$3:$G$502)*'A3 - Demanda Anual Agregada '!H11*IFERROR(VLOOKUP($B9,SN_UGC,28,0),0) -> 302820 | I9: =SUMIF('B1 - Matriz de custos diretos'!$B$3:$B$502,$B9,'B1 - Matriz de custos diretos'!$G$3:$G$502)*'A3 - Demanda Anual Agregada '!I11*IFERROR(VLOOKUP($B9,SN_UGC,28,0),0) -> 312287.5 | J9: =SUMIF('B1 - Matriz de custos diretos'!$B$3:$B$502,$B9,'B1 - Matriz de custos diretos'!$G$3:$G$502)*'A3 - Demanda Anual Agregada '!J11*IFERROR(VLOOKUP($B9,SN_UGC,28,0),0) -> 322017.5 | K9: =SUMIF('B1 - Matriz de custos diretos'!$B$3:$B$502,$B9,'B1 - Matriz de custos diretos'!$G$3:$G$502)*'A3 - Demanda Anual Agregada '!K11*IFERROR(VLOOKUP($B9,SN_UGC,28,0),0) -> 331940 | L9: =SUMIF('B1 - Matriz de custos diretos'!$B$3:$B$502,$B9,'B1 - Matriz de custos diretos'!$G$3:$G$502)*'A3 - Demanda Anual Agregada '!L11*IFERROR(VLOOKUP($B9,SN_UGC,28,0),0) -> 342037.5 | M9: =SUMIF('B1 - Matriz de custos diretos'!$B$3:$B$502,$B9,'B1 - Matriz de custos diretos'!$G$3:$G$502)*'A3 - Demanda Anual Agregada '!M11*IFERROR(VLOOKUP($B9,SN_UGC,28,0),0) -> 352450 | N9: =SUMIF('B1 - Matriz de custos diretos'!$B$3:$B$502,$B9,'B1 - Matriz de custos diretos'!$G$3:$G$502)*'A3 - Demanda Anual Agregada '!N11*IFERROR(VLOOKUP($B9,SN_UGC,28,0),0) -> 363177.5 | O9: =SUMIF('B1 - Matriz de custos diretos'!$B$3:$B$502,$B9,'B1 - Matriz de custos diretos'!$G$3:$G$502)*'A3 - Demanda Anual Agregada '!O11*IFERROR(VLOOKUP($B9,SN_UGC,28,0),0) -> 374255 | P9: =SUMIF('B1 - Matriz de custos diretos'!$B$3:$B$502,$B9,'B1 - Matriz de custos diretos'!$G$3:$G$502)*'A3 - Demanda Anual Agregada '!P11*IFERROR(VLOOKUP($B9,SN_UGC,28,0),0) -> 385665 | Q9: =SUMIF('B1 - Matriz de custos diretos'!$B$3:$B$502,$B9,'B1 - Matriz de custos diretos'!$G$3:$G$502)*'A3 - Demanda Anual Agregada '!Q11*IFERROR(VLOOKUP($B9,SN_UGC,28,0),0) -> 397407.5 | R9: =SUMIF('B1 - Matriz de custos diretos'!$B$3:$B$502,$B9,'B1 - Matriz de custos diretos'!$G$3:$G$502)*'A3 - Demanda Anual Agregada '!R11*IFERROR(VLOOKUP($B9,SN_UGC,28,0),0) -> 409482.5 | S9: =SUMIF('B1 - Matriz de custos diretos'!$B$3:$B$502,$B9,'B1 - Matriz de custos diretos'!$G$3:$G$502)*'A3 - Demanda Anual Agregada '!S11*IFERROR(VLOOKUP($B9,SN_UGC,28,0),0) -> 421855 | T9: =SUMIF('B1 - Matriz de custos diretos'!$B$3:$B$502,$B9,'B1 - Matriz de custos diretos'!$G$3:$G$502)*'A3 - Demanda Anual Agregada '!T11*IFERROR(VLOOKUP($B9,SN_UGC,28,0),0) -> 434507.5 | U9: =SUMIF('B1 - Matriz de custos diretos'!$B$3:$B$502,$B9,'B1 - Matriz de custos diretos'!$G$3:$G$502)*'A3 - Demanda Anual Agregada '!U11*IFERROR(VLOOKUP($B9,SN_UGC,28,0),0) -> 447370 | V9: =SUMIF('B1 - Matriz de custos diretos'!$B$3:$B$502,$B9,'B1 - Matriz de custos diretos'!$G$3:$G$502)*'A3 - Demanda Anual Agregada '!V11*IFERROR(VLOOKUP($B9,SN_UGC,28,0),0) -> 460407.5 | W9: =SUMIF('B1 - Matriz de custos diretos'!$B$3:$B$502,$B9,'B1 - Matriz de custos diretos'!$G$3:$G$502)*'A3 - Demanda Anual Agregada '!W11*IFERROR(VLOOKUP($B9,SN_UGC,28,0),0) -> 460407.5 | X9: =SUMIF('B1 - Matriz de custos diretos'!$B$3:$B$502,$B9,'B1 - Matriz de custos diretos'!$G$3:$G$502)*'A3 - Demanda Anual Agregada '!X11*IFERROR(VLOOKUP($B9,SN_UGC,28,0),0) -> 460407.5 | Y9: =SUMIF('B1 - Matriz de custos diretos'!$B$3:$B$502,$B9,'B1 - Matriz de custos diretos'!$G$3:$G$502)*'A3 - Demanda Anual Agregada '!Y11*IFERROR(VLOOKUP($B9,SN_UGC,28,0),0) -> 460407.5 | Z9: =SUMIF('B1 - Matriz de custos diretos'!$B$3:$B$502,$B9,'B1 - Matriz de custos diretos'!$G$3:$G$502)*'A3 - Demanda Anual Agregada '!Z11*IFERROR(VLOOKUP($B9,SN_UGC,28,0),0) -> 460407.5 | AA9: =SUMIF('B1 - Matriz de custos diretos'!$B$3:$B$502,$B9,'B1 - Matriz de custos diretos'!$G$3:$G$502)*'A3 - Demanda Anual Agregada '!AA11*IFERROR(VLOOKUP($B9,SN_UGC,28,0),0) -> 460407.5 | AB9: =SUMIF('B1 - Matriz de custos diretos'!$B$3:$B$502,$B9,'B1 - Matriz de custos diretos'!$G$3:$G$502)*'A3 - Demanda Anual Agregada '!AB11*IFERROR(VLOOKUP($B9,SN_UGC,28,0),0) -> 460407.5 | AC9: =SUMIF('B1 - Matriz de custos diretos'!$B$3:$B$502,$B9,'B1 - Matriz de custos diretos'!$G$3:$G$502)*'A3 - Demanda Anual Agregada '!AC11*IFERROR(VLOOKUP($B9,SN_UGC,28,0),0) -> 460407.5 | AD9: =SUMIF('B1 - Matriz de custos diretos'!$B$3:$B$502,$B9,'B1 - Matriz de custos diretos'!$G$3:$G$502)*'A3 - Demanda Anual Agregada '!AD11*IFERROR(VLOOKUP($B9,SN_UGC,28,0),0) -> 460407.5 | AE9: =SUMIF('B1 - Matriz de custos diretos'!$B$3:$B$502,$B9,'B1 - Matriz de custos diretos'!$G$3:$G$502)*'A3 - Demanda Anual Agregada '!AE11*IFERROR(VLOOKUP($B9,SN_UGC,28,0),0) -> 460407.5 | AF9: =SUMIF('B1 - Matriz de custos diretos'!$B$3:$B$502,$B9,'B1 - Matriz de custos diretos'!$G$3:$G$502)*'A3 - Demanda Anual Agregada '!AF11*IFERROR(VLOOKUP($B9,SN_UGC,28,0),0) -> 460407.5
B10: ='A3 - Demanda Anual Agregada '!B12 -> Silveira - Alimentação | C10: =SUMIF('B1 - Matriz de custos diretos'!$B$3:$B$502,$B10,'B1 - Matriz de custos diretos'!$G$3:$G$502)*'A3 - Demanda Anual Agregada '!C12*IFERROR(VLOOKUP($B10,SN_UGC,28,0),0) -> 0 | D10: =SUMIF('B1 - Matriz de custos diretos'!$B$3:$B$502,$B10,'B1 - Matriz de custos diretos'!$G$3:$G$502)*'A3 - Demanda Anual Agregada '!D12*IFERROR(VLOOKUP($B10,SN_UGC,28,0),0) -> 616713.75 | E10: =SUMIF('B1 - Matriz de custos diretos'!$B$3:$B$502,$B10,'B1 - Matriz de custos diretos'!$G$3:$G$502)*'A3 - Demanda Anual Agregada '!E12*IFERROR(VLOOKUP($B10,SN_UGC,28,0),0) -> 637983 | F10: =SUMIF('B1 - Matriz de custos diretos'!$B$3:$B$502,$B10,'B1 - Matriz de custos diretos'!$G$3:$G$502)*'A3 - Demanda Anual Agregada '!F12*IFERROR(VLOOKUP($B10,SN_UGC,28,0),0) -> 658590.75 | G10: =SUMIF('B1 - Matriz de custos diretos'!$B$3:$B$502,$B10,'B1 - Matriz de custos diretos'!$G$3:$G$502)*'A3 - Demanda Anual Agregada '!G12*IFERROR(VLOOKUP($B10,SN_UGC,28,0),0) -> 679522.5 | H10: =SUMIF('B1 - Matriz de custos diretos'!$B$3:$B$502,$B10,'B1 - Matriz de custos diretos'!$G$3:$G$502)*'A3 - Demanda Anual Agregada '!H12*IFERROR(VLOOKUP($B10,SN_UGC,28,0),0) -> 700818.75 | I10: =SUMIF('B1 - Matriz de custos diretos'!$B$3:$B$502,$B10,'B1 - Matriz de custos diretos'!$G$3:$G$502)*'A3 - Demanda Anual Agregada '!I12*IFERROR(VLOOKUP($B10,SN_UGC,28,0),0) -> 722715.75 | J10: =SUMIF('B1 - Matriz de custos diretos'!$B$3:$B$502,$B10,'B1 - Matriz de custos diretos'!$G$3:$G$502)*'A3 - Demanda Anual Agregada '!J12*IFERROR(VLOOKUP($B10,SN_UGC,28,0),0) -> 745254 | K10: =SUMIF('B1 - Matriz de custos diretos'!$B$3:$B$502,$B10,'B1 - Matriz de custos diretos'!$G$3:$G$502)*'A3 - Demanda Anual Agregada '!K12*IFERROR(VLOOKUP($B10,SN_UGC,28,0),0) -> 768204 | L10: =SUMIF('B1 - Matriz de custos diretos'!$B$3:$B$502,$B10,'B1 - Matriz de custos diretos'!$G$3:$G$502)*'A3 - Demanda Anual Agregada '!L12*IFERROR(VLOOKUP($B10,SN_UGC,28,0),0) -> 791579.25 | M10: =SUMIF('B1 - Matriz de custos diretos'!$B$3:$B$502,$B10,'B1 - Matriz de custos diretos'!$G$3:$G$502)*'A3 - Demanda Anual Agregada '!M12*IFERROR(VLOOKUP($B10,SN_UGC,28,0),0) -> 815683.5 | N10: =SUMIF('B1 - Matriz de custos diretos'!$B$3:$B$502,$B10,'B1 - Matriz de custos diretos'!$G$3:$G$502)*'A3 - Demanda Anual Agregada '!N12*IFERROR(VLOOKUP($B10,SN_UGC,28,0),0) -> 840510 | O10: =SUMIF('B1 - Matriz de custos diretos'!$B$3:$B$502,$B10,'B1 - Matriz de custos diretos'!$G$3:$G$502)*'A3 - Demanda Anual Agregada '!O12*IFERROR(VLOOKUP($B10,SN_UGC,28,0),0) -> 866133 | P10: =SUMIF('B1 - Matriz de custos diretos'!$B$3:$B$502,$B10,'B1 - Matriz de custos diretos'!$G$3:$G$502)*'A3 - Demanda Anual Agregada '!P12*IFERROR(VLOOKUP($B10,SN_UGC,28,0),0) -> 892532.25 | Q10: =SUMIF('B1 - Matriz de custos diretos'!$B$3:$B$502,$B10,'B1 - Matriz de custos diretos'!$G$3:$G$502)*'A3 - Demanda Anual Agregada '!Q12*IFERROR(VLOOKUP($B10,SN_UGC,28,0),0) -> 919721.25 | R10: =SUMIF('B1 - Matriz de custos diretos'!$B$3:$B$502,$B10,'B1 - Matriz de custos diretos'!$G$3:$G$502)*'A3 - Demanda Anual Agregada '!R12*IFERROR(VLOOKUP($B10,SN_UGC,28,0),0) -> 947652.75 | S10: =SUMIF('B1 - Matriz de custos diretos'!$B$3:$B$502,$B10,'B1 - Matriz de custos diretos'!$G$3:$G$502)*'A3 - Demanda Anual Agregada '!S12*IFERROR(VLOOKUP($B10,SN_UGC,28,0),0) -> 976299.75 | T10: =SUMIF('B1 - Matriz de custos diretos'!$B$3:$B$502,$B10,'B1 - Matriz de custos diretos'!$G$3:$G$502)*'A3 - Demanda Anual Agregada '!T12*IFERROR(VLOOKUP($B10,SN_UGC,28,0),0) -> 1005554.25 | U10: =SUMIF('B1 - Matriz de custos diretos'!$B$3:$B$502,$B10,'B1 - Matriz de custos diretos'!$G$3:$G$502)*'A3 - Demanda Anual Agregada '!U12*IFERROR(VLOOKUP($B10,SN_UGC,28,0),0) -> 1035348.75 | V10: =SUMIF('B1 - Matriz de custos diretos'!$B$3:$B$502,$B10,'B1 - Matriz de custos diretos'!$G$3:$G$502)*'A3 - Demanda Anual Agregada '!V12*IFERROR(VLOOKUP($B10,SN_UGC,28,0),0) -> 1065534.75 | W10: =SUMIF('B1 - Matriz de custos diretos'!$B$3:$B$502,$B10,'B1 - Matriz de custos diretos'!$G$3:$G$502)*'A3 - Demanda Anual Agregada '!W12*IFERROR(VLOOKUP($B10,SN_UGC,28,0),0) -> 1065534.75 | X10: =SUMIF('B1 - Matriz de custos diretos'!$B$3:$B$502,$B10,'B1 - Matriz de custos diretos'!$G$3:$G$502)*'A3 - Demanda Anual Agregada '!X12*IFERROR(VLOOKUP($B10,SN_UGC,28,0),0) -> 1065534.75 | Y10: =SUMIF('B1 - Matriz de custos diretos'!$B$3:$B$502,$B10,'B1 - Matriz de custos diretos'!$G$3:$G$502)*'A3 - Demanda Anual Agregada '!Y12*IFERROR(VLOOKUP($B10,SN_UGC,28,0),0) -> 1065534.75 | Z10: =SUMIF('B1 - Matriz de custos diretos'!$B$3:$B$502,$B10,'B1 - Matriz de custos diretos'!$G$3:$G$502)*'A3 - Demanda Anual Agregada '!Z12*IFERROR(VLOOKUP($B10,SN_UGC,28,0),0) -> 1065534.75 | AA10: =SUMIF('B1 - Matriz de custos diretos'!$B$3:$B$502,$B10,'B1 - Matriz de custos diretos'!$G$3:$G$502)*'A3 - Demanda Anual Agregada '!AA12*IFERROR(VLOOKUP($B10,SN_UGC,28,0),0) -> 1065534.75 | AB10: =SUMIF('B1 - Matriz de custos diretos'!$B$3:$B$502,$B10,'B1 - Matriz de custos diretos'!$G$3:$G$502)*'A3 - Demanda Anual Agregada '!AB12*IFERROR(VLOOKUP($B10,SN_UGC,28,0),0) -> 1065534.75 | AC10: =SUMIF('B1 - Matriz de custos diretos'!$B$3:$B$502,$B10,'B1 - Matriz de custos diretos'!$G$3:$G$502)*'A3 - Demanda Anual Agregada '!AC12*IFERROR(VLOOKUP($B10,SN_UGC,28,0),0) -> 1065534.75 | AD10: =SUMIF('B1 - Matriz de custos diretos'!$B$3:$B$502,$B10,'B1 - Matriz de custos diretos'!$G$3:$G$502)*'A3 - Demanda Anual Agregada '!AD12*IFERROR(VLOOKUP($B10,SN_UGC,28,0),0) -> 1065534.75 | AE10: =SUMIF('B1 - Matriz de custos diretos'!$B$3:$B$502,$B10,'B1 - Matriz de custos diretos'!$G$3:$G$502)*'A3 - Demanda Anual Agregada '!AE12*IFERROR(VLOOKUP($B10,SN_UGC,28,0),0) -> 1065534.75 | AF10: =SUMIF('B1 - Matriz de custos diretos'!$B$3:$B$502,$B10,'B1 - Matriz de custos diretos'!$G$3:$G$502)*'A3 - Demanda Anual Agregada '!AF12*IFERROR(VLOOKUP($B10,SN_UGC,28,0),0) -> 1065534.75
B11: ='A3 - Demanda Anual Agregada '!B13 -> Silveira - Comércio + Locação + Atividades | C11: =SUMIF('B1 - Matriz de custos diretos'!$B$3:$B$502,$B11,'B1 - Matriz de custos diretos'!$G$3:$G$502)*'A3 - Demanda Anual Agregada '!C13*IFERROR(VLOOKUP($B11,SN_UGC,28,0),0) -> 0 | D11: =SUMIF('B1 - Matriz de custos diretos'!$B$3:$B$502,$B11,'B1 - Matriz de custos diretos'!$G$3:$G$502)*'A3 - Demanda Anual Agregada '!D13*IFERROR(VLOOKUP($B11,SN_UGC,28,0),0) -> 266472.5 | E11: =SUMIF('B1 - Matriz de custos diretos'!$B$3:$B$502,$B11,'B1 - Matriz de custos diretos'!$G$3:$G$502)*'A3 - Demanda Anual Agregada '!E13*IFERROR(VLOOKUP($B11,SN_UGC,28,0),0) -> 275677.5 | F11: =SUMIF('B1 - Matriz de custos diretos'!$B$3:$B$502,$B11,'B1 - Matriz de custos diretos'!$G$3:$G$502)*'A3 - Demanda Anual Agregada '!F13*IFERROR(VLOOKUP($B11,SN_UGC,28,0),0) -> 284567.5 | G11: =SUMIF('B1 - Matriz de custos diretos'!$B$3:$B$502,$B11,'B1 - Matriz de custos diretos'!$G$3:$G$502)*'A3 - Demanda Anual Agregada '!G13*IFERROR(VLOOKUP($B11,SN_UGC,28,0),0) -> 293615 | H11: =SUMIF('B1 - Matriz de custos diretos'!$B$3:$B$502,$B11,'B1 - Matriz de custos diretos'!$G$3:$G$502)*'A3 - Demanda Anual Agregada '!H13*IFERROR(VLOOKUP($B11,SN_UGC,28,0),0) -> 302820 | I11: =SUMIF('B1 - Matriz de custos diretos'!$B$3:$B$502,$B11,'B1 - Matriz de custos diretos'!$G$3:$G$502)*'A3 - Demanda Anual Agregada '!I13*IFERROR(VLOOKUP($B11,SN_UGC,28,0),0) -> 312287.5 | J11: =SUMIF('B1 - Matriz de custos diretos'!$B$3:$B$502,$B11,'B1 - Matriz de custos diretos'!$G$3:$G$502)*'A3 - Demanda Anual Agregada '!J13*IFERROR(VLOOKUP($B11,SN_UGC,28,0),0) -> 322017.5 | K11: =SUMIF('B1 - Matriz de custos diretos'!$B$3:$B$502,$B11,'B1 - Matriz de custos diretos'!$G$3:$G$502)*'A3 - Demanda Anual Agregada '!K13*IFERROR(VLOOKUP($B11,SN_UGC,28,0),0) -> 331940 | L11: =SUMIF('B1 - Matriz de custos diretos'!$B$3:$B$502,$B11,'B1 - Matriz de custos diretos'!$G$3:$G$502)*'A3 - Demanda Anual Agregada '!L13*IFERROR(VLOOKUP($B11,SN_UGC,28,0),0) -> 342037.5 | M11: =SUMIF('B1 - Matriz de custos diretos'!$B$3:$B$502,$B11,'B1 - Matriz de custos diretos'!$G$3:$G$502)*'A3 - Demanda Anual Agregada '!M13*IFERROR(VLOOKUP($B11,SN_UGC,28,0),0) -> 352450 | N11: =SUMIF('B1 - Matriz de custos diretos'!$B$3:$B$502,$B11,'B1 - Matriz de custos diretos'!$G$3:$G$502)*'A3 - Demanda Anual Agregada '!N13*IFERROR(VLOOKUP($B11,SN_UGC,28,0),0) -> 363177.5 | O11: =SUMIF('B1 - Matriz de custos diretos'!$B$3:$B$502,$B11,'B1 - Matriz de custos diretos'!$G$3:$G$502)*'A3 - Demanda Anual Agregada '!O13*IFERROR(VLOOKUP($B11,SN_UGC,28,0),0) -> 374255 | P11: =SUMIF('B1 - Matriz de custos diretos'!$B$3:$B$502,$B11,'B1 - Matriz de custos diretos'!$G$3:$G$502)*'A3 - Demanda Anual Agregada '!P13*IFERROR(VLOOKUP($B11,SN_UGC,28,0),0) -> 385665 | Q11: =SUMIF('B1 - Matriz de custos diretos'!$B$3:$B$502,$B11,'B1 - Matriz de custos diretos'!$G$3:$G$502)*'A3 - Demanda Anual Agregada '!Q13*IFERROR(VLOOKUP($B11,SN_UGC,28,0),0) -> 397407.5 | R11: =SUMIF('B1 - Matriz de custos diretos'!$B$3:$B$502,$B11,'B1 - Matriz de custos diretos'!$G$3:$G$502)*'A3 - Demanda Anual Agregada '!R13*IFERROR(VLOOKUP($B11,SN_UGC,28,0),0) -> 409482.5 | S11: =SUMIF('B1 - Matriz de custos diretos'!$B$3:$B$502,$B11,'B1 - Matriz de custos diretos'!$G$3:$G$502)*'A3 - Demanda Anual Agregada '!S13*IFERROR(VLOOKUP($B11,SN_UGC,28,0),0) -> 421855 | T11: =SUMIF('B1 - Matriz de custos diretos'!$B$3:$B$502,$B11,'B1 - Matriz de custos diretos'!$G$3:$G$502)*'A3 - Demanda Anual Agregada '!T13*IFERROR(VLOOKUP($B11,SN_UGC,28,0),0) -> 434507.5 | U11: =SUMIF('B1 - Matriz de custos diretos'!$B$3:$B$502,$B11,'B1 - Matriz de custos diretos'!$G$3:$G$502)*'A3 - Demanda Anual Agregada '!U13*IFERROR(VLOOKUP($B11,SN_UGC,28,0),0) -> 447370 | V11: =SUMIF('B1 - Matriz de custos diretos'!$B$3:$B$502,$B11,'B1 - Matriz de custos diretos'!$G$3:$G$502)*'A3 - Demanda Anual Agregada '!V13*IFERROR(VLOOKUP($B11,SN_UGC,28,0),0) -> 460407.5 | W11: =SUMIF('B1 - Matriz de custos diretos'!$B$3:$B$502,$B11,'B1 - Matriz de custos diretos'!$G$3:$G$502)*'A3 - Demanda Anual Agregada '!W13*IFERROR(VLOOKUP($B11,SN_UGC,28,0),0) -> 460407.5 | X11: =SUMIF('B1 - Matriz de custos diretos'!$B$3:$B$502,$B11,'B1 - Matriz de custos diretos'!$G$3:$G$502)*'A3 - Demanda Anual Agregada '!X13*IFERROR(VLOOKUP($B11,SN_UGC,28,0),0) -> 460407.5 | Y11: =SUMIF('B1 - Matriz de custos diretos'!$B$3:$B$502,$B11,'B1 - Matriz de custos diretos'!$G$3:$G$502)*'A3 - Demanda Anual Agregada '!Y13*IFERROR(VLOOKUP($B11,SN_UGC,28,0),0) -> 460407.5 | Z11: =SUMIF('B1 - Matriz de custos diretos'!$B$3:$B$502,$B11,'B1 - Matriz de custos diretos'!$G$3:$G$502)*'A3 - Demanda Anual Agregada '!Z13*IFERROR(VLOOKUP($B11,SN_UGC,28,0),0) -> 460407.5 | AA11: =SUMIF('B1 - Matriz de custos diretos'!$B$3:$B$502,$B11,'B1 - Matriz de custos diretos'!$G$3:$G$502)*'A3 - Demanda Anual Agregada '!AA13*IFERROR(VLOOKUP($B11,SN_UGC,28,0),0) -> 460407.5 | AB11: =SUMIF('B1 - Matriz de custos diretos'!$B$3:$B$502,$B11,'B1 - Matriz de custos diretos'!$G$3:$G$502)*'A3 - Demanda Anual Agregada '!AB13*IFERROR(VLOOKUP($B11,SN_UGC,28,0),0) -> 460407.5 | AC11: =SUMIF('B1 - Matriz de custos diretos'!$B$3:$B$502,$B11,'B1 - Matriz de custos diretos'!$G$3:$G$502)*'A3 - Demanda Anual Agregada '!AC13*IFERROR(VLOOKUP($B11,SN_UGC,28,0),0) -> 460407.5 | AD11: =SUMIF('B1 - Matriz de custos diretos'!$B$3:$B$502,$B11,'B1 - Matriz de custos diretos'!$G$3:$G$502)*'A3 - Demanda Anual Agregada '!AD13*IFERROR(VLOOKUP($B11,SN_UGC,28,0),0) -> 460407.5 | AE11: =SUMIF('B1 - Matriz de custos diretos'!$B$3:$B$502,$B11,'B1 - Matriz de custos diretos'!$G$3:$G$502)*'A3 - Demanda Anual Agregada '!AE13*IFERROR(VLOOKUP($B11,SN_UGC,28,0),0) -> 460407.5 | AF11: =SUMIF('B1 - Matriz de custos diretos'!$B$3:$B$502,$B11,'B1 - Matriz de custos diretos'!$G$3:$G$502)*'A3 - Demanda Anual Agregada '!AF13*IFERROR(VLOOKUP($B11,SN_UGC,28,0),0) -> 460407.5
B12: ='A3 - Demanda Anual Agregada '!B14 -> Silveira - Hospedagem | C12: =SUMIF('B1 - Matriz de custos diretos'!$B$3:$B$502,$B12,'B1 - Matriz de custos diretos'!$G$3:$G$502)*'A3 - Demanda Anual Agregada '!C14*IFERROR(VLOOKUP($B12,SN_UGC,28,0),0) -> 0 | D12: =SUMIF('B1 - Matriz de custos diretos'!$B$3:$B$502,$B12,'B1 - Matriz de custos diretos'!$G$3:$G$502)*'A3 - Demanda Anual Agregada '!D14*IFERROR(VLOOKUP($B12,SN_UGC,28,0),0) -> 61559.19 | E12: =SUMIF('B1 - Matriz de custos diretos'!$B$3:$B$502,$B12,'B1 - Matriz de custos diretos'!$G$3:$G$502)*'A3 - Demanda Anual Agregada '!E14*IFERROR(VLOOKUP($B12,SN_UGC,28,0),0) -> 63682.85 | F12: =SUMIF('B1 - Matriz de custos diretos'!$B$3:$B$502,$B12,'B1 - Matriz de custos diretos'!$G$3:$G$502)*'A3 - Demanda Anual Agregada '!F14*IFERROR(VLOOKUP($B12,SN_UGC,28,0),0) -> 65736.44 | G12: =SUMIF('B1 - Matriz de custos diretos'!$B$3:$B$502,$B12,'B1 - Matriz de custos diretos'!$G$3:$G$502)*'A3 - Demanda Anual Agregada '!G14*IFERROR(VLOOKUP($B12,SN_UGC,28,0),0) -> 67827.76 | H12: =SUMIF('B1 - Matriz de custos diretos'!$B$3:$B$502,$B12,'B1 - Matriz de custos diretos'!$G$3:$G$502)*'A3 - Demanda Anual Agregada '!H14*IFERROR(VLOOKUP($B12,SN_UGC,28,0),0) -> 69951.42 | I12: =SUMIF('B1 - Matriz de custos diretos'!$B$3:$B$502,$B12,'B1 - Matriz de custos diretos'!$G$3:$G$502)*'A3 - Demanda Anual Agregada '!I14*IFERROR(VLOOKUP($B12,SN_UGC,28,0),0) -> 72139.76 | J12: =SUMIF('B1 - Matriz de custos diretos'!$B$3:$B$502,$B12,'B1 - Matriz de custos diretos'!$G$3:$G$502)*'A3 - Demanda Anual Agregada '!J14*IFERROR(VLOOKUP($B12,SN_UGC,28,0),0) -> 74387.39 | K12: =SUMIF('B1 - Matriz de custos diretos'!$B$3:$B$502,$B12,'B1 - Matriz de custos diretos'!$G$3:$G$502)*'A3 - Demanda Anual Agregada '!K14*IFERROR(VLOOKUP($B12,SN_UGC,28,0),0) -> 76678.14 | L12: =SUMIF('B1 - Matriz de custos diretos'!$B$3:$B$502,$B12,'B1 - Matriz de custos diretos'!$G$3:$G$502)*'A3 - Demanda Anual Agregada '!L14*IFERROR(VLOOKUP($B12,SN_UGC,28,0),0) -> 79012.01 | M12: =SUMIF('B1 - Matriz de custos diretos'!$B$3:$B$502,$B12,'B1 - Matriz de custos diretos'!$G$3:$G$502)*'A3 - Demanda Anual Agregada '!M14*IFERROR(VLOOKUP($B12,SN_UGC,28,0),0) -> 81415.95 | N12: =SUMIF('B1 - Matriz de custos diretos'!$B$3:$B$502,$B12,'B1 - Matriz de custos diretos'!$G$3:$G$502)*'A3 - Demanda Anual Agregada '!N14*IFERROR(VLOOKUP($B12,SN_UGC,28,0),0) -> 83895.35 | O12: =SUMIF('B1 - Matriz de custos diretos'!$B$3:$B$502,$B12,'B1 - Matriz de custos diretos'!$G$3:$G$502)*'A3 - Demanda Anual Agregada '!O14*IFERROR(VLOOKUP($B12,SN_UGC,28,0),0) -> 86455.6 | P12: =SUMIF('B1 - Matriz de custos diretos'!$B$3:$B$502,$B12,'B1 - Matriz de custos diretos'!$G$3:$G$502)*'A3 - Demanda Anual Agregada '!P14*IFERROR(VLOOKUP($B12,SN_UGC,28,0),0) -> 89085.92 | Q12: =SUMIF('B1 - Matriz de custos diretos'!$B$3:$B$502,$B12,'B1 - Matriz de custos diretos'!$G$3:$G$502)*'A3 - Demanda Anual Agregada '!Q14*IFERROR(VLOOKUP($B12,SN_UGC,28,0),0) -> 91802.48 | R12: =SUMIF('B1 - Matriz de custos diretos'!$B$3:$B$502,$B12,'B1 - Matriz de custos diretos'!$G$3:$G$502)*'A3 - Demanda Anual Agregada '!R14*IFERROR(VLOOKUP($B12,SN_UGC,28,0),0) -> 94589.11 | S12: =SUMIF('B1 - Matriz de custos diretos'!$B$3:$B$502,$B12,'B1 - Matriz de custos diretos'!$G$3:$G$502)*'A3 - Demanda Anual Agregada '!S14*IFERROR(VLOOKUP($B12,SN_UGC,28,0),0) -> 97451.2 | T12: =SUMIF('B1 - Matriz de custos diretos'!$B$3:$B$502,$B12,'B1 - Matriz de custos diretos'!$G$3:$G$502)*'A3 - Demanda Anual Agregada '!T14*IFERROR(VLOOKUP($B12,SN_UGC,28,0),0) -> 100367.19 | U12: =SUMIF('B1 - Matriz de custos diretos'!$B$3:$B$502,$B12,'B1 - Matriz de custos diretos'!$G$3:$G$502)*'A3 - Demanda Anual Agregada '!U14*IFERROR(VLOOKUP($B12,SN_UGC,28,0),0) -> 103342.47 | V12: =SUMIF('B1 - Matriz de custos diretos'!$B$3:$B$502,$B12,'B1 - Matriz de custos diretos'!$G$3:$G$502)*'A3 - Demanda Anual Agregada '!V14*IFERROR(VLOOKUP($B12,SN_UGC,28,0),0) -> 106355.48 | W12: =SUMIF('B1 - Matriz de custos diretos'!$B$3:$B$502,$B12,'B1 - Matriz de custos diretos'!$G$3:$G$502)*'A3 - Demanda Anual Agregada '!W14*IFERROR(VLOOKUP($B12,SN_UGC,28,0),0) -> 106355.48 | X12: =SUMIF('B1 - Matriz de custos diretos'!$B$3:$B$502,$B12,'B1 - Matriz de custos diretos'!$G$3:$G$502)*'A3 - Demanda Anual Agregada '!X14*IFERROR(VLOOKUP($B12,SN_UGC,28,0),0) -> 106355.48 | Y12: =SUMIF('B1 - Matriz de custos diretos'!$B$3:$B$502,$B12,'B1 - Matriz de custos diretos'!$G$3:$G$502)*'A3 - Demanda Anual Agregada '!Y14*IFERROR(VLOOKUP($B12,SN_UGC,28,0),0) -> 106355.48 | Z12: =SUMIF('B1 - Matriz de custos diretos'!$B$3:$B$502,$B12,'B1 - Matriz de custos diretos'!$G$3:$G$502)*'A3 - Demanda Anual Agregada '!Z14*IFERROR(VLOOKUP($B12,SN_UGC,28,0),0) -> 106355.48 | AA12: =SUMIF('B1 - Matriz de custos diretos'!$B$3:$B$502,$B12,'B1 - Matriz de custos diretos'!$G$3:$G$502)*'A3 - Demanda Anual Agregada '!AA14*IFERROR(VLOOKUP($B12,SN_UGC,28,0),0) -> 106355.48 | AB12: =SUMIF('B1 - Matriz de custos diretos'!$B$3:$B$502,$B12,'B1 - Matriz de custos diretos'!$G$3:$G$502)*'A3 - Demanda Anual Agregada '!AB14*IFERROR(VLOOKUP($B12,SN_UGC,28,0),0) -> 106355.48 | AC12: =SUMIF('B1 - Matriz de custos diretos'!$B$3:$B$502,$B12,'B1 - Matriz de custos diretos'!$G$3:$G$502)*'A3 - Demanda Anual Agregada '!AC14*IFERROR(VLOOKUP($B12,SN_UGC,28,0),0) -> 106355.48 | AD12: =SUMIF('B1 - Matriz de custos diretos'!$B$3:$B$502,$B12,'B1 - Matriz de custos diretos'!$G$3:$G$502)*'A3 - Demanda Anual Agregada '!AD14*IFERROR(VLOOKUP($B12,SN_UGC,28,0),0) -> 106355.48 | AE12: =SUMIF('B1 - Matriz de custos diretos'!$B$3:$B$502,$B12,'B1 - Matriz de custos diretos'!$G$3:$G$502)*'A3 - Demanda Anual Agregada '!AE14*IFERROR(VLOOKUP($B12,SN_UGC,28,0),0) -> 106355.48 | AF12: =SUMIF('B1 - Matriz de custos diretos'!$B$3:$B$502,$B12,'B1 - Matriz de custos diretos'!$G$3:$G$502)*'A3 - Demanda Anual Agregada '!AF14*IFERROR(VLOOKUP($B12,SN_UGC,28,0),0) -> 106355.48
